Workbook

Sheet Cover
B9: SFR57/2017: GCSE and equivalent results in England 2016/17 (Provisional)
B11: Subject time series table
B13: Producer: Kathryn Kenney
B14: Education Data Division, Department for Education, Bishopsgate House, Feethams, Darlington, DL1 5QE
B15: Published: 12th October 2017
B16: Crown copyright © 2017
B18: Index
B20: This table forms part of SFR57/2017. The text of the release and additional tables can be found at: | J20: https://www.gov.uk/government/collections/statistics-gcses-key-stage-4

Sheet Index
A1: SFR57/2017: GCSE and equivalent results in England 2016/17 (PROVISIONAL)
A3: Subject time series table
A5: Index of tables
B6: Source: key stage 4 attainment data
B7: Coverage: England
B9: Table title | C9: School types covered | D9: Period
B10: Subject time series | C10: All schools | D10: 2009/10 to 2016/17
B11: Subject grouping composition table | C11: N/A | D11: N/A

Sheet Subject time series
E2: Time series of GCSE results1 of pupils at the end of key stage 4 in schools, by subject2, grade and gender
E3: Years: 2009/10 - 2016/173
E4: Coverage: England
E5: English | F5: Boys | G5: =IF(Sex="Boys",3,IF(Sex="Girls",16,29)) -> 3 | H5: =IF(Sex="Boys",3,IF(Sex="Girls",8,13)) -> 3
E6: =IF(Group="English","English (8)",IF(Group="Mathematics","Mathematics (8)",Group)) -> English (8) | F6: =Sex -> Boys
F7: Percentage achieving grade(s)4 | Q7: Total entries9
E8: Year | F8: A* | G8: A | H8: B | I8: C | J8: D | K8: E | L8: F | M8: G | N8: =IF($E$6="All subjects","A*-A/9-7","A*-A") -> A*-A | O8: =IF($E$6="All subjects","A*-C/9-4","A*-C") -> A*-C | P8: =IF($E$6="All subjects","A*-G/9-1","A*-G") -> A*-G
E9: 2009/20101 | F9: =IF(ISERROR(VLOOKUP(Group,GCSE2010,$G$5+Descriptions!F$1,FALSE)),"-",VLOOKUP(Group,GCSE2010,$G$5+Descriptions!F$1,FALSE)) -> 3.6 | G9: =IF(ISERROR(VLOOKUP(Group,GCSE2010,$G$5+Descriptions!G$1,FALSE)),"-",VLOOKUP(Group,GCSE2010,$G$5+Descriptions!G$1,FALSE)) -> 10.2 | H9: =IF(ISERROR(VLOOKUP(Group,GCSE2010,$G$5+Descriptions!H$1,FALSE)),"-",VLOOKUP(Group,GCSE2010,$G$5+Descriptions!H$1,FALSE)) -> 19.6 | I9: =IF(ISERROR(VLOOKUP(Group,GCSE2010,$G$5+Descriptions!I$1,FALSE)),"-",VLOOKUP(Group,GCSE2010,$G$5+Descriptions!I$1,FALSE)) -> 29.9 | J9: =IF(ISERROR(VLOOKUP(Group,GCSE2010,$G$5+Descriptions!J$1,FALSE)),"-",VLOOKUP(Group,GCSE2010,$G$5+Descriptions!J$1,FALSE)) -> 18.6 | K9: =IF(ISERROR(VLOOKUP(Group,GCSE2010,$G$5+Descriptions!K$1,FALSE)),"-",VLOOKUP(Group,GCSE2010,$G$5+Descriptions!K$1,FALSE)) -> 10.1 | L9: =IF(ISERROR(VLOOKUP(Group,GCSE2010,$G$5+Descriptions!L$1,FALSE)),"-",VLOOKUP(Group,GCSE2010,$G$5+Descriptions!L$1,FALSE)) -> 4.9 | M9: =IF(ISERROR(VLOOKUP(Group,GCSE2010,$G$5+Descriptions!M$1,FALSE)),"-",VLOOKUP(Group,GCSE2010,$G$5+Descriptions!M$1,FALSE)) -> 1.9 | N9: =IF(ISERROR(VLOOKUP(Group,GCSE2010,$G$5+Descriptions!N$1,FALSE)),"-",VLOOKUP(Group,GCSE2010,$G$5+Descriptions!N$1,FALSE)) -> 13.7 | O9: =IF(ISERROR(VLOOKUP(Group,GCSE2010,$G$5+Descriptions!O$1,FALSE)),"-",VLOOKUP(Group,GCSE2010,$G$5+Descriptions!O$1,FALSE)) -> 63.1 | P9: =IF(ISERROR(VLOOKUP(Group,GCSE2010,$G$5+Descriptions!P$1,FALSE)),"-",VLOOKUP(Group,GCSE2010,$G$5+Descriptions!P$1,FALSE)) -> 98.7 | Q9: =IF(ISERROR(VLOOKUP(Group,GCSE2010,$G$5+Descriptions!Q$1,FALSE)),"-",VLOOKUP(Group,GCSE2010,$G$5+Descriptions!Q$1,FALSE)) -> 301727
E10: 2010/2011 | F10: =IF(ISERROR(VLOOKUP(Group,GCSE2011,$G$5+Descriptions!F$1,FALSE)),"-",VLOOKUP(Group,GCSE2011,$G$5+Descriptions!F$1,FALSE)) -> 3.8 | G10: =IF(ISERROR(VLOOKUP(Group,GCSE2011,$G$5+Descriptions!G$1,FALSE)),"-",VLOOKUP(Group,GCSE2011,$G$5+Descriptions!G$1,FALSE)) -> 10.7 | H10: =IF(ISERROR(VLOOKUP(Group,GCSE2011,$G$5+Descriptions!H$1,FALSE)),"-",VLOOKUP(Group,GCSE2011,$G$5+Descriptions!H$1,FALSE)) -> 19.9 | I10: =IF(ISERROR(VLOOKUP(Group,GCSE2011,$G$5+Descriptions!I$1,FALSE)),"-",VLOOKUP(Group,GCSE2011,$G$5+Descriptions!I$1,FALSE)) -> 31.4 | J10: =IF(ISERROR(VLOOKUP(Group,GCSE2011,$G$5+Descriptions!J$1,FALSE)),"-",VLOOKUP(Group,GCSE2011,$G$5+Descriptions!J$1,FALSE)) -> 17.9 | K10: =IF(ISERROR(VLOOKUP(Group,GCSE2011,$G$5+Descriptions!K$1,FALSE)),"-",VLOOKUP(Group,GCSE2011,$G$5+Descriptions!K$1,FALSE)) -> 9.2 | L10: =IF(ISERROR(VLOOKUP(Group,GCSE2011,$G$5+Descriptions!L$1,FALSE)),"-",VLOOKUP(Group,GCSE2011,$G$5+Descriptions!L$1,FALSE)) -> 4.2 | M10: =IF(ISERROR(VLOOKUP(Group,GCSE2011,$G$5+Descriptions!M$1,FALSE)),"-",VLOOKUP(Group,GCSE2011,$G$5+Descriptions!M$1,FALSE)) -> 1.6 | N10: =IF(ISERROR(VLOOKUP(Group,GCSE2011,$G$5+Descriptions!N$1,FALSE)),"-",VLOOKUP(Group,GCSE2011,$G$5+Descriptions!N$1,FALSE)) -> 14.5 | O10: =IF(ISERROR(VLOOKUP(Group,GCSE2011,$G$5+Descriptions!O$1,FALSE)),"-",VLOOKUP(Group,GCSE2011,$G$5+Descriptions!O$1,FALSE)) -> 65.8 | P10: =IF(ISERROR(VLOOKUP(Group,GCSE2011,$G$5+Descriptions!P$1,FALSE)),"-",VLOOKUP(Group,GCSE2011,$G$5+Descriptions!P$1,FALSE)) -> 98.9 | Q10: =IF(ISERROR(VLOOKUP(Group,GCSE2011,$G$5+Descriptions!Q$1,FALSE)),"-",VLOOKUP(Group,GCSE2011,$G$5+Descriptions!Q$1,FALSE)) -> 296070
E11: 2011/2012 | F11: =IF(ISERROR(VLOOKUP(Group,GCSE2012,$G$5+Descriptions!F$1,FALSE)),"-",VLOOKUP(Group,GCSE2012,$G$5+Descriptions!F$1,FALSE)) -> 2.5 | G11: =IF(ISERROR(VLOOKUP(Group,GCSE2012,$G$5+Descriptions!G$1,FALSE)),"-",VLOOKUP(Group,GCSE2012,$G$5+Descriptions!G$1,FALSE)) -> 9.4 | H11: =IF(ISERROR(VLOOKUP(Group,GCSE2012,$G$5+Descriptions!H$1,FALSE)),"-",VLOOKUP(Group,GCSE2012,$G$5+Descriptions!H$1,FALSE)) -> 18.9 | I11: =IF(ISERROR(VLOOKUP(Group,GCSE2012,$G$5+Descriptions!I$1,FALSE)),"-",VLOOKUP(Group,GCSE2012,$G$5+Descriptions!I$1,FALSE)) -> 31.5 | J11: =IF(ISERROR(VLOOKUP(Group,GCSE2012,$G$5+Descriptions!J$1,FALSE)),"-",VLOOKUP(Group,GCSE2012,$G$5+Descriptions!J$1,FALSE)) -> 20.3 | K11: =IF(ISERROR(VLOOKUP(Group,GCSE2012,$G$5+Descriptions!K$1,FALSE)),"-",VLOOKUP(Group,GCSE2012,$G$5+Descriptions!K$1,FALSE)) -> 10.4 | L11: =IF(ISERROR(VLOOKUP(Group,GCSE2012,$G$5+Descriptions!L$1,FALSE)),"-",VLOOKUP(Group,GCSE2012,$G$5+Descriptions!L$1,FALSE)) -> 4.7 | M11: =IF(ISERROR(VLOOKUP(Group,GCSE2012,$G$5+Descriptions!M$1,FALSE)),"-",VLOOKUP(Group,GCSE2012,$G$5+Descriptions!M$1,FALSE)) -> 1.5 | N11: =IF(ISERROR(VLOOKUP(Group,GCSE2012,$G$5+Descriptions!N$1,FALSE)),"-",VLOOKUP(Group,GCSE2012,$G$5+Descriptions!N$1,FALSE)) -> 11.9 | O11: =IF(ISERROR(VLOOKUP(Group,GCSE2012,$G$5+Descriptions!O$1,FALSE)),"-",VLOOKUP(Group,GCSE2012,$G$5+Descriptions!O$1,FALSE)) -> 62.2 | P11: =IF(ISERROR(VLOOKUP(Group,GCSE2012,$G$5+Descriptions!P$1,FALSE)),"-",VLOOKUP(Group,GCSE2012,$G$5+Descriptions!P$1,FALSE)) -> 99.2 | Q11: =IF(ISERROR(VLOOKUP(Group,GCSE2012,$G$5+Descriptions!Q$1,FALSE)),"-",VLOOKUP(Group,GCSE2012,$G$5+Descriptions!Q$1,FALSE)) -> 286477
E12: 2012/2013 | F12: =IF(ISERROR(VLOOKUP(Group,GCSE2013,$G$5+Descriptions!F$1,FALSE)),"-",VLOOKUP(Group,GCSE2013,$G$5+Descriptions!F$1,FALSE)) -> 2.5 | G12: =IF(ISERROR(VLOOKUP(Group,GCSE2013,$G$5+Descriptions!G$1,FALSE)),"-",VLOOKUP(Group,GCSE2013,$G$5+Descriptions!G$1,FALSE)) -> 9.2 | H12: =IF(ISERROR(VLOOKUP(Group,GCSE2013,$G$5+Descriptions!H$1,FALSE)),"-",VLOOKUP(Group,GCSE2013,$G$5+Descriptions!H$1,FALSE)) -> 19.7 | I12: =IF(ISERROR(VLOOKUP(Group,GCSE2013,$G$5+Descriptions!I$1,FALSE)),"-",VLOOKUP(Group,GCSE2013,$G$5+Descriptions!I$1,FALSE)) -> 32 | J12: =IF(ISERROR(VLOOKUP(Group,GCSE2013,$G$5+Descriptions!J$1,FALSE)),"-",VLOOKUP(Group,GCSE2013,$G$5+Descriptions!J$1,FALSE)) -> 19.6 | K12: =IF(ISERROR(VLOOKUP(Group,GCSE2013,$G$5+Descriptions!K$1,FALSE)),"-",VLOOKUP(Group,GCSE2013,$G$5+Descriptions!K$1,FALSE)) -> 10.2 | L12: =IF(ISERROR(VLOOKUP(Group,GCSE2013,$G$5+Descriptions!L$1,FALSE)),"-",VLOOKUP(Group,GCSE2013,$G$5+Descriptions!L$1,FALSE)) -> 4.6 | M12: =IF(ISERROR(VLOOKUP(Group,GCSE2013,$G$5+Descriptions!M$1,FALSE)),"-",VLOOKUP(Group,GCSE2013,$G$5+Descriptions!M$1,FALSE)) -> 1.5 | N12: =IF(ISERROR(VLOOKUP(Group,GCSE2013,$G$5+Descriptions!N$1,FALSE)),"-",VLOOKUP(Group,GCSE2013,$G$5+Descriptions!N$1,FALSE)) -> 11.7 | O12: =IF(ISERROR(VLOOKUP(Group,GCSE2013,$G$5+Descriptions!O$1,FALSE)),"-",VLOOKUP(Group,GCSE2013,$G$5+Descriptions!O$1,FALSE)) -> 63.4 | P12: =IF(ISERROR(VLOOKUP(Group,GCSE2013,$G$5+Descriptions!P$1,FALSE)),"-",VLOOKUP(Group,GCSE2013,$G$5+Descriptions!P$1,FALSE)) -> 99.2 | Q12: =IF(ISERROR(VLOOKUP(Group,GCSE2013,$G$5+Descriptions!Q$1,FALSE)),"-",VLOOKUP(Group,GCSE2013,$G$5+Descriptions!Q$1,FALSE)) -> 274738
E13: 2013/20143,5 | F13: =IF(ISERROR(VLOOKUP(Group,GCSE2014,$G$5+Descriptions!F$1,FALSE)),"-",VLOOKUP(Group,GCSE2014,$G$5+Descriptions!F$1,FALSE)) -> 2.7 | G13: =IF(ISERROR(VLOOKUP(Group,GCSE2014,$G$5+Descriptions!G$1,FALSE)),"-",VLOOKUP(Group,GCSE2014,$G$5+Descriptions!G$1,FALSE)) -> 9.5 | H13: =IF(ISERROR(VLOOKUP(Group,GCSE2014,$G$5+Descriptions!H$1,FALSE)),"-",VLOOKUP(Group,GCSE2014,$G$5+Descriptions!H$1,FALSE)) -> 21.1 | I13: =IF(ISERROR(VLOOKUP(Group,GCSE2014,$G$5+Descriptions!I$1,FALSE)),"-",VLOOKUP(Group,GCSE2014,$G$5+Descriptions!I$1,FALSE)) -> 31.5 | J13: =IF(ISERROR(VLOOKUP(Group,GCSE2014,$G$5+Descriptions!J$1,FALSE)),"-",VLOOKUP(Group,GCSE2014,$G$5+Descriptions!J$1,FALSE)) -> 19.7 | K13: =IF(ISERROR(VLOOKUP(Group,GCSE2014,$G$5+Descriptions!K$1,FALSE)),"-",VLOOKUP(Group,GCSE2014,$G$5+Descriptions!K$1,FALSE)) -> 9.1 | L13: =IF(ISERROR(VLOOKUP(Group,GCSE2014,$G$5+Descriptions!L$1,FALSE)),"-",VLOOKUP(Group,GCSE2014,$G$5+Descriptions!L$1,FALSE)) -> 3.8 | M13: =IF(ISERROR(VLOOKUP(Group,GCSE2014,$G$5+Descriptions!M$1,FALSE)),"-",VLOOKUP(Group,GCSE2014,$G$5+Descriptions!M$1,FALSE)) -> 1.5 | N13: =IF(ISERROR(VLOOKUP(Group,GCSE2014,$G$5+Descriptions!N$1,FALSE)),"-",VLOOKUP(Group,GCSE2014,$G$5+Descriptions!N$1,FALSE)) -> 12.1 | O13: =IF(ISERROR(VLOOKUP(Group,GCSE2014,$G$5+Descriptions!O$1,FALSE)),"-",VLOOKUP(Group,GCSE2014,$G$5+Descriptions!O$1,FALSE)) -> 64.7 | P13: =IF(ISERROR(VLOOKUP(Group,GCSE2014,$G$5+Descriptions!P$1,FALSE)),"-",VLOOKUP(Group,GCSE2014,$G$5+Descriptions!P$1,FALSE)) -> 98.8 | Q13: =IF(ISERROR(VLOOKUP(Group,GCSE2014,$G$5+Descriptions!Q$1,FALSE)),"-",VLOOKUP(Group,GCSE2014,$G$5+Descriptions!Q$1,FALSE)) -> 229932
E14: 2014/20156 | F14: =IF(ISERROR(VLOOKUP(Group,GCSE2015,$G$5+Descriptions!F$1,FALSE)),"-",VLOOKUP(Group,GCSE2015,$G$5+Descriptions!F$1,FALSE)) -> 2.4 | G14: =IF(ISERROR(VLOOKUP(Group,GCSE2015,$G$5+Descriptions!G$1,FALSE)),"-",VLOOKUP(Group,GCSE2015,$G$5+Descriptions!G$1,FALSE)) -> 10.1 | H14: =IF(ISERROR(VLOOKUP(Group,GCSE2015,$G$5+Descriptions!H$1,FALSE)),"-",VLOOKUP(Group,GCSE2015,$G$5+Descriptions!H$1,FALSE)) -> 23.4 | I14: =IF(ISERROR(VLOOKUP(Group,GCSE2015,$G$5+Descriptions!I$1,FALSE)),"-",VLOOKUP(Group,GCSE2015,$G$5+Descriptions!I$1,FALSE)) -> 31.3 | J14: =IF(ISERROR(VLOOKUP(Group,GCSE2015,$G$5+Descriptions!J$1,FALSE)),"-",VLOOKUP(Group,GCSE2015,$G$5+Descriptions!J$1,FALSE)) -> 19.2 | K14: =IF(ISERROR(VLOOKUP(Group,GCSE2015,$G$5+Descriptions!K$1,FALSE)),"-",VLOOKUP(Group,GCSE2015,$G$5+Descriptions!K$1,FALSE)) -> 8 | L14: =IF(ISERROR(VLOOKUP(Group,GCSE2015,$G$5+Descriptions!L$1,FALSE)),"-",VLOOKUP(Group,GCSE2015,$G$5+Descriptions!L$1,FALSE)) -> 3.3 | M14: =IF(ISERROR(VLOOKUP(Group,GCSE2015,$G$5+Descriptions!M$1,FALSE)),"-",VLOOKUP(Group,GCSE2015,$G$5+Descriptions!M$1,FALSE)) -> 1.4 | N14: =IF(ISERROR(VLOOKUP(Group,GCSE2015,$G$5+Descriptions!N$1,FALSE)),"-",VLOOKUP(Group,GCSE2015,$G$5+Descriptions!N$1,FALSE)) -> 12.5 | O14: =IF(ISERROR(VLOOKUP(Group,GCSE2015,$G$5+Descriptions!O$1,FALSE)),"-",VLOOKUP(Group,GCSE2015,$G$5+Descriptions!O$1,FALSE)) -> 67.2 | P14: =IF(ISERROR(VLOOKUP(Group,GCSE2015,$G$5+Descriptions!P$1,FALSE)),"-",VLOOKUP(Group,GCSE2015,$G$5+Descriptions!P$1,FALSE)) -> 99.1 | Q14: =IF(ISERROR(VLOOKUP(Group,GCSE2015,$G$5+Descriptions!Q$1,FALSE)),"-",VLOOKUP(Group,GCSE2015,$G$5+Descriptions!Q$1,FALSE)) -> 176842
E15: 2015/20166 | F15: =IF(ISERROR(VLOOKUP(Group,GCSE2016,$G$5+Descriptions!F$1,FALSE)),"-",VLOOKUP(Group,GCSE2016,$G$5+Descriptions!F$1,FALSE)) -> 2.8 | G15: =IF(ISERROR(VLOOKUP(Group,GCSE2016,$G$5+Descriptions!G$1,FALSE)),"-",VLOOKUP(Group,GCSE2016,$G$5+Descriptions!G$1,FALSE)) -> 9.6 | H15: =IF(ISERROR(VLOOKUP(Group,GCSE2016,$G$5+Descriptions!H$1,FALSE)),"-",VLOOKUP(Group,GCSE2016,$G$5+Descriptions!H$1,FALSE)) -> 21.9 | I15: =IF(ISERROR(VLOOKUP(Group,GCSE2016,$G$5+Descriptions!I$1,FALSE)),"-",VLOOKUP(Group,GCSE2016,$G$5+Descriptions!I$1,FALSE)) -> 30.8 | J15: =IF(ISERROR(VLOOKUP(Group,GCSE2016,$G$5+Descriptions!J$1,FALSE)),"-",VLOOKUP(Group,GCSE2016,$G$5+Descriptions!J$1,FALSE)) -> 20.2 | K15: =IF(ISERROR(VLOOKUP(Group,GCSE2016,$G$5+Descriptions!K$1,FALSE)),"-",VLOOKUP(Group,GCSE2016,$G$5+Descriptions!K$1,FALSE)) -> 8.6 | L15: =IF(ISERROR(VLOOKUP(Group,GCSE2016,$G$5+Descriptions!L$1,FALSE)),"-",VLOOKUP(Group,GCSE2016,$G$5+Descriptions!L$1,FALSE)) -> 3.7 | M15: =IF(ISERROR(VLOOKUP(Group,GCSE2016,$G$5+Descriptions!M$1,FALSE)),"-",VLOOKUP(Group,GCSE2016,$G$5+Descriptions!M$1,FALSE)) -> 1.5 | N15: =IF(ISERROR(VLOOKUP(Group,GCSE2016,$G$5+Descriptions!N$1,FALSE)),"-",VLOOKUP(Group,GCSE2016,$G$5+Descriptions!N$1,FALSE)) -> 12.4 | O15: =IF(ISERROR(VLOOKUP(Group,GCSE2016,$G$5+Descriptions!O$1,FALSE)),"-",VLOOKUP(Group,GCSE2016,$G$5+Descriptions!O$1,FALSE)) -> 65 | P15: =IF(ISERROR(VLOOKUP(Group,GCSE2016,$G$5+Descriptions!P$1,FALSE)),"-",VLOOKUP(Group,GCSE2016,$G$5+Descriptions!P$1,FALSE)) -> 99.1 | Q15: =IF(ISERROR(VLOOKUP(Group,GCSE2016,$G$5+Descriptions!Q$1,FALSE)),"-",VLOOKUP(Group,GCSE2016,$G$5+Descriptions!Q$1,FALSE)) -> 164981
E16: 2016/20176,7 | F16: =IF(ISERROR(VLOOKUP(Group,GCSE2017_AG,$G$5+Descriptions!F$1,FALSE)),".",VLOOKUP(Group,GCSE2017_AG,$G$5+Descriptions!F$1,FALSE)) -> . | G16: =IF(ISERROR(VLOOKUP(Group,GCSE2017_AG,$G$5+Descriptions!G$1,FALSE)),".",VLOOKUP(Group,GCSE2017_AG,$G$5+Descriptions!G$1,FALSE)) -> . | H16: =IF(ISERROR(VLOOKUP(Group,GCSE2017_AG,$G$5+Descriptions!H$1,FALSE)),".",VLOOKUP(Group,GCSE2017_AG,$G$5+Descriptions!H$1,FALSE)) -> . | I16: =IF(ISERROR(VLOOKUP(Group,GCSE2017_AG,$G$5+Descriptions!I$1,FALSE)),".",VLOOKUP(Group,GCSE2017_AG,$G$5+Descriptions!I$1,FALSE)) -> . | J16: =IF(ISERROR(VLOOKUP(Group,GCSE2017_AG,$G$5+Descriptions!J$1,FALSE)),".",VLOOKUP(Group,GCSE2017_AG,$G$5+Descriptions!J$1,FALSE)) -> . | K16: =IF(ISERROR(VLOOKUP(Group,GCSE2017_AG,$G$5+Descriptions!K$1,FALSE)),".",VLOOKUP(Group,GCSE2017_AG,$G$5+Descriptions!K$1,FALSE)) -> . | L16: =IF(ISERROR(VLOOKUP(Group,GCSE2017_AG,$G$5+Descriptions!L$1,FALSE)),".",VLOOKUP(Group,GCSE2017_AG,$G$5+Descriptions!L$1,FALSE)) -> . | M16: =IF(ISERROR(VLOOKUP(Group,GCSE2017_AG,$G$5+Descriptions!M$1,FALSE)),".",VLOOKUP(Group,GCSE2017_AG,$G$5+Descriptions!M$1,FALSE)) -> . | N16: =IF($E$6="All subjects",IF(ISERROR(VLOOKUP(Group,Allsub2017,$H$5+Descriptions!F$1,FALSE)),".",VLOOKUP(Group,Allsub2017,$H$5+Descriptions!F$1,FALSE)),IF(ISERROR(VLOOKUP(Group,GCSE2017_AG,$G$5+Descriptions!N$1,FALSE)),".",VLOOKUP(Group,GCSE2017_AG,$G$5+Descriptions!N$1,FALSE))) -> . | O16: =IF($E$6="All subjects",IF(ISERROR(VLOOKUP(Group,Allsub2017,$H$5+Descriptions!G$1,FALSE)),".",VLOOKUP(Group,Allsub2017,$H$5+Descriptions!G$1,FALSE)),IF(ISERROR(VLOOKUP(Group,GCSE2017_AG,$G$5+Descriptions!O$1,FALSE)),".",VLOOKUP(Group,GCSE2017_AG,$G$5+Descriptions!O$1,FALSE))) -> . | P16: =IF($E$6="All subjects",IF(ISERROR(VLOOKUP(Group,Allsub2017,$H$5+Descriptions!H$1,FALSE)),".",VLOOKUP(Group,Allsub2017,$H$5+Descriptions!H$1,FALSE)),IF(ISERROR(VLOOKUP(Group,GCSE2017_AG,$G$5+Descriptions!P$1,FALSE)),".",VLOOKUP(Group,GCSE2017_AG,$G$5+Descriptions!P$1,FALSE))) -> . | Q16: =IF($E$6="All subjects",IF(ISERROR(VLOOKUP(Group,Allsub2017,$H$5+Descriptions!I$1,FALSE)),".",VLOOKUP(Group,Allsub2017,$H$5+Descriptions!I$1,FALSE)),IF(ISERROR(VLOOKUP(Group,GCSE2017_AG,$G$5+Descriptions!Q$1,FALSE)),".",VLOOKUP(Group,GCSE2017_AG,$G$5+Descriptions!Q$1,FALSE))) -> .
Q17: Source: key stage 4 attainment data
E18: =IF(OR(Group="English Literature",Group="English",Group="Mathematics"),1,0) -> 1 | G18: =IF(Sex="Boys",3,IF(Sex="Girls",18,33)) -> 3
E19: =IF(Group="English","English Language (8)",IF(Group="Mathematics","Mathematics (8)",Group)) -> English Language (8) | F19: =Sex -> Boys
F20: Percentage achieving grade(s)(4) | S20: Total entries(9)
E21: Year | F21: 9 | G21: 8 | H21: 7 | I21: 6 | J21: 5 | K21: 4 | L21: 3 | M21: 2 | N21: 1 | O21: 9 to 7 | P21: 9 to 5 | Q21: 9 to 4 | R21: 9 to 1
E22: 2016/2017(6)(7) | F22: =IF(ISERROR(VLOOKUP(Group,GCSE2017_91,$G$18+Descriptions!F$1,FALSE)),"-",VLOOKUP(Group,GCSE2017_91,$G$18+Descriptions!F$1,FALSE)) -> 1.5 | G22: =IF(ISERROR(VLOOKUP(Group,GCSE2017_91,$G$18+Descriptions!G$1,FALSE)),"-",VLOOKUP(Group,GCSE2017_91,$G$18+Descriptions!G$1,FALSE)) -> 3.4 | H22: =IF(ISERROR(VLOOKUP(Group,GCSE2017_91,$G$18+Descriptions!H$1,FALSE)),"-",VLOOKUP(Group,GCSE2017_91,$G$18+Descriptions!H$1,FALSE)) -> 6.5 | I22: =IF(ISERROR(VLOOKUP(Group,GCSE2017_91,$G$18+Descriptions!I$1,FALSE)),"-",VLOOKUP(Group,GCSE2017_91,$G$18+Descriptions!I$1,FALSE)) -> 13.6 | J22: =IF(ISERROR(VLOOKUP(Group,GCSE2017_91,$G$18+Descriptions!J$1,FALSE)),"-",VLOOKUP(Group,GCSE2017_91,$G$18+Descriptions!J$1,FALSE)) -> 18.7 | K22: =IF(ISERROR(VLOOKUP(Group,GCSE2017_91,$G$18+Descriptions!K$1,FALSE)),"-",VLOOKUP(Group,GCSE2017_91,$G$18+Descriptions!K$1,FALSE)) -> 17.6 | L22: =IF(ISERROR(VLOOKUP(Group,GCSE2017_91,$G$18+Descriptions!L$1,FALSE)),"-",VLOOKUP(Group,GCSE2017_91,$G$18+Descriptions!L$1,FALSE)) -> 22.1 | M22: =IF(ISERROR(VLOOKUP(Group,GCSE2017_91,$G$18+Descriptions!M$1,FALSE)),"-",VLOOKUP(Group,GCSE2017_91,$G$18+Descriptions!M$1,FALSE)) -> 10.2 | N22: =IF(ISERROR(VLOOKUP(Group,GCSE2017_91,$G$18+Descriptions!N$1,FALSE)),"-",VLOOKUP(Group,GCSE2017_91,$G$18+Descriptions!N$1,FALSE)) -> 4.1 | O22: =IF(ISERROR(VLOOKUP(Group,GCSE2017_91,$G$18+Descriptions!O$1,FALSE)),"-",VLOOKUP(Group,GCSE2017_91,$G$18+Descriptions!O$1,FALSE)) -> 11.4 | P22: =IF(ISERROR(VLOOKUP(Group,GCSE2017_91,$G$18+Descriptions!P$1,FALSE)),"-",VLOOKUP(Group,GCSE2017_91,$G$18+Descriptions!P$1,FALSE)) -> 43.7 | Q22: =IF(ISERROR(VLOOKUP(Group,GCSE2017_91,$G$18+Descriptions!Q$1,FALSE)),"-",VLOOKUP(Group,GCSE2017_91,$G$18+Descriptions!Q$1,FALSE)) -> 61.3 | R22: =IF(ISERROR(VLOOKUP(Group,GCSE2017_91,$G$18+Descriptions!R$1,FALSE)),"-",VLOOKUP(Group,GCSE2017_91,$G$18+Descriptions!R$1,FALSE)) -> 97.7 | S22: =IF(ISERROR(VLOOKUP(Group,GCSE2017_91,$G$18+Descriptions!S$1,FALSE)),"-",VLOOKUP(Group,GCSE2017_91,$G$18+Descriptions!S$1,FALSE)) -> 270897
S23: Source: key stage 4 attainment data
E24: 1. Discounting has been applied where pupils have taken the same subject more than once and only one entry is counted in these circumstances. Only the first entry is counted, in all subjects, in line with the early entry guidance (see SFR main text).
E25: 2. Dance and Ancient History are shown as separate subjects in this table. In previous years, Dance has been included in Physical Education and Ancient History has been in included in Other Classical Subjects. See the Subject Grouping Composition for full details of which subjects have been grouped together.
E26: 3. 2016/17 figures are provisional, all other years are final.
E27: 4. Each individual grade on the new 9 to 1 scale does not map directly onto a grade on the A* to G scale, therefore direct comparisons between the two should not be made. Further information on how the 9 to 1 grades compare to the A* to G scale is available here: https://www.gov.uk/government/publications/your-qualification-our-regulation-gcse-as-and-a-level-reforms.
E28: 5. In 2013/14, two major reforms were implemented which affect the calculation of key stage 4 performance measures data: 1) Professor Alison Wolf’s Review of Vocational Education recommendations which: restrict the qualifications counted; prevent any qualification from counting as larger than one GCSE; and cap the number of non-GCSEs included in performance measures at two per pupil, and 2) an early entry policy to only count a pupil’s first attempt at a qualification, in subjects counted in the English Baccalaureate.
E29: 6. From 2014/15, early entry policy, under which only a pupil’s first attempt at a qualification is counted in performance measures was extended to all subjects (see SFR main text).
E30: 7. From 2017, new reformed GCSEs in English language, English literature and mathematics are graded using a new 9 to 1 scale. Unreformed subjects continue to be graded using the A* to G system. See the ‘Quality and methodology’ document for further information. Where reformed and unreformed subject totals are shown together in the above table, they are shown only at agreed anchor points (9-7/A*-A, 9-4/A*-C, 9-1/A*-G) as comparisons between other grades are not possible. For more on anchor points, see the following: https://www.gov.uk/government/news/setting-standards-for-new-gcses-in-2017
E31: 8. The combined English language and literature GCSE and mathematics linked pair GCSEs (Methods in Mathematics and Applications of Mathematics) were available for the last time in 2016. From 2017, only the new 9 to 1 GCSEs in English language, English literature and mathematics will count towards the performance tables. AS levels will also still count, however these results are excluded from this table.
E32: 9. Includes pupils who were absent, whose results are pending and results which are ungraded or unclassified.
E33: x Figure has been suppressed due to low numbers (1 or 2 pupils) or where secondary suppression has been applied.
E34: ="- No entries for this subject." -> - No entries for this subject.
E35: . Not applicable.
E36: Notes:
E37: Figures include attempts and achievements by these pupils in previous academic years where only the best grade in each individual subject is counted per pupil. Where subjects have been combined into a group (e.g. Other Modern Languages) and a pupil has two or more entries, each result in each subject is counted.
E38: Other science includes Astronomy, Electronics, Environmental Science and Geology.
E39: Other Design and Technology includes Design and Technology Engineering and Product Design qualifications.
E40: Other Classical Studies includes all other classical languages.

Sheet Descriptions (hidden)
A1: Subject Group | C1: Boys | F1: 0 | G1: =F1+1 -> 1 | H1: =G1+1 -> 2 | I1: 3 | J1: 4 | K1: 5 | L1: 6 | M1: 7 | N1: 8 | O1: 9 | P1: 10 | Q1: 11 | R1: 12 | S1: 13 | T1: 14
A2: English | C2: Girls
A3: Mathematics | C3: All
A4: Core Science
A5: Additional Science
A6: Further Additional Science
A7: Additional Applied Science
A8: Physics
A9: Chemistry
A10: Biological Sciences
A11: Computer Science
A12: Other Sciences
A13: D & T: Electronic Products
A14: D & T: Food Technology
A15: D & T: Graphic Products
A16: D & T: Resistant Materials
A17: D & T: Systems & Control
A18: D & T: Textiles Technology
A19: Other Design and Technology
A20: Applied Engineering
A21: Information Technology
A22: Business Studies
A23: Applied Business
A24: Home Economics
A25: Geography
A26: History
A27: Ancient History
A28: Humanities
A29: Economics
A30: Social Studies
A31: Arabic
A32: Chinese
A33: French
A34: German
A35: Italian
A36: Polish
A37: Spanish
A38: Urdu
A39: Other Modern Languages
A40: Classical Civilisation
A41: Classical Greek
A42: Latin
A43: Other Classical Studies
A44: Applied Art and Design
A45: Applied Physical Education
A46: Art and Design
A47: Communication Studies
A48: Construction
A49: Dance
A50: Drama
A51: English Literature
A52: English Studies
A53: General Studies
A54: Health and Social Care
A55: Hospitality and Catering
A56: Leisure and Tourism
A57: Manufacturing
A58: Media/Film/TV
A59: Media: Communication and Production
A60: Music
A61: Performing Arts
A62: Physical Education
A63: Religious Studies
A64: Statistics
A65: Vocational Studies
A66: All subjects

Sheet 2010 (hidden)
A1: 1 | B1: 2 | C1: 3 | D1: 4 | E1: 5 | F1: 6 | G1: 7 | H1: 8 | I1: 9 | J1: 10 | K1: 11 | L1: 12 | M1: 13 | N1: 14 | O1: 15 | P1: 16 | Q1: 17 | R1: 18 | S1: 19 | T1: 20 | U1: 21 | V1: 22 | W1: 23 | X1: 24 | Y1: 25 | Z1: 26 | AA1: 27 | AB1: 28 | AC1: 29 | AD1: 30 | AE1: 31 | AF1: 32 | AG1: 33 | AH1: 34 | AI1: 35 | AJ1: 36 | AK1: 37 | AL1: 38 | AM1: 39 | AN1: 40
A2: Subjects | C2: * | D2: A | E2: B | F2: C | G2: D | H2: E | I2: F | J2: G | K2: AstarA | L2: AstarC | M2: AstarG | N2: Total | O2: (No column name) | P2: * | Q2: A | R2: B | S2: C | T2: D | U2: E | V2: F | W2: G | X2: AstarA | Y2: AstarC | Z2: AstarG | AA2: Total | AB2: (No column name) | AC2: * | AD2: A | AE2: B | AF2: C | AG2: D | AH2: E | AI2: F | AJ2: G | AK2: AstarA | AL2: AstarC | AM2: AstarG | AN2: Total
A3: Vocational Studies | B3: Males | C3: 2.7 | D3: 8.9 | E3: 15.7 | F3: 30.2 | G3: 19.3 | H3: 11 | I3: 5.7 | J3: 3 | K3: 11.6 | L3: 57.5 | M3: 96.6 | N3: 20355 | O3: Females | P3: 5.8 | Q3: 13.5 | R3: 19.2 | S3: 30.9 | T3: 15.7 | U3: 7.5 | V3: 3.8 | W3: 1.7 | X3: 19.3 | Y3: 69.3 | Z3: 98 | AA3: 21321 | AB3: All | AC3: 4.3 | AD3: 11.2 | AE3: 17.5 | AF3: 30.5 | AG3: 17.5 | AH3: 9.2 | AI3: 4.7 | AJ3: 2.3 | AK3: 15.5 | AL3: 63.6 | AM3: 97.3 | AN3: 41676
A4: Urdu | B4: Males | C4: 10.1 | D4: 17.8 | E4: 15.3 | F4: 20.6 | G4: 14.3 | H4: 11.2 | I4: 6.8 | J4: 2.6 | K4: 27.9 | L4: 63.7 | M4: 98.6 | N4: 1759 | O4: Females | P4: 17.6 | Q4: 24 | R4: 19.7 | S4: 16 | T4: 10.6 | U4: 7 | V4: 3.3 | W4: 1.1 | X4: 41.6 | Y4: 77.3 | Z4: 99.2 | AA4: 2791 | AB4: All | AC4: 14.7 | AD4: 21.6 | AE4: 18 | AF4: 17.8 | AG4: 12 | AH4: 8.6 | AI4: 4.6 | AJ4: 1.7 | AK4: 36.3 | AL4: 72 | AM4: 99 | AN4: 4550
A5: Statistics | B5: Males | C5: 7.5 | D5: 15.4 | E5: 19.6 | F5: 32.8 | G5: 13.2 | H5: 5.4 | I5: 2.2 | J5: 1.1 | K5: 22.8 | L5: 75.2 | M5: 97.2 | N5: 36900 | O5: Females | P5: 7.7 | Q5: 16.5 | R5: 20 | S5: 33.8 | T5: 11.8 | U5: 4.9 | V5: 2 | W5: 0.9 | X5: 24.2 | Y5: 77.9 | Z5: 97.6 | AA5: 33838 | AB5: All | AC5: 7.6 | AD5: 15.9 | AE5: 19.8 | AF5: 33.3 | AG5: 12.6 | AH5: 5.2 | AI5: 2.1 | AJ5: 1 | AK5: 23.5 | AL5: 76.5 | AM5: 97.3 | AN5: 70738
A6: Spanish | B6: Males | C6: 12.9 | D6: 16.2 | E6: 17.5 | F6: 23.1 | G6: 16.9 | H6: 8 | I6: 3.4 | J6: 1.3 | K6: 29.1 | L6: 69.7 | M6: 99.3 | N6: 24744 | O6: Females | P6: 16.9 | Q6: 19.3 | R6: 19.3 | S6: 22.1 | T6: 13.6 | U6: 5.5 | V6: 2.1 | W6: 0.8 | X6: 36.2 | Y6: 77.7 | Z6: 99.6 | AA6: 33486 | AB6: All | AC6: 15.2 | AD6: 18 | AE6: 18.6 | AF6: 22.5 | AG6: 15 | AH6: 6.5 | AI6: 2.7 | AJ6: 1 | AK6: 33.2 | AL6: 74.3 | AM6: 99.5 | AN6: 58230
A7: Social Studies | B7: Males | C7: 2.4 | D7: 9.2 | E7: 18.2 | F7: 27.5 | G7: 18.7 | H7: 9.7 | I7: 5.3 | J7: 3 | K7: 11.6 | L7: 57.3 | M7: 94.1 | N7: 7301 | O7: Females | P7: 4.8 | Q7: 15.2 | R7: 22.1 | S7: 27 | T7: 14.9 | U7: 7.7 | V7: 3.3 | W7: 1.6 | X7: 20 | Y7: 69.2 | Z7: 96.7 | AA7: 17475 | AB7: All | AC7: 4.1 | AD7: 13.4 | AE7: 21 | AF7: 27.2 | AG7: 16 | AH7: 8.3 | AI7: 3.9 | AJ7: 2 | AK7: 17.5 | AL7: 65.7 | AM7: 96 | AN7: 24776
A8: Religious Studies | B8: Males | C8: 8.4 | D8: 16.4 | E8: 22.1 | F8: 20.4 | G8: 12.7 | H8: 8.7 | I8: 5.9 | J8: 3.3 | K8: 24.8 | L8: 67.2 | M8: 97.9 | N8: 79364 | O8: Females | P8: 14.5 | Q8: 22.8 | R8: 23.6 | S8: 17.5 | T8: 9.5 | U8: 5.8 | V8: 3.4 | W8: 1.8 | X8: 37.3 | Y8: 78.4 | Z8: 99 | AA8: 96986 | AB8: All | AC8: 11.8 | AD8: 19.9 | AE8: 22.9 | AF8: 18.8 | AG8: 10.9 | AH8: 7.1 | AI8: 4.5 | AJ8: 2.5 | AK8: 31.7 | AL8: 73.4 | AM8: 98.5 | AN8: 176350
A9: Polish | B9: Males | C9: 14.3 | D9: 49.3 | E9: 19.8 | F9: 8.2 | G9: 2.5 | H9: 1.2 | I9: 1.4 | J9: 2 | K9: 63.5 | L9: 91.5 | M9: 98.6 | N9: 1234 | O9: Females | P9: 28 | Q9: 51.8 | R9: 11.1 | S9: 3.7 | T9: 1.4 | U9: 1 | V9: 1 | W9: 0.9 | X9: 79.8 | Y9: 94.6 | Z9: 98.9 | AA9: 1143 | AB9: All | AC9: 20.9 | AD9: 50.5 | AE9: 15.6 | AF9: 6 | AG9: 2 | AH9: 1.1 | AI9: 1.2 | AJ9: 1.5 | AK9: 71.4 | AL9: 93 | AM9: 98.7 | AN9: 2377
A10: Physics | B10: Males | C10: 21.6 | D10: 28.1 | E10: 26.8 | F10: 17.9 | G10: 4.4 | H10: 0.8 | I10: 0.2 | J10: 0.1 | K10: 49.7 | L10: 94.4 | M10: 99.8 | N10: 61597 | O10: Females | P10: 21.6 | Q10: 26.7 | R10: 26.9 | S10: 18.4 | T10: 5 | U10: 0.8 | V10: 0.2 | W10: 0.1 | X10: 48.2 | Y10: 93.5 | Z10: 99.7 | AA10: 50675 | AB10: All | AC10: 21.6 | AD10: 27.4 | AE10: 26.8 | AF10: 18.1 | AG10: 4.7 | AH10: 0.8 | AI10: 0.2 | AJ10: 0.1 | AK10: 49 | AL10: 94 | AM10: 99.8 | AN10: 112272
A11: Physical Education | B11: Males | C11: 5.5 | D11: 17.1 | E11: 24 | F11: 22.3 | G11: 21.5 | H11: 6.9 | I11: 2.1 | J11: 0.4 | K11: 22.5 | L11: 68.9 | M11: 99.8 | N11: 71108 | O11: Females | P11: 9.6 | Q11: 19.1 | R11: 22.2 | S11: 19.3 | T11: 20.2 | U11: 6.8 | V11: 2.2 | W11: 0.5 | X11: 28.6 | Y11: 70.1 | Z11: 99.8 | AA11: 38506 | AB11: All | AC11: 6.9 | AD11: 17.8 | AE11: 23.4 | AF11: 21.3 | AG11: 21 | AH11: 6.9 | AI11: 2.1 | AJ11: 0.5 | AK11: 24.7 | AL11: 69.3 | AM11: 99.8 | AN11: 109614
A12: Performing Arts | B12: Males | C12: 4.2 | D12: 6.8 | E12: 13 | F12: 24.4 | G12: 18.8 | H12: 14.4 | I12: 10.5 | J12: 2.9 | K12: 11 | L12: 48.3 | M12: 94.9 | N12: 648 | O12: Females | P12: 6.1 | Q12: 13.3 | R12: 20.4 | S12: 25.2 | T12: 17.9 | U12: 8.8 | V12: 4.1 | W12: 1.1 | X12: 19.4 | Y12: 65 | Z12: 96.9 | AA12: 1206 | AB12: All | AC12: 5.4 | AD12: 11 | AE12: 17.8 | AF12: 24.9 | AG12: 18.2 | AH12: 10.7 | AI12: 6.4 | AJ12: 1.7 | AK12: 16.5 | AL12: 59.2 | AM12: 96.2 | AN12: 1854
A13: Other Sciences | B13: Males | C13: 10.2 | D13: 13.1 | E13: 15.8 | F13: 21.7 | G13: 13.4 | H13: 10.6 | I13: 7.4 | J13: 3.9 | K13: 23.3 | L13: 60.8 | M13: 96 | N13: 3612 | O13: Females | P13: 5.7 | Q13: 11.5 | R13: 18.1 | S13: 22.6 | T13: 15.8 | U13: 12.2 | V13: 7.5 | W13: 3.1 | X13: 17.2 | Y13: 58 | Z13: 96.5 | AA13: 1901 | AB13: All | AC13: 8.7 | AD13: 12.6 | AE13: 16.6 | AF13: 22 | AG13: 14.2 | AH13: 11.2 | AI13: 7.4 | AJ13: 3.6 | AK13: 21.2 | AL13: 59.8 | AM13: 96.2 | AN13: 5513
A14: Other Modern Languages | B14: Males | C14: 26.4 | D14: 25.6 | E14: 18.9 | F14: 13.6 | G14: 5.8 | H14: 3.6 | I14: 2.8 | J14: 1.4 | K14: 52.1 | L14: 84.5 | M14: 98.1 | N14: 4412 | O14: Females | P14: 32.8 | Q14: 28.2 | R14: 17.2 | S14: 10.4 | T14: 5.1 | U14: 3 | V14: 1.6 | W14: 0.4 | X14: 61 | Y14: 88.7 | Z14: 98.9 | AA14: 4733 | AB14: All | AC14: 29.7 | AD14: 27 | AE14: 18 | AF14: 11.9 | AG14: 5.4 | AH14: 3.3 | AI14: 2.2 | AJ14: 0.9 | AK14: 56.7 | AL14: 86.7 | AM14: 98.5 | AN14: 9145
A15: Other Design and Technology | B15: Males | C15: 2.1 | D15: 10.9 | E15: 17 | F15: 26.8 | G15: 19.2 | H15: 11.1 | I15: 6 | J15: 3.3 | K15: 13 | L15: 56.8 | M15: 96.4 | N15: 22026 | O15: Females | P15: 6.8 | Q15: 21.5 | R15: 21.7 | S15: 23.4 | T15: 12.6 | U15: 6.5 | V15: 3.5 | W15: 1.7 | X15: 28.3 | Y15: 73.4 | Z15: 97.7 | AA15: 11952 | AB15: All | AC15: 3.7 | AD15: 14.7 | AE15: 18.7 | AF15: 25.6 | AG15: 16.9 | AH15: 9.5 | AI15: 5.1 | AJ15: 2.7 | AK15: 18.4 | AL15: 62.6 | AM15: 96.9 | AN15: 33978
A16: Other Classical Studies | B16: Males | C16: 10.5 | D16: 29.6 | E16: 24.3 | F16: 15.8 | G16: 4.6 | H16: 7.9 | I16: 2 | J16: 3.9 | K16: 40.1 | L16: 80.3 | M16: 98.7 | N16: 152 | O16: Females | P16: 13.8 | Q16: 31.6 | R16: 25.7 | S16: 14.1 | T16: 5.3 | U16: 4.2 | V16: 2.7 | W16: 1.3 | X16: 45.4 | Y16: 85.1 | Z16: 98.7 | AA16: 377 | AB16: All | AC16: 12.9 | AD16: 31 | AE16: 25.3 | AF16: 14.6 | AG16: 5.1 | AH16: 5.3 | AI16: 2.5 | AJ16: 2.1 | AK16: 43.9 | AL16: 83.7 | AM16: 98.7 | AN16: 529
A17: Music | B17: Males | C17: 7.6 | D17: 21.4 | E17: 25.7 | F17: 20 | G17: 11.7 | H17: 6.3 | I17: 3.6 | J17: 1.8 | K17: 29 | L17: 74.7 | M17: 98.1 | N17: 23914 | O17: Females | P17: 9.7 | Q17: 25.9 | R17: 26.1 | S17: 18.9 | T17: 10 | U17: 4.9 | V17: 2.3 | W17: 1.1 | X17: 35.6 | Y17: 80.6 | Z17: 98.9 | AA17: 21519 | AB17: All | AC17: 8.6 | AD17: 23.5 | AE17: 25.9 | AF17: 19.5 | AG17: 10.9 | AH17: 5.7 | AI17: 3 | AJ17: 1.4 | AK17: 32.1 | AL17: 77.5 | AM17: 98.5 | AN17: 45433
A18: Media: Communication and Production | B18: Males | C18: x | D18: 12.1 | E18: 25.9 | F18: 28.2 | G18: 13.8 | H18: 6.3 | I18: 5.2 | J18: 3.4 | K18: 13.2 | L18: 67.2 | M18: 96 | N18: 174 | O18: Females | P18: x | Q18: 25.7 | R18: 27.5 | S18: 22.8 | T18: 9.4 | U18: 5.8 | V18: 5.3 | W18: 1.8 | X18: 26.9 | Y18: 77.2 | Z18: 99.4 | AA18: 171 | AB18: All | AC18: 1.2 | AD18: 18.8 | AE18: 26.7 | AF18: 25.5 | AG18: 11.6 | AH18: 6.1 | AI18: 5.2 | AJ18: 2.6 | AK18: 20 | AL18: 72.2 | AM18: 97.7 | AN18: 345
A19: Media/Film/TV | B19: Males | C19: 1.9 | D19: 8.7 | E19: 18.3 | F19: 29.1 | G19: 20.9 | H19: 10.4 | I19: 4.8 | J19: 2.3 | K19: 10.5 | L19: 57.9 | M19: 96.4 | N19: 28715 | O19: Females | P19: 4.9 | Q19: 17.8 | R19: 25.8 | S19: 26.6 | T19: 14.1 | U19: 5.6 | V19: 2.3 | W19: 1 | X19: 22.6 | Y19: 75 | Z19: 98 | AA19: 29871 | AB19: All | AC19: 3.4 | AD19: 13.3 | AE19: 22.1 | AF19: 27.8 | AG19: 17.4 | AH19: 7.9 | AI19: 3.5 | AJ19: 1.7 | AK19: 16.7 | AL19: 66.6 | AM19: 97.2 | AN19: 58586
A20: Mathematics | B20: Males | C20: 6.3 | D20: 13 | E20: 17.8 | F20: 27.4 | G20: 13.6 | H20: 9.4 | I20: 7.1 | J20: 3.5 | K20: 19.3 | L20: 64.5 | M20: 98.2 | N20: 309181 | O20: Females | P20: 6 | Q20: 13.1 | R20: 18.1 | S20: 27.5 | T20: 13.8 | U20: 9.3 | V20: 6.9 | W20: 3.5 | X20: 19.1 | Y20: 64.8 | Z20: 98.3 | AA20: 302024 | AB20: All | AC20: 6.1 | AD20: 13.1 | AE20: 18 | AF20: 27.5 | AG20: 13.7 | AH20: 9.3 | AI20: 7 | AJ20: 3.5 | AK20: 19.2 | AL20: 64.6 | AM20: 98.2 | AN20: 611205
A21: Latin | B21: Males | C21: 41.2 | D21: 25 | E21: 14.5 | F21: 10.4 | G21: 5.6 | H21: 1.7 | I21: 0.3 | J21: x | K21: 66.1 | L21: 91 | M21: 98.7 | N21: 4702 | O21: Females | P21: 50.6 | Q21: 24.5 | R21: 12.1 | S21: 7.8 | T21: 3.2 | U21: 0.9 | V21: 0.2 | W21: x | X21: 75.1 | Y21: 95 | Z21: 99.4 | AA21: 4654 | AB21: All | AC21: 45.8 | AD21: 24.7 | AE21: 13.3 | AF21: 9.1 | AG21: 4.4 | AH21: 1.3 | AI21: 0.3 | AJ21: 0.1 | AK21: 70.6 | AL21: 93 | AM21: 99 | AN21: 9356
A22: Italian | B22: Males | C22: 39.1 | D22: 17.6 | E22: 13.9 | F22: 14.5 | G22: 7.6 | H22: 3.9 | I22: 1.5 | J22: 0.9 | K22: 56.7 | L22: 85.2 | M22: 99.1 | N22: 1396 | O22: Females | P22: 38.8 | Q22: 23.1 | R22: 16 | S22: 11.8 | T22: 7 | U22: 1.9 | V22: 0.6 | W22: 0.5 | X22: 61.9 | Y22: 89.7 | Z22: 99.7 | AA22: 2160 | AB22: All | AC22: 38.9 | AD22: 21 | AE22: 15.2 | AF22: 12.9 | AG22: 7.2 | AH22: 2.7 | AI22: 0.9 | AJ22: 0.7 | AK22: 59.9 | AL22: 87.9 | AM22: 99.5 | AN22: 3556
A23: Information Technology | B23: Males | C23: 6.8 | D23: 18 | E23: 21.4 | F23: 26 | G23: 13.4 | H23: 6.7 | I23: 3.5 | J23: 1.9 | K23: 24.8 | L23: 72.2 | M23: 97.7 | N23: 24186 | O23: Females | P23: 10.6 | Q23: 23.8 | R23: 23.3 | S23: 22.8 | T23: 10.4 | U23: 4.1 | V23: 2.2 | W23: 1.3 | X23: 34.4 | Y23: 80.5 | Z23: 98.6 | AA23: 19177 | AB23: All | AC23: 8.5 | AD23: 20.6 | AE23: 22.2 | AF23: 24.6 | AG23: 12.1 | AH23: 5.5 | AI23: 2.9 | AJ23: 1.6 | AK23: 29.1 | AL23: 75.9 | AM23: 98.1 | AN23: 43363
A24: Humanities | B24: Males | C24: 1.4 | D24: 6 | E24: 14.9 | F24: 21.6 | G24: 17.7 | H24: 15.1 | I24: 10.5 | J24: 6.9 | K24: 7.5 | L24: 44 | M24: 94.2 | N24: 6239 | O24: Females | P24: 3.1 | Q24: 11.5 | R24: 20.9 | S24: 21.6 | T24: 16.4 | U24: 11.7 | V24: 7 | W24: 4.4 | X24: 14.6 | Y24: 57.1 | Z24: 96.5 | AA24: 6426 | AB24: All | AC24: 2.3 | AD24: 8.8 | AE24: 18 | AF24: 21.6 | AG24: 17 | AH24: 13.4 | AI24: 8.7 | AJ24: 5.6 | AK24: 11.1 | AL24: 50.6 | AM24: 95.4 | AN24: 12665
A25: Hospitality and Catering | B25: Males | C25: x | D25: 4.1 | E25: 20.6 | F25: 23.9 | G25: 18.9 | H25: 14.2 | I25: 9.7 | J25: 5.9 | K25: 4.7 | L25: 49.3 | M25: 97.9 | N25: 339 | O25: Females | P25: x | Q25: 8.5 | R25: 25.4 | S25: 28.6 | T25: 19.3 | U25: 7.1 | V25: 6.2 | W25: 1.7 | X25: 9.9 | Y25: 63.9 | Z25: 98.3 | AA25: 646 | AB25: All | AC25: 1.1 | AD25: 7 | AE25: 23.8 | AF25: 27 | AG25: 19.2 | AH25: 9.5 | AI25: 7.4 | AJ25: 3.1 | AK25: 8.1 | AL25: 58.9 | AM25: 98.2 | AN25: 985
A26: Home Economics | B26: Males | C26: 1.3 | D26: 6.3 | E26: 11.9 | F26: 28.2 | G26: 21.6 | H26: 14.2 | I26: 9.2 | J26: 4 | K26: 7.6 | L26: 47.8 | M26: 96.9 | N26: 3117 | O26: Females | P26: 3.8 | Q26: 10.2 | R26: 16 | S26: 28.1 | T26: 19.1 | U26: 11.7 | V26: 6.5 | W26: 2.6 | X26: 14 | Y26: 58.1 | Z26: 98 | AA26: 26233 | AB26: All | AC26: 3.5 | AD26: 9.8 | AE26: 15.6 | AF26: 28.2 | AG26: 19.3 | AH26: 11.9 | AI26: 6.8 | AJ26: 2.8 | AK26: 13.3 | AL26: 57 | AM26: 97.9 | AN26: 29350
A27: History | B27: Males | C27: 9.2 | D27: 18.8 | E27: 20.4 | F27: 18.7 | G27: 13.6 | H27: 8.9 | I27: 5.4 | J27: 2.9 | K27: 28 | L27: 67 | M27: 97.8 | N27: 99674 | O27: Females | P27: 14.1 | Q27: 22.2 | R27: 20.6 | S27: 16.9 | T27: 11.7 | U27: 7.3 | V27: 4.1 | W27: 1.9 | X27: 36.2 | Y27: 73.7 | Z27: 98.6 | AA27: 98579 | AB27: All | AC27: 11.6 | AD27: 20.5 | AE27: 20.5 | AF27: 17.8 | AG27: 12.6 | AH27: 8.1 | AI27: 4.7 | AJ27: 2.4 | AK27: 32.1 | AL27: 70.4 | AM27: 98.2 | AN27: 198253
A28: German | B28: Males | C28: 7.7 | D28: 13.5 | E28: 19.7 | F28: 29.7 | G28: 17.4 | H28: 6.9 | I28: 3.1 | J28: 1.4 | K28: 21.2 | L28: 70.7 | M28: 99.5 | N28: 30790 | O28: Females | P28: 10.1 | Q28: 17.8 | R28: 22.7 | S28: 27.9 | T28: 14 | U28: 4.5 | V28: 1.9 | W28: 0.7 | X28: 27.9 | Y28: 78.5 | Z28: 99.6 | AA28: 35032 | AB28: All | AC28: 9 | AD28: 15.8 | AE28: 21.3 | AF28: 28.7 | AG28: 15.6 | AH28: 5.6 | AI28: 2.4 | AJ28: 1 | AK28: 24.8 | AL28: 74.8 | AM28: 99.6 | AN28: 65822
A29: Geography | B29: Males | C29: 9.7 | D29: 15.3 | E29: 18.1 | F29: 23.9 | G29: 17.2 | H29: 8.2 | I29: 4 | J29: 1.9 | K29: 25 | L29: 67 | M29: 98.2 | N29: 93679 | O29: Females | P29: 14.5 | Q29: 19.1 | R29: 18.8 | S29: 21.4 | T29: 13.7 | U29: 6.3 | V29: 3.3 | W29: 1.5 | X29: 33.6 | Y29: 73.7 | Z29: 98.6 | AA29: 75593 | AB29: All | AC29: 11.8 | AD29: 17 | AE29: 18.4 | AF29: 22.8 | AG29: 15.6 | AH29: 7.3 | AI29: 3.7 | AJ29: 1.7 | AK29: 28.8 | AL29: 70 | AM29: 98.4 | AN29: 169272
A30: General Studies | B30: Males | C30: 2.5 | D30: 6.3 | E30: 9.7 | F30: 22.1 | G30: 23.4 | H30: 12.7 | I30: 9.6 | J30: 5.6 | K30: 8.8 | L30: 40.6 | M30: 92 | N30: 3961 | O30: Females | P30: 2.2 | Q30: 6.9 | R30: 10.4 | S30: 23.9 | T30: 26 | U30: 11.7 | V30: 7.9 | W30: 4.9 | X30: 9.2 | Y30: 43.4 | Z30: 93.9 | AA30: 3563 | AB30: All | AC30: 2.4 | AD30: 6.6 | AE30: 10 | AF30: 22.9 | AG30: 24.6 | AH30: 12.2 | AI30: 8.8 | AJ30: 5.3 | AK30: 9 | AL30: 41.9 | AM30: 92.9 | AN30: 7524
A31: French | B31: Males | C31: 10.1 | D31: 13.5 | E31: 18 | F31: 25.3 | G31: 18.2 | H31: 8.7 | I31: 4.1 | J31: 1.5 | K31: 23.7 | L31: 67 | M31: 99.5 | N31: 69209 | O31: Females | P31: 12 | Q31: 16.8 | R31: 21.1 | S31: 25.2 | T31: 15.1 | U31: 6.2 | V31: 2.4 | W31: 0.9 | X31: 28.7 | Y31: 75 | Z31: 99.7 | AA31: 91389 | AB31: All | AC31: 11.2 | AD31: 15.4 | AE31: 19.8 | AF31: 25.2 | AG31: 16.4 | AH31: 7.3 | AI31: 3.1 | AJ31: 1.2 | AK31: 26.6 | AL31: 71.6 | AM31: 99.6 | AN31: 160598
A32: English Studies | B32: Males | C32: 0.3 | D32: 1.8 | E32: 13.2 | F32: 41.8 | G32: 19 | H32: 12.8 | I32: 6.5 | J32: 2.1 | K32: 2.1 | L32: 57.1 | M32: 97.5 | N32: 1778 | O32: Females | P32: 0.6 | Q32: 3.8 | R32: 17.7 | S32: 46.5 | T32: 15.8 | U32: 8.2 | V32: 4.2 | W32: 1.1 | X32: 4.3 | Y32: 68.6 | Z32: 97.9 | AA32: 1386 | AB32: All | AC32: 0.4 | AD32: 2.7 | AE32: 15.2 | AF32: 43.9 | AG32: 17.6 | AH32: 10.8 | AI32: 5.5 | AJ32: 1.7 | AK32: 3.1 | AL32: 62.1 | AM32: 97.7 | AN32: 3164
A33: English Literature | B33: Males | C33: 4.4 | D33: 14.2 | E33: 24 | F33: 27.8 | G33: 16.3 | H33: 7.1 | I33: 2.9 | J33: 1.3 | K33: 18.7 | L33: 70.5 | M33: 98.1 | N33: 223392 | O33: Females | P33: 7.4 | Q33: 21.2 | R33: 28 | S33: 25.3 | T33: 11.1 | U33: 3.9 | V33: 1.3 | W33: 0.5 | X33: 28.7 | Y33: 82 | Z33: 98.9 | AA33: 244529 | AB33: All | AC33: 6 | AD33: 17.9 | AE33: 26.1 | AF33: 26.5 | AG33: 13.6 | AH33: 5.5 | AI33: 2.1 | AJ33: 0.9 | AK33: 23.9 | AL33: 76.5 | AM33: 98.5 | AN33: 467921
A34: English | B34: Males | C34: 3.6 | D34: 10.2 | E34: 19.6 | F34: 29.9 | G34: 18.6 | H34: 10.1 | I34: 4.9 | J34: 1.9 | K34: 13.7 | L34: 63.1 | M34: 98.7 | N34: 301727 | O34: Females | P34: 6.6 | Q34: 16.4 | R34: 24.7 | S34: 28.8 | T34: 13.9 | U34: 5.7 | V34: 2.3 | W34: 0.9 | X34: 23 | Y34: 76.5 | Z34: 99.2 | AA34: 297518 | AB34: All | AC34: 5.1 | AD34: 13.3 | AE34: 22.1 | AF34: 29.3 | AG34: 16.3 | AH34: 7.9 | AI34: 3.6 | AJ34: 1.4 | AK34: 18.3 | AL34: 69.8 | AM34: 99 | AN34: 599245
A35: Economics | B35: Males | C35: 10.3 | D35: 20.2 | E35: 24.1 | F35: 25.4 | G35: 10.8 | H35: 4 | I35: 1.7 | J35: 0.8 | K35: 30.5 | L35: 80 | M35: 97.3 | N35: 1992 | O35: Females | P35: 8.1 | Q35: 18.4 | R35: 26.7 | S35: 24.2 | T35: 12.2 | U35: 4.7 | V35: 1.5 | W35: 0.6 | X35: 26.5 | Y35: 77.3 | Z35: 96.3 | AA35: 724 | AB35: All | AC35: 9.7 | AD35: 19.7 | AE35: 24.8 | AF35: 25 | AG35: 11.2 | AH35: 4.2 | AI35: 1.6 | AJ35: 0.7 | AK35: 29.5 | AL35: 79.3 | AM35: 97 | AN35: 2716
A36: Drama | B36: Males | C36: 3.2 | D36: 13.7 | E36: 26.4 | F36: 25.8 | G36: 16.5 | H36: 8.2 | I36: 3.8 | J36: 1.4 | K36: 16.9 | L36: 69.2 | M36: 99.1 | N36: 31417 | O36: Females | P36: 6.6 | Q36: 20.5 | R36: 30.9 | S36: 22.4 | T36: 11.6 | U36: 4.7 | V36: 1.9 | W36: 0.7 | X36: 27.2 | Y36: 80.5 | Z36: 99.4 | AA36: 49348 | AB36: All | AC36: 5.3 | AD36: 17.9 | AE36: 29.1 | AF36: 23.7 | AG36: 13.5 | AH36: 6.1 | AI36: 2.6 | AJ36: 1 | AK36: 23.2 | AL36: 76.1 | AM36: 99.3 | AN36: 80765
A37: D & T: Textiles Technology | B37: Males | C37: 1.6 | D37: 8.3 | E37: 11.7 | F37: 25.7 | G37: 22.9 | H37: 14.6 | I37: 8.3 | J37: 3.1 | K37: 9.9 | L37: 47.2 | M37: 96.2 | N37: 1175 | O37: Females | P37: 7.2 | Q37: 22.5 | R37: 21.1 | S37: 25.8 | T37: 14 | U37: 4.9 | V37: 2.2 | W37: 0.9 | X37: 29.7 | Y37: 76.6 | Z37: 98.6 | AA37: 34660 | AB37: All | AC37: 7 | AD37: 22.1 | AE37: 20.8 | AF37: 25.8 | AG37: 14.3 | AH37: 5.2 | AI37: 2.4 | AJ37: 1 | AK37: 29 | AL37: 75.6 | AM37: 98.5 | AN37: 35835
A38: D & T: Systems & Control | B38: Males | C38: 5.5 | D38: 15.8 | E38: 21 | F38: 26 | G38: 16.7 | H38: 7.2 | I38: 3.2 | J38: 1.6 | K38: 21.3 | L38: 68.4 | M38: 97 | N38: 5200 | O38: Females | P38: 4.6 | Q38: 30.7 | R38: 26.5 | S38: 16.7 | T38: 11.2 | U38: 4.1 | V38: 2.3 | W38: 2.1 | X38: 35.2 | Y38: 78.5 | Z38: 98.2 | AA38: 437 | AB38: All | AC38: 5.5 | AD38: 17 | AE38: 21.5 | AF38: 25.3 | AG38: 16.2 | AH38: 6.9 | AI38: 3.1 | AJ38: 1.6 | AK38: 22.4 | AL38: 69.2 | AM38: 97.1 | AN38: 5637
A39: D & T: Resistant Materials | B39: Males | C39: 3.1 | D39: 10.2 | E39: 15.5 | F39: 27.6 | G39: 22.5 | H39: 10.8 | I39: 5.1 | J39: 2.4 | K39: 13.2 | L39: 56.3 | M39: 97.2 | N39: 56801 | O39: Females | P39: 7 | Q39: 20.1 | R39: 21 | S39: 24.9 | T39: 15 | U39: 6.5 | V39: 2.6 | W39: 1.2 | X39: 27.1 | Y39: 73 | Z39: 98.2 | AA39: 10601 | AB39: All | AC39: 3.7 | AD39: 11.7 | AE39: 16.4 | AF39: 27.2 | AG39: 21.4 | AH39: 10.1 | AI39: 4.7 | AJ39: 2.2 | AK39: 15.4 | AL39: 58.9 | AM39: 97.3 | AN39: 67402
A40: D & T: Graphic Products | B40: Males | C40: 2.9 | D40: 10.4 | E40: 15 | F40: 25.3 | G40: 22.5 | H40: 10.9 | I40: 5.1 | J40: 2.8 | K40: 13.2 | L40: 53.5 | M40: 94.8 | N40: 29744 | O40: Females | P40: 7.3 | Q40: 19.6 | R40: 21.4 | S40: 24.1 | T40: 15.8 | U40: 5.9 | V40: 2.3 | W40: 1.2 | X40: 26.9 | Y40: 72.4 | Z40: 97.5 | AA40: 21611 | AB40: All | AC40: 4.7 | AD40: 14.3 | AE40: 17.7 | AF40: 24.8 | AG40: 19.6 | AH40: 8.8 | AI40: 3.9 | AJ40: 2.1 | AK40: 19 | AL40: 61.4 | AM40: 95.9 | AN40: 51355
A41: D & T: Food Technology | B41: Males | C41: 2.2 | D41: 8.4 | E41: 13.1 | F41: 28.6 | G41: 23.7 | H41: 11.6 | I41: 6.4 | J41: 3.1 | K41: 10.6 | L41: 52.3 | M41: 97.2 | N41: 22380 | O41: Females | P41: 7 | Q41: 17.4 | R41: 18.1 | S41: 27.8 | T41: 16.6 | U41: 6.9 | V41: 3.3 | W41: 1.5 | X41: 24.3 | Y41: 70.3 | Z41: 98.5 | AA41: 39724 | AB41: All | AC41: 5.2 | AD41: 14.2 | AE41: 16.3 | AF41: 28.1 | AG41: 19.2 | AH41: 8.6 | AI41: 4.4 | AJ41: 2 | AK41: 19.4 | AL41: 63.8 | AM41: 98 | AN41: 62104
A42: D & T: Electronic Products | B42: Males | C42: 6.7 | D42: 15.1 | E42: 15.8 | F42: 26.7 | G42: 17.5 | H42: 7.8 | I42: 4 | J42: 2.7 | K42: 21.7 | L42: 64.2 | M42: 96.1 | N42: 10058 | O42: Females | P42: 11.8 | Q42: 24 | R42: 20.8 | S42: 19.9 | T42: 12 | U42: 4.2 | V42: 2.4 | W42: 2.1 | X42: 35.8 | Y42: 76.5 | Z42: 97.3 | AA42: 899 | AB42: All | AC42: 7.1 | AD42: 15.8 | AE42: 16.2 | AF42: 26.1 | AG42: 17 | AH42: 7.5 | AI42: 3.9 | AJ42: 2.6 | AK42: 22.9 | AL42: 65.2 | AM42: 96.2 | AN42: 10957
A43: Core Science | B43: Males | C43: 2.2 | D43: 7.9 | E43: 18 | F43: 31 | G43: 18.2 | H43: 11.6 | I43: 6.7 | J43: 3 | K43: 10.1 | L43: 59 | M43: 98.5 | N43: 201936 | O43: Females | P43: 3.3 | Q43: 9.8 | R43: 19.4 | S43: 30.3 | T43: 17.2 | U43: 10.6 | V43: 5.9 | W43: 2.5 | X43: 13 | Y43: 62.7 | Z43: 98.8 | AA43: 204477 | AB43: All | AC43: 2.7 | AD43: 8.8 | AE43: 18.7 | AF43: 30.7 | AG43: 17.7 | AH43: 11.1 | AI43: 6.3 | AJ43: 2.7 | AK43: 11.5 | AL43: 60.9 | AM43: 98.7 | AN43: 406413
A44: Construction | B44: Males | C44: 2 | D44: 10.8 | E44: 30.8 | F44: 23.4 | G44: x | H44: x | I44: 5.4 | J44: 1.7 | K44: 12.9 | L44: 67.1 | M44: 96.9 | N44: 295 | O44: Females | P44: 0 | Q44: 0 | R44: 30 | S44: 40 | T44: x | U44: x | V44: 0 | W44: 0 | X44: 0 | Y44: 70 | Z44: 100 | AA44: 10 | AB44: All | AC44: 2 | AD44: 10.5 | AE44: 30.8 | AF44: 23.9 | AG44: 12.1 | AH44: 10.8 | AI44: 5.2 | AJ44: 1.6 | AK44: 12.5 | AL44: 67.2 | AM44: 97 | AN44: 305
A45: Communication Studies | B45: Males | C45: 2.5 | D45: 7.3 | E45: 14.7 | F45: 21.2 | G45: 16.7 | H45: 15.3 | I45: 11.9 | J45: 6.1 | K45: 9.8 | L45: 45.7 | M45: 95.6 | N45: 3554 | O45: Females | P45: 6.2 | Q45: 14.4 | R45: 22.2 | S45: 22.1 | T45: 14.7 | U45: 10 | V45: 5.7 | W45: 2.3 | X45: 20.7 | Y45: 64.9 | Z45: 97.5 | AA45: 5415 | AB45: All | AC45: 4.7 | AD45: 11.6 | AE45: 19.2 | AF45: 21.7 | AG45: 15.5 | AH45: 12.1 | AI45: 8.2 | AJ45: 3.8 | AK45: 16.4 | AL45: 57.3 | AM45: 96.8 | AN45: 8969
A46: Classical Greek | B46: Males | C46: 60.7 | D46: 22.8 | E46: 8 | F46: 4.8 | G46: 2.5 | H46: 0.7 | I46: x | J46: x | K46: 83.5 | L46: 96.3 | M46: 99.7 | N46: 727 | O46: Females | P46: 65 | Q46: 22.2 | R46: 7.2 | S46: 2.7 | T46: 1.8 | U46: 0.7 | V46: x | W46: x | X46: 87.2 | Y46: 97.1 | Z46: 100 | AA46: 446 | AB46: All | AC46: 62.3 | AD46: 22.6 | AE46: 7.7 | AF46: 4 | AG46: 2.2 | AH46: 0.7 | AI46: x | AJ46: x | AK46: 84.9 | AL46: 96.6 | AM46: 99.8 | AN46: 1173
A47: Classical Civilisation | B47: Males | C47: 11.9 | D47: 22.6 | E47: 25.7 | F47: 19 | G47: 11.6 | H47: 4.3 | I47: 1.5 | J47: 0.9 | K47: 34.5 | L47: 79.2 | M47: 97.4 | N47: 2452 | O47: Females | P47: 16.9 | Q47: 24.3 | R47: 23.9 | S47: 18.7 | T47: 9.6 | U47: 2.8 | V47: 0.9 | W47: 0.7 | X47: 41.2 | Y47: 83.8 | Z47: 97.8 | AA47: 1850 | AB47: All | AC47: 14 | AD47: 23.3 | AE47: 25 | AF47: 18.9 | AG47: 10.7 | AH47: 3.6 | AI47: 1.2 | AJ47: 0.8 | AK47: 37.4 | AL47: 81.2 | AM47: 97.6 | AN47: 4302
A48: Chinese | B48: Males | C48: 79.8 | D48: 8.5 | E48: 5.6 | F48: 2.1 | G48: 1.1 | H48: 0.5 | I48: 0.8 | J48: 0.6 | K48: 88.4 | L48: 96.1 | M48: 99 | N48: 1305 | O48: Females | P48: 84.8 | Q48: 5.5 | R48: 3.3 | S48: 1.9 | T48: 1.5 | U48: 0.9 | V48: 0.3 | W48: 0.6 | X48: 90.3 | Y48: 95.5 | Z48: 98.8 | AA48: 1237 | AB48: All | AC48: 82.3 | AD48: 7 | AE48: 4.5 | AF48: 2 | AG48: 1.3 | AH48: 0.7 | AI48: 0.6 | AJ48: 0.6 | AK48: 89.3 | AL48: 95.8 | AM48: 98.9 | AN48: 2542
A49: Chemistry | B49: Males | C49: 20 | D49: 27.4 | E49: 27.5 | F49: 18.5 | G49: 5 | H49: 1 | I49: 0.3 | J49: 0.1 | K49: 47.5 | L49: 93.5 | M49: 99.8 | N49: 61890 | O49: Females | P49: 24 | Q49: 27.9 | R49: 26.1 | S49: 16.4 | T49: 4.3 | U49: 0.8 | V49: 0.2 | W49: 0.1 | X49: 51.9 | Y49: 94.4 | Z49: 99.8 | AA49: 51396 | AB49: All | AC49: 21.8 | AD49: 27.6 | AE49: 26.9 | AF49: 17.6 | AG49: 4.7 | AH49: 0.9 | AI49: 0.2 | AJ49: 0.1 | AK49: 49.5 | AL49: 93.9 | AM49: 99.8 | AN49: 113286
A50: Business Studies | B50: Males | C50: 5.2 | D50: 14.1 | E50: 19.4 | F50: 27.7 | G50: 17.4 | H50: 8 | I50: 3.8 | J50: 1.9 | K50: 19.3 | L50: 66.4 | M50: 97.4 | N50: 40581 | O50: Females | P50: 7.5 | Q50: 16.5 | R50: 19.8 | S50: 27.2 | T50: 15.2 | U50: 7.4 | V50: 3.2 | W50: 1.2 | X50: 24.1 | Y50: 71.1 | Z50: 98.1 | AA50: 28100 | AB50: All | AC50: 6.1 | AD50: 15.1 | AE50: 19.6 | AF50: 27.5 | AG50: 16.5 | AH50: 7.8 | AI50: 3.5 | AJ50: 1.6 | AK50: 21.2 | AL50: 68.3 | AM50: 97.7 | AN50: 68681
A51: Biological Sciences | B51: Males | C51: 18 | D51: 28.4 | E51: 29.8 | F51: 17.7 | G51: 4.4 | H51: 0.9 | I51: 0.3 | J51: 0.1 | K51: 46.3 | L51: 93.8 | M51: 99.6 | N51: 62862 | O51: Females | P51: 22.1 | Q51: 29.7 | R51: 27.4 | S51: 15.1 | T51: 3.7 | U51: 0.9 | V51: 0.4 | W51: 0.2 | X51: 51.8 | Y51: 94.4 | Z51: 99.5 | AA51: 53026 | AB51: All | AC51: 19.9 | AD51: 29 | AE51: 28.7 | AF51: 16.5 | AG51: 4.1 | AH51: 0.9 | AI51: 0.3 | AJ51: 0.1 | AK51: 48.9 | AL51: 94.1 | AM51: 99.5 | AN51: 115888
A52: Art and Design | B52: Males | C52: 4.4 | D52: 11 | E52: 18.8 | F52: 32.1 | G52: 15.7 | H52: 10.1 | I52: 4.9 | J52: 1.9 | K52: 15.4 | L52: 66.2 | M52: 98.8 | N52: 61863 | O52: Females | P52: 9.2 | Q52: 20.7 | R52: 25.4 | S52: 27.8 | T52: 9.6 | U52: 4.4 | V52: 1.7 | W52: 0.6 | X52: 29.9 | Y52: 83.1 | Z52: 99.4 | AA52: 107435 | AB52: All | AC52: 7.4 | AD52: 17.1 | AE52: 23 | AF52: 29.4 | AG52: 11.8 | AH52: 6.5 | AI52: 2.9 | AJ52: 1.1 | AK52: 24.6 | AL52: 76.9 | AM52: 99.2 | AN52: 169298
A53: Arabic | B53: Males | C53: 29.9 | D53: 19.1 | E53: 14.6 | F53: 10.4 | G53: 6.2 | H53: 5 | I53: 3.8 | J53: 1.9 | K53: 49 | L53: 73.9 | M53: 90.8 | N53: 955 | O53: Females | P53: 31.2 | Q53: 16.5 | R53: 14.3 | S53: 11.6 | T53: 6 | U53: 4 | V53: 4.4 | W53: 2.3 | X53: 47.6 | Y53: 73.5 | Z53: 90.1 | AA53: 1184 | AB53: All | AC53: 30.6 | AD53: 17.6 | AE53: 14.4 | AF53: 11 | AG53: 6.1 | AH53: 4.4 | AI53: 4.1 | AJ53: 2.1 | AK53: 48.2 | AL53: 73.7 | AM53: 90.4 | AN53: 2139
A54: Applied Physical Education | B54: Males | C54: 3.2 | D54: 9.1 | E54: 26.1 | F54: 36.3 | G54: 14.1 | H54: 6 | I54: 2.5 | J54: x | K54: 12.2 | L54: 74.7 | M54: 97.9 | N54: 1137 | O54: Females | P54: 1.3 | Q54: 7.7 | R54: 22.2 | S54: 42 | T54: 18.2 | U54: 5.6 | V54: 1.8 | W54: x | X54: 9 | Y54: 73.2 | Z54: 99 | AA54: 908 | AB54: All | AC54: 2.3 | AD54: 8.5 | AE54: 24.4 | AF54: 38.8 | AG54: 15.9 | AH54: 5.8 | AI54: 2.2 | AJ54: 0.5 | AK54: 10.8 | AL54: 74 | AM54: 98.4 | AN54: 2045
A55: All Subjects | B55: Males | C55: 6.6 | D55: 13.7 | E55: 20.1 | F55: 26.6 | G55: 16 | H55: 8.5 | I55: 4.6 | J55: 2.1 | K55: 20.3 | L55: 67.1 | M55: 98.3 | N55: 2321259 | O55: Females | P55: 9 | Q55: 17.5 | R55: 22.4 | S55: 25.5 | T55: 13.2 | U55: 6.4 | V55: 3.3 | W55: 1.5 | X55: 26.5 | Y55: 74.4 | Z55: 98.9 | AA55: 2371428 | AB55: All | AC55: 7.8 | AD55: 15.6 | AE55: 21.3 | AF55: 26 | AG55: 14.6 | AH55: 7.5 | AI55: 4 | AJ55: 1.8 | AK55: 23.4 | AL55: 70.8 | AM55: 98.6 | AN55: 4692687
A56: Additional Science | B56: Males | C56: 3.8 | D56: 9.3 | E56: 20.1 | F56: 32.9 | G56: 18.8 | H56: 8.4 | I56: 4 | J56: 1.7 | K56: 13.1 | L56: 66.1 | M56: 99 | N56: 142935 | O56: Females | P56: 5.5 | Q56: 11.4 | R56: 22 | S56: 31.6 | T56: 16.7 | U56: 7.2 | V56: 3.3 | W56: 1.4 | X56: 16.9 | Y56: 70.6 | Z56: 99.1 | AA56: 145841 | AB56: All | AC56: 4.7 | AD56: 10.4 | AE56: 21.1 | AF56: 32.2 | AG56: 17.7 | AH56: 7.8 | AI56: 3.7 | AJ56: 1.5 | AK56: 15 | AL56: 68.4 | AM56: 99 | AN56: 288776
A57: Additional Applied Science | B57: Males | C57: 0 | D57: 0.5 | E57: 5.2 | F57: 22.7 | G57: 30.4 | H57: 22.3 | I57: 11.6 | J57: 4.5 | K57: 0.5 | L57: 28.5 | M57: 97.2 | N57: 17714 | O57: Females | P57: 0.1 | Q57: 1.6 | R57: 10.7 | S57: 28.3 | T57: 29.2 | U57: 17.5 | V57: 8.1 | W57: 2.6 | X57: 1.7 | Y57: 40.7 | Z57: 98 | AA57: 20853 | AB57: All | AC57: 0.1 | AD57: 1.1 | AE57: 8.2 | AF57: 25.7 | AG57: 29.7 | AH57: 19.7 | AI57: 9.7 | AJ57: 3.5 | AK57: 1.1 | AL57: 35.1 | AM57: 97.7 | AN57: 38567
A58: Dance | B58: Males | C58: 3.6 | D58: 17.1 | E58: 20.9 | F58: 20.5 | G58: 19.4 | H58: 11.7 | I58: 4.8 | J58: 0.8 | K58: 20.6 | L58: 62 | M58: 98.7 | N58: 901 | O58: Females | P58: 4.8 | Q58: 15.1 | R58: 21.8 | S58: 21.7 | T58: 19.4 | U58: 10.3 | V58: 4.5 | W58: 1.5 | X58: 19.9 | Y58: 63.4 | Z58: 99 | AA58: 14386 | AB58: All | AC58: 4.7 | AD58: 15.2 | AE58: 21.7 | AF58: 21.6 | AG58: 19.4 | AH58: 10.3 | AI58: 4.5 | AJ58: 1.4 | AK58: 20 | AL58: 63.3 | AM58: 99 | AN58: 15287

Sheet 2011 (hidden)
A1: 1 | B1: 2 | C1: 3 | D1: 4 | E1: 5 | F1: 6 | G1: 7 | H1: 8 | I1: 9 | J1: 10 | K1: 11 | L1: 12 | M1: 13 | N1: 14 | O1: 15 | P1: 16 | Q1: 17 | R1: 18 | S1: 19 | T1: 20 | U1: 21 | V1: 22 | W1: 23 | X1: 24 | Y1: 25 | Z1: 26 | AA1: 27 | AB1: 28 | AC1: 29 | AD1: 30 | AE1: 31 | AF1: 32 | AG1: 33 | AH1: 34 | AI1: 35 | AJ1: 36 | AK1: 37 | AL1: 38 | AM1: 39 | AN1: 40
A2: Subjects | C2: * | D2: A | E2: B | F2: C | G2: D | H2: E | I2: F | J2: G | K2: AstarA | L2: AstarC | M2: AstarG | N2: Total | O2: (No column name) | P2: * | Q2: A | R2: B | S2: C | T2: D | U2: E | V2: F | W2: G | X2: AstarA | Y2: AstarC | Z2: AstarG | AA2: Total | AB2: (No column name) | AC2: * | AD2: A | AE2: B | AF2: C | AG2: D | AH2: E | AI2: F | AJ2: G | AK2: AstarA | AL2: AstarC | AM2: AstarG | AN2: Total
A3: Vocational Studies | B3: Males | C3: 1.7 | D3: 8.3 | E3: 18.7 | F3: 26.1 | G3: 20.6 | H3: 12.8 | I3: 6.6 | J3: 3.1 | K3: 9.9 | L3: 54.8 | M3: 97.8 | N3: 16915 | O3: Females | P3: 4.2 | Q3: 15 | R3: 24.7 | S3: 25.6 | T3: 15.5 | U3: 8.1 | V3: 3.9 | W3: 1.4 | X3: 19.2 | Y3: 69.4 | Z3: 98.4 | AA3: 18287 | AB3: All | AC3: 3 | AD3: 11.8 | AE3: 21.8 | AF3: 25.8 | AG3: 17.9 | AH3: 10.4 | AI3: 5.2 | AJ3: 2.2 | AK3: 14.8 | AL3: 62.4 | AM3: 98.1 | AN3: 35202
A4: Urdu | B4: Males | C4: 7.7 | D4: 18.3 | E4: 19.1 | F4: 18.4 | G4: 16.2 | H4: 9.5 | I4: 5.7 | J4: 2.9 | K4: 26 | L4: 63.5 | M4: 97.7 | N4: 1454 | O4: Females | P4: 14.2 | Q4: 24.4 | R4: 21.1 | S4: 19 | T4: 10.9 | U4: 5.7 | V4: 2.6 | W4: 1 | X4: 38.6 | Y4: 78.8 | Z4: 99 | AA4: 2437 | AB4: All | AC4: 11.8 | AD4: 22.1 | AE4: 20.4 | AF4: 18.8 | AG4: 12.9 | AH4: 7.1 | AI4: 3.8 | AJ4: 1.7 | AK4: 33.9 | AL4: 73.1 | AM4: 98.5 | AN4: 3891
A5: Statistics | B5: Males | C5: 6.4 | D5: 16.6 | E5: 22.7 | F5: 30.1 | G5: 12.6 | H5: 5.3 | I5: 2.4 | J5: 1.2 | K5: 23 | L5: 75.8 | M5: 97.3 | N5: 32464 | O5: Females | P5: 7.4 | Q5: 18 | R5: 23.7 | S5: 30.2 | T5: 10.9 | U5: 4.5 | V5: 2 | W5: 1.1 | X5: 25.4 | Y5: 79.2 | Z5: 97.8 | AA5: 29473 | AB5: All | AC5: 6.9 | AD5: 17.3 | AE5: 23.2 | AF5: 30.2 | AG5: 11.8 | AH5: 4.9 | AI5: 2.2 | AJ5: 1.2 | AK5: 24.1 | AL5: 77.5 | AM5: 97.5 | AN5: 61937
A6: Spanish | B6: Males | C6: 12 | D6: 15.5 | E6: 19 | F6: 22.2 | G6: 15.2 | H6: 8.7 | I6: 4.4 | J6: 2 | K6: 27.6 | L6: 68.8 | M6: 99 | N6: 24538 | O6: Females | P6: 16.9 | Q6: 19.4 | R6: 21.2 | S6: 20.9 | T6: 12.1 | U6: 5.5 | V6: 2.6 | W6: 0.8 | X6: 36.3 | Y6: 78.5 | Z6: 99.5 | AA6: 34143 | AB6: All | AC6: 14.9 | AD6: 17.8 | AE6: 20.3 | AF6: 21.4 | AG6: 13.4 | AH6: 6.9 | AI6: 3.3 | AJ6: 1.3 | AK6: 32.7 | AL6: 74.4 | AM6: 99.3 | AN6: 58681
A7: Social Studies | B7: Males | C7: 1.8 | D7: 9.9 | E7: 20.5 | F7: 25 | G7: 16.7 | H7: 11.4 | I7: 7.1 | J7: 4.1 | K7: 11.7 | L7: 57.2 | M7: 96.5 | N7: 12651 | O7: Females | P7: 4.6 | Q7: 16 | R7: 24.9 | S7: 22.8 | T7: 13.7 | U7: 8.5 | V7: 4.8 | W7: 2.7 | X7: 20.6 | Y7: 68.3 | Z7: 98 | AA7: 24570 | AB7: All | AC7: 3.6 | AD7: 13.9 | AE7: 23.4 | AF7: 23.6 | AG7: 14.7 | AH7: 9.4 | AI7: 5.6 | AJ7: 3.2 | AK7: 17.6 | AL7: 64.5 | AM7: 97.5 | AN7: 37221
A8: Religious Studies | B8: Males | C8: 8.1 | D8: 16.6 | E8: 22.1 | F8: 20.8 | G8: 12.5 | H8: 8.3 | I8: 5.6 | J8: 3.5 | K8: 24.7 | L8: 67.6 | M8: 97.6 | N8: 89188 | O8: Females | P8: 15 | Q8: 23.2 | R8: 23.2 | S8: 17.5 | T8: 9.4 | U8: 5.5 | V8: 3.2 | W8: 1.8 | X8: 38.2 | Y8: 78.9 | Z8: 98.8 | AA8: 105921 | AB8: All | AC8: 11.8 | AD8: 20.2 | AE8: 22.7 | AF8: 19 | AG8: 10.8 | AH8: 6.8 | AI8: 4.3 | AJ8: 2.6 | AK8: 32 | AL8: 73.8 | AM8: 98.3 | AN8: 195109
A9: Polish | B9: Males | C9: 15.5 | D9: 47.5 | E9: 22 | F9: 8.9 | G9: 2.1 | H9: 1.6 | I9: 1 | J9: 0.9 | K9: 63 | L9: 93.9 | M9: 99.4 | N9: 1262 | O9: Females | P9: 29.7 | Q9: 48.3 | R9: 13.4 | S9: 5.3 | T9: 0.7 | U9: 0.7 | V9: 0.6 | W9: 0.6 | X9: 78 | Y9: 96.6 | Z9: 99.4 | AA9: 1243 | AB9: All | AC9: 22.6 | AD9: 47.9 | AE9: 17.7 | AF9: 7.1 | AG9: 1.4 | AH9: 1.2 | AI9: 0.8 | AJ9: 0.8 | AK9: 70.4 | AL9: 95.2 | AM9: 99.4 | AN9: 2505
A10: Physics | B10: Males | C10: 21.2 | D10: 27.6 | E10: 27.6 | F10: 17.9 | G10: 4.6 | H10: 0.7 | I10: 0.2 | J10: 0.1 | K10: 48.8 | L10: 94.3 | M10: 99.9 | N10: 70307 | O10: Females | P10: 22 | Q10: 27.3 | R10: 26.9 | S10: 17.6 | T10: 5 | U10: 0.9 | V10: 0.2 | W10: 0.1 | X10: 49.3 | Y10: 93.8 | Z10: 99.9 | AA10: 60831 | AB10: All | AC10: 21.6 | AD10: 27.5 | AE10: 27.3 | AF10: 17.7 | AG10: 4.8 | AH10: 0.8 | AI10: 0.2 | AJ10: 0.1 | AK10: 49.1 | AL10: 94.1 | AM10: 99.9 | AN10: 131138
A11: Physical Education | B11: Males | C11: 5.3 | D11: 12.3 | E11: 26.1 | F11: 27.3 | G11: 17.1 | H11: 8.4 | I11: 2.5 | J11: 0.6 | K11: 17.6 | L11: 71 | M11: 99.7 | N11: 61255 | O11: Females | P11: 9.3 | Q11: 15.6 | R11: 24.1 | S11: 23.1 | T11: 16.2 | U11: 8.1 | V11: 2.6 | W11: 0.7 | X11: 24.9 | Y11: 72.1 | Z11: 99.7 | AA11: 32579 | AB11: All | AC11: 6.7 | AD11: 13.5 | AE11: 25.4 | AF11: 25.9 | AG11: 16.8 | AH11: 8.3 | AI11: 2.5 | AJ11: 0.6 | AK11: 20.1 | AL11: 71.4 | AM11: 99.7 | AN11: 93834
A12: Performing Arts | B12: Males | C12: 3.8 | D12: 6.6 | E12: 11.7 | F12: 26.1 | G12: 18.8 | H12: 14.7 | I12: 10.1 | J12: 5.5 | K12: 10.4 | L12: 48.2 | M12: 97.4 | N12: 849 | O12: Females | P12: 5.3 | Q12: 11 | R12: 18.9 | S12: 26.9 | T12: 16.1 | U12: 10.9 | V12: 5.8 | W12: 2.7 | X12: 16.3 | Y12: 62.1 | Z12: 97.6 | AA12: 1799 | AB12: All | AC12: 4.8 | AD12: 9.6 | AE12: 16.6 | AF12: 26.7 | AG12: 17 | AH12: 12.1 | AI12: 7.2 | AJ12: 3.6 | AK12: 14.4 | AL12: 57.6 | AM12: 97.5 | AN12: 2648
A13: Other Sciences | B13: Males | C13: 12 | D13: 13.7 | E13: 17.5 | F13: 17.8 | G13: 14.7 | H13: 10.1 | I13: 6.7 | J13: 4.2 | K13: 25.7 | L13: 61 | M13: 96.7 | N13: 3618 | O13: Females | P13: 5.7 | Q13: 12.6 | R13: 19.1 | S13: 22.5 | T13: 14.9 | U13: 11.4 | V13: 7.3 | W13: 3.7 | X13: 18.3 | Y13: 59.9 | Z13: 97.3 | AA13: 1899 | AB13: All | AC13: 9.8 | AD13: 13.3 | AE13: 18.1 | AF13: 19.4 | AG13: 14.8 | AH13: 10.5 | AI13: 6.9 | AJ13: 4.1 | AK13: 23.1 | AL13: 60.6 | AM13: 96.9 | AN13: 5517
A14: Other Modern Languages | B14: Males | C14: 28 | D14: 24.6 | E14: 19.3 | F14: 13.1 | G14: 6.6 | H14: 3.7 | I14: 2 | J14: 1.2 | K14: 52.6 | L14: 85 | M14: 98.5 | N14: 4207 | O14: Females | P14: 33.5 | Q14: 27.6 | R14: 18.7 | S14: 10.2 | T14: 4.6 | U14: 2.4 | V14: 1.2 | W14: 0.5 | X14: 61 | Y14: 89.9 | Z14: 98.6 | AA14: 4567 | AB14: All | AC14: 30.8 | AD14: 26.2 | AE14: 19 | AF14: 11.6 | AG14: 5.6 | AH14: 3 | AI14: 1.6 | AJ14: 0.8 | AK14: 57 | AL14: 87.6 | AM14: 98.6 | AN14: 8774
A15: Other Design and Technology | B15: Males | C15: 2.5 | D15: 9.2 | E15: 18.3 | F15: 24.2 | G15: 18.6 | H15: 12.8 | I15: 7.7 | J15: 3.8 | K15: 11.8 | L15: 54.3 | M15: 97.2 | N15: 22529 | O15: Females | P15: 7.9 | Q15: 20 | R15: 24 | S15: 21.6 | T15: 11.9 | U15: 6.8 | V15: 4.1 | W15: 2 | X15: 28 | Y15: 73.6 | Z15: 98.3 | AA15: 11982 | AB15: All | AC15: 4.4 | AD15: 13 | AE15: 20.3 | AF15: 23.3 | AG15: 16.2 | AH15: 10.7 | AI15: 6.4 | AJ15: 3.2 | AK15: 17.4 | AL15: 61 | AM15: 97.6 | AN15: 34511
A16: Other Classical Studies | B16: Males | C16: 6.2 | D16: 24 | E16: 29.5 | F16: 14.7 | G16: 4.7 | H16: 6.2 | I16: 7 | J16: 2.3 | K16: 30.2 | L16: 74.4 | M16: 94.6 | N16: 129 | O16: Females | P16: 13.7 | Q16: 36.9 | R16: 21.4 | S16: 12.8 | T16: 5.7 | U16: 3.3 | V16: 1.5 | W16: 1.8 | X16: 50.6 | Y16: 84.8 | Z16: 97 | AA16: 336 | AB16: All | AC16: 11.6 | AD16: 33.3 | AE16: 23.7 | AF16: 13.3 | AG16: 5.4 | AH16: 4.1 | AI16: 3 | AJ16: 1.9 | AK16: 44.9 | AL16: 81.9 | AM16: 96.3 | AN16: 465
A17: Music | B17: Males | C17: 8.8 | D17: 21.8 | E17: 25.1 | F17: 18.8 | G17: 11.2 | H17: 7.3 | I17: 3.5 | J17: 1.9 | K17: 30.6 | L17: 74.6 | M17: 98.4 | N17: 22402 | O17: Females | P17: 10.8 | Q17: 25.1 | R17: 26.5 | S17: 17.2 | T17: 10.2 | U17: 5.7 | V17: 2.7 | W17: 1.1 | X17: 35.8 | Y17: 79.5 | Z17: 99.2 | AA17: 20755 | AB17: All | AC17: 9.8 | AD17: 23.4 | AE17: 25.8 | AF17: 18 | AG17: 10.7 | AH17: 6.5 | AI17: 3.1 | AJ17: 1.5 | AK17: 33.1 | AL17: 77 | AM17: 98.8 | AN17: 43157
A18: Media: Communication and Production | B18: Males | C18: 0 | D18: 0 | E18: 13.3 | F18: 36 | G18: 33.3 | H18: 10.7 | I18: x | J18: 0 | K18: 0 | L18: 49.3 | M18: 100 | N18: 75 | O18: Females | P18: 0 | Q18: 0 | R18: 22.5 | S18: 38.2 | T18: 27 | U18: 11.2 | V18: x | W18: 0 | X18: 0 | Y18: 60.7 | Z18: 100 | AA18: 89 | AB18: All | AC18: 0 | AD18: 0 | AE18: 18.3 | AF18: 37.2 | AG18: 29.9 | AH18: 11 | AI18: 3.7 | AJ18: 0 | AK18: 0 | AL18: 55.5 | AM18: 100 | AN18: 164
A19: Media/Film/TV | B19: Males | C19: 1.6 | D19: 8.5 | E19: 20.2 | F19: 26.4 | G19: 19.8 | H19: 11.2 | I19: 6.2 | J19: 3.2 | K19: 10.1 | L19: 56.6 | M19: 97.1 | N19: 25784 | O19: Females | P19: 5.2 | Q19: 19 | R19: 27.9 | S19: 23.7 | T19: 12.4 | U19: 5.8 | V19: 2.9 | W19: 1.5 | X19: 24.2 | Y19: 75.8 | Z19: 98.4 | AA19: 25999 | AB19: All | AC19: 3.4 | AD19: 13.8 | AE19: 24 | AF19: 25.1 | AG19: 16.1 | AH19: 8.5 | AI19: 4.6 | AJ19: 2.3 | AK19: 17.1 | AL19: 66.2 | AM19: 97.7 | AN19: 51783
A20: Mathematics | B20: Males | C20: 6.9 | D20: 13.5 | E20: 17.6 | F20: 28.7 | G20: 12 | H20: 9 | I20: 7 | J20: 3.5 | K20: 20.4 | L20: 66.8 | M20: 98.3 | N20: 303211 | O20: Females | P20: 6.7 | Q20: 13.9 | R20: 18.1 | S20: 28.6 | T20: 12.4 | U20: 8.7 | V20: 6.6 | W20: 3.3 | X20: 20.7 | Y20: 67.3 | Z20: 98.4 | AA20: 295368 | AB20: All | AC20: 6.8 | AD20: 13.7 | AE20: 17.8 | AF20: 28.6 | AG20: 12.2 | AH20: 8.8 | AI20: 6.8 | AJ20: 3.4 | AK20: 20.6 | AL20: 67 | AM20: 98.3 | AN20: 598579
A21: Manufacturing | B21: Males | C21: 0 | D21: 3.6 | E21: 6.5 | F21: 19.4 | G21: 13.7 | H21: 17.3 | I21: 20.1 | J21: 10.1 | K21: 3.6 | L21: 29.5 | M21: 90.6 | N21: 139 | O21: Females | P21: 0 | Q21: 9.1 | R21: 9.1 | S21: 24.2 | T21: 15.2 | U21: 12.1 | V21: 9.1 | W21: 18.2 | X21: 9.1 | Y21: 42.4 | Z21: 97 | AA21: 33 | AB21: All | AC21: 0 | AD21: 4.7 | AE21: 7 | AF21: 20.3 | AG21: 14 | AH21: 16.3 | AI21: 18 | AJ21: 11.6 | AK21: 4.7 | AL21: 32 | AM21: 91.9 | AN21: 172
A22: Leisure and Tourism | B22: Males | C22: 0.3 | D22: 2.1 | E22: 6.5 | F22: 15 | G22: 18.4 | H22: 17.9 | I22: 15.7 | J22: 12.6 | K22: 2.4 | L22: 23.9 | M22: 88.5 | N22: 1180 | O22: Females | P22: 2 | Q22: 8.2 | R22: 15.9 | S22: 21.7 | T22: 16.6 | U22: 14 | V22: 9.7 | W22: 6.8 | X22: 10.2 | Y22: 47.8 | Z22: 94.9 | AA22: 1637 | AB22: All | AC22: 1.3 | AD22: 5.6 | AE22: 12 | AF22: 18.9 | AG22: 17.3 | AH22: 15.6 | AI22: 12.2 | AJ22: 9.3 | AK22: 6.9 | AL22: 37.8 | AM22: 92.2 | AN22: 2817
A23: Latin | B23: Males | C23: 45.1 | D23: 26.7 | E23: 13.3 | F23: 8 | G23: 4.1 | H23: 1.7 | I23: 0.5 | J23: 0.2 | K23: 71.8 | L23: 93.1 | M23: 99.7 | N23: 4077 | O23: Females | P23: 47.4 | Q23: 27.8 | R23: 13 | S23: 6.5 | T23: 3.2 | U23: 1.2 | V23: 0.4 | W23: 0.1 | X23: 75.3 | Y23: 94.8 | Z23: 99.7 | AA23: 4135 | AB23: All | AC23: 46.3 | AD23: 27.3 | AE23: 13.2 | AF23: 7.2 | AG23: 3.7 | AH23: 1.5 | AI23: 0.5 | AJ23: 0.2 | AK23: 73.5 | AL23: 93.9 | AM23: 99.7 | AN23: 8212
A24: Italian | B24: Males | C24: 39.7 | D24: 18.3 | E24: 15 | F24: 13 | G24: 6.3 | H24: 2.9 | I24: 2.7 | J24: 1.2 | K24: 58 | L24: 86 | M24: 99 | N24: 1451 | O24: Females | P24: 37.4 | Q24: 22.8 | R24: 17.7 | S24: 11 | T24: 5.6 | U24: 2.5 | V24: 1.7 | W24: 0.8 | X24: 60.2 | Y24: 88.9 | Z24: 99.5 | AA24: 1985 | AB24: All | AC24: 38.4 | AD24: 20.9 | AE24: 16.6 | AF24: 11.8 | AG24: 5.9 | AH24: 2.7 | AI24: 2.1 | AJ24: 1 | AK24: 59.3 | AL24: 87.7 | AM24: 99.3 | AN24: 3436
A25: Information Technology | B25: Males | C25: 8.4 | D25: 18.4 | E25: 21.8 | F25: 25.9 | G25: 13 | H25: 5.4 | I25: 3 | J25: 1.7 | K25: 26.9 | L25: 74.5 | M25: 97.6 | N25: 19551 | O25: Females | P25: 12.3 | Q25: 25.2 | R25: 24.3 | S25: 21.6 | T25: 9.4 | U25: 3.6 | V25: 1.5 | W25: 0.8 | X25: 37.5 | Y25: 83.4 | Z25: 98.6 | AA25: 16611 | AB25: All | AC25: 10.2 | AD25: 21.5 | AE25: 22.9 | AF25: 23.9 | AG25: 11.3 | AH25: 4.6 | AI25: 2.3 | AJ25: 1.3 | AK25: 31.7 | AL25: 78.6 | AM25: 98.1 | AN25: 36162
A26: Humanities | B26: Males | C26: 1.2 | D26: 5.5 | E26: 14.4 | F26: 20.7 | G26: 18.1 | H26: 14.2 | I26: 11.9 | J26: 7.9 | K26: 6.7 | L26: 41.8 | M26: 93.9 | N26: 7209 | O26: Females | P26: 3 | Q26: 10.4 | R26: 19.1 | S26: 22.6 | T26: 17.1 | U26: 12.3 | V26: 7.4 | W26: 4.8 | X26: 13.4 | Y26: 55.2 | Z26: 96.7 | AA26: 7417 | AB26: All | AC26: 2.1 | AD26: 8 | AE26: 16.8 | AF26: 21.7 | AG26: 17.6 | AH26: 13.2 | AI26: 9.6 | AJ26: 6.3 | AK26: 10.1 | AL26: 48.6 | AM26: 95.3 | AN26: 14626
A27: Hospitality and Catering | B27: Males | C27: x | D27: 1.7 | E27: 15.5 | F27: 28 | G27: 19 | H27: 18.1 | I27: 11.1 | J27: 5.2 | K27: 2.3 | L27: 45.8 | M27: 99.1 | N27: 343 | O27: Females | P27: x | Q27: 13.5 | R27: 23.1 | S27: 27.2 | T27: 15.3 | U27: 8 | V27: 5.3 | W27: 2.2 | X27: 18.4 | Y27: 68.7 | Z27: 99.4 | AA27: 511 | AB27: All | AC27: 3.2 | AD27: 8.8 | AE27: 20 | AF27: 27.5 | AG27: 16.7 | AH27: 12.1 | AI27: 7.6 | AJ27: 3.4 | AK27: 11.9 | AL27: 59.5 | AM27: 99.3 | AN27: 854
A28: Home Economics | B28: Males | C28: 0.3 | D28: 5.2 | E28: 15 | F28: 22.9 | G28: 21.5 | H28: 16.2 | I28: 11.3 | J28: 5.4 | K28: 5.5 | L28: 43.4 | M28: 97.8 | N28: 3898 | O28: Females | P28: 2.9 | Q28: 11.3 | R28: 20.2 | S28: 23.5 | T28: 18.4 | U28: 12 | V28: 6.7 | W28: 3.1 | X28: 14.2 | Y28: 57.9 | Z28: 98.1 | AA28: 24546 | AB28: All | AC28: 2.6 | AD28: 10.5 | AE28: 19.5 | AF28: 23.4 | AG28: 18.8 | AH28: 12.6 | AI28: 7.3 | AJ28: 3.4 | AK28: 13 | AL28: 55.9 | AM28: 98 | AN28: 28444
A29: History | B29: Males | C29: 9.2 | D29: 17.6 | E29: 21 | F29: 19.2 | G29: 13.4 | H29: 8.4 | I29: 5.5 | J29: 3.5 | K29: 26.8 | L29: 66.9 | M29: 97.8 | N29: 98087 | O29: Females | P29: 14.3 | Q29: 21.4 | R29: 21.4 | S29: 17.3 | T29: 11.2 | U29: 6.8 | V29: 4.1 | W29: 2.2 | X29: 35.7 | Y29: 74.4 | Z29: 98.6 | AA29: 97120 | AB29: All | AC29: 11.7 | AD29: 19.5 | AE29: 21.2 | AF29: 18.2 | AG29: 12.3 | AH29: 7.6 | AI29: 4.8 | AJ29: 2.8 | AK29: 31.2 | AL29: 70.6 | AM29: 98.2 | AN29: 195207
A30: Dance | B30: Males | C30: 5.1 | D30: 16.6 | E30: 17.1 | F30: 22.1 | G30: 18.1 | H30: 10.9 | I30: 5.9 | J30: 2.9 | K30: 21.6 | L30: 60.9 | M30: 98.6 | N30: 869 | O30: Females | P30: 6.4 | Q30: 14.1 | R30: 18.9 | S30: 21.3 | T30: 19.3 | U30: 11.4 | V30: 5.3 | W30: 2 | X30: 20.5 | Y30: 60.7 | Z30: 98.7 | AA30: 12308 | AB30: All | AC30: 6.3 | AD30: 14.3 | AE30: 18.8 | AF30: 21.3 | AG30: 19.2 | AH30: 11.4 | AI30: 5.3 | AJ30: 2 | AK30: 20.6 | AL30: 60.7 | AM30: 98.7 | AN30: 13177
A31: Health and Social Care | B31: Males | C31: x | D31: 2 | E31: 12.3 | F31: 17.9 | G31: 17.5 | H31: 18.5 | I31: 15.2 | J31: 10.3 | K31: 2.6 | L31: 32.8 | M31: 94.4 | N31: 302 | O31: Females | P31: x | Q31: 9.4 | R31: 19 | S31: 23.3 | T31: 17.1 | U31: 12.2 | V31: 8.5 | W31: 5.6 | X31: 11.3 | Y31: 53.6 | Z31: 97 | AA31: 5570 | AB31: All | AC31: 1.9 | AD31: 9 | AE31: 18.7 | AF31: 23 | AG31: 17.1 | AH31: 12.5 | AI31: 8.8 | AJ31: 5.8 | AK31: 10.9 | AL31: 52.6 | AM31: 96.8 | AN31: 5872
A32: German | B32: Males | C32: 7.8 | D32: 13.6 | E32: 22.2 | F32: 26.8 | G32: 16.8 | H32: 7.5 | I32: 3.2 | J32: 1.4 | K32: 21.4 | L32: 70.4 | M32: 99.3 | N32: 27383 | O32: Females | P32: 10.6 | Q32: 18.2 | R32: 25.8 | S32: 25.6 | T32: 12.5 | U32: 4.4 | V32: 1.8 | W32: 0.8 | X32: 28.8 | Y32: 80.2 | Z32: 99.7 | AA32: 30916 | AB32: All | AC32: 9.3 | AD32: 16.1 | AE32: 24.1 | AF32: 26.1 | AG32: 14.5 | AH32: 5.9 | AI32: 2.5 | AJ32: 1.1 | AK32: 25.3 | AL32: 75.6 | AM32: 99.5 | AN32: 58299
A33: Geography | B33: Males | C33: 8.4 | D33: 15.9 | E33: 19.2 | F33: 22.7 | G33: 16.5 | H33: 8.7 | I33: 4.8 | J33: 2.6 | K33: 24.4 | L33: 66.3 | M33: 98.8 | N33: 89338 | O33: Females | P33: 13.9 | Q33: 20.8 | R33: 20.5 | S33: 19.9 | T33: 12.4 | U33: 6.4 | V33: 3.5 | W33: 1.7 | X33: 34.7 | Y33: 75.1 | Z33: 99.1 | AA33: 72208 | AB33: All | AC33: 10.9 | AD33: 18.1 | AE33: 19.8 | AF33: 21.4 | AG33: 14.7 | AH33: 7.7 | AI33: 4.2 | AJ33: 2.2 | AK33: 29 | AL33: 70.2 | AM33: 99 | AN33: 161546
A34: General Studies | B34: Males | C34: 1.8 | D34: 7.5 | E34: 12.4 | F34: 17.6 | G34: 19.4 | H34: 15.7 | I34: 11 | J34: 6.9 | K34: 9.3 | L34: 39.4 | M34: 92.5 | N34: 3373 | O34: Females | P34: 2.1 | Q34: 7.7 | R34: 15.7 | S34: 20.8 | T34: 20.8 | U34: 15.3 | V34: 7.8 | W34: 4.9 | X34: 9.8 | Y34: 46.3 | Z34: 95.1 | AA34: 3149 | AB34: All | AC34: 2 | AD34: 7.6 | AE34: 14 | AF34: 19.2 | AG34: 20.1 | AH34: 15.5 | AI34: 9.4 | AJ34: 5.9 | AK34: 9.6 | AL34: 42.7 | AM34: 93.7 | AN34: 6522
A35: French | B35: Males | C35: 8.7 | D35: 13.8 | E35: 19.5 | F35: 24.6 | G35: 17.6 | H35: 9.1 | I35: 4.5 | J35: 1.6 | K35: 22.5 | L35: 66.5 | M35: 99.4 | N35: 59640 | O35: Females | P35: 11.9 | Q35: 17.8 | R35: 23 | S35: 23.3 | T35: 14.3 | U35: 6.1 | V35: 2.4 | W35: 0.8 | X35: 29.7 | Y35: 76 | Z35: 99.6 | AA35: 82109 | AB35: All | AC35: 10.6 | AD35: 16.1 | AE35: 21.5 | AF35: 23.9 | AG35: 15.7 | AH35: 7.4 | AI35: 3.3 | AJ35: 1.2 | AK35: 26.7 | AL35: 72 | AM35: 99.5 | AN35: 141749
A36: English Studies | B36: Males | C36: 0.2 | D36: 2.2 | E36: 14.6 | F36: 45.9 | G36: 15.1 | H36: 11.4 | I36: 5.8 | J36: 3 | K36: 2.4 | L36: 63 | M36: 98.4 | N36: 1840 | O36: Females | P36: 0.4 | Q36: 3.5 | R36: 18.7 | S36: 47.8 | T36: 13 | U36: 9.4 | V36: 4 | W36: 1.9 | X36: 3.9 | Y36: 70.5 | Z36: 98.8 | AA36: 1462 | AB36: All | AC36: 0.3 | AD36: 2.8 | AE36: 16.4 | AF36: 46.8 | AG36: 14.2 | AH36: 10.5 | AI36: 5 | AJ36: 2.5 | AK36: 3.1 | AL36: 66.3 | AM36: 98.5 | AN36: 3302
A37: English Literature | B37: Males | C37: 4.5 | D37: 14.9 | E37: 26.6 | F37: 26.5 | G37: 15.3 | H37: 6.6 | I37: 2.6 | J37: 1.2 | K37: 19.4 | L37: 72.5 | M37: 98.2 | N37: 212726 | O37: Females | P37: 8.1 | Q37: 22.7 | R37: 30.5 | S37: 22.9 | T37: 9.9 | U37: 3.3 | V37: 1.1 | W37: 0.5 | X37: 30.8 | Y37: 84.2 | Z37: 99 | AA37: 236510 | AB37: All | AC37: 6.4 | AD37: 19 | AE37: 28.7 | AF37: 24.6 | AG37: 12.4 | AH37: 4.9 | AI37: 1.8 | AJ37: 0.8 | AK37: 25.4 | AL37: 78.7 | AM37: 98.6 | AN37: 449236
A38: English | B38: Males | C38: 3.8 | D38: 10.7 | E38: 19.9 | F38: 31.4 | G38: 17.9 | H38: 9.2 | I38: 4.2 | J38: 1.6 | K38: 14.5 | L38: 65.8 | M38: 98.9 | N38: 296070 | O38: Females | P38: 7.1 | Q38: 17.2 | R38: 25.2 | S38: 29.3 | T38: 12.8 | U38: 5.1 | V38: 1.9 | W38: 0.7 | X38: 24.3 | Y38: 78.8 | Z38: 99.3 | AA38: 291391 | AB38: All | AC38: 5.5 | AD38: 13.9 | AE38: 22.5 | AF38: 30.3 | AG38: 15.4 | AH38: 7.2 | AI38: 3.1 | AJ38: 1.2 | AK38: 19.4 | AL38: 72.3 | AM38: 99.1 | AN38: 587461
A39: Economics | B39: Males | C39: 5 | D39: 24.4 | E39: 30.4 | F39: 20.2 | G39: 9.5 | H39: 4.7 | I39: 2.7 | J39: 1.2 | K39: 29.4 | L39: 80 | M39: 98.1 | N39: 2353 | O39: Females | P39: 3.5 | Q39: 20.8 | R39: 33 | S39: 20.1 | T39: 8.7 | U39: 5.5 | V39: 4.6 | W39: 1.8 | X39: 24.3 | Y39: 77.4 | Z39: 97.9 | AA39: 897 | AB39: All | AC39: 4.6 | AD39: 23.4 | AE39: 31.1 | AF39: 20.2 | AG39: 9.3 | AH39: 4.9 | AI39: 3.2 | AJ39: 1.4 | AK39: 28 | AL39: 79.3 | AM39: 98 | AN39: 3250
A40: Drama | B40: Males | C40: 3.6 | D40: 14.1 | E40: 23.7 | F40: 26 | G40: 17.4 | H40: 8.4 | I40: 4.1 | J40: 1.6 | K40: 17.7 | L40: 67.3 | M40: 98.9 | N40: 28731 | O40: Females | P40: 6.4 | Q40: 20.7 | R40: 29.1 | S40: 23.2 | T40: 11.9 | U40: 5 | V40: 2.1 | W40: 0.9 | X40: 27.1 | Y40: 79.4 | Z40: 99.3 | AA40: 46024 | AB40: All | AC40: 5.3 | AD40: 18.1 | AE40: 27 | AF40: 24.3 | AG40: 14 | AH40: 6.3 | AI40: 2.9 | AJ40: 1.2 | AK40: 23.5 | AL40: 74.8 | AM40: 99.1 | AN40: 74755
A41: D & T: Textiles Technology | B41: Males | C41: 2.8 | D41: 6.4 | E41: 12.5 | F41: 19.9 | G41: 19.2 | H41: 14 | I41: 12.2 | J41: 6.8 | K41: 9.2 | L41: 41.6 | M41: 93.8 | N41: 1043 | O41: Females | P41: 10.6 | Q41: 19.1 | R41: 24.3 | S41: 21 | T41: 11.6 | U41: 6.6 | V41: 3.7 | W41: 1.7 | X41: 29.8 | Y41: 75.1 | Z41: 98.7 | AA41: 32614 | AB41: All | AC41: 10.4 | AD41: 18.8 | AE41: 23.9 | AF41: 21 | AG41: 11.8 | AH41: 6.9 | AI41: 4 | AJ41: 1.9 | AK41: 29.2 | AL41: 74.1 | AM41: 98.6 | AN41: 33657
A42: D & T: Systems & Control | B42: Males | C42: 5.3 | D42: 14.4 | E42: 21.7 | F42: 22.6 | G42: 15 | H42: 10.1 | I42: 6.2 | J42: 3.1 | K42: 19.7 | L42: 64 | M42: 98.4 | N42: 4014 | O42: Females | P42: 8 | Q42: 28 | R42: 25.2 | S42: 19.4 | T42: 9.2 | U42: 2.5 | V42: 4.5 | W42: 1.6 | X42: 36 | Y42: 80.6 | Z42: 98.4 | AA42: 314 | AB42: All | AC42: 5.5 | AD42: 15.4 | AE42: 22 | AF42: 22.3 | AG42: 14.6 | AH42: 9.5 | AI42: 6.1 | AJ42: 3 | AK42: 20.9 | AL42: 65.2 | AM42: 98.4 | AN42: 4328
A43: D & T: Resistant Materials | B43: Males | C43: 3.5 | D43: 9.4 | E43: 19.1 | F43: 23.9 | G43: 18.5 | H43: 12.6 | I43: 7.3 | J43: 3.5 | K43: 12.9 | L43: 55.9 | M43: 97.7 | N43: 49560 | O43: Females | P43: 9.4 | Q43: 18.3 | R43: 23.7 | S43: 20.3 | T43: 13 | U43: 7.5 | V43: 4.3 | W43: 2.1 | X43: 27.7 | Y43: 71.7 | Z43: 98.7 | AA43: 8889 | AB43: All | AC43: 4.4 | AD43: 10.7 | AE43: 19.8 | AF43: 23.4 | AG43: 17.7 | AH43: 11.8 | AI43: 6.8 | AJ43: 3.3 | AK43: 15.1 | AL43: 58.3 | AM43: 97.9 | AN43: 58449
A44: D & T: Graphic Products | B44: Males | C44: 3 | D44: 9 | E44: 17.5 | F44: 21.9 | G44: 18.3 | H44: 12.4 | I44: 8.4 | J44: 5.3 | K44: 12 | L44: 51.4 | M44: 95.8 | N44: 25664 | O44: Females | P44: 8.4 | Q44: 18.4 | R44: 23.3 | S44: 21.3 | T44: 12.9 | U44: 7.6 | V44: 4.3 | W44: 2 | X44: 26.8 | Y44: 71.4 | Z44: 98.3 | AA44: 18114 | AB44: All | AC44: 5.3 | AD44: 12.9 | AE44: 19.9 | AF44: 21.6 | AG44: 16.1 | AH44: 10.4 | AI44: 6.7 | AJ44: 3.9 | AK44: 18.1 | AL44: 59.7 | AM44: 96.8 | AN44: 43778
A45: D & T: Food Technology | B45: Males | C45: 2 | D45: 7.7 | E45: 17.3 | F45: 24.4 | G45: 19.8 | H45: 13.6 | I45: 8.2 | J45: 4.1 | K45: 9.7 | L45: 51.4 | M45: 97.2 | N45: 20079 | O45: Females | P45: 7.7 | Q45: 16.8 | R45: 23.5 | S45: 22.2 | T45: 14.2 | U45: 8.2 | V45: 4.1 | W45: 1.9 | X45: 24.5 | Y45: 70.1 | Z45: 98.6 | AA45: 33970 | AB45: All | AC45: 5.6 | AD45: 13.4 | AE45: 21.2 | AF45: 23 | AG45: 16.3 | AH45: 10.2 | AI45: 5.6 | AJ45: 2.8 | AK45: 19 | AL45: 63.2 | AM45: 98 | AN45: 54049
A46: D & T: Electronic Products | B46: Males | C46: 7 | D46: 14.8 | E46: 21.7 | F46: 21.2 | G46: 14.8 | H46: 8.7 | I46: 5.4 | J46: 3.8 | K46: 21.8 | L46: 64.6 | M46: 97.2 | N46: 9080 | O46: Females | P46: 15.7 | Q46: 24.6 | R46: 21.9 | S46: 15.8 | T46: 9.7 | U46: 6.2 | V46: 4.4 | W46: 0.6 | X46: 40.2 | Y46: 77.9 | Z46: 98.8 | AA46: 773 | AB46: All | AC46: 7.7 | AD46: 15.6 | AE46: 21.7 | AF46: 20.7 | AG46: 14.4 | AH46: 8.5 | AI46: 5.3 | AJ46: 3.5 | AK46: 23.2 | AL46: 65.7 | AM46: 97.3 | AN46: 9853
A47: Core Science | B47: Males | C47: 1.9 | D47: 7.6 | E47: 18.3 | F47: 32.8 | G47: 17.9 | H47: 11 | I47: 6.4 | J47: 2.7 | K47: 9.5 | L47: 60.6 | M47: 98.7 | N47: 173632 | O47: Females | P47: 2.9 | Q47: 10.1 | R47: 20.4 | S47: 32 | T47: 16.6 | U47: 9.5 | V47: 5.2 | W47: 2.2 | X47: 13 | Y47: 65.4 | Z47: 98.9 | AA47: 176542 | AB47: All | AC47: 2.4 | AD47: 8.9 | AE47: 19.4 | AF47: 32.4 | AG47: 17.3 | AH47: 10.2 | AI47: 5.8 | AJ47: 2.5 | AK47: 11.3 | AL47: 63 | AM47: 98.8 | AN47: 350174
A48: Construction | B48: Males | C48: 0 | D48: x | E48: 29.4 | F48: 26.5 | G48: 29.4 | H48: 8.8 | I48: 0 | J48: 0 | K48: x | L48: 61.8 | M48: 100 | N48: 34 | O48: Females | P48: 0 | Q48: 0 | R48: 0 | S48: 0 | T48: 0 | U48: 0 | V48: 0 | W48: 0 | X48: 0 | Y48: 0 | Z48: 0 | AA48: 0 | AB48: All | AC48: 0 | AD48: x | AE48: 29.4 | AF48: 26.5 | AG48: 29.4 | AH48: 8.8 | AI48: 0 | AJ48: 0 | AK48: x | AL48: 61.8 | AM48: 100 | AN48: 34
A49: Ancient History | B49: Males | C49: 16 | D49: 29.8 | E49: 24.5 | F49: 4.3 | G49: x | H49: 5.3 | I49: x | J49: x | K49: 45.7 | L49: 74.5 | M49: 98.9 | N49: 94 | O49: Females | P49: 20.5 | Q49: 17.9 | R49: 33.3 | S49: 7.7 | T49: x | U49: 7.7 | V49: x | W49: x | X49: 38.5 | Y49: 79.5 | Z49: 100 | AA49: 39 | AB49: All | AC49: 17.3 | AD49: 26.3 | AE49: 27.1 | AF49: 5.3 | AG49: 6 | AH49: 6 | AI49: 8.3 | AJ49: 3 | AK49: 43.6 | AL49: 75.9 | AM49: 99.2 | AN49: 133
A50: Communication Studies | B50: Males | C50: 2.2 | D50: 7.2 | E50: 14.4 | F50: 18.6 | G50: 18.4 | H50: 15.2 | I50: 11.3 | J50: 6.5 | K50: 9.4 | L50: 42.4 | M50: 93.7 | N50: 4072 | O50: Females | P50: 6.4 | Q50: 14.1 | R50: 20.5 | S50: 21.6 | T50: 14.8 | U50: 9.6 | V50: 6.4 | W50: 2.8 | X50: 20.5 | Y50: 62.6 | Z50: 96.3 | AA50: 5386 | AB50: All | AC50: 4.6 | AD50: 11.1 | AE50: 17.9 | AF50: 20.3 | AG50: 16.4 | AH50: 12 | AI50: 8.5 | AJ50: 4.4 | AK50: 15.7 | AL50: 53.9 | AM50: 95.2 | AN50: 9458
A51: Classical Greek | B51: Males | C51: 60.4 | D51: 23.1 | E51: 9.2 | F51: 4.4 | G51: 1.5 | H51: x | I51: x | J51: 0 | K51: 83.5 | L51: 97.1 | M51: 100 | N51: 619 | O51: Females | P51: 65.1 | Q51: 21.9 | R51: 7.5 | S51: 2.5 | T51: 2.8 | U51: x | V51: x | W51: 0 | X51: 86.9 | Y51: 97 | Z51: 100 | AA51: 398 | AB51: All | AC51: 62.2 | AD51: 22.6 | AE51: 8.6 | AF51: 3.6 | AG51: 2 | AH51: 0.8 | AI51: x | AJ51: 0 | AK51: 84.9 | AL51: 97.1 | AM51: 100 | AN51: 1017
A52: Classical Civilisation | B52: Males | C52: 10.3 | D52: 24.7 | E52: 24.1 | F52: 21.9 | G52: 11.4 | H52: 4.1 | I52: 1.8 | J52: 1 | K52: 34.9 | L52: 80.9 | M52: 99.2 | N52: 2201 | O52: Females | P52: 17.4 | Q52: 25.5 | R52: 23.9 | S52: 17.3 | T52: 9.1 | U52: 3.8 | V52: 1.6 | W52: 1 | X52: 42.9 | Y52: 84.1 | Z52: 99.6 | AA52: 1684 | AB52: All | AC52: 13.4 | AD52: 25 | AE52: 24 | AF52: 19.9 | AG52: 10.4 | AH52: 4 | AI52: 1.7 | AJ52: 1 | AK52: 38.4 | AL52: 82.3 | AM52: 99.4 | AN52: 3885
A53: Chinese | B53: Males | C53: 73.1 | D53: 9.4 | E53: 7 | F53: 5.1 | G53: 3 | H53: 1.2 | I53: x | J53: x | K53: 82.5 | L53: 94.6 | M53: 99.5 | N53: 1305 | O53: Females | P53: 79.7 | Q53: 10 | R53: 4.5 | S53: 3.1 | T53: 1.4 | U53: 0.9 | V53: x | W53: x | X53: 89.6 | Y53: 97.2 | Z53: 99.7 | AA53: 1175 | AB53: All | AC53: 76.2 | AD53: 9.7 | AE53: 5.8 | AF53: 4.2 | AG53: 2.2 | AH53: 1.1 | AI53: 0.3 | AJ53: 0.1 | AK53: 85.9 | AL53: 95.8 | AM53: 99.6 | AN53: 2480
A54: Chemistry | B54: Males | C54: 20.4 | D54: 27 | E54: 26.5 | F54: 18.8 | G54: 5.7 | H54: 1 | I54: 0.3 | J54: 0.1 | K54: 47.4 | L54: 92.8 | M54: 99.9 | N54: 70552 | O54: Females | P54: 24.8 | Q54: 28.6 | R54: 25 | S54: 15.8 | T54: 4.7 | U54: 0.8 | V54: 0.2 | W54: 0.1 | X54: 53.4 | Y54: 94.2 | Z54: 99.9 | AA54: 61466 | AB54: All | AC54: 22.5 | AD54: 27.8 | AE54: 25.8 | AF54: 17.4 | AG54: 5.2 | AH54: 0.9 | AI54: 0.2 | AJ54: 0.1 | AK54: 50.2 | AL54: 93.4 | AM54: 99.9 | AN54: 132018
A55: Business Studies | B55: Males | C55: 3.8 | D55: 14.5 | E55: 24.5 | F55: 24.3 | G55: 15.2 | H55: 8.6 | I55: 4.8 | J55: 2.7 | K55: 18.2 | L55: 67.1 | M55: 98.4 | N55: 36281 | O55: Females | P55: 5 | Q55: 17.5 | R55: 25 | S55: 23.1 | T55: 14 | U55: 7.9 | V55: 4.2 | W55: 2.1 | X55: 22.5 | Y55: 70.6 | Z55: 98.8 | AA55: 24754 | AB55: All | AC55: 4.3 | AD55: 15.7 | AE55: 24.7 | AF55: 23.8 | AG55: 14.7 | AH55: 8.3 | AI55: 4.5 | AJ55: 2.5 | AK55: 19.9 | AL55: 68.5 | AM55: 98.5 | AN55: 61035
A56: Biological Sciences | B56: Males | C56: 18 | D56: 28.4 | E56: 29.6 | F56: 17.8 | G56: 4.7 | H56: 0.9 | I56: 0.3 | J56: 0.1 | K56: 46.4 | L56: 93.8 | M56: 99.8 | N56: 71285 | O56: Females | P56: 23 | Q56: 30.6 | R56: 26.5 | S56: 14.7 | T56: 3.8 | U56: 0.8 | V56: 0.2 | W56: 0.1 | X56: 53.7 | Y56: 94.9 | Z56: 99.8 | AA56: 62501 | AB56: All | AC56: 20.4 | AD56: 29.5 | AE56: 28.1 | AF56: 16.4 | AG56: 4.3 | AH56: 0.8 | AI56: 0.3 | AJ56: 0.1 | AK56: 49.8 | AL56: 94.3 | AM56: 99.8 | AN56: 133786
A57: Art and Design | B57: Males | C57: 5.3 | D57: 9.7 | E57: 19.1 | F57: 30.6 | G57: 16.2 | H57: 9.8 | I57: 5.3 | J57: 2.3 | K57: 15 | L57: 64.7 | M57: 98.4 | N57: 57387 | O57: Females | P57: 11.2 | Q57: 18.5 | R57: 26.6 | S57: 26.1 | T57: 9.8 | U57: 4.3 | V57: 2 | W57: 0.7 | X57: 29.7 | Y57: 82.4 | Z57: 99.2 | AA57: 104955 | AB57: All | AC57: 9.1 | AD57: 15.4 | AE57: 23.9 | AF57: 27.7 | AG57: 12.1 | AH57: 6.2 | AI57: 3.2 | AJ57: 1.3 | AK57: 24.5 | AL57: 76.2 | AM57: 98.9 | AN57: 162342
A58: Arabic | B58: Males | C58: 29.8 | D58: 22.3 | E58: 15.2 | F58: 8.5 | G58: 5.9 | H58: 5.7 | I58: 3.1 | J58: 2.9 | K58: 52 | L58: 75.7 | M58: 93.3 | N58: 930 | O58: Females | P58: 31.3 | Q58: 20.7 | R58: 13.9 | S58: 10.7 | T58: 7 | U58: 5.5 | V58: 4.3 | W58: 3.1 | X58: 52 | Y58: 76.6 | Z58: 96.5 | AA58: 1208 | AB58: All | AC58: 30.6 | AD58: 21.4 | AE58: 14.5 | AF58: 9.7 | AG58: 6.5 | AH58: 5.6 | AI58: 3.8 | AJ58: 3 | AK58: 52 | AL58: 76.2 | AM58: 95.1 | AN58: 2138
A59: Applied Physical Education | B59: Males | C59: 1.4 | D59: 6.3 | E59: 19.8 | F59: 41.4 | G59: 21.9 | H59: 6.5 | I59: 1.6 | J59: x | K59: 7.7 | L59: 68.9 | M59: 99 | N59: 572 | O59: Females | P59: 2 | Q59: 8.1 | R59: 18.6 | S59: 38 | T59: 21.7 | U59: 7.6 | V59: 2 | W59: x | X59: 10.1 | Y59: 66.7 | Z59: 98 | AA59: 447 | AB59: All | AC59: 1.7 | AD59: 7.1 | AE59: 19.2 | AF59: 39.9 | AG59: 21.8 | AH59: 7 | AI59: 1.8 | AJ59: x | AK59: 8.7 | AL59: 67.9 | AM59: 98.5 | AN59: 1019
A60: Applied Engineering | B60: Males | C60: 1.2 | D60: 6.3 | E60: 12.8 | F60: 21.5 | G60: 22.4 | H60: 14.4 | I60: 10.8 | J60: 6.6 | K60: 7.5 | L60: 41.8 | M60: 96.1 | N60: 1241 | O60: Females | P60: 0 | Q60: 8.5 | R60: 18.6 | S60: 33.9 | T60: 16.9 | U60: 6.8 | V60: 6.8 | W60: 5.1 | X60: 8.5 | Y60: 61 | Z60: 96.6 | AA60: 59 | AB60: All | AC60: 1.2 | AD60: 6.4 | AE60: 13.1 | AF60: 22.1 | AG60: 22.2 | AH60: 14.1 | AI60: 10.6 | AJ60: 6.5 | AK60: 7.5 | AL60: 42.7 | AM60: 96.1 | AN60: 1300
A61: Applied Business | B61: Males | C61: 1.6 | D61: 9 | E61: 19.9 | F61: 22.5 | G61: 14.9 | H61: 11.2 | I61: 8.6 | J61: 6.7 | K61: 10.6 | L61: 53 | M61: 94.4 | N61: 2142 | O61: Females | P61: 6.7 | Q61: 16.4 | R61: 20.3 | S61: 22.9 | T61: 13 | U61: 7.9 | V61: 6.1 | W61: 3.8 | X61: 23.1 | Y61: 66.4 | Z61: 97.1 | AA61: 1373 | AB61: All | AC61: 3.6 | AD61: 11.9 | AE61: 20.1 | AF61: 22.7 | AG61: 14.1 | AH61: 9.9 | AI61: 7.7 | AJ61: 5.5 | AK61: 15.5 | AL61: 58.2 | AM61: 95.4 | AN61: 3515
A62: Applied Art and Design | B62: Males | C62: 1.9 | D62: 7.2 | E62: 19.1 | F62: 36 | G62: 16.4 | H62: 12.4 | I62: 4.8 | J62: 1.4 | K62: 9.2 | L62: 64.3 | M62: 99.3 | N62: 566 | O62: Females | P62: 5.3 | Q62: 15.7 | R62: 30.5 | S62: 30.8 | T62: 9.6 | U62: 4.5 | V62: 2 | W62: 0.5 | X62: 21 | Y62: 82.3 | Z62: 98.9 | AA62: 910 | AB62: All | AC62: 4 | AD62: 12.5 | AE62: 26.2 | AF62: 32.8 | AG62: 12.2 | AH62: 7.5 | AI62: 3 | AJ62: 0.9 | AK62: 16.5 | AL62: 75.4 | AM62: 99.1 | AN62: 1476
A63: All Subjects | B63: Males | C63: 6.9 | D63: 14 | E63: 21.2 | F63: 26.4 | G63: 14.9 | H63: 8.3 | I63: 4.6 | J63: 2.2 | K63: 20.9 | L63: 68.4 | M63: 98.5 | N63: 2220810 | O63: Females | P63: 9.7 | Q63: 18.2 | R63: 23.6 | S63: 24.6 | T63: 12.1 | U63: 6.1 | V63: 3.2 | W63: 1.5 | X63: 27.9 | Y63: 76.1 | Z63: 99 | AA63: 2290185 | AB63: All | AC63: 8.3 | AD63: 16.1 | AE63: 22.4 | AF63: 25.5 | AG63: 13.5 | AH63: 7.2 | AI63: 3.9 | AJ63: 1.8 | AK63: 24.4 | AL63: 72.3 | AM63: 98.7 | AN63: 4510995
A64: Additional Science | B64: Males | C64: 3.7 | D64: 9.2 | E64: 20.6 | F64: 33.3 | G64: 19.4 | H64: 8 | I64: 3.4 | J64: 1.4 | K64: 12.9 | L64: 66.9 | M64: 99.1 | N64: 123625 | O64: Females | P64: 5.8 | Q64: 12.1 | R64: 23 | S64: 31.3 | T64: 16.5 | U64: 6.6 | V64: 2.8 | W64: 1.1 | X64: 17.8 | Y64: 72.1 | Z64: 99.2 | AA64: 128169 | AB64: All | AC64: 4.8 | AD64: 10.7 | AE64: 21.8 | AF64: 32.3 | AG64: 17.9 | AH64: 7.3 | AI64: 3.1 | AJ64: 1.3 | AK64: 15.4 | AL64: 69.6 | AM64: 99.2 | AN64: 251794
A65: Additional Applied Science | B65: Males | C65: x | D65: 0.7 | E65: 5.2 | F65: 22.9 | G65: 32 | H65: 21.2 | I65: 11.1 | J65: 4.2 | K65: 0.7 | L65: 28.8 | M65: 97.4 | N65: 13434 | O65: Females | P65: x | Q65: 2 | R65: 10.7 | S65: 29.1 | T65: 30.2 | U65: 16.5 | V65: 7.2 | W65: 2.4 | X65: 2.1 | Y65: 41.9 | Z65: 98.2 | AA65: 15628 | AB65: All | AC65: 0.1 | AD65: 1.4 | AE65: 8.2 | AF65: 26.3 | AG65: 31 | AH65: 18.7 | AI65: 9 | AJ65: 3.2 | AK65: 1.4 | AL65: 35.8 | AM65: 97.8 | AN65: 29062

Sheet 2012 (hidden)
A1: 1 | B1: 2 | C1: 3 | D1: 4 | E1: 5 | F1: 6 | G1: 7 | H1: 8 | I1: 9 | J1: 10 | K1: 11 | L1: 12 | M1: 13 | N1: 14 | O1: 15 | P1: 16 | Q1: 17 | R1: 18 | S1: 19 | T1: 20 | U1: 21 | V1: 22 | W1: 23 | X1: 24 | Y1: 25 | Z1: 26 | AA1: 27 | AB1: 28 | AC1: 29 | AD1: 30 | AE1: 31 | AF1: 32 | AG1: 33 | AH1: 34 | AI1: 35 | AJ1: 36 | AK1: 37 | AL1: 38 | AM1: 39 | AN1: 40
A2: Subjects | C2: * | D2: A | E2: B | F2: C | G2: D | H2: E | I2: F | J2: G | K2: AstarA | L2: AstarC | M2: AstarG | N2: Total | O2: (No column name) | P2: * | Q2: A | R2: B | S2: C | T2: D | U2: E | V2: F | W2: G | X2: AstarA | Y2: AstarC | Z2: AstarG | AA2: Total | AB2: (No column name) | AC2: * | AD2: A | AE2: B | AF2: C | AG2: D | AH2: E | AI2: F | AJ2: G | AK2: AstarA | AL2: AstarC | AM2: AstarG | AN2: Total
A3: English | B3: Males | C3: 2.5 | D3: 9.4 | E3: 18.9 | F3: 31.5 | G3: 20.3 | H3: 10.4 | I3: 4.7 | J3: 1.5 | K3: 11.9 | L3: 62.2 | M3: 99.2 | N3: 286477 | O3: Females | P3: 5.2 | Q3: 16.3 | R3: 25.3 | S3: 29.7 | T3: 14.5 | U3: 5.7 | V3: 2.1 | W3: 0.7 | X3: 21.5 | Y3: 76.5 | Z3: 99.5 | AA3: 282134 | AB3: All | AC3: 3.8 | AD3: 12.8 | AE3: 22.1 | AF3: 30.6 | AG3: 17.4 | AH3: 8.1 | AI3: 3.4 | AJ3: 1.1 | AK3: 16.6 | AL3: 69.3 | AM3: 99.4 | AN3: 568611
A4: Mathematics | B4: Males | C4: 7.5 | D4: 12.8 | E4: 17.8 | F4: 32.5 | G4: 10.7 | H4: 7.5 | I4: 6.2 | J4: 3.5 | K4: 20.3 | L4: 70.6 | M4: 98.4 | N4: 301640 | O4: Females | P4: 7 | Q4: 13.3 | R4: 18.4 | S4: 32.5 | T4: 11 | U4: 7.2 | V4: 5.8 | W4: 3.3 | X4: 20.3 | Y4: 71.2 | Z4: 98.6 | AA4: 292726 | AB4: All | AC4: 7.2 | AD4: 13.1 | AE4: 18.1 | AF4: 32.5 | AG4: 10.9 | AH4: 7.4 | AI4: 6 | AJ4: 3.4 | AK4: 20.3 | AL4: 70.9 | AM4: 98.5 | AN4: 594366
A5: Core Science | B5: Males | C5: 1.7 | D5: 6.8 | E5: 18.2 | F5: 35.2 | G5: 18.9 | H5: 10.1 | I5: 5.7 | J5: 2.4 | K5: 8.5 | L5: 61.9 | M5: 98.9 | N5: 154001 | O5: Females | P5: 2.6 | Q5: 9.3 | R5: 20.9 | S5: 34.1 | T5: 17.1 | U5: 8.7 | V5: 4.5 | W5: 1.9 | X5: 11.9 | Y5: 67 | Z5: 99.2 | AA5: 157230 | AB5: All | AC5: 2.2 | AD5: 8.1 | AE5: 19.5 | AF5: 34.7 | AG5: 18 | AH5: 9.4 | AI5: 5.1 | AJ5: 2.2 | AK5: 10.3 | AL5: 64.5 | AM5: 99.1 | AN5: 311231
A6: Additional Science | B6: Males | C6: 3.1 | D6: 8.4 | E6: 20.7 | F6: 33.7 | G6: 20.3 | H6: 8.1 | I6: 3.5 | J6: 1.4 | K6: 11.5 | L6: 65.9 | M6: 99.2 | N6: 119763 | O6: Females | P6: 4.6 | Q6: 11.5 | R6: 23.7 | S6: 31.8 | T6: 17.2 | U6: 6.8 | V6: 2.7 | W6: 1.1 | X6: 16.1 | Y6: 71.6 | Z6: 99.3 | AA6: 124941 | AB6: All | AC6: 3.8 | AD6: 10 | AE6: 22.2 | AF6: 32.7 | AG6: 18.7 | AH6: 7.4 | AI6: 3.1 | AJ6: 1.2 | AK6: 13.8 | AL6: 68.8 | AM6: 99.3 | AN6: 244704
A7: Additional Applied Science | B7: Males | C7: 0.1 | D7: 0.9 | E7: 5 | F7: 20.4 | G7: 32.7 | H7: 22.7 | I7: 11.7 | J7: 3.8 | K7: 1.1 | L7: 26.4 | M7: 97.3 | N7: 8181 | O7: Females | P7: 0.2 | Q7: 2.8 | R7: 10.6 | S7: 26.9 | T7: 30.5 | U7: 17.1 | V7: 7.8 | W7: 2.3 | X7: 3 | Y7: 40.5 | Z7: 98.2 | AA7: 9468 | AB7: All | AC7: 0.2 | AD7: 1.9 | AE7: 8 | AF7: 23.9 | AG7: 31.5 | AH7: 19.7 | AI7: 9.6 | AJ7: 3 | AK7: 2.1 | AL7: 34 | AM7: 97.8 | AN7: 17649
A8: Physics | B8: Males | C8: 19.5 | D8: 27.4 | E8: 28.1 | F8: 18.9 | G8: 4.9 | H8: 0.9 | I8: 0.2 | J8: 0.1 | K8: 46.8 | L8: 93.8 | M8: 99.9 | N8: 77821 | O8: Females | P8: 19.7 | Q8: 27.4 | R8: 28.1 | S8: 18.2 | T8: 5.3 | U8: 0.9 | V8: 0.2 | W8: 0 | X8: 47.1 | Y8: 93.5 | Z8: 99.9 | AA8: 68671 | AB8: All | AC8: 19.6 | AD8: 27.4 | AE8: 28.1 | AF8: 18.6 | AG8: 5.1 | AH8: 0.9 | AI8: 0.2 | AJ8: 0.1 | AK8: 47 | AL8: 93.7 | AM8: 99.9 | AN8: 146492
A9: Chemistry | B9: Males | C9: 19.4 | D9: 26.6 | E9: 27.8 | F9: 18.8 | G9: 6 | H9: 1 | I9: 0.2 | J9: 0.1 | K9: 46 | L9: 92.7 | M9: 99.9 | N9: 78220 | O9: Females | P9: 23.2 | Q9: 28.6 | R9: 26.4 | S9: 16.1 | T9: 4.7 | U9: 0.8 | V9: 0.1 | W9: 0 | X9: 51.8 | Y9: 94.2 | Z9: 99.9 | AA9: 69244 | AB9: All | AC9: 21.2 | AD9: 27.5 | AE9: 27.1 | AF9: 17.5 | AG9: 5.4 | AH9: 0.9 | AI9: 0.2 | AJ9: 0 | AK9: 48.7 | AL9: 93.4 | AM9: 99.9 | AN9: 147464
A10: Biological Sciences | B10: Males | C10: 16.3 | D10: 28 | E10: 30.2 | F10: 18.6 | G10: 5.3 | H10: 0.9 | I10: 0.3 | J10: 0.1 | K10: 44.4 | L10: 93.2 | M10: 99.8 | N10: 78707 | O10: Females | P10: 21.3 | Q10: 30.8 | R10: 27.7 | S10: 14.9 | T10: 4.1 | U10: 0.7 | V10: 0.2 | W10: 0.1 | X10: 52.1 | Y10: 94.7 | Z10: 99.8 | AA10: 70315 | AB10: All | AC10: 18.7 | AD10: 29.4 | AE10: 29 | AF10: 16.8 | AG10: 4.7 | AH10: 0.8 | AI10: 0.3 | AJ10: 0.1 | AK10: 48 | AL10: 93.9 | AM10: 99.8 | AN10: 149022
A11: Other Sciences | B11: Males | C11: 12 | D11: 15.8 | E11: 18.6 | F11: 16.7 | G11: 13.2 | H11: 9.1 | I11: 6.4 | J11: 4.1 | K11: 27.7 | L11: 63 | M11: 95.9 | N11: 3788 | O11: Females | P11: 6.3 | Q11: 15.4 | R11: 19.7 | S11: 19.6 | T11: 14 | U11: 10.4 | V11: 6.1 | W11: 3.9 | X11: 21.7 | Y11: 61.1 | Z11: 95.4 | AA11: 2079 | AB11: All | AC11: 10 | AD11: 15.6 | AE11: 19 | AF11: 17.7 | AG11: 13.5 | AH11: 9.6 | AI11: 6.3 | AJ11: 4 | AK11: 25.6 | AL11: 62.3 | AM11: 95.7 | AN11: 5867
A12: D & T: Electronic Products | B12: Males | C12: 8.4 | D12: 14.5 | E12: 21.7 | F12: 20.5 | G12: 14 | H12: 8.8 | I12: 6 | J12: 3.5 | K12: 22.9 | L12: 65.1 | M12: 97.4 | N12: 8453 | O12: Females | P12: 19.2 | Q12: 24.6 | R12: 21.8 | S12: 16.3 | T12: 6.3 | U12: 6.3 | V12: 3.3 | W12: 1.5 | X12: 43.8 | Y12: 82 | Z12: 99.3 | AA12: 687 | AB12: All | AC12: 9.2 | AD12: 15.3 | AE12: 21.7 | AF12: 20.2 | AG12: 13.5 | AH12: 8.6 | AI12: 5.8 | AJ12: 3.4 | AK12: 24.5 | AL12: 66.4 | AM12: 97.6 | AN12: 9140
A13: D & T: Food Technology | B13: Males | C13: 2.4 | D13: 7.1 | E13: 16.8 | F13: 25.1 | G13: 22.3 | H13: 13.7 | I13: 7.6 | J13: 3.4 | K13: 9.5 | L13: 51.3 | M13: 98.2 | N13: 18752 | O13: Females | P13: 8.5 | Q13: 16.8 | R13: 23.8 | S13: 23 | T13: 14.5 | U13: 7.5 | V13: 3.6 | W13: 1.5 | X13: 25.2 | Y13: 72.1 | Z13: 99.1 | AA13: 30772 | AB13: All | AC13: 6.2 | AD13: 13.1 | AE13: 21.2 | AF13: 23.8 | AG13: 17.4 | AH13: 9.8 | AI13: 5.1 | AJ13: 2.2 | AK13: 19.3 | AL13: 64.2 | AM13: 98.8 | AN13: 49524
A14: D & T: Graphic Products | B14: Males | C14: 3.4 | D14: 9.3 | E14: 16.7 | F14: 21.8 | G14: 19.5 | H14: 12.7 | I14: 8.3 | J14: 4.4 | K14: 12.8 | L14: 51.3 | M14: 96.2 | N14: 24294 | O14: Females | P14: 9.4 | Q14: 18.2 | R14: 22.8 | S14: 20.7 | T14: 13.7 | U14: 7.8 | V14: 4.1 | W14: 1.8 | X14: 27.7 | Y14: 71.2 | Z14: 98.5 | AA14: 16512 | AB14: All | AC14: 5.9 | AD14: 12.9 | AE14: 19.2 | AF14: 21.4 | AG14: 17.1 | AH14: 10.7 | AI14: 6.6 | AJ14: 3.3 | AK14: 18.8 | AL14: 59.4 | AM14: 97.1 | AN14: 40806
A15: D & T: Resistant Materials | B15: Males | C15: 3.3 | D15: 9.7 | E15: 19.1 | F15: 24.1 | G15: 18.2 | H15: 12 | I15: 7.4 | J15: 3.8 | K15: 13 | L15: 56.2 | M15: 97.6 | N15: 46098 | O15: Females | P15: 8.2 | Q15: 18.6 | R15: 23.7 | S15: 22.3 | T15: 13.1 | U15: 6.8 | V15: 4.1 | W15: 1.7 | X15: 26.8 | Y15: 72.8 | Z15: 98.6 | AA15: 8206 | AB15: All | AC15: 4 | AD15: 11 | AE15: 19.8 | AF15: 23.8 | AG15: 17.4 | AH15: 11.2 | AI15: 6.9 | AJ15: 3.5 | AK15: 15.1 | AL15: 58.7 | AM15: 97.7 | AN15: 54304
A16: D & T: Systems & Control | B16: Males | C16: 6.4 | D16: 14 | E16: 20 | F16: 24 | G16: 16.7 | H16: 8.9 | I16: 5.8 | J16: 2.5 | K16: 20.4 | L16: 64.4 | M16: 98.4 | N16: 3767 | O16: Females | P16: 10.9 | Q16: 30.7 | R16: 24.2 | S16: 15 | T16: 8.9 | U16: 4.8 | V16: 3.4 | W16: 1.4 | X16: 41.6 | Y16: 80.9 | Z16: 99.3 | AA16: 293 | AB16: All | AC16: 6.7 | AD16: 15.2 | AE16: 20.3 | AF16: 23.4 | AG16: 16.2 | AH16: 8.6 | AI16: 5.7 | AJ16: 2.4 | AK16: 21.9 | AL16: 65.6 | AM16: 98.5 | AN16: 4060
A17: D & T: Textiles Technology | B17: Males | C17: 3.1 | D17: 7 | E17: 14.1 | F17: 18 | G17: 20.7 | H17: 13.4 | I17: 11.9 | J17: 7.4 | K17: 10.1 | L17: 42.2 | M17: 95.5 | N17: 891 | O17: Females | P17: 10.6 | Q17: 18.7 | R17: 24.3 | S17: 21.1 | T17: 12.5 | U17: 6.7 | V17: 3.4 | W17: 1.7 | X17: 29.3 | Y17: 74.6 | Z17: 98.9 | AA17: 31093 | AB17: All | AC17: 10.4 | AD17: 18.4 | AE17: 24 | AF17: 21 | AG17: 12.7 | AH17: 6.9 | AI17: 3.7 | AJ17: 1.8 | AK17: 28.7 | AL17: 73.7 | AM17: 98.8 | AN17: 31984
A18: Other Design and Technology | B18: Males | C18: 2.5 | D18: 8.4 | E18: 17.7 | F18: 24.7 | G18: 19.9 | H18: 12.7 | I18: 7.7 | J18: 4 | K18: 10.9 | L18: 53.3 | M18: 97.6 | N18: 22445 | O18: Females | P18: 6.9 | Q18: 17.3 | R18: 23.4 | S18: 23 | T18: 14.3 | U18: 7.7 | V18: 3.9 | W18: 1.9 | X18: 24.2 | Y18: 70.6 | Z18: 98.5 | AA18: 11244 | AB18: All | AC18: 3.9 | AD18: 11.4 | AE18: 19.6 | AF18: 24.1 | AG18: 18.1 | AH18: 11 | AI18: 6.4 | AJ18: 3.3 | AK18: 15.3 | AL18: 59.1 | AM18: 97.9 | AN18: 33689
A19: Applied Engineering | B19: Males | C19: 1.4 | D19: 4.5 | E19: 17.2 | F19: 23.4 | G19: 19.2 | H19: 15.7 | I19: 10.1 | J19: x | K19: 5.9 | L19: 46.5 | M19: 96.2 | N19: 1410 | O19: Females | P19: 18.1 | Q19: 22.4 | R19: 25 | S19: 13.8 | T19: 6 | U19: 7.8 | V19: 5.2 | W19: x | X19: 40.5 | Y19: 79.3 | Z19: 100 | AA19: 116 | AB19: All | AC19: 2.7 | AD19: 5.8 | AE19: 17.8 | AF19: 22.7 | AG19: 18.2 | AH19: 15.1 | AI19: 9.7 | AJ19: 4.4 | AK19: 8.5 | AL19: 49 | AM19: 96.5 | AN19: 1526
A20: Information Technology | B20: Males | C20: 5.2 | D20: 18 | E20: 25.8 | F20: 22 | G20: 12.3 | H20: 7 | I20: 4.8 | J20: 3.1 | K20: 23.2 | L20: 71 | M20: 98.1 | N20: 21476 | O20: Females | P20: 9.2 | Q20: 25.1 | R20: 27.2 | S20: 19.1 | T20: 9.2 | U20: 4.5 | V20: 2.7 | W20: 1.7 | X20: 34.3 | Y20: 80.6 | Z20: 98.8 | AA20: 17737 | AB20: All | AC20: 7 | AD20: 21.2 | AE20: 26.4 | AF20: 20.7 | AG20: 10.9 | AH20: 5.9 | AI20: 3.9 | AJ20: 2.5 | AK20: 28.2 | AL20: 75.3 | AM20: 98.4 | AN20: 39213
A21: Business Studies | B21: Males | C21: 3.1 | D21: 14.7 | E21: 24.8 | F21: 24.6 | G21: 16.2 | H21: 8.4 | I21: 4.6 | J21: 2.4 | K21: 17.8 | L21: 67.1 | M21: 98.8 | N21: 34976 | O21: Females | P21: 4.5 | Q21: 17.7 | R21: 25.9 | S21: 23 | T21: 14.8 | U21: 7.4 | V21: 4 | W21: 1.8 | X21: 22.1 | Y21: 71 | Z21: 99 | AA21: 23546 | AB21: All | AC21: 3.6 | AD21: 15.9 | AE21: 25.2 | AF21: 24 | AG21: 15.6 | AH21: 8 | AI21: 4.4 | AJ21: 2.2 | AK21: 19.5 | AL21: 68.7 | AM21: 98.9 | AN21: 58522
A22: Applied Business | B22: Males | C22: 2.3 | D22: 11.5 | E22: 19.9 | F22: 24.9 | G22: 15.7 | H22: 10.1 | I22: 6.9 | J22: 4.3 | K22: 13.7 | L22: 58.5 | M22: 95.5 | N22: 2220 | O22: Females | P22: 5.6 | Q22: 18.1 | R22: 22.5 | S22: 23.7 | T22: 12.3 | U22: 7.4 | V22: 4.5 | W22: 2.6 | X22: 23.7 | Y22: 70 | Z22: 96.8 | AA22: 1647 | AB22: All | AC22: 3.7 | AD22: 14.3 | AE22: 21 | AF22: 24.4 | AG22: 14.2 | AH22: 9 | AI22: 5.9 | AJ22: 3.6 | AK22: 18 | AL22: 63.4 | AM22: 96.1 | AN22: 3867
A23: Arabic | B23: Males | C23: 30.1 | D23: 20.8 | E23: 14.6 | F23: 11.1 | G23: 6.6 | H23: 4.7 | I23: 3.7 | J23: 3.2 | K23: 50.9 | L23: 76.6 | M23: 94.8 | N23: 1035 | O23: Females | P23: 29.7 | Q23: 22.1 | R23: 14.3 | S23: 11.5 | T23: 7.7 | U23: 3.6 | V23: 3.3 | W23: 2.5 | X23: 51.8 | Y23: 77.5 | Z23: 94.6 | AA23: 1263 | AB23: All | AC23: 29.9 | AD23: 21.5 | AE23: 14.4 | AF23: 11.3 | AG23: 7.2 | AH23: 4.1 | AI23: 3.5 | AJ23: 2.8 | AK23: 51.4 | AL23: 77.1 | AM23: 94.7 | AN23: 2298
A24: Chinese | B24: Males | C24: 62 | D24: 12.6 | E24: 10.3 | F24: 9 | G24: 2.9 | H24: 1.8 | I24: 0.8 | J24: x | K24: 74.6 | L24: 93.9 | M24: 99.6 | N24: 1188 | O24: Females | P24: 72.7 | Q24: 13 | R24: 6.3 | S24: 4.3 | T24: 2 | U24: 0.8 | V24: 0.4 | W24: x | X24: 85.8 | Y24: 96.3 | Z24: 99.6 | AA24: 1119 | AB24: All | AC24: 67.2 | AD24: 12.8 | AE24: 8.3 | AF24: 6.7 | AG24: 2.5 | AH24: 1.3 | AI24: 0.6 | AJ24: 0.1 | AK24: 80 | AL24: 95.1 | AM24: 99.6 | AN24: 2307
A25: French | B25: Males | C25: 8.5 | D25: 13.5 | E25: 19.2 | F25: 25.3 | G25: 18.6 | H25: 8.9 | I25: 4.2 | J25: 1.3 | K25: 22 | L25: 66.5 | M25: 99.5 | N25: 57046 | O25: Females | P25: 12 | Q25: 17.3 | R25: 22.1 | S25: 24.5 | T25: 15 | U25: 5.9 | V25: 2.2 | W25: 0.7 | X25: 29.4 | Y25: 76 | Z25: 99.7 | AA25: 78501 | AB25: All | AC25: 10.5 | AD25: 15.7 | AE25: 20.9 | AF25: 24.9 | AG25: 16.5 | AH25: 7.2 | AI25: 3 | AJ25: 1 | AK25: 26.3 | AL25: 72 | AM25: 99.6 | AN25: 135547
A26: German | B26: Males | C26: 8 | D26: 13.4 | E26: 21.6 | F26: 27.4 | G26: 17.5 | H26: 7.3 | I26: 3.1 | J26: 1.2 | K26: 21.4 | L26: 70.4 | M26: 99.6 | N26: 25917 | O26: Females | P26: 10.7 | Q26: 18 | R26: 25 | S26: 26.2 | T26: 13.1 | U26: 4.6 | V26: 1.7 | W26: 0.6 | X26: 28.7 | Y26: 79.8 | Z26: 99.8 | AA26: 28876 | AB26: All | AC26: 9.4 | AD26: 15.8 | AE26: 23.4 | AF26: 26.7 | AG26: 15.2 | AH26: 5.9 | AI26: 2.4 | AJ26: 0.9 | AK26: 25.2 | AL26: 75.4 | AM26: 99.7 | AN26: 54793
A27: Home Economics | B27: Males | C27: 0.8 | D27: 6.2 | E27: 16 | F27: 24 | G27: 20.9 | H27: 15.5 | I27: 9.7 | J27: 4.7 | K27: 6.9 | L27: 46.9 | M27: 97.7 | N27: 3901 | O27: Females | P27: 3 | Q27: 11.2 | R27: 20.3 | S27: 23.4 | T27: 18.6 | U27: 12.2 | V27: 6.6 | W27: 2.9 | X27: 14.2 | Y27: 58 | Z27: 98.3 | AA27: 23481 | AB27: All | AC27: 2.7 | AD27: 10.5 | AE27: 19.7 | AF27: 23.5 | AG27: 18.9 | AH27: 12.6 | AI27: 7.1 | AJ27: 3.1 | AK27: 13.2 | AL27: 56.4 | AM27: 98.2 | AN27: 27382
A28: Italian | B28: Males | C28: 39.8 | D28: 17.3 | E28: 15.4 | F28: 13.6 | G28: 7.2 | H28: 3.8 | I28: 1.6 | J28: 1 | K28: 57.1 | L28: 86.1 | M28: 99.6 | N28: 1698 | O28: Females | P28: 38.8 | Q28: 21.8 | R28: 17.3 | S28: 11.8 | T28: 5.6 | U28: 3 | V28: 0.9 | W28: 0.4 | X28: 60.6 | Y28: 89.7 | Z28: 99.6 | AA28: 2153 | AB28: All | AC28: 39.3 | AD28: 19.8 | AE28: 16.5 | AF28: 12.6 | AG28: 6.3 | AH28: 3.3 | AI28: 1.2 | AJ28: 0.7 | AK28: 59 | AL28: 88.1 | AM28: 99.6 | AN28: 3851
A29: Polish | B29: Males | C29: 17.4 | D29: 48 | E29: 20 | F29: 6.6 | G29: 3.2 | H29: 2.2 | I29: 0.5 | J29: 1.2 | K29: 65.4 | L29: 92 | M29: 99.1 | N29: 1399 | O29: Females | P29: 33.2 | Q29: 45 | R29: 13.2 | S29: 4.4 | T29: 1.2 | U29: 1 | V29: 0.4 | W29: 0.9 | X29: 78.2 | Y29: 95.8 | Z29: 99.3 | AA29: 1349 | AB29: All | AC29: 25.1 | AD29: 46.5 | AE29: 16.7 | AF29: 5.5 | AG29: 2.2 | AH29: 1.6 | AI29: 0.5 | AJ29: 1.1 | AK29: 71.7 | AL29: 93.9 | AM29: 99.2 | AN29: 2748
A30: Spanish | B30: Males | C30: 11.9 | D30: 15.2 | E30: 19.2 | F30: 22.5 | G30: 16.7 | H30: 8.4 | I30: 3.8 | J30: 1.6 | K30: 27.1 | L30: 68.8 | M30: 99.3 | N30: 26500 | O30: Females | P30: 16.2 | Q30: 18.8 | R30: 21.3 | S30: 21.2 | T30: 13.6 | U30: 5.5 | V30: 2.2 | W30: 0.8 | X30: 35.1 | Y30: 77.6 | Z30: 99.6 | AA30: 36845 | AB30: All | AC30: 14.4 | AD30: 17.3 | AE30: 20.4 | AF30: 21.7 | AG30: 14.9 | AH30: 6.7 | AI30: 2.9 | AJ30: 1.1 | AK30: 31.7 | AL30: 73.9 | AM30: 99.5 | AN30: 63345
A31: Urdu | B31: Males | C31: 7.6 | D31: 17.5 | E31: 19.2 | F31: 22.2 | G31: 14.7 | H31: 10.1 | I31: 4.8 | J31: 2 | K31: 25.2 | L31: 66.6 | M31: 98.2 | N31: 1283 | O31: Females | P31: 13.8 | Q31: 22.5 | R31: 22.2 | S31: 19.6 | T31: 10.8 | U31: 6.9 | V31: 2.8 | W31: 0.7 | X31: 36.3 | Y31: 78.1 | Z31: 99.3 | AA31: 2421 | AB31: All | AC31: 11.7 | AD31: 20.8 | AE31: 21.2 | AF31: 20.5 | AG31: 12.2 | AH31: 8 | AI31: 3.5 | AJ31: 1.1 | AK31: 32.5 | AL31: 74.1 | AM31: 98.9 | AN31: 3704
A32: Other Modern Languages | B32: Males | C32: 27.6 | D32: 26.7 | E32: 18.6 | F32: 12.9 | G32: 6.5 | H32: 3.4 | I32: 1.7 | J32: 1 | K32: 54.3 | L32: 85.9 | M32: 98.6 | N32: 4295 | O32: Females | P32: 34.1 | Q32: 28.6 | R32: 17.6 | S32: 10.6 | T32: 4.3 | U32: 2.3 | V32: 1 | W32: 0.6 | X32: 62.7 | Y32: 90.9 | Z32: 99.1 | AA32: 4597 | AB32: All | AC32: 30.9 | AD32: 27.7 | AE32: 18.1 | AF32: 11.7 | AG32: 5.4 | AH32: 2.8 | AI32: 1.4 | AJ32: 0.8 | AK32: 58.6 | AL32: 88.5 | AM32: 98.8 | AN32: 8892
A33: Classical Civilisation | B33: Males | C33: 8.7 | D33: 23.2 | E33: 25.5 | F33: 20.8 | G33: 13 | H33: 5.8 | I33: 2.1 | J33: 0.5 | K33: 31.9 | L33: 78.2 | M33: 99.6 | N33: 2414 | O33: Females | P33: 15.3 | Q33: 30.6 | R33: 24.8 | S33: 15.9 | T33: 8.1 | U33: 2.7 | V33: 1.4 | W33: 0.6 | X33: 46 | Y33: 86.7 | Z33: 99.6 | AA33: 1806 | AB33: All | AC33: 11.6 | AD33: 26.4 | AE33: 25.2 | AF33: 18.7 | AG33: 10.9 | AH33: 4.5 | AI33: 1.8 | AJ33: 0.5 | AK33: 37.9 | AL33: 81.8 | AM33: 99.6 | AN33: 4220
A34: Classical Greek | B34: Males | C34: 62.6 | D34: 20.2 | E34: 9.6 | F34: 3.5 | G34: 2.3 | H34: x | I34: x | J34: x | K34: 82.7 | L34: 95.8 | M34: 99.7 | N34: 649 | O34: Females | P34: 64.6 | Q34: 20.7 | R34: 9.4 | S34: 1.8 | T34: x | U34: x | V34: x | W34: 0 | X34: 85.3 | Y34: 96.4 | Z34: 100 | AA34: 449 | AB34: All | AC34: 63.4 | AD34: 20.4 | AE34: 9.5 | AF34: 2.8 | AG34: 2.6 | AH34: 0.5 | AI34: 0.4 | AJ34: x | AK34: 83.8 | AL34: 96.1 | AM34: 99.8 | AN34: 1098
A35: Geography | B35: Males | C35: 7.5 | D35: 16.7 | E35: 19.8 | F35: 22.4 | G35: 16.5 | H35: 9.1 | I35: 4.7 | J35: 2.2 | K35: 24.2 | L35: 66.4 | M35: 98.9 | N35: 91248 | O35: Females | P35: 13.3 | Q35: 21.6 | R35: 21.1 | S35: 19.5 | T35: 12.1 | U35: 6.4 | V35: 3.5 | W35: 1.7 | X35: 34.9 | Y35: 75.5 | Z35: 99.3 | AA35: 73839 | AB35: All | AC35: 10.1 | AD35: 18.9 | AE35: 20.4 | AF35: 21.1 | AG35: 14.6 | AH35: 7.9 | AI35: 4.1 | AJ35: 2 | AK35: 29 | AL35: 70.5 | AM35: 99.1 | AN35: 165087
A36: Latin | B36: Males | C36: 42.7 | D36: 27.7 | E36: 13.7 | F36: 7.8 | G36: 4.2 | H36: 1.9 | I36: 0.8 | J36: 0.5 | K36: 70.3 | L36: 91.9 | M36: 99.3 | N36: 4141 | O36: Females | P36: 48 | Q36: 27.3 | R36: 12.9 | S36: 6.6 | T36: 3 | U36: 1.3 | V36: 0.6 | W36: 0.3 | X36: 75.3 | Y36: 94.7 | Z36: 99.9 | AA36: 4240 | AB36: All | AC36: 45.4 | AD36: 27.5 | AE36: 13.3 | AF36: 7.2 | AG36: 3.6 | AH36: 1.6 | AI36: 0.7 | AJ36: 0.4 | AK36: 72.8 | AL36: 93.3 | AM36: 99.6 | AN36: 8381
A37: Other Classical Studies | B37: Males | C37: 13.6 | D37: 32.2 | E37: 24.6 | F37: 12.7 | G37: 7.6 | H37: 2.5 | I37: 2.5 | J37: 0 | K37: 45.8 | L37: 83.1 | M37: 95.8 | N37: 118 | O37: Females | P37: 12.7 | Q37: 31.8 | R37: 27 | S37: 14.1 | T37: 6.2 | U37: 2 | V37: 1.1 | W37: 1.7 | X37: 44.5 | Y37: 85.6 | Z37: 96.6 | AA37: 355 | AB37: All | AC37: 12.9 | AD37: 31.9 | AE37: 26.4 | AF37: 13.7 | AG37: 6.6 | AH37: 2.1 | AI37: 1.5 | AJ37: 1.3 | AK37: 44.8 | AL37: 85 | AM37: 96.4 | AN37: 473
A38: History | B38: Males | C38: 8.8 | D38: 17.3 | E38: 21 | F38: 19.7 | G38: 13.8 | H38: 8.5 | I38: 5.5 | J38: 3.3 | K38: 26.1 | L38: 66.8 | M38: 97.9 | N38: 99769 | O38: Females | P38: 13.5 | Q38: 21.4 | R38: 21.6 | S38: 17.6 | T38: 11.4 | U38: 6.9 | V38: 4.2 | W38: 2.2 | X38: 34.9 | Y38: 74.2 | Z38: 98.8 | AA38: 98106 | AB38: All | AC38: 11.2 | AD38: 19.3 | AE38: 21.3 | AF38: 18.7 | AG38: 12.6 | AH38: 7.7 | AI38: 4.8 | AJ38: 2.7 | AK38: 30.5 | AL38: 70.5 | AM38: 98.3 | AN38: 197875
A39: Ancient History | B39: Males | C39: 20 | D39: 23 | E39: 23 | F39: 13.3 | G39: 10.9 | H39: 6.1 | I39: x | J39: x | K39: 43 | L39: 79.4 | M39: 98.2 | N39: 165 | O39: Females | P39: 11.4 | Q39: 20.3 | R39: 26.6 | S39: 16.5 | T39: 13.9 | U39: 6.3 | V39: x | W39: x | X39: 31.6 | Y39: 74.7 | Z39: 98.7 | AA39: 79 | AB39: All | AC39: 17.2 | AD39: 22.1 | AE39: 24.2 | AF39: 14.3 | AG39: 11.9 | AH39: 6.1 | AI39: 2 | AJ39: x | AK39: 39.3 | AL39: 77.9 | AM39: 98.4 | AN39: 244
A40: Humanities | B40: Males | C40: 1.2 | D40: 5.5 | E40: 13.4 | F40: 21.7 | G40: 19.5 | H40: 14.9 | I40: 11 | J40: 7.5 | K40: 6.7 | L40: 41.9 | M40: 94.8 | N40: 7557 | O40: Females | P40: 2.5 | Q40: 9.5 | R40: 18.8 | S40: 23.1 | T40: 17.7 | U40: 13.1 | V40: 7.6 | W40: 4.5 | X40: 12 | Y40: 53.8 | Z40: 96.8 | AA40: 7754 | AB40: All | AC40: 1.9 | AD40: 7.5 | AE40: 16.2 | AF40: 22.4 | AG40: 18.6 | AH40: 14 | AI40: 9.3 | AJ40: 6 | AK40: 9.4 | AL40: 47.9 | AM40: 95.8 | AN40: 15311
A41: Economics | B41: Males | C41: 9.4 | D41: 24.9 | E41: 27.9 | F41: 17.9 | G41: 8.3 | H41: 5 | I41: 3.4 | J41: 1.6 | K41: 34.3 | L41: 80.1 | M41: 98.4 | N41: 2436 | O41: Females | P41: 8.7 | Q41: 23.4 | R41: 26.6 | S41: 20 | T41: 9.9 | U41: 4.8 | V41: 3.1 | W41: 2 | X41: 32 | Y41: 78.7 | Z41: 98.5 | AA41: 993 | AB41: All | AC41: 9.2 | AD41: 24.5 | AE41: 27.5 | AF41: 18.5 | AG41: 8.8 | AH41: 4.9 | AI41: 3.3 | AJ41: 1.7 | AK41: 33.7 | AL41: 79.7 | AM41: 98.4 | AN41: 3429
A42: Social Studies | B42: Males | C42: 1.9 | D42: 9.9 | E42: 20 | F42: 24.9 | G42: 17.7 | H42: 11.4 | I42: 7.2 | J42: 4.3 | K42: 11.8 | L42: 56.7 | M42: 97.2 | N42: 15141 | O42: Females | P42: 4.2 | Q42: 16.7 | R42: 25.6 | S42: 22.5 | T42: 13.7 | U42: 8 | V42: 4.8 | W42: 2.8 | X42: 20.9 | Y42: 69 | Z42: 98.3 | AA42: 27310 | AB42: All | AC42: 3.4 | AD42: 14.2 | AE42: 23.6 | AF42: 23.4 | AG42: 15.1 | AH42: 9.2 | AI42: 5.7 | AJ42: 3.3 | AK42: 17.6 | AL42: 64.6 | AM42: 97.9 | AN42: 42451
A43: Music | B43: Males | C43: 9 | D43: 22.1 | E43: 25.1 | F43: 19.3 | G43: 11.9 | H43: 6.7 | I43: 3 | J43: 1.5 | K43: 31.1 | L43: 75.6 | M43: 98.7 | N43: 20943 | O43: Females | P43: 10.6 | Q43: 25.1 | R43: 26.7 | S43: 17.8 | T43: 10.6 | U43: 5.2 | V43: 2.3 | W43: 1 | X43: 35.8 | Y43: 80.2 | Z43: 99.3 | AA43: 19818 | AB43: All | AC43: 9.8 | AD43: 23.6 | AE43: 25.9 | AF43: 18.6 | AG43: 11.3 | AH43: 6 | AI43: 2.7 | AJ43: 1.2 | AK43: 33.4 | AL43: 77.8 | AM43: 99 | AN43: 40761
A44: Applied Art and Design | B44: Males | C44: 3.6 | D44: 6.3 | E44: 18.6 | F44: 27.9 | G44: 20 | H44: 13.6 | I44: 7.7 | J44: 1.1 | K44: 10 | L44: 56.5 | M44: 98.9 | N44: 441 | O44: Females | P44: 6.8 | Q44: 16.7 | R44: 27.4 | S44: 28.6 | T44: 12.3 | U44: 4.8 | V44: 2.2 | W44: 0.7 | X44: 23.6 | Y44: 79.6 | Z44: 99.6 | AA44: 730 | AB44: All | AC44: 5.6 | AD44: 12.8 | AE44: 24.1 | AF44: 28.4 | AG44: 15.2 | AH44: 8.1 | AI44: 4.3 | AJ44: 0.9 | AK44: 18.4 | AL44: 70.9 | AM44: 99.3 | AN44: 1171
A45: Applied Physical Education | B45: Males | C45: x | D45: 13.5 | E45: 24 | F45: 49 | G45: 7.3 | H45: 4.2 | I45: 0 | J45: 0 | K45: 15.6 | L45: 88.5 | M45: 100 | N45: 96 | O45: Females | P45: x | Q45: 18 | R45: 38.2 | S45: 29.2 | T45: 11.2 | U45: 0 | V45: 0 | W45: 0 | X45: 21.3 | Y45: 88.8 | Z45: 100 | AA45: 89 | AB45: All | AC45: 2.7 | AD45: 15.7 | AE45: 30.8 | AF45: 39.5 | AG45: 9.2 | AH45: 2.2 | AI45: 0 | AJ45: 0 | AK45: 18.4 | AL45: 88.6 | AM45: 100 | AN45: 185
A46: Art and Design | B46: Males | C46: 5.6 | D46: 9.3 | E46: 19.1 | F46: 30.9 | G46: 15.9 | H46: 9.7 | I46: 5.5 | J46: 2.4 | K46: 14.8 | L46: 64.9 | M46: 98.4 | N46: 54643 | O46: Females | P46: 12.2 | Q46: 17.5 | R46: 26.7 | S46: 26.8 | T46: 9.6 | U46: 4.1 | V46: 1.8 | W46: 0.6 | X46: 29.7 | Y46: 83.2 | Z46: 99.3 | AA46: 104369 | AB46: All | AC46: 10 | AD46: 14.7 | AE46: 24.1 | AF46: 28.2 | AG46: 11.8 | AH46: 6 | AI46: 3.1 | AJ46: 1.2 | AK46: 24.6 | AL46: 76.9 | AM46: 99 | AN46: 159012
A47: Communication Studies | B47: Males | C47: 2 | D47: 7 | E47: 15.7 | F47: 22.1 | G47: 18.6 | H47: 14.8 | I47: 10 | J47: 5.4 | K47: 9 | L47: 46.7 | M47: 95.5 | N47: 4581 | O47: Females | P47: 6.6 | Q47: 17.6 | R47: 22.1 | S47: 22 | T47: 14.2 | U47: 8.4 | V47: 4.7 | W47: 2.2 | X47: 24.2 | Y47: 68.3 | Z47: 97.8 | AA47: 5240 | AB47: All | AC47: 4.5 | AD47: 12.7 | AE47: 19.1 | AF47: 22 | AG47: 16.2 | AH47: 11.4 | AI47: 7.2 | AJ47: 3.7 | AK47: 17.1 | AL47: 58.2 | AM47: 96.7 | AN47: 9821
A48: Construction | B48: Males | C48: 0 | D48: 0 | E48: x | F48: x | G48: 47.5 | H48: 7.5 | I48: 0 | J48: 0 | K48: 0 | L48: x | M48: x | N48: x | O48: Females | P48: 0 | Q48: 0 | R48: x | S48: x | T48: 0 | U48: 0 | V48: 0 | W48: 0 | X48: 0 | Y48: x | Z48: x | AA48: x | AB48: All | AC48: 0 | AD48: 0 | AE48: 16.7 | AF48: 31 | AG48: 45.2 | AH48: 7.1 | AI48: 0 | AJ48: 0 | AK48: 0 | AL48: 47.6 | AM48: 100 | AN48: 42
A49: Dance | B49: Males | C49: 4.9 | D49: 16 | E49: 16.9 | F49: 24.5 | G49: 18.1 | H49: 10.4 | I49: 4.1 | J49: 2.4 | K49: 20.9 | L49: 62.3 | M49: 97.4 | N49: 799 | O49: Females | P49: 5.5 | Q49: 14.6 | R49: 20.3 | S49: 23.5 | T49: 18.8 | U49: 10.1 | V49: 4.5 | W49: 1.6 | X49: 20.1 | Y49: 63.9 | Z49: 98.9 | AA49: 11143 | AB49: All | AC49: 5.4 | AD49: 14.7 | AE49: 20 | AF49: 23.6 | AG49: 18.8 | AH49: 10.1 | AI49: 4.5 | AJ49: 1.6 | AK49: 20.2 | AL49: 63.8 | AM49: 98.8 | AN49: 11942
A50: Drama | B50: Males | C50: 3.4 | D50: 13.6 | E50: 23.3 | F50: 26 | G50: 17.8 | H50: 9 | I50: 4.1 | J50: 1.8 | K50: 17 | L50: 66.3 | M50: 99 | N50: 27528 | O50: Females | P50: 6 | Q50: 20.5 | R50: 28.4 | S50: 23.4 | T50: 12.7 | U50: 5.3 | V50: 2.1 | W50: 0.9 | X50: 26.6 | Y50: 78.3 | Z50: 99.4 | AA50: 42843 | AB50: All | AC50: 5 | AD50: 17.8 | AE50: 26.4 | AF50: 24.4 | AG50: 14.7 | AH50: 6.7 | AI50: 2.9 | AJ50: 1.2 | AK50: 22.8 | AL50: 73.6 | AM50: 99.2 | AN50: 70371
A51: English Literature | B51: Males | C51: 4.2 | D51: 13.5 | E51: 25.6 | F51: 27 | G51: 16.7 | H51: 7.3 | I51: 3.2 | J51: 1.4 | K51: 17.7 | L51: 70.4 | M51: 98.9 | N51: 201888 | O51: Females | P51: 7.6 | Q51: 20.9 | R51: 30.5 | S51: 23.5 | T51: 11 | U51: 3.8 | V51: 1.4 | W51: 0.6 | X51: 28.6 | Y51: 82.5 | Z51: 99.4 | AA51: 224027 | AB51: All | AC51: 6 | AD51: 17.4 | AE51: 28.2 | AF51: 25.2 | AG51: 13.7 | AH51: 5.4 | AI51: 2.3 | AJ51: 1 | AK51: 23.4 | AL51: 76.8 | AM51: 99.1 | AN51: 425915
A52: English Studies | B52: Males | C52: 0.3 | D52: 1.9 | E52: 10.1 | F52: 28.7 | G52: 25.7 | H52: 17.7 | I52: 9.2 | J52: 4.4 | K52: 2.1 | L52: 41 | M52: 98 | N52: 1908 | O52: Females | P52: 1 | Q52: 5.7 | R52: 14.2 | S52: 32.7 | T52: 22.7 | U52: 13.2 | V52: 5.1 | W52: 3.8 | X52: 6.7 | Y52: 53.5 | Z52: 98.4 | AA52: 1398 | AB52: All | AC52: 0.6 | AD52: 3.5 | AE52: 11.8 | AF52: 30.4 | AG52: 24.5 | AH52: 15.8 | AI52: 7.5 | AJ52: 4.1 | AK52: 4.1 | AL52: 46.3 | AM52: 98.2 | AN52: 3306
A53: General Studies | B53: Males | C53: 1.5 | D53: 7 | E53: 12.6 | F53: 16.7 | G53: 20.5 | H53: 14.8 | I53: 10.2 | J53: 7.4 | K53: 8.6 | L53: 37.8 | M53: 90.6 | N53: 2491 | O53: Females | P53: 0.9 | Q53: 9 | R53: 14.6 | S53: 21 | T53: 21.3 | U53: 15.1 | V53: 8.7 | W53: 4.6 | X53: 10 | Y53: 45.5 | Z53: 95.2 | AA53: 2559 | AB53: All | AC53: 1.2 | AD53: 8 | AE53: 13.6 | AF53: 18.9 | AG53: 20.9 | AH53: 14.9 | AI53: 9.4 | AJ53: 6 | AK53: 9.3 | AL53: 41.7 | AM53: 92.9 | AN53: 5050
A54: Health and Social Care | B54: Males | C54: 0 | D54: 3.2 | E54: 8.4 | F54: 17.4 | G54: 20.1 | H54: 16.9 | I54: 16.4 | J54: 11.9 | K54: 3.2 | L54: 29 | M54: 94.2 | N54: 379 | O54: Females | P54: 1.9 | Q54: 9.2 | R54: 18.9 | S54: 25.1 | T54: 17.7 | U54: 12.2 | V54: 7.9 | W54: 4.7 | X54: 11.1 | Y54: 55.1 | Z54: 97.7 | AA54: 5800 | AB54: All | AC54: 1.8 | AD54: 8.8 | AE54: 18.3 | AF54: 24.6 | AG54: 17.9 | AH54: 12.5 | AI54: 8.4 | AJ54: 5.1 | AK54: 10.6 | AL54: 53.5 | AM54: 97.5 | AN54: 6179
A55: Hospitality and Catering | B55: Males | C55: x | D55: 6.9 | E55: 17.9 | F55: 25.6 | G55: 26.8 | H55: 12.6 | I55: 6.1 | J55: 2.2 | K55: 7.1 | L55: 50.6 | M55: 98.4 | N55: 492 | O55: Females | P55: x | Q55: 16.2 | R55: 27.1 | S55: 24.3 | T55: 18.5 | U55: 6.3 | V55: 1.6 | W55: 1.3 | X55: 20.7 | Y55: 72.2 | Z55: 99.7 | AA55: 704 | AB55: All | AC55: 2.8 | AD55: 12.4 | AE55: 23.3 | AF55: 24.8 | AG55: 21.9 | AH55: 8.9 | AI55: 3.4 | AJ55: 1.7 | AK55: 15.1 | AL55: 63.3 | AM55: 99.2 | AN55: 1196
A56: Leisure and Tourism | B56: Males | C56: x | D56: 2.8 | E56: 7.6 | F56: 17.2 | G56: 18.8 | H56: 17 | I56: 15.6 | J56: 11.6 | K56: 3 | L56: 27.8 | M56: 90.8 | N56: 1132 | O56: Females | P56: x | Q56: 7.4 | R56: 15.3 | S56: 22.4 | T56: 18.1 | U56: 14.1 | V56: 10.9 | W56: 6.9 | X56: 9.5 | Y56: 47.1 | Z56: 97.1 | AA56: 1492 | AB56: All | AC56: 1.2 | AD56: 5.4 | AE56: 12 | AF56: 20.2 | AG56: 18.4 | AH56: 15.3 | AI56: 12.9 | AJ56: 8.9 | AK56: 6.7 | AL56: 38.8 | AM56: 94.4 | AN56: 2624
A57: Manufacturing | B57: Males | C57: 4.2 | D57: 6.8 | E57: 10.2 | F57: 28.8 | G57: 15.3 | H57: x | I57: x | J57: x | K57: 11 | L57: 50 | M57: 95.8 | N57: 118 | O57: Females | P57: 0 | Q57: 14.3 | R57: 19 | S57: 23.8 | T57: 19 | U57: x | V57: x | W57: x | X57: 14.3 | Y57: 57.1 | Z57: 100 | AA57: 21 | AB57: All | AC57: 3.6 | AD57: 7.9 | AE57: 11.5 | AF57: 28.1 | AG57: 15.8 | AH57: 15.8 | AI57: 5.8 | AJ57: 7.9 | AK57: 11.5 | AL57: 51.1 | AM57: 96.4 | AN57: 139
A58: Media/Film/TV | B58: Males | C58: 1.5 | D58: 7.9 | E58: 19.2 | F58: 27.5 | G58: 20.3 | H58: 11.6 | I58: 6.3 | J58: 3.1 | K58: 9.4 | L58: 56.1 | M58: 97.4 | N58: 24466 | O58: Females | P58: 5.5 | Q58: 18.8 | R58: 28.1 | S58: 24.7 | T58: 12.2 | U58: 5.6 | V58: 2.6 | W58: 1.4 | X58: 24.3 | Y58: 77.1 | Z58: 98.8 | AA58: 25012 | AB58: All | AC58: 3.6 | AD58: 13.4 | AE58: 23.7 | AF58: 26.1 | AG58: 16.2 | AH58: 8.6 | AI58: 4.5 | AJ58: 2.2 | AK58: 16.9 | AL58: 66.7 | AM58: 98.1 | AN58: 49478
A59: Media: Communication and Production | B59: Males | C59: 0 | D59: 0 | E59: 7.1 | F59: 35.7 | G59: 34.3 | H59: 11.4 | I59: 10 | J59: 0 | K59: 0 | L59: 42.9 | M59: 98.6 | N59: 70 | O59: Females | P59: 0 | Q59: 0 | R59: 26.6 | S59: 49.4 | T59: 15.2 | U59: 5.1 | V59: 3.8 | W59: 0 | X59: 0 | Y59: 75.9 | Z59: 100 | AA59: 79 | AB59: All | AC59: 0 | AD59: 0 | AE59: 17.4 | AF59: 43 | AG59: 24.2 | AH59: 8.1 | AI59: 6.7 | AJ59: 0 | AK59: 0 | AL59: 60.4 | AM59: 99.3 | AN59: 149
A60: Performing Arts | B60: Males | C60: 4.6 | D60: 6.8 | E60: 15.9 | F60: 28.5 | G60: 18 | H60: 14.2 | I60: 7.7 | J60: 3.2 | K60: 11.4 | L60: 55.8 | M60: 98.8 | N60: 755 | O60: Females | P60: 9.2 | Q60: 13.5 | R60: 23.4 | S60: 23.8 | T60: 14.3 | U60: 8.2 | V60: 3.9 | W60: 2 | X60: 22.8 | Y60: 70 | Z60: 98.5 | AA60: 1515 | AB60: All | AC60: 7.7 | AD60: 11.3 | AE60: 20.9 | AF60: 25.4 | AG60: 15.6 | AH60: 10.2 | AI60: 5.2 | AJ60: 2.4 | AK60: 19 | AL60: 65.3 | AM60: 98.6 | AN60: 2270
A61: Physical Education | B61: Males | C61: 2.6 | D61: 16.2 | E61: 26.2 | F61: 26.2 | G61: 17.1 | H61: 8.4 | I61: 2.5 | J61: 0.5 | K61: 18.8 | L61: 71.3 | M61: 99.7 | N61: 57174 | O61: Females | P61: 5.4 | Q61: 19 | R61: 24.5 | S61: 23.7 | T61: 15.9 | U61: 8 | V61: 2.8 | W61: 0.6 | X61: 24.3 | Y61: 72.5 | Z61: 99.7 | AA61: 30253 | AB61: All | AC61: 3.6 | AD61: 17.2 | AE61: 25.6 | AF61: 25.3 | AG61: 16.7 | AH61: 8.3 | AI61: 2.6 | AJ61: 0.5 | AK61: 20.7 | AL61: 71.7 | AM61: 99.7 | AN61: 87427
A62: Religious Studies | B62: Males | C62: 7.9 | D62: 16.5 | E62: 22 | F62: 21.2 | G62: 12.7 | H62: 8.5 | I62: 5.5 | J62: 3.3 | K62: 24.4 | L62: 67.6 | M62: 97.7 | N62: 96450 | O62: Females | P62: 15.4 | Q62: 23.3 | R62: 23.7 | S62: 17.3 | T62: 9.1 | U62: 5.4 | V62: 3.1 | W62: 1.6 | X62: 38.7 | Y62: 79.7 | Z62: 98.9 | AA62: 114152 | AB62: All | AC62: 11.9 | AD62: 20.2 | AE62: 22.9 | AF62: 19.1 | AG62: 10.8 | AH62: 6.8 | AI62: 4.2 | AJ62: 2.4 | AK62: 32.2 | AL62: 74.2 | AM62: 98.4 | AN62: 210602
A63: Statistics | B63: Males | C63: 5 | D63: 17.6 | E63: 25 | F63: 28.7 | G63: 13.4 | H63: 5.1 | I63: 1.9 | J63: 1 | K63: 22.6 | L63: 76.3 | M63: 97.8 | N63: 27732 | O63: Females | P63: 7 | Q63: 20.2 | R63: 27 | S63: 27.1 | T63: 10.8 | U63: 3.9 | V63: 1.6 | W63: 0.7 | X63: 27.2 | Y63: 81.3 | Z63: 98.3 | AA63: 24817 | AB63: All | AC63: 5.9 | AD63: 18.8 | AE63: 25.9 | AF63: 28 | AG63: 12.2 | AH63: 4.6 | AI63: 1.8 | AJ63: 0.9 | AK63: 24.8 | AL63: 78.7 | AM63: 98 | AN63: 52549
A64: Vocational Studies | B64: Males | C64: 1.4 | D64: 7.7 | E64: 18.9 | F64: 26.5 | G64: 22.2 | H64: 12.9 | I64: 5.9 | J64: 2.6 | K64: 9.1 | L64: 54.4 | M64: 98.1 | N64: 15129 | O64: Females | P64: 3.7 | Q64: 15.5 | R64: 25.8 | S64: 24.7 | T64: 16.5 | U64: 8.3 | V64: 3.2 | W64: 1.2 | X64: 19.2 | Y64: 69.7 | Z64: 98.9 | AA64: 16873 | AB64: All | AC64: 2.6 | AD64: 11.8 | AE64: 22.5 | AF64: 25.5 | AG64: 19.2 | AH64: 10.5 | AI64: 4.4 | AJ64: 1.8 | AK64: 14.4 | AL64: 62.5 | AM64: 98.5 | AN64: 32002
A65: All Subjects | B65: Males | C65: 6.6 | D65: 13.8 | E65: 21.2 | F65: 27 | G65: 15.3 | H65: 8.1 | I65: 4.5 | J65: 2.1 | K65: 20.4 | L65: 68.7 | M65: 98.7 | N65: 2180535 | O65: Females | P65: 9.4 | Q65: 18 | R65: 24 | S65: 25.3 | T65: 12.3 | U65: 5.8 | V65: 3 | W65: 1.4 | X65: 27.4 | Y65: 76.7 | Z65: 99.2 | AA65: 2247133 | AB65: All | AC65: 8 | AD65: 16 | AE65: 22.6 | AF65: 26.1 | AG65: 13.8 | AH65: 7 | AI65: 3.7 | AJ65: 1.7 | AK65: 24 | AL65: 72.7 | AM65: 99 | AN65: 4427668

Sheet 2013 (hidden)
A1: 1 | B1: 2 | C1: 3 | D1: 4 | E1: 5 | F1: 6 | G1: 7 | H1: 8 | I1: 9 | J1: 10 | K1: 11 | L1: 12 | M1: 13 | N1: 14 | O1: 15 | P1: 16 | Q1: 17 | R1: 18 | S1: 19 | T1: 20 | U1: 21 | V1: 22 | W1: 23 | X1: 24 | Y1: 25 | Z1: 26 | AA1: 27 | AB1: 28 | AC1: 29 | AD1: 30 | AE1: 31 | AF1: 32 | AG1: 33 | AH1: 34 | AI1: 35 | AJ1: 36 | AK1: 37 | AL1: 38 | AM1: 39 | AN1: 40
A2: Subjects | C2: * | D2: A | E2: B | F2: C | G2: D | H2: E | I2: F | J2: G | K2: AstarA | L2: AstarC | M2: AstarG | N2: Total | O2: (No column name) | P2: * | Q2: A | R2: B | S2: C | T2: D | U2: E | V2: F | W2: G | X2: AstarA | Y2: AstarC | Z2: AstarG | AA2: Total | AB2: (No column name) | AC2: * | AD2: A | AE2: B | AF2: C | AG2: D | AH2: E | AI2: F | AJ2: G | AK2: AstarA | AL2: AstarC | AM2: AstarG | AN2: Total | AP2: Count of supressions
A3: English | B3: Males | C3: 2.5 | D3: 9.2 | E3: 19.7 | F3: 32 | G3: 19.6 | H3: 10.2 | I3: 4.6 | J3: 1.5 | K3: 11.7 | L3: 63.4 | M3: 99.2 | N3: 274738 | O3: Females | P3: 5.6 | Q3: 16.8 | R3: 26.7 | S3: 28.9 | T3: 13.6 | U3: 5.4 | V3: 2 | W3: 0.6 | X3: 22.4 | Y3: 78 | Z3: 99.6 | AA3: 276063 | AB3: All | AC3: 4 | AD3: 13 | AE3: 23.2 | AF3: 30.5 | AG3: 16.6 | AH3: 7.8 | AI3: 3.3 | AJ3: 1.1 | AK3: 17.1 | AL3: 70.7 | AM3: 99.4 | AN3: 550801
A4: Mathematics | B4: Males | C4: 7.1 | D4: 12.6 | E4: 19.4 | F4: 33.2 | G4: 10.3 | H4: 6.5 | I4: 5.4 | J4: 3.6 | K4: 19.7 | L4: 72.3 | M4: 98.1 | N4: 305315 | O4: Females | P4: 6.7 | Q4: 13 | R4: 20.3 | S4: 33.2 | T4: 10.5 | U4: 6.3 | V4: 5 | W4: 3.4 | X4: 19.7 | Y4: 73.2 | Z4: 98.3 | AA4: 297858 | AB4: All | AC4: 6.9 | AD4: 12.8 | AE4: 19.9 | AF4: 33.2 | AG4: 10.4 | AH4: 6.4 | AI4: 5.2 | AJ4: 3.5 | AK4: 19.7 | AL4: 72.8 | AM4: 98.2 | AN4: 603173
A5: Core Science | B5: Males | C5: 0.9 | D5: 5 | E5: 16.2 | F5: 34.7 | G5: 20.5 | H5: 12 | I5: 6.4 | J5: 2.7 | K5: 5.9 | L5: 56.7 | M5: 98.3 | N5: 158387 | O5: Females | P5: 1.6 | Q5: 8 | R5: 19.8 | S5: 34.1 | T5: 18.2 | U5: 10.1 | V5: 5 | W5: 2 | X5: 9.6 | Y5: 63.4 | Z5: 98.7 | AA5: 163577 | AB5: All | AC5: 1.2 | AD5: 6.5 | AE5: 18 | AF5: 34.4 | AG5: 19.3 | AH5: 11.1 | AI5: 5.7 | AJ5: 2.3 | AK5: 7.8 | AL5: 60.1 | AM5: 98.5 | AN5: 321964
A6: Additional Science | B6: Males | C6: 1.8 | D6: 7.6 | E6: 18.8 | F6: 33.7 | G6: 21.7 | H6: 9.4 | I6: 4.3 | J6: 1.7 | K6: 9.4 | L6: 61.9 | M6: 99 | N6: 119596 | O6: Females | P6: 3.1 | Q6: 10.4 | R6: 22.1 | S6: 32.7 | T6: 18.9 | U6: 7.7 | V6: 3.2 | W6: 1.2 | X6: 13.5 | Y6: 68.3 | Z6: 99.3 | AA6: 128934 | AB6: All | AC6: 2.5 | AD6: 9.1 | AE6: 20.5 | AF6: 33.2 | AG6: 20.2 | AH6: 8.5 | AI6: 3.7 | AJ6: 1.4 | AK6: 11.5 | AL6: 65.2 | AM6: 99.1 | AN6: 248530
A7: Additional Applied Science | B7: Males | C7: 0.1 | D7: 1.3 | E7: 5.5 | F7: 20.3 | G7: 29.8 | H7: 22.6 | I7: 11.7 | J7: 4.9 | K7: 1.4 | L7: 27.2 | M7: 96.2 | N7: 5669 | O7: Females | P7: 0.1 | Q7: 2 | R7: 8.9 | S7: 27.4 | T7: 28.7 | U7: 19.2 | V7: 8.4 | W7: 3.2 | X7: 2.2 | Y7: 38.4 | Z7: 97.9 | AA7: 6141 | AB7: All | AC7: 0.1 | AD7: 1.7 | AE7: 7.2 | AF7: 24 | AG7: 29.2 | AH7: 20.9 | AI7: 10 | AJ7: 4 | AK7: 1.8 | AL7: 33 | AM7: 97.1 | AN7: 11810
A8: Physics | B8: Males | C8: 15.6 | D8: 25.9 | E8: 28 | F8: 21.6 | G8: 7.2 | H8: 1.2 | I8: 0.3 | J8: 0.1 | K8: 41.5 | L8: 91.1 | M8: 99.9 | N8: 76223 | O8: Females | P8: 17.1 | Q8: 25.5 | R8: 27.9 | S8: 21.2 | T8: 6.8 | U8: 1.2 | V8: 0.3 | W8: 0.1 | X8: 42.5 | Y8: 91.6 | Z8: 99.9 | AA8: 73173 | AB8: All | AC8: 16.3 | AD8: 25.7 | AE8: 28 | AF8: 21.4 | AG8: 7 | AH8: 1.2 | AI8: 0.3 | AJ8: 0.1 | AK8: 42 | AL8: 91.4 | AM8: 99.9 | AN8: 149396
A9: Chemistry | B9: Males | C9: 15.3 | D9: 24.7 | E9: 27.5 | F9: 22.1 | G9: 8.3 | H9: 1.7 | I9: 0.4 | J9: 0.1 | K9: 40 | L9: 89.5 | M9: 99.9 | N9: 77132 | O9: Females | P9: 19.1 | Q9: 27.5 | R9: 26.7 | S9: 19.2 | T9: 6.1 | U9: 1.1 | V9: 0.3 | W9: 0.1 | X9: 46.6 | Y9: 92.4 | Z9: 99.9 | AA9: 73637 | AB9: All | AC9: 17.2 | AD9: 26.1 | AE9: 27.1 | AF9: 20.6 | AG9: 7.2 | AH9: 1.4 | AI9: 0.3 | AJ9: 0.1 | AK9: 43.2 | AL9: 90.9 | AM9: 99.9 | AN9: 150769
A10: Biological Sciences | B10: Males | C10: 12.5 | D10: 25.3 | E10: 29.4 | F10: 22.9 | G10: 7.8 | H10: 1.5 | I10: 0.4 | J10: 0.2 | K10: 37.8 | L10: 90.1 | M10: 99.8 | N10: 77657 | O10: Females | P10: 18.4 | Q10: 29.2 | R10: 27.5 | S10: 18 | T10: 5.2 | U10: 1 | V10: 0.3 | W10: 0.1 | X10: 47.6 | Y10: 93.1 | Z10: 99.8 | AA10: 74767 | AB10: All | AC10: 15.4 | AD10: 27.2 | AE10: 28.5 | AF10: 20.5 | AG10: 6.5 | AH10: 1.2 | AI10: 0.3 | AJ10: 0.1 | AK10: 42.6 | AL10: 91.6 | AM10: 99.8 | AN10: 152424
A11: Computer Science | B11: Males | C11: 6.9 | D11: 20.2 | E11: 23.9 | F11: 18.4 | G11: 12.4 | H11: 7.5 | I11: 5 | J11: 2.7 | K11: 27.1 | L11: 69.4 | M11: 97 | N11: 3434 | O11: Females | P11: 8.9 | Q11: 19.8 | R11: 26.2 | S11: 18.1 | T11: 13.8 | U11: 6.1 | V11: 3.6 | W11: 1.9 | X11: 28.6 | Y11: 72.9 | Z11: 98.3 | AA11: 587 | AB11: All | AC11: 7.2 | AD11: 20.1 | AE11: 24.3 | AF11: 18.3 | AG11: 12.6 | AH11: 7.3 | AI11: 4.8 | AJ11: 2.6 | AK11: 27.3 | AL11: 69.9 | AM11: 97.2 | AN11: 4021
A12: Other Sciences | B12: Males | C12: 10.9 | D12: 15.1 | E12: 19.3 | F12: 18.1 | G12: 13.1 | H12: 9.9 | I12: 7.5 | J12: 3.1 | K12: 26 | L12: 63.4 | M12: 97.1 | N12: 3895 | O12: Females | P12: 4.7 | Q12: 14.8 | R12: 18.9 | S12: 21.3 | T12: 17.7 | U12: 10.5 | V12: 6.5 | W12: 3.4 | X12: 19.5 | Y12: 59.8 | Z12: 97.8 | AA12: 2090 | AB12: All | AC12: 8.7 | AD12: 15 | AE12: 19.1 | AF12: 19.2 | AG12: 14.7 | AH12: 10.1 | AI12: 7.2 | AJ12: 3.2 | AK12: 23.7 | AL12: 62.1 | AM12: 97.3 | AN12: 5985
A13: D & T: Electronic Products | B13: Males | C13: 8.2 | D13: 13.8 | E13: 20.6 | F13: 21.1 | G13: 15.2 | H13: 9.2 | I13: 6 | J13: 3.3 | K13: 22.1 | L13: 63.7 | M13: 97.4 | N13: 7852 | O13: Females | P13: 22.6 | Q13: 24.1 | R13: 21.5 | S13: 13.5 | T13: 8.4 | U13: 5.1 | V13: 2.6 | W13: 0.8 | X13: 46.7 | Y13: 81.7 | Z13: 98.6 | AA13: 646 | AB13: All | AC13: 9.3 | AD13: 14.6 | AE13: 20.7 | AF13: 20.5 | AG13: 14.7 | AH13: 8.9 | AI13: 5.7 | AJ13: 3.1 | AK13: 23.9 | AL13: 65.1 | AM13: 97.5 | AN13: 8498
A14: D & T: Food Technology | B14: Males | C14: 2 | D14: 6.3 | E14: 15.3 | F14: 25.5 | G14: 22.9 | H14: 14.9 | I14: 7.7 | J14: 3.5 | K14: 8.3 | L14: 49.1 | M14: 98.2 | N14: 16119 | O14: Females | P14: 7.8 | Q14: 16.4 | R14: 23.5 | S14: 23 | T14: 15 | U14: 8.1 | V14: 3.8 | W14: 1.5 | X14: 24.2 | Y14: 70.7 | Z14: 99.2 | AA14: 27307 | AB14: All | AC14: 5.6 | AD14: 12.7 | AE14: 20.4 | AF14: 24 | AG14: 18 | AH14: 10.7 | AI14: 5.2 | AJ14: 2.3 | AK14: 18.3 | AL14: 62.7 | AM14: 98.8 | AN14: 43426
A15: D & T: Graphic Products | B15: Males | C15: 2.8 | D15: 8.4 | E15: 16.9 | F15: 22.5 | G15: 19.7 | H15: 13 | I15: 8.4 | J15: 4.8 | K15: 11.3 | L15: 50.7 | M15: 96.5 | N15: 22244 | O15: Females | P15: 8.7 | Q15: 19.1 | R15: 22.7 | S15: 21.5 | T15: 13.9 | U15: 7 | V15: 3.7 | W15: 2 | X15: 27.8 | Y15: 72 | Z15: 98.7 | AA15: 13994 | AB15: All | AC15: 5.1 | AD15: 12.5 | AE15: 19.1 | AF15: 22.1 | AG15: 17.5 | AH15: 10.7 | AI15: 6.6 | AJ15: 3.7 | AK15: 17.6 | AL15: 58.9 | AM15: 97.4 | AN15: 36238
A16: D & T: Resistant Materials | B16: Males | C16: 3.6 | D16: 9.5 | E16: 18.7 | F16: 24.5 | G16: 19.3 | H16: 12.2 | I16: 7.1 | J16: 3.4 | K16: 13.1 | L16: 56.2 | M16: 98.2 | N16: 44851 | O16: Females | P16: 9.3 | Q16: 19.2 | R16: 23.5 | S16: 20.5 | T16: 13.6 | U16: 7.2 | V16: 3.6 | W16: 1.9 | X16: 28.6 | Y16: 72.6 | Z16: 98.9 | AA16: 7575 | AB16: All | AC16: 4.4 | AD16: 10.9 | AE16: 19.4 | AF16: 23.9 | AG16: 18.5 | AH16: 11.4 | AI16: 6.5 | AJ16: 3.2 | AK16: 15.3 | AL16: 58.6 | AM16: 98.3 | AN16: 52426
A17: D & T: Systems & Control | B17: Males | C17: 6.2 | D17: 13.9 | E17: 20.9 | F17: 22.3 | G17: 18.1 | H17: 10.3 | I17: 4.2 | J17: 2.5 | K17: 20.1 | L17: 63.3 | M17: 98.4 | N17: 3250 | O17: Females | P17: 8.2 | Q17: 23.6 | R17: 24.9 | S17: 22.7 | T17: 12 | U17: 4.3 | V17: 2.1 | W17: 1.7 | X17: 31.8 | Y17: 79.4 | Z17: 99.6 | AA17: 233 | AB17: All | AC17: 6.3 | AD17: 14.6 | AE17: 21.1 | AF17: 22.4 | AG17: 17.7 | AH17: 9.9 | AI17: 4.1 | AJ17: 2.4 | AK17: 20.9 | AL17: 64.4 | AM17: 98.5 | AN17: 3483
A18: D & T: Textiles Technology | B18: Males | C18: 2.4 | D18: 6.5 | E18: 13.7 | F18: 15.9 | G18: 20.7 | H18: 15.7 | I18: 13.7 | J18: 7.2 | K18: 8.9 | L18: 38.6 | M18: 95.8 | N18: 765 | O18: Females | P18: 10.2 | Q18: 18.6 | R18: 24 | S18: 22.1 | T18: 12.7 | U18: 6.6 | V18: 3.5 | W18: 1.5 | X18: 28.8 | Y18: 74.9 | Z18: 99.1 | AA18: 26995 | AB18: All | AC18: 10 | AD18: 18.3 | AE18: 23.7 | AF18: 21.9 | AG18: 12.9 | AH18: 6.9 | AI18: 3.7 | AJ18: 1.6 | AK18: 28.2 | AL18: 73.9 | AM18: 99 | AN18: 27760
A19: Other Design and Technology | B19: Males | C19: 2.9 | D19: 8.1 | E19: 17.6 | F19: 25.2 | G19: 19.6 | H19: 12.5 | I19: 7.8 | J19: 3.9 | K19: 11 | L19: 53.8 | M19: 97.6 | N19: 23396 | O19: Females | P19: 8.8 | Q19: 17.3 | R19: 23.9 | S19: 22 | T19: 13.4 | U19: 7.7 | V19: 4 | W19: 1.8 | X19: 26.1 | Y19: 72 | Z19: 98.9 | AA19: 10358 | AB19: All | AC19: 4.7 | AD19: 10.9 | AE19: 19.5 | AF19: 24.2 | AG19: 17.7 | AH19: 11 | AI19: 6.6 | AJ19: 3.3 | AK19: 15.6 | AL19: 59.4 | AM19: 98 | AN19: 33754
A20: Applied Engineering | B20: Males | C20: 0.8 | D20: 4.2 | E20: 13.5 | F20: 22.5 | G20: 23.2 | H20: 16.7 | I20: 10.8 | J20: 5.8 | K20: 5 | L20: 40.9 | M20: 97.5 | N20: 1959 | O20: Females | P20: 8.7 | Q20: 17.3 | R20: 19.7 | S20: 17.3 | T20: 16.2 | U20: 13.3 | V20: 3.5 | W20: 2.9 | X20: 26 | Y20: 63 | Z20: 98.8 | AA20: 173 | AB20: All | AC20: 1.4 | AD20: 5.3 | AE20: 14 | AF20: 22.1 | AG20: 22.6 | AH20: 16.5 | AI20: 10.2 | AJ20: 5.6 | AK20: 6.7 | AL20: 42.7 | AM20: 97.6 | AN20: 2132
A21: Information Technology | B21: Males | C21: 5.6 | D21: 16.3 | E21: 23.7 | F21: 23.9 | G21: 12.8 | H21: 7 | I21: 5.2 | J21: 3.3 | K21: 22 | L21: 69.6 | M21: 97.9 | N21: 29983 | O21: Females | P21: 9.2 | Q21: 21.7 | R21: 25.6 | S21: 20.7 | T21: 10 | U21: 5.6 | V21: 3.4 | W21: 2.3 | X21: 31 | Y21: 77.3 | Z21: 98.5 | AA21: 23753 | AB21: All | AC21: 7.2 | AD21: 18.7 | AE21: 24.5 | AF21: 22.5 | AG21: 11.6 | AH21: 6.4 | AI21: 4.4 | AJ21: 2.8 | AK21: 25.9 | AL21: 73 | AM21: 98.2 | AN21: 53736
A22: Business Studies | B22: Males | C22: 3.2 | D22: 14.1 | E22: 24.6 | F22: 24.2 | G22: 15.6 | H22: 9.1 | I22: 5.1 | J22: 2.8 | K22: 17.3 | L22: 66.1 | M22: 98.7 | N22: 38383 | O22: Females | P22: 4.6 | Q22: 17.2 | R22: 25.4 | S22: 23 | T22: 14.4 | U22: 7.8 | V22: 4.5 | W22: 2 | X22: 21.8 | Y22: 70.3 | Z22: 99 | AA22: 26063 | AB22: All | AC22: 3.7 | AD22: 15.4 | AE22: 25 | AF22: 23.7 | AG22: 15.1 | AH22: 8.6 | AI22: 4.8 | AJ22: 2.5 | AK22: 19.1 | AL22: 67.8 | AM22: 98.8 | AN22: 64446
A23: Applied Business | B23: Males | C23: 2 | D23: 10.4 | E23: 20.5 | F23: 24.7 | G23: 17.6 | H23: 9.6 | I23: 6.4 | J23: 4.1 | K23: 12.4 | L23: 57.6 | M23: 95.3 | N23: 2908 | O23: Females | P23: 4.5 | Q23: 17.1 | R23: 24.8 | S23: 21.9 | T23: 14.8 | U23: 7.2 | V23: 4.5 | W23: 2.8 | X23: 21.6 | Y23: 68.4 | Z23: 97.7 | AA23: 1837 | AB23: All | AC23: 3 | AD23: 13 | AE23: 22.2 | AF23: 23.6 | AG23: 16.5 | AH23: 8.7 | AI23: 5.6 | AJ23: 3.6 | AK23: 16 | AL23: 61.8 | AM23: 96.2 | AN23: 4745
A24: Home Economics | B24: Males | C24: 0.6 | D24: 5.9 | E24: 15.4 | F24: 23.8 | G24: 21.8 | H24: 15.5 | I24: 10.7 | J24: 4.3 | K24: 6.5 | L24: 45.7 | M24: 98 | N24: 3668 | O24: Females | P24: 2.8 | Q24: 11.4 | R24: 20.3 | S24: 24 | T24: 19.5 | U24: 11.7 | V24: 6 | W24: 2.6 | X24: 14.2 | Y24: 58.5 | Z24: 98.5 | AA24: 22582 | AB24: All | AC24: 2.5 | AD24: 10.6 | AE24: 19.6 | AF24: 24 | AG24: 19.9 | AH24: 12.3 | AI24: 6.7 | AJ24: 2.8 | AK24: 13.1 | AL24: 56.7 | AM24: 98.4 | AN24: 26250
A25: Geography | B25: Males | C25: 7.4 | D25: 15.5 | E25: 19.6 | F25: 22.9 | G25: 16.7 | H25: 9.4 | I25: 5 | J25: 2.5 | K25: 22.9 | L25: 65.5 | M25: 99 | N25: 107293 | O25: Females | P25: 12.8 | Q25: 20.1 | R25: 21.2 | S25: 20.2 | T25: 12.7 | U25: 6.9 | V25: 3.7 | W25: 1.7 | X25: 32.9 | Y25: 74.4 | Z25: 99.4 | AA25: 92953 | AB25: All | AC25: 9.9 | AD25: 17.6 | AE25: 20.4 | AF25: 21.7 | AG25: 14.8 | AH25: 8.2 | AI25: 4.4 | AJ25: 2.1 | AK25: 27.6 | AL25: 69.6 | AM25: 99.1 | AN25: 200246
A26: History | B26: Males | C26: 7.8 | D26: 16.3 | E26: 20.7 | F26: 20.3 | G26: 14.7 | H26: 9 | I26: 5.6 | J26: 3.5 | K26: 24.2 | L26: 65.2 | M26: 97.9 | N26: 115848 | O26: Females | P26: 12.7 | Q26: 21 | R26: 21.6 | S26: 18.2 | T26: 11.9 | U26: 7 | V26: 4.2 | W26: 2.2 | X26: 33.6 | Y26: 73.4 | Z26: 98.8 | AA26: 118860 | AB26: All | AC26: 10.3 | AD26: 18.7 | AE26: 21.1 | AF26: 19.2 | AG26: 13.3 | AH26: 8 | AI26: 4.9 | AJ26: 2.8 | AK26: 29 | AL26: 69.3 | AM26: 98.3 | AN26: 234708
A27: Ancient History | B27: Males | C27: 15.2 | D27: 21 | E27: 18.2 | F27: 18.4 | G27: 12.1 | H27: 7.3 | I27: 4.2 | J27: 2 | K27: 36.2 | L27: 72.9 | M27: 98.4 | N27: 505 | O27: Females | P27: 11.5 | Q27: 22.4 | R27: 19 | S27: 18.7 | T27: 13.5 | U27: 9.2 | V27: 4 | W27: 1 | X27: 33.9 | Y27: 71.6 | Z27: 99.3 | AA27: 401 | AB27: All | AC27: 13.6 | AD27: 21.6 | AE27: 18.5 | AF27: 18.5 | AG27: 12.7 | AH27: 8.2 | AI27: 4.1 | AJ27: 1.5 | AK27: 35.2 | AL27: 72.3 | AM27: 98.8 | AN27: 906
A28: Humanities | B28: Males | C28: 1 | D28: 4.5 | E28: 13.2 | F28: 20.8 | G28: 19.6 | H28: 16.2 | I28: 11.6 | J28: 8.2 | K28: 5.6 | L28: 39.5 | M28: 95 | N28: 6290 | O28: Females | P28: 1.8 | Q28: 7.8 | R28: 17.6 | S28: 22.6 | T28: 18.6 | U28: 14.1 | V28: 9.2 | W28: 5.1 | X28: 9.6 | Y28: 49.8 | Z28: 96.9 | AA28: 6138 | AB28: All | AC28: 1.4 | AD28: 6.2 | AE28: 15.4 | AF28: 21.7 | AG28: 19.1 | AH28: 15.2 | AI28: 10.4 | AJ28: 6.7 | AK28: 7.6 | AL28: 44.6 | AM28: 96 | AN28: 12428
A29: Economics | B29: Males | C29: 6.8 | D29: 23.7 | E29: 27.8 | F29: 21.2 | G29: 9.6 | H29: 5.2 | I29: 3.2 | J29: 1.3 | K29: 30.5 | L29: 79.5 | M29: 98.9 | N29: 2971 | O29: Females | P29: 6.4 | Q29: 25.6 | R29: 28.9 | S29: 18.8 | T29: 9.5 | U29: 5 | V29: 2.9 | W29: 1.1 | X29: 32 | Y29: 79.8 | Z29: 98.3 | AA29: 1311 | AB29: All | AC29: 6.7 | AD29: 24.3 | AE29: 28.1 | AF29: 20.5 | AG29: 9.6 | AH29: 5.2 | AI29: 3.1 | AJ29: 1.3 | AK29: 31 | AL29: 79.6 | AM29: 98.7 | AN29: 4282
A30: Social Studies | B30: Males | C30: 1.9 | D30: 9 | E30: 20 | F30: 25.4 | G30: 18 | H30: 11.8 | I30: 7.1 | J30: 4.2 | K30: 10.9 | L30: 56.3 | M30: 97.4 | N30: 15456 | O30: Females | P30: 4.3 | Q30: 16.6 | R30: 25.5 | S30: 22.8 | T30: 14.1 | U30: 7.9 | V30: 4.7 | W30: 2.6 | X30: 20.8 | Y30: 69.1 | Z30: 98.4 | AA30: 28684 | AB30: All | AC30: 3.4 | AD30: 13.9 | AE30: 23.6 | AF30: 23.7 | AG30: 15.5 | AH30: 9.3 | AI30: 5.6 | AJ30: 3.2 | AK30: 17.3 | AL30: 64.6 | AM30: 98.1 | AN30: 44140
A31: Music | B31: Males | C31: 8.1 | D31: 21.3 | E31: 25.1 | F31: 19.6 | G31: 12.8 | H31: 7.1 | I31: 3.1 | J31: 1.6 | K31: 29.4 | L31: 74.1 | M31: 98.7 | N31: 20680 | O31: Females | P31: 10 | Q31: 24.5 | R31: 26 | S31: 18.4 | T31: 11 | U31: 5.7 | V31: 2.5 | W31: 1.2 | X31: 34.6 | Y31: 79 | Z31: 99.3 | AA31: 20576 | AB31: All | AC31: 9.1 | AD31: 22.9 | AE31: 25.5 | AF31: 19 | AG31: 11.9 | AH31: 6.4 | AI31: 2.8 | AJ31: 1.4 | AK31: 32 | AL31: 76.5 | AM31: 99 | AN31: 41256
A32: Arabic | B32: Males | C32: 24.9 | D32: 21.3 | E32: 17.1 | F32: 12.2 | G32: 8.3 | H32: 5.2 | I32: 3.7 | J32: 3.3 | K32: 46.2 | L32: 75.5 | M32: 95.9 | N32: 1183 | O32: Females | P32: 30.4 | Q32: 21.3 | R32: 15.8 | S32: 11.5 | T32: 6 | U32: 5.2 | V32: 3.3 | W32: 3.5 | X32: 51.7 | Y32: 79 | Z32: 97 | AA32: 1447 | AB32: All | AC32: 27.9 | AD32: 21.3 | AE32: 16.4 | AF32: 11.8 | AG32: 7 | AH32: 5.2 | AI32: 3.5 | AJ32: 3.4 | AK32: 49.2 | AL32: 77.4 | AM32: 96.5 | AN32: 2630
A33: Chinese | B33: Males | C33: 58.2 | D33: 15.7 | E33: 12.1 | F33: 9.4 | G33: 2.9 | H33: 1.1 | I33: x | J33: x | K33: 73.9 | L33: 95.4 | M33: 99.6 | N33: 1229 | O33: Females | P33: 70.1 | Q33: 15.7 | R33: 9.3 | S33: 3 | T33: 1.3 | U33: 0.4 | V33: x | W33: x | X33: 85.8 | Y33: 98 | Z33: 99.8 | AA33: 1112 | AB33: All | AC33: 63.8 | AD33: 15.7 | AE33: 10.8 | AF33: 6.3 | AG33: 2.1 | AH33: 0.7 | AI33: x | AJ33: x | AK33: 79.5 | AL33: 96.6 | AM33: 99.7 | AN33: 2341
A34: French | B34: Males | C34: 7.6 | D34: 12.1 | E34: 17.8 | F34: 26.4 | G34: 20.9 | H34: 9.2 | I34: 4 | J34: 1.4 | K34: 19.7 | L34: 64 | M34: 99.4 | N34: 68953 | O34: Females | P34: 11.3 | Q34: 16.3 | R34: 21.3 | S34: 25.9 | T34: 16.2 | U34: 6 | V34: 2.2 | W34: 0.7 | X34: 27.6 | Y34: 74.7 | Z34: 99.7 | AA34: 92868 | AB34: All | AC34: 9.7 | AD34: 14.5 | AE34: 19.8 | AF34: 26.1 | AG34: 18.2 | AH34: 7.3 | AI34: 2.9 | AJ34: 1 | AK34: 24.2 | AL34: 70.1 | AM34: 99.6 | AN34: 161821
A35: German | B35: Males | C35: 7.1 | D35: 12.6 | E35: 21.9 | F35: 28.5 | G35: 18.2 | H35: 7.5 | I35: 2.8 | J35: 0.9 | K35: 19.8 | L35: 70.2 | M35: 99.7 | N35: 28938 | O35: Females | P35: 10.6 | Q35: 17 | R35: 24.8 | S35: 27.2 | T35: 14 | U35: 4.4 | V35: 1.4 | W35: 0.4 | X35: 27.6 | Y35: 79.6 | Z35: 99.8 | AA35: 31382 | AB35: All | AC35: 8.9 | AD35: 14.9 | AE35: 23.4 | AF35: 27.8 | AG35: 16 | AH35: 5.9 | AI35: 2.1 | AJ35: 0.6 | AK35: 23.8 | AL35: 75.1 | AM35: 99.7 | AN35: 60320
A36: Italian | B36: Males | C36: 39 | D36: 17.7 | E36: 16.1 | F36: 14.6 | G36: 7.6 | H36: 2.5 | I36: x | J36: x | K36: 56.7 | L36: 87.3 | M36: 99.4 | N36: 1766 | O36: Females | P36: 38.5 | Q36: 20.3 | R36: 17.8 | S36: 13.5 | T36: 6.7 | U36: 2.1 | V36: x | W36: x | X36: 58.9 | Y36: 90.1 | Z36: 99.9 | AA36: 2314 | AB36: All | AC36: 38.8 | AD36: 19.2 | AE36: 17 | AF36: 14 | AG36: 7.1 | AH36: 2.3 | AI36: 1.1 | AJ36: 0.3 | AK36: 57.9 | AL36: 88.9 | AM36: 99.7 | AN36: 4080
A37: Polish | B37: Males | C37: 21.7 | D37: 42.8 | E37: 20.3 | F37: 8.5 | G37: 2.2 | H37: 1.7 | I37: 0.7 | J37: 1 | K37: 64.5 | L37: 93.3 | M37: 98.9 | N37: 1456 | O37: Females | P37: 38 | Q37: 40.9 | R37: 12.5 | S37: 4.6 | T37: 1.4 | U37: 0.8 | V37: 0.5 | W37: 0.9 | X37: 78.8 | Y37: 96 | Z37: 99.5 | AA37: 1488 | AB37: All | AC37: 29.9 | AD37: 41.8 | AE37: 16.3 | AF37: 6.6 | AG37: 1.8 | AH37: 1.3 | AI37: 0.6 | AJ37: 1 | AK37: 71.7 | AL37: 94.6 | AM37: 99.2 | AN37: 2944
A38: Spanish | B38: Males | C38: 10 | D38: 14.1 | E38: 17.8 | F38: 24.1 | G38: 18.4 | H38: 8.7 | I38: 4.1 | J38: 1.9 | K38: 24.1 | L38: 65.9 | M38: 98.9 | N38: 35325 | O38: Females | P38: 14.5 | Q38: 18.2 | R38: 20.6 | S38: 22.8 | T38: 14.2 | U38: 5.8 | V38: 2.3 | W38: 0.9 | X38: 32.8 | Y38: 76.2 | Z38: 99.4 | AA38: 47408 | AB38: All | AC38: 12.6 | AD38: 16.5 | AE38: 19.4 | AF38: 23.4 | AG38: 16 | AH38: 7 | AI38: 3.1 | AJ38: 1.3 | AK38: 29.1 | AL38: 71.8 | AM38: 99.2 | AN38: 82733
A39: Urdu | B39: Males | C39: 6 | D39: 17.6 | E39: 23.6 | F39: 21.8 | G39: 14.7 | H39: 9.3 | I39: 4.3 | J39: 1.4 | K39: 23.5 | L39: 68.9 | M39: 98.7 | N39: 1487 | O39: Females | P39: 11 | Q39: 25.9 | R39: 22.6 | S39: 19.9 | T39: 11.5 | U39: 5.4 | V39: 2.2 | W39: 1.1 | X39: 36.9 | Y39: 79.4 | Z39: 99.5 | AA39: 2606 | AB39: All | AC39: 9.2 | AD39: 22.8 | AE39: 22.9 | AF39: 20.6 | AG39: 12.7 | AH39: 6.8 | AI39: 3 | AJ39: 1.2 | AK39: 32 | AL39: 75.6 | AM39: 99.2 | AN39: 4093
A40: Other Modern Languages | B40: Males | C40: 28.5 | D40: 26.5 | E40: 19.5 | F40: 12 | G40: 5.9 | H40: 3.4 | I40: 1.6 | J40: 1.2 | K40: 55 | L40: 86.5 | M40: 98.7 | N40: 4465 | O40: Females | P40: 34.6 | Q40: 26.7 | R40: 18.3 | S40: 11 | T40: 5.1 | U40: 1.8 | V40: 0.9 | W40: 0.6 | X40: 61.3 | Y40: 90.6 | Z40: 99.1 | AA40: 4856 | AB40: All | AC40: 31.7 | AD40: 26.6 | AE40: 18.9 | AF40: 11.5 | AG40: 5.5 | AH40: 2.6 | AI40: 1.2 | AJ40: 0.9 | AK40: 58.3 | AL40: 88.7 | AM40: 98.9 | AN40: 9321
A41: Classical Civilisation | B41: Males | C41: 9.6 | D41: 23.5 | E41: 25.7 | F41: 21.6 | G41: 10.7 | H41: 5.1 | I41: 2.1 | J41: 1.1 | K41: 33.1 | L41: 80.4 | M41: 99.4 | N41: 2047 | O41: Females | P41: 14.3 | Q41: 30.6 | R41: 25.2 | S41: 14.7 | T41: 9.3 | U41: 3.9 | V41: 1 | W41: 0.6 | X41: 44.9 | Y41: 84.9 | Z41: 99.7 | AA41: 1805 | AB41: All | AC41: 11.8 | AD41: 26.8 | AE41: 25.5 | AF41: 18.4 | AG41: 10.1 | AH41: 4.6 | AI41: 1.6 | AJ41: 0.9 | AK41: 38.6 | AL41: 82.5 | AM41: 99.6 | AN41: 3852
A42: Classical Greek | B42: Males | C42: 61.9 | D42: 22.4 | E42: 8 | F42: 4.3 | G42: 2.2 | H42: x | I42: 0.6 | J42: x | K42: 84.4 | L42: 96.6 | M42: 100 | N42: 678 | O42: Females | P42: 64.1 | Q42: 25.3 | R42: 5.4 | S42: 2.9 | T42: 1.1 | U42: x | V42: 0 | W42: x | X42: 89.5 | Y42: 97.8 | Z42: 99.8 | AA42: 446 | AB42: All | AC42: 62.8 | AD42: 23.6 | AE42: 6.9 | AF42: 3.7 | AG42: 1.8 | AH42: x | AI42: 0.4 | AJ42: x | AK42: 86.4 | AL42: 97.1 | AM42: 99.9 | AN42: 1124
A43: Latin | B43: Males | C43: 42 | D43: 28.6 | E43: 14.2 | F43: 7.2 | G43: 3.8 | H43: 2.2 | I43: 0.7 | J43: 0.5 | K43: 70.6 | L43: 92 | M43: 99.3 | N43: 4334 | O43: Females | P43: 46.4 | Q43: 26.6 | R43: 13.2 | S43: 6.8 | T43: 3.6 | U43: 1.6 | V43: 0.9 | W43: 0.5 | X43: 73 | Y43: 93 | Z43: 99.7 | AA43: 4659 | AB43: All | AC43: 44.2 | AD43: 27.6 | AE43: 13.7 | AF43: 7 | AG43: 3.7 | AH43: 1.9 | AI43: 0.8 | AJ43: 0.5 | AK43: 71.8 | AL43: 92.5 | AM43: 99.5 | AN43: 8993
A44: Other Classical Studies | B44: Males | C44: 4.2 | D44: 25.2 | E44: 26.9 | F44: 12.6 | G44: 8.4 | H44: 3.4 | I44: 2.5 | J44: x | K44: 29.4 | L44: 68.9 | M44: 84 | N44: 119 | O44: Females | P44: 13.1 | Q44: 30.3 | R44: 23.6 | S44: 16.6 | T44: 6.4 | U44: 1.9 | V44: 3.5 | W44: x | X44: 43.3 | Y44: 83.4 | Z44: 97.5 | AA44: 314 | AB44: All | AC44: 10.6 | AD44: 28.9 | AE44: 24.5 | AF44: 15.5 | AG44: 6.9 | AH44: 2.3 | AI44: 3.2 | AJ44: 1.8 | AK44: 39.5 | AL44: 79.4 | AM44: 93.8 | AN44: 433
A45: Applied Art and Design | B45: Males | C45: 1.3 | D45: 4.5 | E45: 20.7 | F45: 30.6 | G45: 17.8 | H45: 11.8 | I45: 8.6 | J45: 3.7 | K45: 5.8 | L45: 57.1 | M45: 99 | N45: 382 | O45: Females | P45: 7.5 | Q45: 13.2 | R45: 28.6 | S45: 30.5 | T45: 12.1 | U45: 4.3 | V45: 1.9 | W45: 1.2 | X45: 20.6 | Y45: 79.7 | Z45: 99.3 | AA45: 669 | AB45: All | AC45: 5.2 | AD45: 10 | AE45: 25.7 | AF45: 30.5 | AG45: 14.2 | AH45: 7 | AI45: 4.4 | AJ45: 2.1 | AK45: 15.2 | AL45: 71.5 | AM45: 99.1 | AN45: 1051
A46: Art and Design | B46: Males | C46: 5.4 | D46: 8.4 | E46: 18.8 | F46: 32 | G46: 16.5 | H46: 9.5 | I46: 5.5 | J46: 2.4 | K46: 13.7 | L46: 64.5 | M46: 98.3 | N46: 54309 | O46: Females | P46: 12.1 | Q46: 16.5 | R46: 26.7 | S46: 27.3 | T46: 9.8 | U46: 4.2 | V46: 2 | W46: 0.7 | X46: 28.6 | Y46: 82.7 | Z46: 99.3 | AA46: 110201 | AB46: All | AC46: 9.9 | AD46: 13.8 | AE46: 24.1 | AF46: 28.9 | AG46: 12 | AH46: 5.9 | AI46: 3.1 | AJ46: 1.2 | AK46: 23.7 | AL46: 76.7 | AM46: 99 | AN46: 164510
A47: Communication Studies | B47: Males | C47: 1.7 | D47: 8.5 | E47: 17.3 | F47: 21.5 | G47: 20.1 | H47: 13.6 | I47: 8.8 | J47: 4.9 | K47: 10.2 | L47: 49 | M47: 96.5 | N47: 4125 | O47: Females | P47: 6.8 | Q47: 15.6 | R47: 24.8 | S47: 23.5 | T47: 14.6 | U47: 8.1 | V47: 3.7 | W47: 1.4 | X47: 22.4 | Y47: 70.8 | Z47: 98.6 | AA47: 4940 | AB47: All | AC47: 4.5 | AD47: 12.4 | AE47: 21.4 | AF47: 22.6 | AG47: 17.1 | AH47: 10.6 | AI47: 6 | AJ47: 3 | AK47: 16.9 | AL47: 60.9 | AM47: 97.7 | AN47: 9065
A48: Construction | B48: Males | C48: 0 | D48: x | E48: 14 | F48: 32.6 | G48: 34.9 | H48: x | I48: x | J48: x | K48: x | L48: 51.2 | M48: 97.7 | N48: 43 | O48: Females | P48: 0 | Q48: 0 | R48: 0 | S48: 0 | T48: 0 | U48: 0 | V48: 0 | W48: 0 | X48: 0 | Y48: 0 | Z48: 0 | AA48: 0 | AB48: All | AC48: 0 | AD48: x | AE48: 14 | AF48: 32.6 | AG48: 34.9 | AH48: x | AI48: x | AJ48: x | AK48: x | AL48: 51.2 | AM48: 97.7 | AN48: 43
A49: Dance | B49: Males | C49: 5.1 | D49: 17.4 | E49: 18.3 | F49: 21.1 | G49: 19.4 | H49: 10.1 | I49: 5.9 | J49: 1.6 | K49: 22.5 | L49: 61.9 | M49: 98.9 | N49: 743 | O49: Females | P49: 4.6 | Q49: 15.5 | R49: 20.8 | S49: 24.6 | T49: 18.6 | U49: 9.3 | V49: 4.2 | W49: 1.3 | X49: 20.2 | Y49: 65.5 | Z49: 99 | AA49: 10797 | AB49: All | AC49: 4.7 | AD49: 15.6 | AE49: 20.6 | AF49: 24.4 | AG49: 18.7 | AH49: 9.4 | AI49: 4.3 | AJ49: 1.3 | AK49: 20.3 | AL49: 65.3 | AM49: 99 | AN49: 11540
A50: Drama | B50: Males | C50: 3.4 | D50: 13.5 | E50: 22.5 | F50: 26.5 | G50: 18.2 | H50: 9.1 | I50: 4.1 | J50: 1.7 | K50: 16.9 | L50: 65.9 | M50: 98.9 | N50: 27145 | O50: Females | P50: 6.3 | Q50: 20.1 | R50: 27.9 | S50: 23.5 | T50: 12.9 | U50: 5.7 | V50: 2.2 | W50: 0.9 | X50: 26.4 | Y50: 77.8 | Z50: 99.5 | AA50: 42609 | AB50: All | AC50: 5.2 | AD50: 17.5 | AE50: 25.8 | AF50: 24.7 | AG50: 14.9 | AH50: 7 | AI50: 2.9 | AJ50: 1.2 | AK50: 22.7 | AL50: 73.2 | AM50: 99.3 | AN50: 69754
A51: English Literature | B51: Males | C51: 3.8 | D51: 13.2 | E51: 26.5 | F51: 27.6 | G51: 16.7 | H51: 7 | I51: 2.9 | J51: 1.2 | K51: 17 | L51: 71 | M51: 98.9 | N51: 197831 | O51: Females | P51: 7.4 | Q51: 21.5 | R51: 31.4 | S51: 23.1 | T51: 10.6 | U51: 3.5 | V51: 1.3 | W51: 0.5 | X51: 28.9 | Y51: 83.5 | Z51: 99.4 | AA51: 223967 | AB51: All | AC51: 5.7 | AD51: 17.6 | AE51: 29.1 | AF51: 25.2 | AG51: 13.5 | AH51: 5.2 | AI51: 2 | AJ51: 0.9 | AK51: 23.3 | AL51: 77.6 | AM51: 99.1 | AN51: 421798
A52: English Studies | B52: Males | C52: x | D52: x | E52: 8.7 | F52: 27 | G52: 31.4 | H52: 20.1 | I52: 5.4 | J52: 4.5 | K52: 1.3 | L52: 37 | M52: 98.3 | N52: 1112 | O52: Females | P52: x | Q52: x | R52: 16.8 | S52: 31.6 | T52: 27.1 | U52: 12.3 | V52: 5.4 | W52: 3.1 | X52: 2.4 | Y52: 50.7 | Z52: 98.6 | AA52: 978 | AB52: All | AC52: x | AD52: x | AE52: 12.5 | AF52: 29.1 | AG52: 29.4 | AH52: 16.4 | AI52: 5.4 | AJ52: 3.8 | AK52: 1.8 | AL52: 43.4 | AM52: 98.4 | AN52: 2090
A53: General Studies | B53: Males | C53: 2.2 | D53: 6.2 | E53: 11.6 | F53: 18.4 | G53: 20.5 | H53: 14 | I53: 8.8 | J53: 6.9 | K53: 8.4 | L53: 38.5 | M53: 88.6 | N53: 2473 | O53: Females | P53: 4.2 | Q53: 10.6 | R53: 17.2 | S53: 20.9 | T53: 21.4 | U53: 12.1 | V53: 5.3 | W53: 3.1 | X53: 14.7 | Y53: 52.8 | Z53: 94.8 | AA53: 2383 | AB53: All | AC53: 3.2 | AD53: 8.3 | AE53: 14.3 | AF53: 19.7 | AG53: 20.9 | AH53: 13.1 | AI53: 7.1 | AJ53: 5.1 | AK53: 11.5 | AL53: 45.5 | AM53: 91.7 | AN53: 4856
A54: Health and Social Care | B54: Males | C54: x | D54: x | E54: 10.2 | F54: 17.8 | G54: 19.8 | H54: 18 | I54: 11.7 | J54: 10.2 | K54: 2.8 | L54: 30.7 | M54: 90.4 | N54: 394 | O54: Females | P54: x | Q54: x | R54: 19.2 | S54: 25.8 | T54: 19.2 | U54: 11 | V54: 7.4 | W54: 5.1 | X54: 9.9 | Y54: 54.9 | Z54: 97.7 | AA54: 7356 | AB54: All | AC54: 1.6 | AD54: 8 | AE54: 18.7 | AF54: 25.4 | AG54: 19.3 | AH54: 11.4 | AI54: 7.7 | AJ54: 5.4 | AK54: 9.5 | AL54: 53.7 | AM54: 97.3 | AN54: 7750
A55: Hospitality and Catering | B55: Males | C55: x | D55: 3.5 | E55: 14.5 | F55: 24.6 | G55: 27.6 | H55: 19 | I55: 8.1 | J55: x | K55: 3.6 | L55: 42.8 | M55: 99.5 | N55: 743 | O55: Females | P55: x | Q55: 11.6 | R55: 22.7 | S55: 27 | T55: 18.3 | U55: 10 | V55: 3.6 | W55: x | X55: 16.7 | Y55: 66.4 | Z55: 99.5 | AA55: 1294 | AB55: All | AC55: 3.3 | AD55: 8.6 | AE55: 19.7 | AF55: 26.1 | AG55: 21.7 | AH55: 13.3 | AI55: 5.3 | AJ55: 1.5 | AK55: 11.9 | AL55: 57.8 | AM55: 99.5 | AN55: 2037
A56: Leisure and Tourism | B56: Males | C56: 0.4 | D56: 3.5 | E56: 8.4 | F56: 16.9 | G56: 21.2 | H56: 16.4 | I56: 13.9 | J56: 10.7 | K56: 3.9 | L56: 29.2 | M56: 91.3 | N56: 1148 | O56: Females | P56: 2 | Q56: 7.5 | R56: 18.6 | S56: 23.4 | T56: 19.2 | U56: 10.9 | V56: 9.9 | W56: 4.2 | X56: 9.5 | Y56: 51.5 | Z56: 95.7 | AA56: 1368 | AB56: All | AC56: 1.3 | AD56: 5.6 | AE56: 14 | AF56: 20.4 | AG56: 20.1 | AH56: 13.4 | AI56: 11.7 | AJ56: 7.2 | AK56: 7 | AL56: 41.3 | AM56: 93.7 | AN56: 2516
A57: Manufacturing | B57: Males | C57: 0 | D57: x | E57: 4.7 | F57: 20 | G57: 21.2 | H57: x | I57: x | J57: x | K57: x | L57: 30.6 | M57: 97.6 | N57: 85 | O57: Females | P57: 0 | Q57: x | R57: 0 | S57: 21.4 | T57: 28.6 | U57: x | V57: x | W57: x | X57: x | Y57: 28.6 | Z57: 92.9 | AA57: 14 | AB57: All | AC57: 0 | AD57: 6.1 | AE57: 4 | AF57: 20.2 | AG57: 22.2 | AH57: 18.2 | AI57: 17.2 | AJ57: 9.1 | AK57: 6.1 | AL57: 30.3 | AM57: 97 | AN57: 99
A58: Media/Film/TV | B58: Males | C58: 1.6 | D58: 7.7 | E58: 19.3 | F58: 27.2 | G58: 21 | H58: 11.7 | I58: 6.3 | J58: 3 | K58: 9.3 | L58: 55.9 | M58: 97.9 | N58: 24111 | O58: Females | P58: 5 | Q58: 17.7 | R58: 27.5 | S58: 25.3 | T58: 13.2 | U58: 6.1 | V58: 2.8 | W58: 1.4 | X58: 22.7 | Y58: 75.5 | Z58: 99 | AA58: 24587 | AB58: All | AC58: 3.3 | AD58: 12.8 | AE58: 23.5 | AF58: 26.3 | AG58: 17.1 | AH58: 8.9 | AI58: 4.5 | AJ58: 2.2 | AK58: 16.1 | AL58: 65.8 | AM58: 98.5 | AN58: 48698
A59: Performing Arts | B59: Males | C59: 3.1 | D59: 5.2 | E59: 15.2 | F59: 23.4 | G59: 22.6 | H59: 15.2 | I59: 8.9 | J59: 3.6 | K59: 8.2 | L59: 46.8 | M59: 97 | N59: 948 | O59: Females | P59: 8.9 | Q59: 12.2 | R59: 20.8 | S59: 24.9 | T59: 16.1 | U59: 8.6 | V59: 5.5 | W59: 1.4 | X59: 21.2 | Y59: 66.9 | Z59: 98.6 | AA59: 2131 | AB59: All | AC59: 7.1 | AD59: 10.1 | AE59: 19.1 | AF59: 24.5 | AG59: 18.1 | AH59: 10.7 | AI59: 6.6 | AJ59: 2 | AK59: 17.2 | AL59: 60.7 | AM59: 98.1 | AN59: 3079
A60: Physical Education | B60: Males | C60: 2.4 | D60: 14.8 | E60: 26 | F60: 27.3 | G60: 17.5 | H60: 8.8 | I60: 2.4 | J60: 0.4 | K60: 17.3 | L60: 70.6 | M60: 99.7 | N60: 60323 | O60: Females | P60: 5.5 | Q60: 20.4 | R60: 25 | S60: 22.2 | T60: 15.6 | U60: 8 | V60: 2.6 | W60: 0.5 | X60: 25.9 | Y60: 73.1 | Z60: 99.7 | AA60: 31257 | AB60: All | AC60: 3.5 | AD60: 16.7 | AE60: 25.7 | AF60: 25.6 | AG60: 16.8 | AH60: 8.5 | AI60: 2.5 | AJ60: 0.4 | AK60: 20.2 | AL60: 71.4 | AM60: 99.7 | AN60: 91580
A61: Religious Studies | B61: Males | C61: 7.5 | D61: 16.1 | E61: 22.3 | F61: 20.9 | G61: 12.8 | H61: 8.5 | I61: 5.7 | J61: 3.6 | K61: 23.7 | L61: 66.9 | M61: 97.5 | N61: 104900 | O61: Females | P61: 15 | Q61: 23.1 | R61: 23.6 | S61: 17.5 | T61: 9.1 | U61: 5.4 | V61: 3.1 | W61: 1.9 | X61: 38.1 | Y61: 79.3 | Z61: 98.8 | AA61: 124109 | AB61: All | AC61: 11.6 | AD61: 19.9 | AE61: 23 | AF61: 19.1 | AG61: 10.8 | AH61: 6.9 | AI61: 4.3 | AJ61: 2.6 | AK61: 31.5 | AL61: 73.6 | AM61: 98.2 | AN61: 229009
A62: Statistics | B62: Males | C62: 4.8 | D62: 18.1 | E62: 26.7 | F62: 26 | G62: 13.6 | H62: 5.4 | I62: 2.1 | J62: 1.1 | K62: 22.9 | L62: 75.5 | M62: 97.7 | N62: 23230 | O62: Females | P62: 6 | Q62: 20.4 | R62: 27.8 | S62: 26.4 | T62: 11.3 | U62: 3.7 | V62: 1.5 | W62: 0.8 | X62: 26.4 | Y62: 80.5 | Z62: 97.9 | AA62: 21244 | AB62: All | AC62: 5.3 | AD62: 19.2 | AE62: 27.2 | AF62: 26.2 | AG62: 12.5 | AH62: 4.6 | AI62: 1.8 | AJ62: 1 | AK62: 24.5 | AL62: 77.9 | AM62: 97.8 | AN62: 44474
A63: Vocational Studies | B63: Males | C63: 1 | D63: 6.8 | E63: 17.5 | F63: 27.4 | G63: 22.5 | H63: 13.4 | I63: 6.7 | J63: 2.7 | K63: 7.8 | L63: 52.7 | M63: 98 | N63: 16022 | O63: Females | P63: 3.7 | Q63: 15.2 | R63: 25.5 | S63: 25.2 | T63: 16.8 | U63: 8.2 | V63: 3.4 | W63: 1.1 | X63: 18.9 | Y63: 69.6 | Z63: 99.1 | AA63: 17307 | AB63: All | AC63: 2.4 | AD63: 11.2 | AE63: 21.6 | AF63: 26.3 | AG63: 19.6 | AH63: 10.7 | AI63: 5 | AJ63: 1.9 | AK63: 13.6 | AL63: 61.5 | AM63: 98.6 | AN63: 33329
A64: All Subjects | B64: Males | C64: 5.9 | D64: 13.1 | E64: 21.2 | F64: 27.6 | G64: 15.8 | H64: 8.3 | I64: 4.5 | J64: 2.2 | K64: 19 | L64: 67.8 | M64: 98.6 | N64: 2238514 | O64: Females | P64: 9 | Q64: 17.7 | R64: 24.2 | S64: 25.6 | T64: 12.5 | U64: 5.8 | V64: 2.9 | W64: 1.4 | X64: 26.7 | Y64: 76.5 | Z64: 99.1 | AA64: 2347182 | AB64: All | AC64: 7.5 | AD64: 15.5 | AE64: 22.7 | AF64: 26.6 | AG64: 14.1 | AH64: 7 | AI64: 3.7 | AJ64: 1.8 | AK64: 22.9 | AL64: 72.2 | AM64: 98.9 | AN64: 4585696

Sheet 2014 (hidden)
A1: 1 | B1: 2 | C1: 3 | D1: 4 | E1: 5 | F1: 6 | G1: 7 | H1: 8 | I1: 9 | J1: 10 | K1: 11 | L1: 12 | M1: 13 | N1: 14 | O1: 15 | P1: 16 | Q1: 17 | R1: 18 | S1: 19 | T1: 20 | U1: 21 | V1: 22 | W1: 23 | X1: 24 | Y1: 25 | Z1: 26 | AA1: 27 | AB1: 28 | AC1: 29 | AD1: 30 | AE1: 31 | AF1: 32 | AG1: 33 | AH1: 34 | AI1: 35 | AJ1: 36 | AK1: 37 | AL1: 38 | AM1: 39 | AN1: 40
A2: Subjects | C2: * | D2: A | E2: B | F2: C | G2: D | H2: E | I2: F | J2: G | K2: AstarA | L2: AstarC | M2: AstarG | N2: Total | O2: (No column name) | P2: * | Q2: A | R2: B | S2: C | T2: D | U2: E | V2: F | W2: G | X2: AstarA | Y2: AstarC | Z2: AstarG | AA2: Total | AB2: (No column name) | AC2: * | AD2: A | AE2: B | AF2: C | AG2: D | AH2: E | AI2: F | AJ2: G | AK2: AstarA | AL2: AstarC | AM2: AstarG | AN2: Total
A3: English | B3: Males | C3: 2.7 | D3: 9.5 | E3: 21.1 | F3: 31.5 | G3: 19.7 | H3: 9.1 | I3: 3.8 | J3: 1.5 | K3: 12.1 | L3: 64.7 | M3: 98.8 | N3: 229932 | O3: Females | P3: 5.9 | Q3: 17 | R3: 28.1 | S3: 28.8 | T3: 13 | U3: 4.4 | V3: 1.5 | W3: 0.6 | X3: 22.9 | Y3: 79.8 | Z3: 99.3 | AA3: 234257 | AB3: All | AC3: 4.3 | AD3: 13.3 | AE3: 24.6 | AF3: 30.1 | AG3: 16.3 | AH3: 6.7 | AI3: 2.7 | AJ3: 1 | AK3: 17.6 | AL3: 72.4 | AM3: 99.1 | AN3: 464189
A4: Mathematics | B4: Males | C4: 7.2 | D4: 11.5 | E4: 18.5 | F4: 30.1 | G4: 12.3 | H4: 6.2 | I4: 4.8 | J4: 3.9 | K4: 18.7 | L4: 67.3 | M4: 94.5 | N4: 303147 | O4: Females | P4: 6.5 | Q4: 11.8 | R4: 19.5 | S4: 31 | T4: 12.4 | U4: 5.9 | V4: 4.5 | W4: 3.5 | X4: 18.3 | Y4: 68.7 | Z4: 95.1 | AA4: 293691 | AB4: All | AC4: 6.8 | AD4: 11.7 | AE4: 19 | AF4: 30.5 | AG4: 12.4 | AH4: 6.1 | AI4: 4.6 | AJ4: 3.7 | AK4: 18.5 | AL4: 68 | AM4: 94.8 | AN4: 596838
A5: Core Science | B5: Males | C5: 1 | D5: 5.8 | E5: 17 | F5: 34.9 | G5: 19.9 | H5: 11.2 | I5: 5.9 | J5: 2.5 | K5: 6.8 | L5: 58.8 | M5: 98.2 | N5: 175051 | O5: Females | P5: 1.7 | Q5: 8.5 | R5: 20.6 | S5: 34.4 | T5: 17.5 | U5: 9.3 | V5: 4.6 | W5: 1.8 | X5: 10.2 | Y5: 65.2 | Z5: 98.5 | AA5: 177855 | AB5: All | AC5: 1.4 | AD5: 7.2 | AE5: 18.8 | AF5: 34.6 | AG5: 18.7 | AH5: 10.2 | AI5: 5.3 | AJ5: 2.1 | AK5: 8.5 | AL5: 62 | AM5: 98.3 | AN5: 352906
A6: Additional Science | B6: Males | C6: 2 | D6: 8.1 | E6: 20.4 | F6: 32.4 | G6: 21.8 | H6: 9.1 | I6: 3.9 | J6: 1.5 | K6: 10 | L6: 62.8 | M6: 99.2 | N6: 131575 | O6: Females | P6: 2.7 | Q6: 10.2 | R6: 23.4 | S6: 32.3 | T6: 19.4 | U6: 7.3 | V6: 2.9 | W6: 1.1 | X6: 12.9 | Y6: 68.7 | Z6: 99.4 | AA6: 139627 | AB6: All | AC6: 2.3 | AD6: 9.2 | AE6: 22 | AF6: 32.4 | AG6: 20.6 | AH6: 8.2 | AI6: 3.4 | AJ6: 1.3 | AK6: 11.5 | AL6: 65.8 | AM6: 99.3 | AN6: 271202
A7: Further Additional Science | B7: Males | C7: 10 | D7: 20.7 | E7: 27.1 | F7: 25.1 | G7: 12.2 | H7: 3.6 | I7: 0.8 | J7: 0.2 | K7: 30.7 | L7: 82.9 | M7: 99.7 | N7: 10607 | O7: Females | P7: 11.6 | Q7: 22.5 | R7: 28 | S7: 23.7 | T7: 10.6 | U7: 2.8 | V7: 0.5 | W7: 0.2 | X7: 34 | Y7: 85.7 | Z7: 99.8 | AA7: 10429 | AB7: All | AC7: 10.8 | AD7: 21.6 | AE7: 27.5 | AF7: 24.4 | AG7: 11.4 | AH7: 3.2 | AI7: 0.6 | AJ7: 0.2 | AK7: 32.4 | AL7: 84.3 | AM7: 99.8 | AN7: 21036
A8: Additional Applied Science | B8: Males | C8: 0 | D8: 0.9 | E8: 5.2 | F8: 20 | G8: 29.3 | H8: 23.5 | I8: 13 | J8: 5.1 | K8: 0.9 | L8: 26.1 | M8: 97 | N8: 6616 | O8: Females | P8: 0.1 | Q8: 1.2 | R8: 9.8 | S8: 26.4 | T8: 30.7 | U8: 18.5 | V8: 8.5 | W8: 2.9 | X8: 1.4 | Y8: 37.5 | Z8: 98.1 | AA8: 6697 | AB8: All | AC8: 0.1 | AD8: 1.1 | AE8: 7.5 | AF8: 23.2 | AG8: 30 | AH8: 21 | AI8: 10.7 | AJ8: 4 | AK8: 1.1 | AL8: 31.8 | AM8: 97.5 | AN8: 13313
A9: Physics | B9: Males | C9: 14.5 | D9: 27.3 | E9: 29.2 | F9: 20.5 | G9: 6.8 | H9: 1.2 | I9: 0.3 | J9: 0.1 | K9: 41.8 | L9: 91.5 | M9: 99.9 | N9: 65148 | O9: Females | P9: 15.9 | Q9: 27.2 | R9: 28.9 | S9: 20.1 | T9: 6.4 | U9: 1.2 | V9: 0.2 | W9: 0.1 | X9: 43.1 | Y9: 92 | Z9: 99.9 | AA9: 63604 | AB9: All | AC9: 15.2 | AD9: 27.3 | AE9: 29.1 | AF9: 20.3 | AG9: 6.6 | AH9: 1.2 | AI9: 0.2 | AJ9: 0.1 | AK9: 42.4 | AL9: 91.8 | AM9: 99.9 | AN9: 128752
A10: Chemistry | B10: Males | C10: 13.1 | D10: 26.6 | E10: 29.1 | F10: 21.1 | G10: 7.7 | H10: 1.7 | I10: 0.4 | J10: 0.1 | K10: 39.7 | L10: 90 | M10: 99.9 | N10: 65818 | O10: Females | P10: 16.7 | Q10: 29.3 | R10: 28.4 | S10: 17.9 | T10: 5.9 | U10: 1.2 | V10: 0.3 | W10: 0.1 | X10: 46.1 | Y10: 92.4 | Z10: 99.9 | AA10: 63841 | AB10: All | AC10: 14.9 | AD10: 28 | AE10: 28.8 | AF10: 19.5 | AG10: 6.8 | AH10: 1.5 | AI10: 0.3 | AJ10: 0.1 | AK10: 42.9 | AL10: 91.2 | AM10: 99.9 | AN10: 129659
A11: Biological Sciences | B11: Males | C11: 11.2 | D11: 26.3 | E11: 30.2 | F11: 21.8 | G11: 7.5 | H11: 1.7 | I11: 0.6 | J11: 0.3 | K11: 37.5 | L11: 89.5 | M11: 99.7 | N11: 67270 | O11: Females | P11: 16.7 | Q11: 29.9 | R11: 28.6 | S11: 17.1 | T11: 5.5 | U11: 1.2 | V11: 0.5 | W11: 0.2 | X11: 46.6 | Y11: 92.4 | Z11: 99.8 | AA11: 65698 | AB11: All | AC11: 13.9 | AD11: 28.1 | AE11: 29.4 | AF11: 19.5 | AG11: 6.5 | AH11: 1.5 | AI11: 0.6 | AJ11: 0.2 | AK11: 42 | AL11: 91 | AM11: 99.7 | AN11: 132968
A12: Computer Science | B12: Males | C12: 6 | D12: 16.6 | E12: 21.3 | F12: 20.4 | G12: 14 | H12: 8.8 | I12: 5.4 | J12: 3.4 | K12: 22.6 | L12: 64.4 | M12: 96.1 | N12: 13428 | O12: Females | P12: 8.3 | Q12: 19.4 | R12: 21.7 | S12: 21.2 | T12: 13.6 | U12: 7.4 | V12: 3.7 | W12: 1.7 | X12: 27.7 | Y12: 70.6 | Z12: 97 | AA12: 2374 | AB12: All | AC12: 6.4 | AD12: 17 | AE12: 21.4 | AF12: 20.5 | AG12: 14 | AH12: 8.6 | AI12: 5.2 | AJ12: 3.2 | AK12: 23.4 | AL12: 65.3 | AM12: 96.2 | AN12: 15802
A13: Other Sciences | B13: Males | C13: 10.2 | D13: 14.3 | E13: 16.1 | F13: 16.7 | G13: 15.3 | H13: 11.7 | I13: 8.3 | J13: 4.8 | K13: 24.5 | L13: 57.2 | M13: 97.3 | N13: 4288 | O13: Females | P13: 4.4 | Q13: 9.6 | R13: 18 | S13: 21.6 | T13: 17.3 | U13: 12.8 | V13: 8.2 | W13: 5.3 | X13: 14 | Y13: 53.6 | Z13: 97.1 | AA13: 2580 | AB13: All | AC13: 8 | AD13: 12.6 | AE13: 16.8 | AF13: 18.5 | AG13: 16 | AH13: 12.1 | AI13: 8.2 | AJ13: 5 | AK13: 20.6 | AL13: 55.9 | AM13: 97.2 | AN13: 6868
A14: D & T: Electronic Products | B14: Males | C14: 6.9 | D14: 14.5 | E14: 21.4 | F14: 20.9 | G14: 14.8 | H14: 9.9 | I14: 6.1 | J14: 3.4 | K14: 21.5 | L14: 63.8 | M14: 98 | N14: 7692 | O14: Females | P14: 17 | Q14: 26.1 | R14: 24.5 | S14: 13.2 | T14: 9.6 | U14: 5.9 | V14: 1.6 | W14: 1.3 | X14: 43.2 | Y14: 80.9 | Z14: 99.2 | AA14: 628 | AB14: All | AC14: 7.7 | AD14: 15.4 | AE14: 21.7 | AF14: 20.4 | AG14: 14.4 | AH14: 9.6 | AI14: 5.8 | AJ14: 3.2 | AK14: 23.1 | AL14: 65.1 | AM14: 98.1 | AN14: 8320
A15: D & T: Food Technology | B15: Males | C15: 1.5 | D15: 5.8 | E15: 14.1 | F15: 24.3 | G15: 23.2 | H15: 15.7 | I15: 9.1 | J15: 4.1 | K15: 7.4 | L15: 45.8 | M15: 97.9 | N15: 14951 | O15: Females | P15: 7.2 | Q15: 16.9 | R15: 23.7 | S15: 23.2 | T15: 14.9 | U15: 8 | V15: 3.8 | W15: 1.5 | X15: 24.1 | Y15: 70.9 | Z15: 99.1 | AA15: 25639 | AB15: All | AC15: 5.1 | AD15: 12.8 | AE15: 20.2 | AF15: 23.6 | AG15: 18 | AH15: 10.8 | AI15: 5.8 | AJ15: 2.5 | AK15: 17.9 | AL15: 61.7 | AM15: 98.7 | AN15: 40590
A16: D & T: Graphic Products | B16: Males | C16: 2.8 | D16: 8.6 | E16: 16.8 | F16: 22.7 | G16: 19.8 | H16: 12.9 | I16: 8.2 | J16: 5 | K16: 11.3 | L16: 50.9 | M16: 96.8 | N16: 20953 | O16: Females | P16: 7.8 | Q16: 18.5 | R16: 23.5 | S16: 21.3 | T16: 14 | U16: 7.5 | V16: 4 | W16: 2.1 | X16: 26.4 | Y16: 71.2 | Z16: 98.8 | AA16: 12921 | AB16: All | AC16: 4.7 | AD16: 12.4 | AE16: 19.3 | AF16: 22.2 | AG16: 17.6 | AH16: 10.8 | AI16: 6.6 | AJ16: 3.9 | AK16: 17.1 | AL16: 58.6 | AM16: 97.6 | AN16: 33874
A17: D & T: Resistant Materials | B17: Males | C17: 2.9 | D17: 8.8 | E17: 18.2 | F17: 24.4 | G17: 19.7 | H17: 12.7 | I17: 7.6 | J17: 3.7 | K17: 11.7 | L17: 54.4 | M17: 98 | N17: 45024 | O17: Females | P17: 8.7 | Q17: 18.4 | R17: 23.9 | S17: 21.2 | T17: 13.8 | U17: 7.3 | V17: 3.7 | W17: 2.1 | X17: 27.2 | Y17: 72.2 | Z17: 99.1 | AA17: 7760 | AB17: All | AC17: 3.7 | AD17: 10.2 | AE17: 19.1 | AF17: 24 | AG17: 18.8 | AH17: 11.9 | AI17: 7 | AJ17: 3.4 | AK17: 14 | AL17: 57 | AM17: 98.2 | AN17: 52784
A18: D & T: Systems & Control | B18: Males | C18: 8.1 | D18: 13.2 | E18: 20.4 | F18: 22 | G18: 16.6 | H18: 9.5 | I18: 6 | J18: x | K18: 21.3 | L18: 63.8 | M18: 98.6 | N18: 3091 | O18: Females | P18: 4.7 | Q18: 20 | R18: 19.3 | S18: 22.7 | T18: 20.7 | U18: 6.7 | V18: 4 | W18: x | X18: 24.7 | Y18: 66.7 | Z18: 98.7 | AA18: 150 | AB18: All | AC18: 8 | AD18: 13.5 | AE18: 20.4 | AF18: 22.1 | AG18: 16.8 | AH18: 9.4 | AI18: 5.9 | AJ18: 2.7 | AK18: 21.5 | AL18: 63.9 | AM18: 98.6 | AN18: 3241
A19: D & T: Textiles Technology | B19: Males | C19: 2.9 | D19: 4 | E19: 9.6 | F19: 19.8 | G19: 20 | H19: 17.6 | I19: 14.6 | J19: 5.9 | K19: 7 | L19: 36.3 | M19: 94.4 | N19: 820 | O19: Females | P19: 10 | Q19: 17.1 | R19: 23 | S19: 22.5 | T19: 14 | U19: 7.5 | V19: 3.4 | W19: 1.6 | X19: 27.1 | Y19: 72.6 | Z19: 99.1 | AA19: 24773 | AB19: All | AC19: 9.8 | AD19: 16.7 | AE19: 22.6 | AF19: 22.4 | AG19: 14.1 | AH19: 7.8 | AI19: 3.8 | AJ19: 1.7 | AK19: 26.5 | AL19: 71.5 | AM19: 98.9 | AN19: 25593
A20: Other Design and Technology | B20: Males | C20: 2.8 | D20: 7.9 | E20: 16.9 | F20: 24.3 | G20: 20.4 | H20: 13.3 | I20: 8 | J20: 3.9 | K20: 10.8 | L20: 52 | M20: 97.6 | N20: 26092 | O20: Females | P20: 9.1 | Q20: 18.3 | R20: 23.5 | S20: 21.2 | T20: 13.5 | U20: 7.5 | V20: 3.9 | W20: 2 | X20: 27.4 | Y20: 72.1 | Z20: 99 | AA20: 10761 | AB20: All | AC20: 4.7 | AD20: 11 | AE20: 18.9 | AF20: 23.4 | AG20: 18.4 | AH20: 11.6 | AI20: 6.8 | AJ20: 3.3 | AK20: 15.6 | AL20: 57.9 | AM20: 98 | AN20: 36853
A21: Applied Engineering | B21: Males | C21: x | D21: 3.9 | E21: 11.3 | F21: 21.9 | G21: 22.1 | H21: 17.6 | I21: 10.3 | J21: 6.3 | K21: 5 | L21: 38.2 | M21: 94.5 | N21: 3863 | O21: Females | P21: x | Q21: 10.1 | R21: 21.5 | S21: 22.8 | T21: 21.5 | U21: 14.9 | V21: 4.8 | W21: 3.1 | X21: 11 | Y21: 55.3 | Z21: 99.6 | AA21: 228 | AB21: All | AC21: 1 | AD21: 4.3 | AE21: 11.9 | AF21: 22 | AG21: 22.1 | AH21: 17.4 | AI21: 10 | AJ21: 6.1 | AK21: 5.3 | AL21: 39.2 | AM21: 94.7 | AN21: 4091
A22: Information Technology | B22: Males | C22: 4.4 | D22: 14.4 | E22: 22.8 | F22: 23.5 | G22: 14.4 | H22: 8.1 | I22: 5.6 | J22: 4 | K22: 18.8 | L22: 65.1 | M22: 97.2 | N22: 46552 | O22: Females | P22: 7.5 | Q22: 18.8 | R22: 23.8 | S22: 22.4 | T22: 12.3 | U22: 6.6 | V22: 3.8 | W22: 2.7 | X22: 26.3 | Y22: 72.5 | Z22: 97.9 | AA22: 35324 | AB22: All | AC22: 5.8 | AD22: 16.3 | AE22: 23.2 | AF22: 23 | AG22: 13.5 | AH22: 7.4 | AI22: 4.8 | AJ22: 3.4 | AK22: 22.1 | AL22: 68.3 | AM22: 97.5 | AN22: 81876
A23: Business Studies | B23: Males | C23: 3.1 | D23: 13.7 | E23: 23.8 | F23: 23.9 | G23: 16.2 | H23: 9.2 | I23: 5.3 | J23: 3 | K23: 16.7 | L23: 64.5 | M23: 98.2 | N23: 43774 | O23: Females | P23: 4.5 | Q23: 17.5 | R23: 25.6 | S23: 22.8 | T23: 13.9 | U23: 7.8 | V23: 4.3 | W23: 2.2 | X23: 22 | Y23: 70.4 | Z23: 98.7 | AA23: 30552 | AB23: All | AC23: 3.6 | AD23: 15.2 | AE23: 24.5 | AF23: 23.5 | AG23: 15.3 | AH23: 8.7 | AI23: 4.9 | AJ23: 2.7 | AK23: 18.9 | AL23: 66.9 | AM23: 98.4 | AN23: 74326
A24: Applied Business | B24: Males | C24: 1.8 | D24: 9.1 | E24: 18.7 | F24: 23.5 | G24: 16.8 | H24: 12 | I24: 7.4 | J24: 4.9 | K24: 10.9 | L24: 53.1 | M24: 94.2 | N24: 4852 | O24: Females | P24: 3.6 | Q24: 16.8 | R24: 23.3 | S24: 20.1 | T24: 13.9 | U24: 9.5 | V24: 5.5 | W24: 3.6 | X24: 20.4 | Y24: 63.8 | Z24: 96.2 | AA24: 3185 | AB24: All | AC24: 2.6 | AD24: 12.2 | AE24: 20.5 | AF24: 22.1 | AG24: 15.7 | AH24: 11 | AI24: 6.6 | AJ24: 4.4 | AK24: 14.7 | AL24: 57.4 | AM24: 95 | AN24: 8037
A25: Home Economics | B25: Males | C25: 0.6 | D25: 4 | E25: 13.1 | F25: 23.1 | G25: 22.6 | H25: 17.8 | I25: 10.9 | J25: 5.1 | K25: 4.6 | L25: 40.9 | M25: 97.3 | N25: 3594 | O25: Females | P25: 3 | Q25: 10.7 | R25: 19.6 | S25: 23.6 | T25: 19.7 | U25: 12.5 | V25: 6.5 | W25: 2.8 | X25: 13.7 | Y25: 56.9 | Z25: 98.4 | AA25: 24583 | AB25: All | AC25: 2.7 | AD25: 9.9 | AE25: 18.8 | AF25: 23.6 | AG25: 20 | AH25: 13.1 | AI25: 7.1 | AJ25: 3.1 | AK25: 12.5 | AL25: 54.9 | AM25: 98.2 | AN25: 28177
A26: Ancient History | B26: Males | C26: 15.5 | D26: 20.8 | E26: 19.5 | F26: 14.2 | G26: 9.4 | H26: 9.1 | I26: 4.3 | J26: 2.9 | K26: 36.3 | L26: 70.1 | M26: 95.8 | N26: 625 | O26: Females | P26: 14.8 | Q26: 24.3 | R26: 18.5 | S26: 19.7 | T26: 11.4 | U26: 6.7 | V26: 1.8 | W26: 1.8 | X26: 39.1 | Y26: 77.3 | Z26: 99 | AA26: 507 | AB26: All | AC26: 15.2 | AD26: 22.3 | AE26: 19.1 | AF26: 16.7 | AG26: 10.3 | AH26: 8 | AI26: 3.2 | AJ26: 2.4 | AK26: 37.5 | AL26: 73.3 | AM26: 97.3 | AN26: 1132
A27: Geography | B27: Males | C27: 7.3 | D27: 15 | E27: 19.7 | F27: 23.3 | G27: 16.4 | H27: 9.5 | I27: 5.1 | J27: 2.6 | K27: 22.3 | L27: 65.3 | M27: 98.9 | N27: 112281 | O27: Females | P27: 12.2 | Q27: 19.7 | R27: 21.2 | S27: 20.4 | T27: 12.6 | U27: 7.3 | V27: 4 | W27: 1.9 | X27: 31.9 | Y27: 73.6 | Z27: 99.3 | AA27: 96959 | AB27: All | AC27: 9.6 | AD27: 17.2 | AE27: 20.4 | AF27: 22 | AG27: 14.6 | AH27: 8.5 | AI27: 4.6 | AJ27: 2.3 | AK27: 26.8 | AL27: 69.1 | AM27: 99.1 | AN27: 209240
A28: History | B28: Males | C28: 7.7 | D28: 16.5 | E28: 20.7 | F28: 19.8 | G28: 14.2 | H28: 9.3 | I28: 5.8 | J28: 3.7 | K28: 24.2 | L28: 64.7 | M28: 97.6 | N28: 115413 | O28: Females | P28: 12.4 | Q28: 20.4 | R28: 21.1 | S28: 17.8 | T28: 12.1 | U28: 7.6 | V28: 4.5 | W28: 2.6 | X28: 32.8 | Y28: 71.7 | Z28: 98.5 | AA28: 122846 | AB28: All | AC28: 10.1 | AD28: 18.5 | AE28: 20.9 | AF28: 18.8 | AG28: 13.1 | AH28: 8.4 | AI28: 5.1 | AJ28: 3.1 | AK28: 28.6 | AL28: 68.3 | AM28: 98.1 | AN28: 238259
A29: Humanities | B29: Males | C29: 1.2 | D29: 5 | E29: 13.5 | F29: 19.9 | G29: 18.4 | H29: 16.1 | I29: 12.1 | J29: 7.6 | K29: 6.2 | L29: 39.6 | M29: 93.7 | N29: 5150 | O29: Females | P29: 3.1 | Q29: 9.2 | R29: 18.6 | S29: 20.7 | T29: 18.3 | U29: 13.6 | V29: 8.9 | W29: 4.8 | X29: 12.3 | Y29: 51.6 | Z29: 97.2 | AA29: 4916 | AB29: All | AC29: 2.1 | AD29: 7.1 | AE29: 16 | AF29: 20.3 | AG29: 18.3 | AH29: 14.9 | AI29: 10.5 | AJ29: 6.2 | AK29: 9.2 | AL29: 45.5 | AM29: 95.4 | AN29: 10066
A30: Economics | B30: Males | C30: 6.7 | D30: 23.8 | E30: 30 | F30: 18.7 | G30: 9.5 | H30: 5.4 | I30: 3 | J30: 1.5 | K30: 30.5 | L30: 79.2 | M30: 98.5 | N30: 3481 | O30: Females | P30: 5.3 | Q30: 26.3 | R30: 28.8 | S30: 18.6 | T30: 10.4 | U30: 5.3 | V30: 2.1 | W30: 1.7 | X30: 31.6 | Y30: 79 | Z30: 98.5 | AA30: 1445 | AB30: All | AC30: 6.3 | AD30: 24.5 | AE30: 29.6 | AF30: 18.7 | AG30: 9.8 | AH30: 5.4 | AI30: 2.7 | AJ30: 1.5 | AK30: 30.8 | AL30: 79.1 | AM30: 98.5 | AN30: 4926
A31: Social Studies | B31: Males | C31: 1.5 | D31: 8.5 | E31: 19.6 | F31: 23.9 | G31: 18.2 | H31: 12.1 | I31: 7.8 | J31: 4.7 | K31: 10 | L31: 53.5 | M31: 96.3 | N31: 20556 | O31: Females | P31: 3.9 | Q31: 16.9 | R31: 25.3 | S31: 22.6 | T31: 13.7 | U31: 8.3 | V31: 4.9 | W31: 2.4 | X31: 20.8 | Y31: 68.7 | Z31: 98.2 | AA31: 36435 | AB31: All | AC31: 3 | AD31: 13.9 | AE31: 23.3 | AF31: 23.1 | AG31: 15.3 | AH31: 9.7 | AI31: 6 | AJ31: 3.3 | AK31: 16.9 | AL31: 63.2 | AM31: 97.5 | AN31: 56991
A32: Other Classical Studies | B32: Males | C32: 11.1 | D32: 30.6 | E32: 28.5 | F32: 12.5 | G32: 9 | H32: 3.5 | I32: 2.1 | J32: x | K32: 41.7 | L32: 82.6 | M32: 98.6 | N32: 144 | O32: Females | P32: 14.5 | Q32: 30.4 | R32: 23.3 | S32: 14.5 | T32: 5.4 | U32: 3.1 | V32: 2 | W32: x | X32: 44.9 | Y32: 82.7 | Z32: 94.9 | AA32: 352 | AB32: All | AC32: 13.5 | AD32: 30.4 | AE32: 24.8 | AF32: 13.9 | AG32: 6.5 | AH32: 3.2 | AI32: 2 | AJ32: 1.6 | AK32: 44 | AL32: 82.7 | AM32: 96 | AN32: 496
A33: Arabic | B33: Males | C33: 32.7 | D33: 20.6 | E33: 12.8 | F33: 10.8 | G33: 6.4 | H33: 5 | I33: 4 | J33: 2.9 | K33: 53.4 | L33: 77 | M33: 95.3 | N33: 1368 | O33: Females | P33: 36.2 | Q33: 20.1 | R33: 13.3 | S33: 9.4 | T33: 5.6 | U33: 4.5 | V33: 4.6 | W33: 2.8 | X33: 56.3 | Y33: 78.9 | Z33: 96.4 | AA33: 1598 | AB33: All | AC33: 34.6 | AD33: 20.3 | AE33: 13 | AF33: 10 | AG33: 6 | AH33: 4.7 | AI33: 4.3 | AJ33: 2.8 | AK33: 54.9 | AL33: 78 | AM33: 95.9 | AN33: 2966
A34: Chinese | B34: Males | C34: 57.4 | D34: 17.3 | E34: 10.9 | F34: 8.3 | G34: 4.6 | H34: 1 | I34: 0.2 | J34: x | K34: 74.7 | L34: 93.9 | M34: 99.6 | N34: 1470 | O34: Females | P34: 66.7 | Q34: 15 | R34: 8.8 | S34: 6.1 | T34: 2.3 | U34: 0.5 | V34: 0.2 | W34: x | X34: 81.7 | Y34: 96.6 | Z34: 99.8 | AA34: 1360 | AB34: All | AC34: 61.9 | AD34: 16.2 | AE34: 9.9 | AF34: 7.2 | AG34: 3.5 | AH34: 0.7 | AI34: 0.2 | AJ34: x | AK34: 78.1 | AL34: 95.2 | AM34: 99.7 | AN34: 2830
A35: French | B35: Males | C35: 7.3 | D35: 11.2 | E35: 16.8 | F35: 27.2 | G35: 22.1 | H35: 9.9 | I35: 3.6 | J35: 1.3 | K35: 18.5 | L35: 62.5 | M35: 99.5 | N35: 69121 | O35: Females | P35: 11 | Q35: 15.4 | R35: 20.5 | S35: 27.1 | T35: 17.3 | U35: 5.9 | V35: 1.9 | W35: 0.6 | X35: 26.4 | Y35: 74 | Z35: 99.7 | AA35: 91834 | AB35: All | AC35: 9.4 | AD35: 13.6 | AE35: 18.9 | AF35: 27.1 | AG35: 19.4 | AH35: 7.6 | AI35: 2.6 | AJ35: 0.9 | AK35: 23 | AL35: 69 | AM35: 99.6 | AN35: 160955
A36: German | B36: Males | C36: 6.8 | D36: 12.1 | E36: 20.4 | F36: 29.1 | G36: 20 | H36: 7.6 | I36: 2.7 | J36: 0.8 | K36: 18.9 | L36: 68.4 | M36: 99.5 | N36: 28070 | O36: Females | P36: 9.7 | Q36: 16.7 | R36: 24.8 | S36: 27.3 | T36: 14.8 | U36: 4.6 | V36: 1.4 | W36: 0.4 | X36: 26.4 | Y36: 78.5 | Z36: 99.7 | AA36: 30450 | AB36: All | AC36: 8.3 | AD36: 14.5 | AE36: 22.7 | AF36: 28.2 | AG36: 17.3 | AH36: 6 | AI36: 2 | AJ36: 0.6 | AK36: 22.8 | AL36: 73.7 | AM36: 99.6 | AN36: 58520
A37: Italian | B37: Males | C37: 39.5 | D37: 18.6 | E37: 15.5 | F37: 12.5 | G37: 7.8 | H37: 3.4 | I37: 1.4 | J37: 0.5 | K37: 58.2 | L37: 86.1 | M37: 99.1 | N37: 1740 | O37: Females | P37: 40.2 | Q37: 19.8 | R37: 17.3 | S37: 12.5 | T37: 6.7 | U37: 2.1 | V37: 1.1 | W37: 0.3 | X37: 60 | Y37: 89.7 | Z37: 100 | AA37: 2328 | AB37: All | AC37: 39.9 | AD37: 19.3 | AE37: 16.5 | AF37: 12.5 | AG37: 7.2 | AH37: 2.6 | AI37: 1.2 | AJ37: 0.4 | AK37: 59.2 | AL37: 88.2 | AM37: 99.6 | AN37: 4068
A38: Polish | B38: Males | C38: 23.1 | D38: 43.1 | E38: 18.1 | F38: 7.3 | G38: 3.5 | H38: 1.6 | I38: 0.3 | J38: 1 | K38: 66.2 | L38: 91.5 | M38: 98 | N38: 1860 | O38: Females | P38: 41.2 | Q38: 38.8 | R38: 12 | S38: 4 | T38: 1.2 | U38: 0.7 | V38: 0.2 | W38: 0.5 | X38: 80 | Y38: 96.1 | Z38: 98.7 | AA38: 2088 | AB38: All | AC38: 32.7 | AD38: 40.8 | AE38: 14.9 | AF38: 5.5 | AG38: 2.3 | AH38: 1.1 | AI38: 0.3 | AJ38: 0.7 | AK38: 73.5 | AL38: 93.9 | AM38: 98.4 | AN38: 3948
A39: Spanish | B39: Males | C39: 9.3 | D39: 13 | E39: 18.4 | F39: 24.3 | G39: 18.7 | H39: 9 | I39: 4.4 | J39: 2 | K39: 22.3 | L39: 65 | M39: 99 | N39: 38078 | O39: Females | P39: 13.9 | Q39: 18.3 | R39: 20.8 | S39: 22.9 | T39: 14.3 | U39: 5.9 | V39: 2.4 | W39: 1 | X39: 32.2 | Y39: 75.9 | Z39: 99.5 | AA39: 49475 | AB39: All | AC39: 11.9 | AD39: 16 | AE39: 19.7 | AF39: 23.5 | AG39: 16.2 | AH39: 7.3 | AI39: 3.2 | AJ39: 1.4 | AK39: 27.9 | AL39: 71.2 | AM39: 99.3 | AN39: 87553
A40: Urdu | B40: Males | C40: 5.6 | D40: 17.9 | E40: 21.3 | F40: 20 | G40: 17.2 | H40: 9.4 | I40: 5.3 | J40: 1.6 | K40: 23.5 | L40: 64.7 | M40: 98.3 | N40: 1614 | O40: Females | P40: 14.5 | Q40: 27.2 | R40: 24.1 | S40: 17.6 | T40: 8.9 | U40: 4.2 | V40: 1.6 | W40: 1.1 | X40: 41.6 | Y40: 83.4 | Z40: 99.2 | AA40: 2497 | AB40: All | AC40: 11 | AD40: 23.5 | AE40: 23 | AF40: 18.5 | AG40: 12.2 | AH40: 6.2 | AI40: 3.1 | AJ40: 1.3 | AK40: 34.5 | AL40: 76.1 | AM40: 98.8 | AN40: 4111
A41: Other Modern Languages | B41: Males | C41: 32 | D41: 26.2 | E41: 18.4 | F41: 11.3 | G41: 5.8 | H41: 2.8 | I41: 1.7 | J41: 0.6 | K41: 58.2 | L41: 87.9 | M41: 98.9 | N41: 4791 | O41: Females | P41: 36.5 | Q41: 29.8 | R41: 16.4 | S41: 8.6 | T41: 4.2 | U41: 2 | V41: 0.9 | W41: 0.6 | X41: 66.3 | Y41: 91.3 | Z41: 98.9 | AA41: 5563 | AB41: All | AC41: 34.4 | AD41: 28.1 | AE41: 17.3 | AF41: 9.8 | AG41: 5 | AH41: 2.4 | AI41: 1.3 | AJ41: 0.6 | AK41: 62.5 | AL41: 89.7 | AM41: 98.9 | AN41: 10354
A42: Classical Civilisation | B42: Males | C42: 8.5 | D42: 23.7 | E42: 25.3 | F42: 20.2 | G42: 11.7 | H42: 5.5 | I42: 2.6 | J42: 1.5 | K42: 32.3 | L42: 77.8 | M42: 99.1 | N42: 2145 | O42: Females | P42: 17.4 | Q42: 27.7 | R42: 22.7 | S42: 15.7 | T42: 9.1 | U42: 4.1 | V42: 1.9 | W42: 0.8 | X42: 45.2 | Y42: 83.6 | Z42: 99.5 | AA42: 1972 | AB42: All | AC42: 12.8 | AD42: 25.6 | AE42: 24 | AF42: 18.1 | AG42: 10.5 | AH42: 4.8 | AI42: 2.3 | AJ42: 1.1 | AK42: 38.5 | AL42: 80.6 | AM42: 99.3 | AN42: 4117
A43: Classical Greek | B43: Males | C43: 59 | D43: 22 | E43: 9.9 | F43: 4.5 | G43: 2.1 | H43: 0.6 | I43: 0.7 | J43: x | K43: 81 | L43: 95.5 | M43: 99.4 | N43: 705 | O43: Females | P43: 66.7 | Q43: 19.9 | R43: 7.1 | S43: 2.1 | T43: 1.3 | U43: 1.1 | V43: 1.1 | W43: x | X43: 86.5 | Y43: 95.7 | Z43: 99.4 | AA43: 468 | AB43: All | AC43: 62.1 | AD43: 21.1 | AE43: 8.8 | AF43: 3.6 | AG43: 1.8 | AH43: 0.8 | AI43: 0.9 | AJ43: 0.4 | AK43: 83.2 | AL43: 95.6 | AM43: 99.4 | AN43: 1173
A44: Latin | B44: Males | C44: 40.6 | D44: 27.6 | E44: 15 | F44: 8.3 | G44: 4.6 | H44: 2 | I44: 1 | J44: 0.6 | K44: 68.2 | L44: 91.5 | M44: 99.6 | N44: 4302 | O44: Females | P44: 46.6 | Q44: 27.3 | R44: 12.5 | S44: 7.6 | T44: 3.4 | U44: 1.5 | V44: 0.7 | W44: 0.2 | X44: 73.9 | Y44: 94 | Z44: 99.7 | AA44: 4566 | AB44: All | AC44: 43.7 | AD44: 27.4 | AE44: 13.7 | AF44: 7.9 | AG44: 4 | AH44: 1.7 | AI44: 0.8 | AJ44: 0.4 | AK44: 71.1 | AL44: 92.8 | AM44: 99.7 | AN44: 8868
A45: Applied Art and Design | B45: Males | C45: 1.4 | D45: 5.2 | E45: 16.9 | F45: 37.3 | G45: 21 | H45: 8.7 | I45: 5.2 | J45: 2.5 | K45: 6.5 | L45: 60.8 | M45: 98.1 | N45: 367 | O45: Females | P45: 3.1 | Q45: 14.7 | R45: 27.4 | S45: 33.9 | T45: 13.5 | U45: 4.3 | V45: 1.6 | W45: 0 | X45: 17.8 | Y45: 79.1 | Z45: 98.6 | AA45: 489 | AB45: All | AC45: 2.3 | AD45: 10.6 | AE45: 22.9 | AF45: 35.4 | AG45: 16.7 | AH45: 6.2 | AI45: 3.2 | AJ45: 1.1 | AK45: 13 | AL45: 71.3 | AM45: 98.4 | AN45: 856
A46: Art and Design | B46: Males | C46: 4.7 | D46: 8 | E46: 18.1 | F46: 32.6 | G46: 17.2 | H46: 9.8 | I46: 5.3 | J46: 2.5 | K46: 12.7 | L46: 63.5 | M46: 98.2 | N46: 58109 | O46: Females | P46: 11.2 | Q46: 16.7 | R46: 27.1 | S46: 27.7 | T46: 10 | U46: 4.1 | V46: 1.8 | W46: 0.7 | X46: 27.9 | Y46: 82.7 | Z46: 99.3 | AA46: 112969 | AB46: All | AC46: 9 | AD46: 13.7 | AE46: 24 | AF46: 29.4 | AG46: 12.5 | AH46: 6 | AI46: 3 | AJ46: 1.3 | AK46: 22.7 | AL46: 76.2 | AM46: 98.9 | AN46: 171078
A47: Communication Studies | B47: Males | C47: 2 | D47: 8.1 | E47: 16.5 | F47: 24.5 | G47: 19.7 | H47: 13 | I47: 8.1 | J47: 4.4 | K47: 10.1 | L47: 51.1 | M47: 96.2 | N47: 4785 | O47: Females | P47: 8.2 | Q47: 16.4 | R47: 23 | S47: 21.6 | T47: 14.1 | U47: 7.7 | V47: 4.7 | W47: 2.4 | X47: 24.7 | Y47: 69.3 | Z47: 98.2 | AA47: 5058 | AB47: All | AC47: 5.2 | AD47: 12.4 | AE47: 19.9 | AF47: 23 | AG47: 16.8 | AH47: 10.3 | AI47: 6.3 | AJ47: 3.4 | AK47: 17.6 | AL47: 60.4 | AM47: 97.2 | AN47: 9843
A48: Dance | B48: Males | C48: 4.9 | D48: 18.2 | E48: 20.1 | F48: 19.5 | G48: 16.9 | H48: 12.3 | I48: 4.9 | J48: 2.3 | K48: 23.2 | L48: 62.8 | M48: 99.3 | N48: 811 | O48: Females | P48: 4.6 | Q48: 16.4 | R48: 21.1 | S48: 24.7 | T48: 18.2 | U48: 9.1 | V48: 3.8 | W48: 1.4 | X48: 21 | Y48: 66.8 | Z48: 99.4 | AA48: 11136 | AB48: All | AC48: 4.6 | AD48: 16.5 | AE48: 21.1 | AF48: 24.4 | AG48: 18.1 | AH48: 9.3 | AI48: 3.9 | AJ48: 1.5 | AK48: 21.1 | AL48: 66.5 | AM48: 99.4 | AN48: 11947
A49: Drama | B49: Males | C49: 3.5 | D49: 13.3 | E49: 22.7 | F49: 25.9 | G49: 18.1 | H49: 9.4 | I49: 4.3 | J49: 1.8 | K49: 16.8 | L49: 65.4 | M49: 99 | N49: 27225 | O49: Females | P49: 6.4 | Q49: 19.9 | R49: 27.5 | S49: 23.7 | T49: 13.2 | U49: 5.6 | V49: 2.3 | W49: 0.9 | X49: 26.3 | Y49: 77.5 | Z49: 99.4 | AA49: 43759 | AB49: All | AC49: 5.3 | AD49: 17.4 | AE49: 25.6 | AF49: 24.5 | AG49: 15.1 | AH49: 7 | AI49: 3 | AJ49: 1.2 | AK49: 22.7 | AL49: 72.9 | AM49: 99.2 | AN49: 70984
A50: English Literature | B50: Males | C50: 3.7 | D50: 13.1 | E50: 26.1 | F50: 27.5 | G50: 17 | H50: 7.5 | I50: 3 | J50: 1.1 | K50: 16.8 | L50: 70.4 | M50: 98.9 | N50: 193518 | O50: Females | P50: 7.6 | Q50: 21.6 | R50: 31.7 | S50: 23.2 | T50: 10.3 | U50: 3.5 | V50: 1.2 | W50: 0.4 | X50: 29.2 | Y50: 84 | Z50: 99.4 | AA50: 214587 | AB50: All | AC50: 5.7 | AD50: 17.6 | AE50: 29 | AF50: 25.2 | AG50: 13.4 | AH50: 5.4 | AI50: 2 | AJ50: 0.7 | AK50: 23.3 | AL50: 77.5 | AM50: 99.2 | AN50: 408105
A51: English Studies | B51: Males | C51: 0 | D51: 1.6 | E51: 9.4 | F51: 26.5 | G51: 22.7 | H51: 19.1 | I51: 11.9 | J51: 6.1 | K51: 1.6 | L51: 37.5 | M51: 97.3 | N51: 445 | O51: Females | P51: 0 | Q51: 3.6 | R51: 16.9 | S51: 30.8 | T51: 17.8 | U51: 10.9 | V51: 11.8 | W51: 4.7 | X51: 3.6 | Y51: 51.2 | Z51: 96.4 | AA51: 338 | AB51: All | AC51: 0 | AD51: 2.4 | AE51: 12.6 | AF51: 28.4 | AG51: 20.6 | AH51: 15.6 | AI51: 11.9 | AJ51: 5.5 | AK51: 2.4 | AL51: 43.4 | AM51: 96.9 | AN51: 783
A52: General Studies | B52: Males | C52: 1.6 | D52: 6 | E52: 11.4 | F52: 16 | G52: 18.1 | H52: 15.2 | I52: 12.5 | J52: 9.9 | K52: 7.6 | L52: 34.9 | M52: 90.6 | N52: 4595 | O52: Females | P52: 2.7 | Q52: 9.5 | R52: 14.1 | S52: 19.5 | T52: 20.6 | U52: 14.3 | V52: 9.3 | W52: 4.6 | X52: 12.1 | Y52: 45.7 | Z52: 94.5 | AA52: 4421 | AB52: All | AC52: 2.1 | AD52: 7.7 | AE52: 12.7 | AF52: 17.7 | AG52: 19.3 | AH52: 14.8 | AI52: 10.9 | AJ52: 7.3 | AK52: 9.8 | AL52: 40.2 | AM52: 92.5 | AN52: 9016
A53: Health and Social Care | B53: Males | C53: x | D53: 3.2 | E53: 8.2 | F53: 14.4 | G53: 21.7 | H53: 17.5 | I53: 11.6 | J53: 10.7 | K53: 3.5 | L53: 26.2 | M53: 87.7 | N53: 741 | O53: Females | P53: x | Q53: 8.8 | R53: 19.1 | S53: 24.2 | T53: 18.6 | U53: 11.8 | V53: 7.7 | W53: 4.1 | X53: 11.3 | Y53: 54.7 | Z53: 96.8 | AA53: 12910 | AB53: All | AC53: 2.4 | AD53: 8.5 | AE53: 18.5 | AF53: 23.7 | AG53: 18.7 | AH53: 12.1 | AI53: 7.9 | AJ53: 4.5 | AK53: 10.9 | AL53: 53.1 | AM53: 96.3 | AN53: 13651
A54: Hospitality and Catering | B54: Males | C54: x | D54: 4.8 | E54: 15.7 | F54: 24.9 | G54: 28.8 | H54: 15.3 | I54: 8.1 | J54: 1.1 | K54: 5 | L54: 45.6 | M54: 98.9 | N54: 880 | O54: Females | P54: x | Q54: 13.8 | R54: 25.1 | S54: 24.8 | T54: 16.6 | U54: 10.5 | V54: 3.8 | W54: 0.5 | X54: 17 | Y54: 66.9 | Z54: 98.5 | AA54: 1358 | AB54: All | AC54: 2 | AD54: 10.3 | AE54: 21.4 | AF54: 24.8 | AG54: 21.4 | AH54: 12.4 | AI54: 5.5 | AJ54: 0.8 | AK54: 12.3 | AL54: 58.5 | AM54: 98.6 | AN54: 2238
A55: Leisure and Tourism | B55: Males | C55: 0.3 | D55: 2.2 | E55: 6.2 | F55: 13.6 | G55: 16.6 | H55: 18.9 | I55: 14.4 | J55: 12.7 | K55: 2.5 | L55: 22.3 | M55: 85 | N55: 3241 | O55: Females | P55: 1.7 | Q55: 8.4 | R55: 13.7 | S55: 18.2 | T55: 18.2 | U55: 13.7 | V55: 10.3 | W55: 8.3 | X55: 10.1 | Y55: 42.1 | Z55: 92.7 | AA55: 3185 | AB55: All | AC55: 1 | AD55: 5.3 | AE55: 9.9 | AF55: 15.9 | AG55: 17.4 | AH55: 16.3 | AI55: 12.4 | AJ55: 10.5 | AK55: 6.3 | AL55: 32.1 | AM55: 88.8 | AN55: 6426
A56: Manufacturing | B56: Males | C56: 0 | D56: x | E56: 10.7 | F56: 15.6 | G56: x | H56: 22.1 | I56: 15.6 | J56: 8.2 | K56: x | L56: 27.9 | M56: 98.4 | N56: 122 | O56: Females | P56: 0 | Q56: x | R56: 21.4 | S56: 42.9 | T56: x | U56: 0 | V56: 21.4 | W56: 0 | X56: x | Y56: 71.4 | Z56: 100 | AA56: 14 | AB56: All | AC56: 0 | AD56: 2.2 | AE56: 11.8 | AF56: 18.4 | AG56: 22.8 | AH56: 19.9 | AI56: 16.2 | AJ56: 7.4 | AK56: 2.2 | AL56: 32.4 | AM56: 98.5 | AN56: 136
A57: Media/Film/TV | B57: Males | C57: 1.5 | D57: 7.3 | E57: 19.1 | F57: 27.1 | G57: 21 | H57: 12 | I57: 6.8 | J57: 3 | K57: 8.8 | L57: 55 | M57: 97.8 | N57: 26290 | O57: Females | P57: 5 | Q57: 18.2 | R57: 27.6 | S57: 25 | T57: 13.6 | U57: 5.8 | V57: 2.6 | W57: 1.3 | X57: 23.2 | Y57: 75.8 | Z57: 99.1 | AA57: 25038 | AB57: All | AC57: 3.2 | AD57: 12.6 | AE57: 23.3 | AF57: 26.1 | AG57: 17.4 | AH57: 9 | AI57: 4.7 | AJ57: 2.2 | AK57: 15.8 | AL57: 65.2 | AM57: 98.4 | AN57: 51328
A58: Music | B58: Males | C58: 8.6 | D58: 20.5 | E58: 23.6 | F58: 19.5 | G58: 12.8 | H58: 7.8 | I58: 3.6 | J58: 2 | K58: 29.1 | L58: 72.3 | M58: 98.5 | N58: 20902 | O58: Females | P58: 9.3 | Q58: 23.7 | R58: 26.7 | S58: 19.1 | T58: 11.1 | U58: 5.6 | V58: 2.4 | W58: 1.2 | X58: 33.1 | Y58: 78.9 | Z58: 99.2 | AA58: 21544 | AB58: All | AC58: 9 | AD58: 22.2 | AE58: 25.2 | AF58: 19.3 | AG58: 11.9 | AH58: 6.7 | AI58: 3 | AJ58: 1.6 | AK58: 31.1 | AL58: 75.6 | AM58: 98.8 | AN58: 42446
A59: Performing Arts | B59: Males | C59: 3.7 | D59: 6.8 | E59: 14 | F59: 23.5 | G59: 17.3 | H59: 14.5 | I59: 12 | J59: 5.1 | K59: 10.5 | L59: 47.9 | M59: 96.9 | N59: 1362 | O59: Females | P59: 9.4 | Q59: 11.6 | R59: 21.7 | S59: 24.6 | T59: 17 | U59: 8.3 | V59: 4.1 | W59: 2 | X59: 21 | Y59: 67.3 | Z59: 98.7 | AA59: 3142 | AB59: All | AC59: 7.7 | AD59: 10.1 | AE59: 19.4 | AF59: 24.2 | AG59: 17.1 | AH59: 10.2 | AI59: 6.5 | AJ59: 3 | AK59: 17.8 | AL59: 61.4 | AM59: 98.2 | AN59: 4504
A60: Physical Education | B60: Males | C60: 2.8 | D60: 13.9 | E60: 24.8 | F60: 27 | G60: 18.3 | H60: 9.1 | I60: 3 | J60: 0.7 | K60: 16.7 | L60: 68.5 | M60: 99.7 | N60: 67810 | O60: Females | P60: 6.2 | Q60: 18.8 | R60: 24.4 | S60: 22.6 | T60: 15.8 | U60: 8.1 | V60: 3 | W60: 0.8 | X60: 25 | Y60: 72 | Z60: 99.6 | AA60: 34784 | AB60: All | AC60: 3.9 | AD60: 15.6 | AE60: 24.7 | AF60: 25.5 | AG60: 17.5 | AH60: 8.8 | AI60: 3 | AJ60: 0.7 | AK60: 19.5 | AL60: 69.7 | AM60: 99.7 | AN60: 102594
A61: Religious Studies | B61: Males | C61: 7 | D61: 15.3 | E61: 21.8 | F61: 20.3 | G61: 13.4 | H61: 9.1 | I61: 5.9 | J61: 3.9 | K61: 22.2 | L61: 64.4 | M61: 96.7 | N61: 120566 | O61: Females | P61: 14.8 | Q61: 22.8 | R61: 23.4 | S61: 16.8 | T61: 9.6 | U61: 5.8 | V61: 3.3 | W61: 1.9 | X61: 37.6 | Y61: 77.9 | Z61: 98.4 | AA61: 138793 | AB61: All | AC61: 11.2 | AD61: 19.3 | AE61: 22.7 | AF61: 18.5 | AG61: 11.4 | AH61: 7.3 | AI61: 4.5 | AJ61: 2.9 | AK61: 30.4 | AL61: 71.6 | AM61: 97.6 | AN61: 259359
A62: Statistics | B62: Males | C62: 4.8 | D62: 16.5 | E62: 22.7 | F62: 27.6 | G62: 15.4 | H62: 5.9 | I62: 2.8 | J62: 1.7 | K62: 21.3 | L62: 71.6 | M62: 97.4 | N62: 26152 | O62: Females | P62: 5.3 | Q62: 17.7 | R62: 24.5 | S62: 29.4 | T62: 12.9 | U62: 4.8 | V62: 2.2 | W62: 1.1 | X62: 23.1 | Y62: 77 | Z62: 98 | AA62: 22902 | AB62: All | AC62: 5 | AD62: 17.1 | AE62: 23.5 | AF62: 28.4 | AG62: 14.2 | AH62: 5.4 | AI62: 2.5 | AJ62: 1.4 | AK62: 22.1 | AL62: 74.1 | AM62: 97.7 | AN62: 49054
A63: Vocational Studies | B63: Males | C63: 1 | D63: 5.8 | E63: 16.4 | F63: 27.3 | G63: 24.5 | H63: 14.1 | I63: 6.5 | J63: 2.6 | K63: 6.8 | L63: 50.5 | M63: 98.3 | N63: 19028 | O63: Females | P63: 3.4 | Q63: 13.6 | R63: 24.2 | S63: 26.3 | T63: 17.9 | U63: 8.8 | V63: 3.6 | W63: 1.3 | X63: 17 | Y63: 67.5 | Z63: 99.2 | AA63: 21043 | AB63: All | AC63: 2.3 | AD63: 9.9 | AE63: 20.5 | AF63: 26.7 | AG63: 21.1 | AH63: 11.3 | AI63: 5 | AJ63: 2 | AK63: 12.2 | AL63: 59.4 | AM63: 98.7 | AN63: 40071
A64: All Subjects | B64: Males | C64: 5.6 | D64: 12.8 | E64: 21.1 | F64: 26.8 | G64: 16.3 | H64: 8.4 | I64: 4.5 | J64: 2.4 | K64: 18.4 | L64: 66.3 | M64: 97.9 | N64: 2284001 | O64: Females | P64: 8.6 | Q64: 17.4 | R64: 24.2 | S64: 25.2 | T64: 12.9 | U64: 5.9 | V64: 2.9 | W64: 1.5 | X64: 25.9 | Y64: 75.4 | Z64: 98.6 | AA64: 2372286 | AB64: All | AC64: 7.1 | AD64: 15.1 | AE64: 22.7 | AF64: 26 | AG64: 14.6 | AH64: 7.1 | AI64: 3.7 | AJ64: 1.9 | AK64: 22.3 | AL64: 70.9 | AM64: 98.3 | AN64: 4656287
A69: DISC3B
A70: Subject | B70: (No column name) | C70: * | D70: A | E70: B | F70: C | G70: D | H70: E | I70: F | J70: G | K70: AstarA | L70: AstarC | M70: AstarG | N70: Total | O70: (No column name) | P70: * | Q70: A | R70: B | S70: C | T70: D | U70: E | V70: F | W70: G | X70: AstarA | Y70: AstarC | Z70: AstarG | AA70: Total | AB70: (No column name) | AC70: * | AD70: A | AE70: B | AF70: C | AG70: D | AH70: E | AI70: F | AJ70: G | AK70: AstarA | AL70: AstarC | AM70: AstarG | AN70: Total
A71: English | B71: Males | C71: 6112 | D71: 21803 | E71: 48427 | F71: 72530 | G71: 45407 | H71: 20850 | I71: 8737 | J71: 3385 | K71: 27915 | L71: 148872 | M71: 227251 | N71: 229932 | O71: Females | P71: 13897 | Q71: 39858 | R71: 65906 | S71: 67352 | T71: 30373 | U71: 10355 | V71: 3583 | W71: 1376 | X71: 53755 | Y71: 187013 | Z71: 232700 | AA71: 234257 | AB71: All | AC71: 20009 | AD71: 61661 | AE71: 114333 | AF71: 139882 | AG71: 75780 | AH71: 31205 | AI71: 12320 | AJ71: 4761 | AK71: 81670 | AL71: 335885 | AM71: 459951 | AN71: 464189
A72: Mathematics | B72: Males | C72: 21690 | D72: 34860 | E72: 56181 | F72: 91311 | G72: 37250 | H72: 18835 | I72: 14628 | J72: 11817 | K72: 56550 | L72: 204042 | M72: 286572 | N72: 303147 | O72: Females | P72: 18973 | Q72: 34730 | R72: 57214 | S72: 90975 | T72: 36556 | U72: 17371 | V72: 13072 | W72: 10290 | X72: 53703 | Y72: 201892 | Z72: 279181 | AA72: 293691 | AB72: All | AC72: 40663 | AD72: 69590 | AE72: 113395 | AF72: 182286 | AG72: 73806 | AH72: 36206 | AI72: 27700 | AJ72: 22107 | AK72: 110253 | AL72: 405934 | AM72: 565753 | AN72: 596838
A73: Core Science | B73: Males | C73: 1804 | D73: 10172 | E73: 29826 | F73: 61059 | G73: 34771 | H73: 19561 | I73: 10300 | J73: 4337 | K73: 11976 | L73: 102861 | M73: 171830 | N73: 175051 | O73: Females | P73: 3038 | Q73: 15101 | R73: 36589 | S73: 61211 | T73: 31193 | U73: 16599 | V73: 8232 | W73: 3232 | X73: 18139 | Y73: 115939 | Z73: 175195 | AA73: 177855 | AB73: All | AC73: 4842 | AD73: 25273 | AE73: 66415 | AF73: 122270 | AG73: 65964 | AH73: 36160 | AI73: 18532 | AJ73: 7569 | AK73: 30115 | AL73: 218800 | AM73: 347025 | AN73: 352906
A74: Additional Science | B74: Males | C74: 2566 | D74: 10592 | E74: 26870 | F74: 42608 | G74: 28740 | H74: 11974 | I74: 5139 | J74: 2000 | K74: 13158 | L74: 82636 | M74: 130489 | N74: 131575 | O74: Females | P74: 3705 | Q74: 14289 | R74: 32714 | S74: 45164 | T74: 27147 | U74: 10249 | V74: 4027 | W74: 1468 | X74: 17994 | Y74: 95872 | Z74: 138763 | AA74: 139627 | AB74: All | AC74: 6271 | AD74: 24881 | AE74: 59584 | AF74: 87772 | AG74: 55887 | AH74: 22223 | AI74: 9166 | AJ74: 3468 | AK74: 31152 | AL74: 178508 | AM74: 269252 | AN74: 271202
A75: Further Additional Science | B75: Males | C75: 1065 | D75: 2192 | E75: 2873 | F75: 2660 | G75: 1297 | H75: 383 | I75: 81 | J75: 26 | K75: 3257 | L75: 8790 | M75: 10577 | N75: 10607 | O75: Females | P75: 1208 | Q75: 2342 | R75: 2920 | S75: 2468 | T75: 1103 | U75: 289 | V75: 55 | W75: 24 | X75: 3550 | Y75: 8938 | Z75: 10409 | AA75: 10429 | AB75: All | AC75: 2273 | AD75: 4534 | AE75: 5793 | AF75: 5128 | AG75: 2400 | AH75: 672 | AI75: 136 | AJ75: 50 | AK75: 6807 | AL75: 17728 | AM75: 20986 | AN75: 21036
A76: Additional Applied Science | B76: Males | C76: 0 | D76: 59 | E76: 344 | F76: 1324 | G76: 1940 | H76: 1554 | I76: 858 | J76: 339 | K76: 59 | L76: 1727 | M76: 6418 | N76: 6616 | O76: Females | P76: 10 | Q76: 81 | R76: 653 | S76: 1768 | T76: 2053 | U76: 1236 | V76: 570 | W76: 197 | X76: 91 | Y76: 2512 | Z76: 6568 | AA76: 6697 | AB76: All | AC76: 10 | AD76: 140 | AE76: 997 | AF76: 3092 | AG76: 3993 | AH76: 2790 | AI76: 1428 | AJ76: 536 | AK76: 150 | AL76: 4239 | AM76: 12986 | AN76: 13313
A77: Physics | B77: Males | C77: 9460 | D77: 17797 | E77: 19025 | F77: 13347 | G77: 4401 | H77: 802 | I77: 187 | J77: 65 | K77: 27257 | L77: 59629 | M77: 65084 | N77: 65148 | O77: Females | P77: 10091 | Q77: 17292 | R77: 18378 | S77: 12771 | T77: 4080 | U77: 749 | V77: 132 | W77: 48 | X77: 27383 | Y77: 58532 | Z77: 63541 | AA77: 63604 | AB77: All | AC77: 19551 | AD77: 35089 | AE77: 37403 | AF77: 26118 | AG77: 8481 | AH77: 1551 | AI77: 319 | AJ77: 113 | AK77: 54640 | AL77: 118161 | AM77: 128625 | AN77: 128752
A78: Chemistry | B78: Males | C78: 8614 | D78: 17537 | E78: 19173 | F78: 13913 | G78: 5070 | H78: 1100 | I78: 253 | J78: 86 | K78: 26151 | L78: 59237 | M78: 65746 | N78: 65818 | O78: Females | P78: 10693 | Q78: 18734 | R78: 18121 | S78: 11415 | T78: 3781 | U78: 793 | V78: 178 | W78: 51 | X78: 29427 | Y78: 58963 | Z78: 63766 | AA78: 63841 | AB78: All | AC78: 19307 | AD78: 36271 | AE78: 37294 | AF78: 25328 | AG78: 8851 | AH78: 1893 | AI78: 431 | AJ78: 137 | AK78: 55578 | AL78: 118200 | AM78: 129512 | AN78: 129659
A79: Biological Sciences | B79: Males | C79: 7521 | D79: 17709 | E79: 20331 | F79: 14679 | G79: 5053 | H79: 1152 | I79: 426 | J79: 186 | K79: 25230 | L79: 60240 | M79: 67057 | N79: 67270 | O79: Females | P79: 10953 | Q79: 19676 | R79: 18814 | S79: 11254 | T79: 3608 | U79: 792 | V79: 319 | W79: 137 | X79: 30629 | Y79: 60697 | Z79: 65553 | AA79: 65698 | AB79: All | AC79: 18474 | AD79: 37385 | AE79: 39145 | AF79: 25933 | AG79: 8661 | AH79: 1944 | AI79: 745 | AJ79: 323 | AK79: 55859 | AL79: 120937 | AM79: 132610 | AN79: 132968
A80: Computer Science | B80: Males | C80: 812 | D80: 2229 | E80: 2866 | F80: 2738 | G80: 1885 | H80: 1185 | I80: 728 | J80: 462 | K80: 3041 | L80: 8645 | M80: 12905 | N80: 13428 | O80: Females | P80: 197 | Q80: 460 | R80: 516 | S80: 503 | T80: 322 | U80: 176 | V80: 88 | W80: 40 | X80: 657 | Y80: 1676 | Z80: 2302 | AA80: 2374 | AB80: All | AC80: 1009 | AD80: 2689 | AE80: 3382 | AF80: 3241 | AG80: 2207 | AH80: 1361 | AI80: 816 | AJ80: 502 | AK80: 3698 | AL80: 10321 | AM80: 15207 | AN80: 15802
A81: Other Sciences | B81: Males | C81: 437 | D81: 614 | E81: 689 | F81: 714 | G81: 655 | H81: 502 | I81: 354 | J81: 206 | K81: 1051 | L81: 2454 | M81: 4171 | N81: 4288 | O81: Females | P81: 113 | Q81: 248 | R81: 464 | S81: 557 | T81: 446 | U81: 329 | V81: 212 | W81: 137 | X81: 361 | Y81: 1382 | Z81: 2506 | AA81: 2580 | AB81: All | AC81: 550 | AD81: 862 | AE81: 1153 | AF81: 1271 | AG81: 1101 | AH81: 831 | AI81: 566 | AJ81: 343 | AK81: 1412 | AL81: 3836 | AM81: 6677 | AN81: 6868
A82: D & T: Electronic Products | B82: Males | C82: 534 | D82: 1116 | E82: 1648 | F82: 1611 | G82: 1141 | H82: 762 | I82: 469 | J82: 261 | K82: 1650 | L82: 4909 | M82: 7542 | N82: 7692 | O82: Females | P82: 107 | Q82: 164 | R82: 154 | S82: 83 | T82: 60 | U82: 37 | V82: 10 | W82: 8 | X82: 271 | Y82: 508 | Z82: 623 | AA82: 628 | AB82: All | AC82: 641 | AD82: 1280 | AE82: 1802 | AF82: 1694 | AG82: 1201 | AH82: 799 | AI82: 479 | AJ82: 269 | AK82: 1921 | AL82: 5417 | AM82: 8165 | AN82: 8320
A83: D & T: Food Technology | B83: Males | C83: 226 | D83: 874 | E83: 2106 | F83: 3637 | G83: 3468 | H83: 2347 | I83: 1364 | J83: 613 | K83: 1100 | L83: 6843 | M83: 14635 | N83: 14951 | O83: Females | P83: 1850 | Q83: 4321 | R83: 6073 | S83: 5941 | T83: 3827 | U83: 2044 | V83: 980 | W83: 384 | X83: 6171 | Y83: 18185 | Z83: 25420 | AA83: 25639 | AB83: All | AC83: 2076 | AD83: 5195 | AE83: 8179 | AF83: 9578 | AG83: 7295 | AH83: 4391 | AI83: 2344 | AJ83: 997 | AK83: 7271 | AL83: 25028 | AM83: 40055 | AN83: 40590
A84: D & T: Graphic Products | B84: Males | C84: 583 | D84: 1795 | E84: 3515 | F84: 4765 | G84: 4157 | H84: 2699 | I84: 1728 | J84: 1040 | K84: 2378 | L84: 10658 | M84: 20282 | N84: 20953 | O84: Females | P84: 1012 | Q84: 2395 | R84: 3037 | S84: 2750 | T84: 1815 | U84: 971 | V84: 523 | W84: 266 | X84: 3407 | Y84: 9194 | Z84: 12769 | AA84: 12921 | AB84: All | AC84: 1595 | AD84: 4190 | AE84: 6552 | AF84: 7515 | AG84: 5972 | AH84: 3670 | AI84: 2251 | AJ84: 1306 | AK84: 5785 | AL84: 19852 | AM84: 33051 | AN84: 33874
A85: D & T: Resistant Materials | B85: Males | C85: 1296 | D85: 3973 | E85: 8216 | F85: 11007 | G85: 8864 | H85: 5728 | I85: 3405 | J85: 1648 | K85: 5269 | L85: 24492 | M85: 44137 | N85: 45024 | O85: Females | P85: 676 | Q85: 1431 | R85: 1851 | S85: 1644 | T85: 1072 | U85: 569 | V85: 287 | W85: 160 | X85: 2107 | Y85: 5602 | Z85: 7690 | AA85: 7760 | AB85: All | AC85: 1972 | AD85: 5404 | AE85: 10067 | AF85: 12651 | AG85: 9936 | AH85: 6297 | AI85: 3692 | AJ85: 1808 | AK85: 7376 | AL85: 30094 | AM85: 51827 | AN85: 52784
A86: D & T: Systems & Control | B86: Males | C86: 251 | D86: 408 | E86: 631 | F86: 681 | G86: 512 | H86: 294 | I86: 185 | J86: 87 | K86: 659 | L86: 1971 | M86: 3049 | N86: 3091 | O86: Females | P86: 7 | Q86: 30 | R86: 29 | S86: 34 | T86: 31 | U86: 10 | V86: 6 | W86: 1 | X86: 37 | Y86: 100 | Z86: 148 | AA86: 150 | AB86: All | AC86: 258 | AD86: 438 | AE86: 660 | AF86: 715 | AG86: 543 | AH86: 304 | AI86: 191 | AJ86: 88 | AK86: 696 | AL86: 2071 | AM86: 3197 | AN86: 3241
A87: D & T: Textiles Technology | B87: Males | C87: 24 | D87: 33 | E87: 79 | F87: 162 | G87: 164 | H87: 144 | I87: 120 | J87: 48 | K87: 57 | L87: 298 | M87: 774 | N87: 820 | O87: Females | P87: 2475 | Q87: 4243 | R87: 5695 | S87: 5581 | T87: 3456 | U87: 1854 | V87: 850 | W87: 390 | X87: 6718 | Y87: 17994 | Z87: 24544 | AA87: 24773 | AB87: All | AC87: 2499 | AD87: 4276 | AE87: 5774 | AF87: 5743 | AG87: 3620 | AH87: 1998 | AI87: 970 | AJ87: 438 | AK87: 6775 | AL87: 18292 | AM87: 25318 | AN87: 25593
A88: Other Design and Technology | B88: Males | C88: 740 | D88: 2066 | E88: 4417 | F88: 6349 | G88: 5320 | H88: 3460 | I88: 2095 | J88: 1006 | K88: 2806 | L88: 13572 | M88: 25453 | N88: 26092 | O88: Females | P88: 977 | Q88: 1970 | R88: 2531 | S88: 2283 | T88: 1456 | U88: 805 | V88: 417 | W88: 215 | X88: 2947 | Y88: 7761 | Z88: 10654 | AA88: 10761 | AB88: All | AC88: 1717 | AD88: 4036 | AE88: 6948 | AF88: 8632 | AG88: 6776 | AH88: 4265 | AI88: 2512 | AJ88: 1221 | AK88: 5753 | AL88: 21333 | AM88: 36107 | AN88: 36853
A89: Applied Engineering | B89: Males | C89: 40 | D89: 152 | E89: 438 | F89: 846 | G89: 854 | H89: 678 | I89: 399 | J89: 242 | K89: 192 | L89: 1476 | M89: 3649 | N89: 3863 | O89: Females | P89: 2 | Q89: 23 | R89: 49 | S89: 52 | T89: 49 | U89: 34 | V89: 11 | W89: 7 | X89: 25 | Y89: 126 | Z89: 227 | AA89: 228 | AB89: All | AC89: 42 | AD89: 175 | AE89: 487 | AF89: 898 | AG89: 903 | AH89: 712 | AI89: 410 | AJ89: 249 | AK89: 217 | AL89: 1602 | AM89: 3876 | AN89: 4091
A90: Information Technology | B90: Males | C90: 2056 | D90: 6699 | E90: 10596 | F90: 10960 | G90: 6726 | H90: 3751 | I90: 2609 | J90: 1856 | K90: 8755 | L90: 30311 | M90: 45253 | N90: 46552 | O90: Females | P90: 2660 | Q90: 6643 | R90: 8419 | S90: 7896 | T90: 4330 | U90: 2323 | V90: 1359 | W90: 953 | X90: 9303 | Y90: 25618 | Z90: 34583 | AA90: 35324 | AB90: All | AC90: 4716 | AD90: 13342 | AE90: 19015 | AF90: 18856 | AG90: 11056 | AH90: 6074 | AI90: 3968 | AJ90: 2809 | AK90: 18058 | AL90: 55929 | AM90: 79836 | AN90: 81876
A91: Business Studies | B91: Males | C91: 1336 | D91: 5989 | E91: 10422 | F91: 10474 | G91: 7105 | H91: 4041 | I91: 2332 | J91: 1303 | K91: 7325 | L91: 28221 | M91: 43002 | N91: 43774 | O91: Females | P91: 1372 | Q91: 5336 | R91: 7821 | S91: 6971 | T91: 4253 | U91: 2392 | V91: 1320 | W91: 684 | X91: 6708 | Y91: 21500 | Z91: 30149 | AA91: 30552 | AB91: All | AC91: 2708 | AD91: 11325 | AE91: 18243 | AF91: 17445 | AG91: 11358 | AH91: 6433 | AI91: 3652 | AJ91: 1987 | AK91: 14033 | AL91: 49721 | AM91: 73151 | AN91: 74326
A92: Applied Business | B92: Males | C92: 89 | D92: 442 | E92: 908 | F92: 1138 | G92: 816 | H92: 581 | I92: 360 | J92: 237 | K92: 531 | L92: 2577 | M92: 4571 | N92: 4852 | O92: Females | P92: 116 | Q92: 535 | R92: 742 | S92: 640 | T92: 443 | U92: 301 | V92: 174 | W92: 114 | X92: 651 | Y92: 2033 | Z92: 3065 | AA92: 3185 | AB92: All | AC92: 205 | AD92: 977 | AE92: 1650 | AF92: 1778 | AG92: 1259 | AH92: 882 | AI92: 534 | AJ92: 351 | AK92: 1182 | AL92: 4610 | AM92: 7636 | AN92: 8037
A93: Home Economics | B93: Males | C93: 21 | D93: 145 | E93: 471 | F93: 832 | G93: 814 | H93: 639 | I93: 393 | J93: 183 | K93: 166 | L93: 1469 | M93: 3498 | N93: 3594 | O93: Females | P93: 734 | Q93: 2634 | R93: 4819 | S93: 5809 | T93: 4831 | U93: 3063 | V93: 1596 | W93: 695 | X93: 3368 | Y93: 13996 | Z93: 24181 | AA93: 24583 | AB93: All | AC93: 755 | AD93: 2779 | AE93: 5290 | AF93: 6641 | AG93: 5645 | AH93: 3702 | AI93: 1989 | AJ93: 878 | AK93: 3534 | AL93: 15465 | AM93: 27679 | AN93: 28177
A94: Ancient History | B94: Males | C94: 97 | D94: 130 | E94: 122 | F94: 89 | G94: 59 | H94: 57 | I94: 27 | J94: 18 | K94: 227 | L94: 438 | M94: 599 | N94: 625 | O94: Females | P94: 75 | Q94: 123 | R94: 94 | S94: 100 | T94: 58 | U94: 34 | V94: 9 | W94: 9 | X94: 198 | Y94: 392 | Z94: 502 | AA94: 507 | AB94: All | AC94: 172 | AD94: 253 | AE94: 216 | AF94: 189 | AG94: 117 | AH94: 91 | AI94: 36 | AJ94: 27 | AK94: 425 | AL94: 830 | AM94: 1101 | AN94: 1132
A95: Geography | B95: Males | C95: 8243 | D95: 16787 | E95: 22096 | F95: 26147 | G95: 18415 | H95: 10722 | I95: 5778 | J95: 2908 | K95: 25030 | L95: 73273 | M95: 111096 | N95: 112281 | O95: Females | P95: 11822 | Q95: 19122 | R95: 20580 | S95: 19793 | T95: 12238 | U95: 7036 | V95: 3861 | W95: 1852 | X95: 30944 | Y95: 71317 | Z95: 96304 | AA95: 96959 | AB95: All | AC95: 20065 | AD95: 35909 | AE95: 42676 | AF95: 45940 | AG95: 30653 | AH95: 17758 | AI95: 9639 | AJ95: 4760 | AK95: 55974 | AL95: 144590 | AM95: 207400 | AN95: 209240
A96: History | B96: Males | C96: 8941 | D96: 19025 | E96: 23853 | F96: 22889 | G96: 16334 | H96: 10703 | I96: 6705 | J96: 4244 | K96: 27966 | L96: 74708 | M96: 112694 | N96: 115413 | O96: Females | P96: 15241 | Q96: 25028 | R96: 25944 | S96: 21919 | T96: 14846 | U96: 9323 | V96: 5520 | W96: 3237 | X96: 40269 | Y96: 88132 | Z96: 121058 | AA96: 122846 | AB96: All | AC96: 24182 | AD96: 44053 | AE96: 49797 | AF96: 44808 | AG96: 31180 | AH96: 20026 | AI96: 12225 | AJ96: 7481 | AK96: 68235 | AL96: 162840 | AM96: 233752 | AN96: 238259
A97: Humanities | B97: Males | C97: 62 | D97: 259 | E97: 694 | F97: 1023 | G97: 947 | H97: 831 | I97: 621 | J97: 390 | K97: 321 | L97: 2038 | M97: 4827 | N97: 5150 | O97: Females | P97: 154 | Q97: 453 | R97: 914 | S97: 1018 | T97: 899 | U97: 669 | V97: 436 | W97: 236 | X97: 607 | Y97: 2539 | Z97: 4779 | AA97: 4916 | AB97: All | AC97: 216 | AD97: 712 | AE97: 1608 | AF97: 2041 | AG97: 1846 | AH97: 1500 | AI97: 1057 | AJ97: 626 | AK97: 928 | AL97: 4577 | AM97: 9606 | AN97: 10066
A98: Economics | B98: Males | C98: 234 | D98: 828 | E98: 1044 | F98: 650 | G98: 331 | H98: 187 | I98: 104 | J98: 51 | K98: 1062 | L98: 2756 | M98: 3429 | N98: 3481 | O98: Females | P98: 77 | Q98: 380 | R98: 416 | S98: 269 | T98: 150 | U98: 77 | V98: 31 | W98: 24 | X98: 457 | Y98: 1142 | Z98: 1424 | AA98: 1445 | AB98: All | AC98: 311 | AD98: 1208 | AE98: 1460 | AF98: 919 | AG98: 481 | AH98: 264 | AI98: 135 | AJ98: 75 | AK98: 1519 | AL98: 3898 | AM98: 4853 | AN98: 4926
A99: Social Studies | B99: Males | C99: 300 | D99: 1750 | E99: 4024 | F99: 4916 | G99: 3744 | H99: 2486 | I99: 1611 | J99: 971 | K99: 2050 | L99: 10990 | M99: 19802 | N99: 20556 | O99: Females | P99: 1422 | Q99: 6152 | R99: 9235 | S99: 8231 | T99: 5000 | U99: 3040 | V99: 1794 | W99: 888 | X99: 7574 | Y99: 25040 | Z99: 35762 | AA99: 36435 | AB99: All | AC99: 1722 | AD99: 7902 | AE99: 13259 | AF99: 13147 | AG99: 8744 | AH99: 5526 | AI99: 3405 | AJ99: 1859 | AK99: 9624 | AL99: 36030 | AM99: 55564 | AN99: 56991
A100: Other Classical Studies | B100: Males | C100: 16 | D100: 44 | E100: 41 | F100: 18 | G100: 13 | H100: 5 | I100: 3 | J100: 2 | K100: 60 | L100: 119 | M100: 142 | N100: 144 | O100: Females | P100: 51 | Q100: 107 | R100: 82 | S100: 51 | T100: 19 | U100: 11 | V100: 7 | W100: 6 | X100: 158 | Y100: 291 | Z100: 334 | AA100: 352 | AB100: All | AC100: 67 | AD100: 151 | AE100: 123 | AF100: 69 | AG100: 32 | AH100: 16 | AI100: 10 | AJ100: 8 | AK100: 218 | AL100: 410 | AM100: 476 | AN100: 496
A101: Arabic | B101: Males | C101: 448 | D101: 282 | E101: 175 | F101: 148 | G101: 88 | H101: 68 | I101: 55 | J101: 40 | K101: 730 | L101: 1053 | M101: 1304 | N101: 1368 | O101: Females | P101: 578 | Q101: 321 | R101: 212 | S101: 150 | T101: 89 | U101: 72 | V101: 74 | W101: 44 | X101: 899 | Y101: 1261 | Z101: 1540 | AA101: 1598 | AB101: All | AC101: 1026 | AD101: 603 | AE101: 387 | AF101: 298 | AG101: 177 | AH101: 140 | AI101: 129 | AJ101: 84 | AK101: 1629 | AL101: 2314 | AM101: 2844 | AN101: 2966
A102: Chinese | B102: Males | C102: 844 | D102: 254 | E102: 160 | F102: 122 | G102: 67 | H102: 14 | I102: 3 | J102: 0 | K102: 1098 | L102: 1380 | M102: 1464 | N102: 1470 | O102: Females | P102: 907 | Q102: 204 | R102: 120 | S102: 83 | T102: 31 | U102: 7 | V102: 3 | W102: 2 | X102: 1111 | Y102: 1314 | Z102: 1357 | AA102: 1360 | AB102: All | AC102: 1751 | AD102: 458 | AE102: 280 | AF102: 205 | AG102: 98 | AH102: 21 | AI102: 6 | AJ102: 2 | AK102: 2209 | AL102: 2694 | AM102: 2821 | AN102: 2830
A103: French | B103: Males | C103: 5067 | D103: 7752 | E103: 11585 | F103: 18782 | G103: 15303 | H103: 6826 | I103: 2519 | J103: 928 | K103: 12819 | L103: 43186 | M103: 68762 | N103: 69121 | O103: Females | P103: 10106 | Q103: 14165 | R103: 18785 | S103: 24868 | T103: 15916 | U103: 5440 | V103: 1731 | W103: 551 | X103: 24271 | Y103: 67924 | Z103: 91562 | AA103: 91834 | AB103: All | AC103: 15173 | AD103: 21917 | AE103: 30370 | AF103: 43650 | AG103: 31219 | AH103: 12266 | AI103: 4250 | AJ103: 1479 | AK103: 37090 | AL103: 111110 | AM103: 160324 | AN103: 160955
A104: German | B104: Males | C104: 1922 | D104: 3389 | E104: 5738 | F104: 8159 | G104: 5600 | H104: 2127 | I104: 767 | J104: 221 | K104: 5311 | L104: 19208 | M104: 27923 | N104: 28070 | O104: Females | P104: 2939 | Q104: 5097 | R104: 7556 | S104: 8317 | T104: 4504 | U104: 1409 | V104: 424 | W104: 110 | X104: 8036 | Y104: 23909 | Z104: 30356 | AA104: 30450 | AB104: All | AC104: 4861 | AD104: 8486 | AE104: 13294 | AF104: 16476 | AG104: 10104 | AH104: 3536 | AI104: 1191 | AJ104: 331 | AK104: 13347 | AL104: 43117 | AM104: 58279 | AN104: 58520
A105: Italian | B105: Males | C105: 688 | D105: 324 | E105: 269 | F105: 217 | G105: 136 | H105: 59 | I105: 24 | J105: 8 | K105: 1012 | L105: 1498 | M105: 1725 | N105: 1740 | O105: Females | P105: 936 | Q105: 460 | R105: 402 | S105: 291 | T105: 156 | U105: 48 | V105: 26 | W105: 8 | X105: 1396 | Y105: 2089 | Z105: 2327 | AA105: 2328 | AB105: All | AC105: 1624 | AD105: 784 | AE105: 671 | AF105: 508 | AG105: 292 | AH105: 107 | AI105: 50 | AJ105: 16 | AK105: 2408 | AL105: 3587 | AM105: 4052 | AN105: 4068
A106: Polish | B106: Males | C106: 429 | D106: 802 | E106: 336 | F106: 135 | G106: 65 | H106: 30 | I106: 6 | J106: 19 | K106: 1231 | L106: 1702 | M106: 1822 | N106: 1860 | O106: Females | P106: 861 | Q106: 810 | R106: 251 | S106: 84 | T106: 26 | U106: 14 | V106: 5 | W106: 10 | X106: 1671 | Y106: 2006 | Z106: 2061 | AA106: 2088 | AB106: All | AC106: 1290 | AD106: 1612 | AE106: 587 | AF106: 219 | AG106: 91 | AH106: 44 | AI106: 11 | AJ106: 29 | AK106: 2902 | AL106: 3708 | AM106: 3883 | AN106: 3948
A107: Spanish | B107: Males | C107: 3533 | D107: 4958 | E107: 7002 | F107: 9259 | G107: 7113 | H107: 3434 | I107: 1657 | J107: 753 | K107: 8491 | L107: 24752 | M107: 37709 | N107: 38078 | O107: Females | P107: 6890 | Q107: 9041 | R107: 10287 | S107: 11341 | T107: 7098 | U107: 2921 | V107: 1170 | W107: 481 | X107: 15931 | Y107: 37559 | Z107: 49229 | AA107: 49475 | AB107: All | AC107: 10423 | AD107: 13999 | AE107: 17289 | AF107: 20600 | AG107: 14211 | AH107: 6355 | AI107: 2827 | AJ107: 1234 | AK107: 24422 | AL107: 62311 | AM107: 86938 | AN107: 87553
A108: Urdu | B108: Males | C108: 91 | D108: 289 | E108: 343 | F108: 322 | G108: 278 | H108: 152 | I108: 86 | J108: 26 | K108: 380 | L108: 1045 | M108: 1587 | N108: 1614 | O108: Females | P108: 361 | Q108: 679 | R108: 603 | S108: 440 | T108: 222 | U108: 104 | V108: 40 | W108: 27 | X108: 1040 | Y108: 2083 | Z108: 2476 | AA108: 2497 | AB108: All | AC108: 452 | AD108: 968 | AE108: 946 | AF108: 762 | AG108: 500 | AH108: 256 | AI108: 126 | AJ108: 53 | AK108: 1420 | AL108: 3128 | AM108: 4063 | AN108: 4111
A109: Other Modern Languages | B109: Males | C109: 1533 | D109: 1254 | E109: 881 | F109: 542 | G109: 279 | H109: 136 | I109: 80 | J109: 31 | K109: 2787 | L109: 4210 | M109: 4736 | N109: 4791 | O109: Females | P109: 2032 | Q109: 1656 | R109: 912 | S109: 477 | T109: 234 | U109: 109 | V109: 50 | W109: 32 | X109: 3688 | Y109: 5077 | Z109: 5502 | AA109: 5563 | AB109: All | AC109: 3565 | AD109: 2910 | AE109: 1793 | AF109: 1019 | AG109: 513 | AH109: 245 | AI109: 130 | AJ109: 63 | AK109: 6475 | AL109: 9287 | AM109: 10238 | AN109: 10354
A110: Classical Civilisation | B110: Males | C110: 183 | D110: 509 | E110: 542 | F110: 434 | G110: 252 | H110: 118 | I110: 56 | J110: 32 | K110: 692 | L110: 1668 | M110: 2126 | N110: 2145 | O110: Females | P110: 344 | Q110: 547 | R110: 448 | S110: 310 | T110: 180 | U110: 80 | V110: 38 | W110: 15 | X110: 891 | Y110: 1649 | Z110: 1962 | AA110: 1972 | AB110: All | AC110: 527 | AD110: 1056 | AE110: 990 | AF110: 744 | AG110: 432 | AH110: 198 | AI110: 94 | AJ110: 47 | AK110: 1583 | AL110: 3317 | AM110: 4088 | AN110: 4117
A111: Classical Greek | B111: Males | C111: 416 | D111: 155 | E111: 70 | F111: 32 | G111: 15 | H111: 4 | I111: 5 | J111: 4 | K111: 571 | L111: 673 | M111: 701 | N111: 705 | O111: Females | P111: 312 | Q111: 93 | R111: 33 | S111: 10 | T111: 6 | U111: 5 | V111: 5 | W111: 1 | X111: 405 | Y111: 448 | Z111: 465 | AA111: 468 | AB111: All | AC111: 728 | AD111: 248 | AE111: 103 | AF111: 42 | AG111: 21 | AH111: 9 | AI111: 10 | AJ111: 5 | AK111: 976 | AL111: 1121 | AM111: 1166 | AN111: 1173
A112: Latin | B112: Males | C112: 1747 | D112: 1188 | E112: 647 | F112: 355 | G112: 197 | H112: 85 | I112: 41 | J112: 25 | K112: 2935 | L112: 3937 | M112: 4285 | N112: 4302 | O112: Females | P112: 2128 | Q112: 1245 | R112: 571 | S112: 347 | T112: 155 | U112: 67 | V112: 31 | W112: 9 | X112: 3373 | Y112: 4291 | Z112: 4553 | AA112: 4566 | AB112: All | AC112: 3875 | AD112: 2433 | AE112: 1218 | AF112: 702 | AG112: 352 | AH112: 152 | AI112: 72 | AJ112: 34 | AK112: 6308 | AL112: 8228 | AM112: 8838 | AN112: 8868
A113: Applied Art and Design | B113: Males | C113: 5 | D113: 19 | E113: 62 | F113: 137 | G113: 77 | H113: 32 | I113: 19 | J113: 9 | K113: 24 | L113: 223 | M113: 360 | N113: 367 | O113: Females | P113: 15 | Q113: 72 | R113: 134 | S113: 166 | T113: 66 | U113: 21 | V113: 8 | W113: 0 | X113: 87 | Y113: 387 | Z113: 482 | AA113: 489 | AB113: All | AC113: 20 | AD113: 91 | AE113: 196 | AF113: 303 | AG113: 143 | AH113: 53 | AI113: 27 | AJ113: 9 | AK113: 111 | AL113: 610 | AM113: 842 | AN113: 856
A114: Art and Design | B114: Males | C114: 2759 | D114: 4638 | E114: 10526 | F114: 18969 | G114: 9981 | H114: 5702 | I114: 3052 | J114: 1428 | K114: 7397 | L114: 36892 | M114: 57055 | N114: 58109 | O114: Females | P114: 12664 | Q114: 18830 | R114: 30594 | S114: 31327 | T114: 11324 | U114: 4639 | V114: 2035 | W114: 750 | X114: 31494 | Y114: 93415 | Z114: 112163 | AA114: 112969 | AB114: All | AC114: 15423 | AD114: 23468 | AE114: 41120 | AF114: 50296 | AG114: 21305 | AH114: 10341 | AI114: 5087 | AJ114: 2178 | AK114: 38891 | AL114: 130307 | AM114: 169218 | AN114: 171078
A115: Communication Studies | B115: Males | C115: 94 | D115: 389 | E115: 790 | F115: 1170 | G115: 945 | H115: 620 | I115: 387 | J115: 209 | K115: 483 | L115: 2443 | M115: 4604 | N115: 4785 | O115: Females | P115: 416 | Q115: 832 | R115: 1164 | S115: 1094 | T115: 713 | U115: 389 | V115: 237 | W115: 121 | X115: 1248 | Y115: 3506 | Z115: 4966 | AA115: 5058 | AB115: All | AC115: 510 | AD115: 1221 | AE115: 1954 | AF115: 2264 | AG115: 1658 | AH115: 1009 | AI115: 624 | AJ115: 330 | AK115: 1731 | AL115: 5949 | AM115: 9570 | AN115: 9843
A116: Dance | B116: Males | C116: 40 | D116: 148 | E116: 163 | F116: 158 | G116: 137 | H116: 100 | I116: 40 | J116: 19 | K116: 188 | L116: 509 | M116: 805 | N116: 811 | O116: Females | P116: 512 | Q116: 1822 | R116: 2353 | S116: 2752 | T116: 2022 | U116: 1017 | V116: 428 | W116: 159 | X116: 2334 | Y116: 7439 | Z116: 11065 | AA116: 11136 | AB116: All | AC116: 552 | AD116: 1970 | AE116: 2516 | AF116: 2910 | AG116: 2159 | AH116: 1117 | AI116: 468 | AJ116: 178 | AK116: 2522 | AL116: 7948 | AM116: 11870 | AN116: 11947
A117: Drama | B117: Males | C117: 953 | D117: 3616 | E117: 6174 | F117: 7050 | G117: 4936 | H117: 2566 | I117: 1166 | J117: 481 | K117: 4569 | L117: 17793 | M117: 26942 | N117: 27225 | O117: Females | P117: 2806 | Q117: 8721 | R117: 12029 | S117: 10370 | T117: 5760 | U117: 2429 | V117: 993 | W117: 382 | X117: 11527 | Y117: 33926 | Z117: 43490 | AA117: 43759 | AB117: All | AC117: 3759 | AD117: 12337 | AE117: 18203 | AF117: 17420 | AG117: 10696 | AH117: 4995 | AI117: 2159 | AJ117: 863 | AK117: 16096 | AL117: 51719 | AM117: 70432 | AN117: 70984
A118: English Literature | B118: Males | C118: 7158 | D118: 25356 | E118: 50488 | F118: 53169 | G118: 32849 | H118: 14472 | I118: 5722 | J118: 2156 | K118: 32514 | L118: 136171 | M118: 191370 | N118: 193518 | O118: Females | P118: 16296 | Q118: 46357 | R118: 67935 | S118: 49704 | T118: 22005 | U118: 7579 | V118: 2500 | W118: 899 | X118: 62653 | Y118: 180292 | Z118: 213275 | AA118: 214587 | AB118: All | AC118: 23454 | AD118: 71713 | AE118: 118423 | AF118: 102873 | AG118: 54854 | AH118: 22051 | AI118: 8222 | AJ118: 3055 | AK118: 95167 | AL118: 316463 | AM118: 404645 | AN118: 408105
A119: English Studies | B119: Males | C119: 0 | D119: 7 | E119: 42 | F119: 118 | G119: 101 | H119: 85 | I119: 53 | J119: 27 | K119: 7 | L119: 167 | M119: 433 | N119: 445 | O119: Females | P119: 0 | Q119: 12 | R119: 57 | S119: 104 | T119: 60 | U119: 37 | V119: 40 | W119: 16 | X119: 12 | Y119: 173 | Z119: 326 | AA119: 338 | AB119: All | AC119: 0 | AD119: 19 | AE119: 99 | AF119: 222 | AG119: 161 | AH119: 122 | AI119: 93 | AJ119: 43 | AK119: 19 | AL119: 340 | AM119: 759 | AN119: 783
A120: General Studies | B120: Males | C120: 73 | D120: 275 | E120: 522 | F120: 733 | G120: 831 | H120: 697 | I120: 574 | J120: 457 | K120: 348 | L120: 1603 | M120: 4162 | N120: 4595 | O120: Females | P120: 119 | Q120: 418 | R120: 623 | S120: 862 | T120: 911 | U120: 634 | V120: 409 | W120: 203 | X120: 537 | Y120: 2022 | Z120: 4179 | AA120: 4421 | AB120: All | AC120: 192 | AD120: 693 | AE120: 1145 | AF120: 1595 | AG120: 1742 | AH120: 1331 | AI120: 983 | AJ120: 660 | AK120: 885 | AL120: 3625 | AM120: 8341 | AN120: 9016
A121: Health and Social Care | B121: Males | C121: 2 | D121: 24 | E121: 61 | F121: 107 | G121: 161 | H121: 130 | I121: 86 | J121: 79 | K121: 26 | L121: 194 | M121: 650 | N121: 741 | O121: Females | P121: 322 | Q121: 1138 | R121: 2469 | S121: 3130 | T121: 2396 | U121: 1523 | V121: 991 | W121: 533 | X121: 1460 | Y121: 7059 | Z121: 12502 | AA121: 12910 | AB121: All | AC121: 324 | AD121: 1162 | AE121: 2530 | AF121: 3237 | AG121: 2557 | AH121: 1653 | AI121: 1077 | AJ121: 612 | AK121: 1486 | AL121: 7253 | AM121: 13152 | AN121: 13651
A122: Hospitality and Catering | B122: Males | C122: 2 | D122: 42 | E122: 138 | F122: 219 | G122: 253 | H122: 135 | I122: 71 | J122: 10 | K122: 44 | L122: 401 | M122: 870 | N122: 880 | O122: Females | P122: 43 | Q122: 188 | R122: 341 | S122: 337 | T122: 226 | U122: 143 | V122: 52 | W122: 7 | X122: 231 | Y122: 909 | Z122: 1337 | AA122: 1358 | AB122: All | AC122: 45 | AD122: 230 | AE122: 479 | AF122: 556 | AG122: 479 | AH122: 278 | AI122: 123 | AJ122: 17 | AK122: 275 | AL122: 1310 | AM122: 2207 | AN122: 2238
A123: Leisure and Tourism | B123: Males | C123: 11 | D123: 71 | E123: 202 | F123: 440 | G123: 539 | H123: 613 | I123: 468 | J123: 411 | K123: 82 | L123: 724 | M123: 2755 | N123: 3241 | O123: Females | P123: 55 | Q123: 268 | R123: 437 | S123: 581 | T123: 581 | U123: 435 | V123: 329 | W123: 265 | X123: 323 | Y123: 1341 | Z123: 2951 | AA123: 3185 | AB123: All | AC123: 66 | AD123: 339 | AE123: 639 | AF123: 1021 | AG123: 1120 | AH123: 1048 | AI123: 797 | AJ123: 676 | AK123: 405 | AL123: 2065 | AM123: 5706 | AN123: 6426
A124: Manufacturing | B124: Males | C124: 0 | D124: 2 | E124: 13 | F124: 19 | G124: 30 | H124: 27 | I124: 19 | J124: 10 | K124: 2 | L124: 34 | M124: 120 | N124: 122 | O124: Females | P124: 0 | Q124: 1 | R124: 3 | S124: 6 | T124: 1 | U124: 0 | V124: 3 | W124: 0 | X124: 1 | Y124: 10 | Z124: 14 | AA124: 14 | AB124: All | AC124: 0 | AD124: 3 | AE124: 16 | AF124: 25 | AG124: 31 | AH124: 27 | AI124: 22 | AJ124: 10 | AK124: 3 | AL124: 44 | AM124: 134 | AN124: 136
A125: Media/Film/TV | B125: Males | C125: 390 | D125: 1921 | E125: 5021 | F125: 7135 | G125: 5534 | H125: 3148 | I125: 1777 | J125: 790 | K125: 2311 | L125: 14467 | M125: 25716 | N125: 26290 | O125: Females | P125: 1259 | Q125: 4554 | R125: 6915 | S125: 6255 | T125: 3399 | U125: 1455 | V125: 659 | W125: 318 | X125: 5813 | Y125: 18983 | Z125: 24814 | AA125: 25038 | AB125: All | AC125: 1649 | AD125: 6475 | AE125: 11936 | AF125: 13390 | AG125: 8933 | AH125: 4603 | AI125: 2436 | AJ125: 1108 | AK125: 8124 | AL125: 33450 | AM125: 50530 | AN125: 51328
A126: Music | B126: Males | C126: 1796 | D126: 4293 | E126: 4941 | F126: 4086 | G126: 2674 | H126: 1623 | I126: 751 | J126: 422 | K126: 6089 | L126: 15116 | M126: 20586 | N126: 20902 | O126: Females | P126: 2013 | Q126: 5114 | R126: 5752 | S126: 4113 | T126: 2388 | U126: 1206 | V126: 520 | W126: 255 | X126: 7127 | Y126: 16992 | Z126: 21361 | AA126: 21544 | AB126: All | AC126: 3809 | AD126: 9407 | AE126: 10693 | AF126: 8199 | AG126: 5062 | AH126: 2829 | AI126: 1271 | AJ126: 677 | AK126: 13216 | AL126: 32108 | AM126: 41947 | AN126: 42446
A127: Performing Arts | B127: Males | C127: 50 | D127: 93 | E127: 190 | F127: 320 | G127: 236 | H127: 197 | I127: 164 | J127: 70 | K127: 143 | L127: 653 | M127: 1320 | N127: 1362 | O127: Females | P127: 296 | Q127: 363 | R127: 682 | S127: 772 | T127: 535 | U127: 261 | V127: 128 | W127: 64 | X127: 659 | Y127: 2113 | Z127: 3101 | AA127: 3142 | AB127: All | AC127: 346 | AD127: 456 | AE127: 872 | AF127: 1092 | AG127: 771 | AH127: 458 | AI127: 292 | AJ127: 134 | AK127: 802 | AL127: 2766 | AM127: 4421 | AN127: 4504
A128: Physical Education | B128: Males | C128: 1881 | D128: 9455 | E128: 16821 | F128: 18290 | G128: 12430 | H128: 6177 | I128: 2056 | J128: 477 | K128: 11336 | L128: 46447 | M128: 67587 | N128: 67810 | O128: Females | P128: 2162 | Q128: 6542 | R128: 8472 | S128: 7870 | T128: 5486 | U128: 2813 | V128: 1050 | W128: 267 | X128: 8704 | Y128: 25046 | Z128: 34662 | AA128: 34784 | AB128: All | AC128: 4043 | AD128: 15997 | AE128: 25293 | AF128: 26160 | AG128: 17916 | AH128: 8990 | AI128: 3106 | AJ128: 744 | AK128: 20040 | AL128: 71493 | AM128: 102249 | AN128: 102594
A129: Religious Studies | B129: Males | C129: 8405 | D129: 18393 | E129: 26288 | F129: 24517 | G129: 16186 | H129: 10941 | I129: 7133 | J129: 4733 | K129: 26798 | L129: 77603 | M129: 116596 | N129: 120566 | O129: Females | P129: 20591 | Q129: 31583 | R129: 32545 | S129: 23361 | T129: 13305 | U129: 7981 | V129: 4570 | W129: 2693 | X129: 52174 | Y129: 108080 | Z129: 136629 | AA129: 138793 | AB129: All | AC129: 28996 | AD129: 49976 | AE129: 58833 | AF129: 47878 | AG129: 29491 | AH129: 18922 | AI129: 11703 | AJ129: 7426 | AK129: 78972 | AL129: 185683 | AM129: 253225 | AN129: 259359
A130: Statistics | B130: Males | C130: 1244 | D130: 4319 | E130: 5934 | F130: 7227 | G130: 4031 | H130: 1552 | I130: 727 | J130: 439 | K130: 5563 | L130: 18724 | M130: 25473 | N130: 26152 | O130: Females | P130: 1219 | Q130: 4063 | R130: 5616 | S130: 6727 | T130: 2959 | U130: 1108 | V130: 512 | W130: 251 | X130: 5282 | Y130: 17625 | Z130: 22455 | AA130: 22902 | AB130: All | AC130: 2463 | AD130: 8382 | AE130: 11550 | AF130: 13954 | AG130: 6990 | AH130: 2660 | AI130: 1239 | AJ130: 690 | AK130: 10845 | AL130: 36349 | AM130: 47928 | AN130: 49054
A131: Vocational Studies | B131: Males | C131: 196 | D131: 1097 | E131: 3122 | F131: 5189 | G131: 4669 | H131: 2691 | I131: 1235 | J131: 500 | K131: 1293 | L131: 9604 | M131: 18699 | N131: 19028 | O131: Females | P131: 710 | Q131: 2869 | R131: 5092 | S131: 5526 | T131: 3775 | U131: 1852 | V131: 759 | W131: 283 | X131: 3579 | Y131: 14197 | Z131: 20866 | AA131: 21043 | AB131: All | AC131: 906 | AD131: 3966 | AE131: 8214 | AF131: 10715 | AG131: 8444 | AH131: 4543 | AI131: 1994 | AJ131: 783 | AK131: 4872 | AL131: 23801 | AM131: 39565 | AN131: 40071
A132: All Subjects | B132: Males | C132: 127130 | D132: 293393 | E132: 481172 | F132: 612637 | G132: 372246 | H132: 192574 | I132: 102798 | J132: 54831 | K132: 420523 | L132: 1514332 | M132: 2236781 | N132: 2284001 | O132: Females | P132: 203600 | Q132: 411966 | R132: 574167 | S132: 598278 | T132: 306024 | U132: 139329 | V132: 69479 | W132: 35885 | X132: 615566 | Y132: 1788011 | Z132: 2338728 | AA132: 2372286 | AB132: All | AC132: 330730 | AD132: 705359 | AE132: 1055339 | AF132: 1210915 | AG132: 678270 | AH132: 331903 | AI132: 172277 | AJ132: 90716 | AK132: 1036089 | AL132: 3302343 | AM132: 4575509 | AN132: 4656287

Sheet 2015 (hidden)
A1: 1 | B1: 2 | C1: 3 | D1: 4 | E1: 5 | F1: 6 | G1: 7 | H1: 8 | I1: 9 | J1: 10 | K1: 11 | L1: 12 | M1: 13 | N1: 14 | O1: 15 | P1: 16 | Q1: 17 | R1: 18 | S1: 19 | T1: 20 | U1: 21 | V1: 22 | W1: 23 | X1: 24 | Y1: 25 | Z1: 26 | AA1: 27 | AB1: 28 | AC1: 29 | AD1: 30 | AE1: 31 | AF1: 32 | AG1: 33 | AH1: 34 | AI1: 35 | AJ1: 36 | AK1: 37 | AL1: 38 | AM1: 39 | AN1: 40
A2: Subjects | C2: * | D2: A | E2: B | F2: C | G2: D | H2: E | I2: F | J2: G | K2: AstarA | L2: AstarC | M2: AstarG | N2: Total | O2: (No column name) | P2: * | Q2: A | R2: B | S2: C | T2: D | U2: E | V2: F | W2: G | X2: AstarA | Y2: AstarC | Z2: AstarG | AA2: Total | AB2: (No column name) | AC2: * | AD2: A | AE2: B | AF2: C | AG2: D | AH2: E | AI2: F | AJ2: G | AK2: AstarA | AL2: AstarC | AM2: AstarG | AN2: Total
A3: English | B3: Males | C3: 2.4 | D3: 10.1 | E3: 23.4 | F3: 31.3 | G3: 19.2 | H3: 8 | I3: 3.3 | J3: 1.4 | K3: 12.5 | L3: 67.2 | M3: 99.1 | N3: 176842 | O3: Females | P3: 5.7 | Q3: 18.4 | R3: 30.3 | S3: 27.6 | T3: 12.1 | U3: 3.8 | V3: 1.3 | W3: 0.5 | X3: 24.1 | Y3: 82 | Z3: 99.6 | AA3: 186560 | AB3: All | AC3: 4.1 | AD3: 14.4 | AE3: 26.9 | AF3: 29.4 | AG3: 15.5 | AH3: 5.8 | AI3: 2.2 | AJ3: 0.9 | AK3: 18.4 | AL3: 74.8 | AM3: 99.3 | AN3: 363402
A4: Mathematics | B4: Males | C4: 8 | D4: 12.3 | E4: 19.6 | F4: 29.9 | G4: 13.6 | H4: 5.5 | I4: 3.7 | J4: 3.1 | K4: 20.3 | L4: 69.8 | M4: 95.6 | N4: 290391 | O4: Females | P4: 7 | Q4: 12.3 | R4: 20.6 | S4: 30.8 | T4: 14.1 | U4: 5.1 | V4: 3.4 | W4: 2.8 | X4: 19.3 | Y4: 70.7 | Z4: 96.1 | AA4: 281881 | AB4: All | AC4: 7.5 | AD4: 12.3 | AE4: 20.1 | AF4: 30.4 | AG4: 13.9 | AH4: 5.3 | AI4: 3.5 | AJ4: 3 | AK4: 19.8 | AL4: 70.2 | AM4: 95.9 | AN4: 572272
A5: Core Science | B5: Males | C5: 0.9 | D5: 6 | E5: 17.9 | F5: 31 | G5: 22.4 | H5: 11.4 | I5: 6.1 | J5: 2.4 | K5: 6.9 | L5: 55.8 | M5: 98.2 | N5: 183841 | O5: Females | P5: 1.6 | Q5: 8.8 | R5: 21.2 | S5: 30.9 | T5: 20.3 | U5: 9.7 | V5: 4.5 | W5: 1.7 | X5: 10.4 | Y5: 62.5 | Z5: 98.7 | AA5: 185357 | AB5: All | AC5: 1.3 | AD5: 7.4 | AE5: 19.6 | AF5: 31 | AG5: 21.4 | AH5: 10.5 | AI5: 5.3 | AJ5: 2.1 | AK5: 8.7 | AL5: 59.2 | AM5: 98.5 | AN5: 369198
A6: Additional Science | B6: Males | C6: 1.6 | D6: 8 | E6: 20 | F6: 32.1 | G6: 22.2 | H6: 9.5 | I6: 4.2 | J6: 1.6 | K6: 9.7 | L6: 61.8 | M6: 99.2 | N6: 148776 | O6: Females | P6: 2.4 | Q6: 10.4 | R6: 22.9 | S6: 31.6 | T6: 20.1 | U6: 8 | V6: 3 | W6: 1 | X6: 12.8 | Y6: 67.4 | Z6: 99.4 | AA6: 156188 | AB6: All | AC6: 2 | AD6: 9.3 | AE6: 21.5 | AF6: 31.8 | AG6: 21.1 | AH6: 8.8 | AI6: 3.6 | AJ6: 1.3 | AK6: 11.3 | AL6: 64.6 | AM6: 99.3 | AN6: 304964
A7: Further Additional Science | B7: Males | C7: 11.7 | D7: 19.2 | E7: 23.6 | F7: 23.7 | G7: 15.2 | H7: 4.9 | I7: 1.3 | J7: 0.3 | K7: 31 | L7: 78.2 | M7: 99.9 | N7: 11420 | O7: Females | P7: 15.3 | Q7: 20.9 | R7: 24.4 | S7: 21.5 | T7: 12.7 | U7: 4 | V7: 0.8 | W7: 0.2 | X7: 36.2 | Y7: 82.1 | Z7: 99.8 | AA7: 11474 | AB7: All | AC7: 13.5 | AD7: 20.1 | AE7: 24 | AF7: 22.6 | AG7: 14 | AH7: 4.5 | AI7: 1 | AJ7: 0.2 | AK7: 33.6 | AL7: 80.2 | AM7: 99.8 | AN7: 22894
A8: Additional Applied Science | B8: Males | C8: 0.1 | D8: 0.9 | E8: 5.3 | F8: 21 | G8: 29.2 | H8: 24 | I8: 12 | J8: 4.9 | K8: 1.1 | L8: 27.4 | M8: 97.4 | N8: 6554 | O8: Females | P8: 0 | Q8: 1.5 | R8: 9.1 | S8: 26.4 | T8: 31.3 | U8: 18 | V8: 8.9 | W8: 3.3 | X8: 1.5 | Y8: 37 | Z8: 98.5 | AA8: 6378 | AB8: All | AC8: 0.1 | AD8: 1.2 | AE8: 7.2 | AF8: 23.7 | AG8: 30.3 | AH8: 21 | AI8: 10.5 | AJ8: 4.1 | AK8: 1.3 | AL8: 32.1 | AM8: 98 | AN8: 12932
A9: Physics | B9: Males | C9: 14.8 | D9: 28.2 | E9: 29.1 | F9: 20.1 | G9: 6.4 | H9: 1 | I9: 0.2 | J9: 0.1 | K9: 43 | L9: 92.2 | M9: 99.9 | N9: 62238 | O9: Females | P9: 15.6 | Q9: 28.2 | R9: 28.7 | S9: 19.9 | T9: 6.4 | U9: 0.9 | V9: 0.2 | W9: 0.1 | X9: 43.8 | Y9: 92.4 | Z9: 99.9 | AA9: 60374 | AB9: All | AC9: 15.2 | AD9: 28.2 | AE9: 28.9 | AF9: 20 | AG9: 6.4 | AH9: 1 | AI9: 0.2 | AJ9: 0.1 | AK9: 43.4 | AL9: 92.3 | AM9: 99.9 | AN9: 122612
A10: Chemistry | B10: Males | C10: 13.9 | D10: 26.2 | E10: 29.2 | F10: 21.2 | G10: 7.6 | H10: 1.5 | I10: 0.3 | J10: 0.1 | K10: 40 | L10: 90.4 | M10: 99.9 | N10: 62852 | O10: Females | P10: 18.4 | Q10: 28.5 | R10: 27.8 | S10: 18 | T10: 5.9 | U10: 1 | V10: 0.2 | W10: 0.1 | X10: 46.9 | Y10: 92.7 | Z10: 99.9 | AA10: 60538 | AB10: All | AC10: 16.1 | AD10: 27.3 | AE10: 28.5 | AF10: 19.6 | AG10: 6.8 | AH10: 1.3 | AI10: 0.2 | AJ10: 0.1 | AK10: 43.4 | AL10: 91.5 | AM10: 99.9 | AN10: 123390
A11: Biological Sciences | B11: Males | C11: 10.8 | D11: 26.9 | E11: 30.9 | F11: 21.5 | G11: 7.4 | H11: 1.5 | I11: 0.4 | J11: 0.2 | K11: 37.7 | L11: 90.2 | M11: 99.7 | N11: 63877 | O11: Females | P11: 16.5 | Q11: 31.3 | R11: 28.5 | S11: 16.8 | T11: 5.2 | U11: 1.1 | V11: 0.3 | W11: 0.2 | X11: 47.8 | Y11: 93 | Z11: 99.8 | AA11: 62252 | AB11: All | AC11: 13.6 | AD11: 29 | AE11: 29.7 | AF11: 19.2 | AG11: 6.3 | AH11: 1.3 | AI11: 0.4 | AJ11: 0.2 | AK11: 42.7 | AL11: 91.6 | AM11: 99.8 | AN11: 126129
A12: Computer Science | B12: Males | C12: 6.1 | D12: 14.8 | E12: 21.2 | F12: 22 | G12: 14.9 | H12: 8.8 | I12: 5.5 | J12: 3.6 | K12: 20.9 | L12: 64.2 | M12: 97 | N12: 28101 | O12: Females | P12: 8.8 | Q12: 19.1 | R12: 23.6 | S12: 21.1 | T12: 13.2 | U12: 7.2 | V12: 3.4 | W12: 1.7 | X12: 27.9 | Y12: 72.6 | Z12: 98.1 | AA12: 5432 | AB12: All | AC12: 6.5 | AD12: 15.5 | AE12: 21.6 | AF12: 21.9 | AG12: 14.6 | AH12: 8.5 | AI12: 5.1 | AJ12: 3.3 | AK12: 22.1 | AL12: 65.5 | AM12: 97.2 | AN12: 33533
A13: Other Sciences | B13: Males | C13: 11.1 | D13: 14.1 | E13: 15.3 | F13: 18.2 | G13: 14.2 | H13: 12.3 | I13: 7.8 | J13: 4.1 | K13: 25.2 | L13: 58.7 | M13: 97.1 | N13: 3971 | O13: Females | P13: 4.4 | Q13: 12.7 | R13: 18.1 | S13: 24.1 | T13: 16.5 | U13: 11.5 | V13: 6.8 | W13: 3.7 | X13: 17.1 | Y13: 59.2 | Z13: 97.7 | AA13: 2252 | AB13: All | AC13: 8.6 | AD13: 13.6 | AE13: 16.3 | AF13: 20.3 | AG13: 15.1 | AH13: 12 | AI13: 7.4 | AJ13: 4 | AK13: 22.2 | AL13: 58.9 | AM13: 97.3 | AN13: 6223
A14: D & T: Electronic Products | B14: Males | C14: 6.6 | D14: 15.8 | E14: 21.9 | F14: 20 | G14: 15.5 | H14: 9.9 | I14: 5.4 | J14: 2.8 | K14: 22.4 | L14: 64.3 | M14: 97.9 | N14: 7327 | O14: Females | P14: 15.7 | Q14: 27.3 | R14: 24.3 | S14: 15.7 | T14: 9 | U14: 3.3 | V14: 2.3 | W14: 1.9 | X14: 43 | Y14: 82.9 | Z14: 99.5 | AA14: 568 | AB14: All | AC14: 7.3 | AD14: 16.6 | AE14: 22 | AF14: 19.7 | AG14: 15 | AH14: 9.5 | AI14: 5.2 | AJ14: 2.7 | AK14: 23.9 | AL14: 65.6 | AM14: 98 | AN14: 7895
A15: D & T: Food Technology | B15: Males | C15: 1.5 | D15: 5.6 | E15: 14.5 | F15: 24 | G15: 23.2 | H15: 15.2 | I15: 9.4 | J15: 4.1 | K15: 7.1 | L15: 45.6 | M15: 97.6 | N15: 14091 | O15: Females | P15: 7.1 | Q15: 16.7 | R15: 23.4 | S15: 23.3 | T15: 15.2 | U15: 8.1 | V15: 3.9 | W15: 1.4 | X15: 23.8 | Y15: 70.5 | Z15: 99.2 | AA15: 24332 | AB15: All | AC15: 5 | AD15: 12.6 | AE15: 20.2 | AF15: 23.5 | AG15: 18.2 | AH15: 10.7 | AI15: 6 | AJ15: 2.4 | AK15: 17.7 | AL15: 61.4 | AM15: 98.6 | AN15: 38423
A16: D & T: Graphic Products | B16: Males | C16: 3 | D16: 8.8 | E16: 16.1 | F16: 22.9 | G16: 19.3 | H16: 13.7 | I16: 8 | J16: 4.8 | K16: 11.8 | L16: 50.8 | M16: 96.6 | N16: 19958 | O16: Females | P16: 9.6 | Q16: 17.6 | R16: 22.5 | S16: 22 | T16: 13.7 | U16: 7.8 | V16: 3.9 | W16: 1.7 | X16: 27.2 | Y16: 71.6 | Z16: 98.8 | AA16: 11901 | AB16: All | AC16: 5.5 | AD16: 12.1 | AE16: 18.4 | AF16: 22.6 | AG16: 17.2 | AH16: 11.5 | AI16: 6.5 | AJ16: 3.6 | AK16: 17.6 | AL16: 58.6 | AM16: 97.4 | AN16: 31859
A17: D & T: Resistant Materials | B17: Males | C17: 3.2 | D17: 8.6 | E17: 17.4 | F17: 24.7 | G17: 20 | H17: 12.8 | I17: 7.5 | J17: 3.6 | K17: 11.8 | L17: 53.9 | M17: 97.7 | N17: 43489 | O17: Females | P17: 9 | Q17: 18.3 | R17: 22.1 | S17: 22.1 | T17: 14.1 | U17: 7.6 | V17: 3.8 | W17: 1.8 | X17: 27.3 | Y17: 71.5 | Z17: 98.9 | AA17: 7608 | AB17: All | AC17: 4.1 | AD17: 10.1 | AE17: 18.1 | AF17: 24.4 | AG17: 19.2 | AH17: 12 | AI17: 6.9 | AJ17: 3.3 | AK17: 14.1 | AL17: 56.5 | AM17: 97.9 | AN17: 51097
A18: D & T: Systems & Control | B18: Males | C18: 7.4 | D18: 12.6 | E18: 20.4 | F18: 23.8 | G18: 17.8 | H18: 10 | I18: 4.6 | J18: 2.4 | K18: 20 | L18: 64.2 | M18: 98.9 | N18: 2811 | O18: Females | P18: 6.5 | Q18: 23.8 | R18: 20.2 | S18: 23.8 | T18: 15.5 | U18: 6 | V18: 1.8 | W18: 1.8 | X18: 30.4 | Y18: 74.4 | Z18: 99.4 | AA18: 168 | AB18: All | AC18: 7.4 | AD18: 13.2 | AE18: 20.4 | AF18: 23.8 | AG18: 17.6 | AH18: 9.8 | AI18: 4.4 | AJ18: 2.4 | AK18: 20.5 | AL18: 64.8 | AM18: 99 | AN18: 2979
A19: D & T: Textiles Technology | B19: Males | C19: 1.3 | D19: 5.5 | E19: 12.5 | F19: 19.1 | G19: 19.8 | H19: 18.8 | I19: 13.2 | J19: 6.1 | K19: 6.8 | L19: 38.4 | M19: 96.3 | N19: 752 | O19: Females | P19: 9.5 | Q19: 17.7 | R19: 24.4 | S19: 21.1 | T19: 13.9 | U19: 7.4 | V19: 3.6 | W19: 1.5 | X19: 27.2 | Y19: 72.6 | Z19: 99.2 | AA19: 23450 | AB19: All | AC19: 9.3 | AD19: 17.3 | AE19: 24 | AF19: 21 | AG19: 14.1 | AH19: 7.8 | AI19: 3.9 | AJ19: 1.7 | AK19: 26.6 | AL19: 71.6 | AM19: 99.1 | AN19: 24202
A20: Other Design and Technology | B20: Males | C20: 2.6 | D20: 7.9 | E20: 17.6 | F20: 24.6 | G20: 19.7 | H20: 12.9 | I20: 8.4 | J20: 4 | K20: 10.4 | L20: 52.6 | M20: 97.6 | N20: 27501 | O20: Females | P20: 7.5 | Q20: 18.2 | R20: 25.2 | S20: 21.2 | T20: 13.4 | U20: 7.4 | V20: 3.8 | W20: 1.9 | X20: 25.6 | Y20: 72.1 | Z20: 98.6 | AA20: 10722 | AB20: All | AC20: 3.9 | AD20: 10.8 | AE20: 19.7 | AF20: 23.6 | AG20: 17.9 | AH20: 11.4 | AI20: 7.1 | AJ20: 3.5 | AK20: 14.7 | AL20: 58.1 | AM20: 97.9 | AN20: 38223
A21: Applied Engineering | B21: Males | C21: 0.8 | D21: 4 | E21: 11.4 | F21: 21.5 | G21: 21.6 | H21: 15.9 | I21: 12 | J21: 7.6 | K21: 4.8 | L21: 37.7 | M21: 94.8 | N21: 5817 | O21: Females | P21: 3.8 | Q21: 18 | R21: 18.4 | S21: 21.1 | T21: 16.5 | U21: 10.4 | V21: 6.1 | W21: 3.6 | X21: 21.8 | Y21: 61.3 | Z21: 97.9 | AA21: 473 | AB21: All | AC21: 1 | AD21: 5.1 | AE21: 11.9 | AF21: 21.5 | AG21: 21.2 | AH21: 15.5 | AI21: 11.6 | AJ21: 7.3 | AK21: 6.1 | AL21: 39.5 | AM21: 95 | AN21: 6290
A22: Information Technology | B22: Males | C22: 3.2 | D22: 13.3 | E22: 23.6 | F22: 24.6 | G22: 15 | H22: 8.4 | I22: 5.7 | J22: 3.7 | K22: 16.5 | L22: 64.6 | M22: 97.5 | N22: 57010 | O22: Females | P22: 5.7 | Q22: 18.1 | R22: 24.6 | S22: 22.5 | T22: 13.6 | U22: 7.1 | V22: 4.1 | W22: 2.5 | X22: 23.8 | Y22: 70.9 | Z22: 98.2 | AA22: 42551 | AB22: All | AC22: 4.3 | AD22: 15.3 | AE22: 24 | AF22: 23.7 | AG22: 14.4 | AH22: 7.8 | AI22: 5 | AJ22: 3.2 | AK22: 19.6 | AL22: 67.3 | AM22: 97.8 | AN22: 99561
A23: Business Studies | B23: Males | C23: 2.7 | D23: 12.9 | E23: 23.9 | F23: 24.6 | G23: 16.1 | H23: 9.4 | I23: 5.5 | J23: 3.2 | K23: 15.6 | L23: 64 | M23: 98.2 | N23: 42806 | O23: Females | P23: 4.2 | Q23: 16.4 | R23: 25.2 | S23: 23.2 | T23: 14.8 | U23: 8.2 | V23: 4.5 | W23: 2.3 | X23: 20.6 | Y23: 69.1 | Z23: 98.9 | AA23: 31215 | AB23: All | AC23: 3.3 | AD23: 14.4 | AE23: 24.4 | AF23: 24 | AG23: 15.6 | AH23: 8.9 | AI23: 5.1 | AJ23: 2.8 | AK23: 17.7 | AL23: 66.2 | AM23: 98.5 | AN23: 74021
A24: Applied Business | B24: Males | C24: 1.7 | D24: 9.2 | E24: 19.2 | F24: 22.6 | G24: 16.7 | H24: 12.6 | I24: 7 | J24: 4.8 | K24: 10.9 | L24: 52.6 | M24: 93.6 | N24: 6829 | O24: Females | P24: 2.8 | Q24: 15 | R24: 22.6 | S24: 21.3 | T24: 15.5 | U24: 11 | V24: 5 | W24: 3.4 | X24: 17.8 | Y24: 61.8 | Z24: 96.6 | AA24: 4815 | AB24: All | AC24: 2.1 | AD24: 11.6 | AE24: 20.6 | AF24: 22.1 | AG24: 16.2 | AH24: 11.9 | AI24: 6.1 | AJ24: 4.2 | AK24: 13.7 | AL24: 56.4 | AM24: 94.8 | AN24: 11644
A25: Home Economics | B25: Males | C25: 0.7 | D25: 4.2 | E25: 11.3 | F25: 22.8 | G25: 23.9 | H25: 18.3 | I25: 11.5 | J25: 4.7 | K25: 4.9 | L25: 39 | M25: 97.4 | N25: 3307 | O25: Females | P25: 3.1 | Q25: 10.8 | R25: 19.5 | S25: 23.9 | T25: 19.9 | U25: 12 | V25: 6.4 | W25: 3 | X25: 13.9 | Y25: 57.3 | Z25: 98.5 | AA25: 23847 | AB25: All | AC25: 2.8 | AD25: 10 | AE25: 18.5 | AF25: 23.7 | AG25: 20.4 | AH25: 12.8 | AI25: 7 | AJ25: 3.2 | AK25: 12.8 | AL25: 55 | AM25: 98.4 | AN25: 27154
A26: Ancient History | B26: Males | C26: 17 | D26: 21.3 | E26: 19.9 | F26: 14.9 | G26: 10.9 | H26: 6.5 | I26: 3.3 | J26: 2.7 | K26: 38.3 | L26: 73.2 | M26: 96.6 | N26: 522 | O26: Females | P26: 13.8 | Q26: 22.8 | R26: 24.1 | S26: 16.4 | T26: 12.5 | U26: 5 | V26: 2.6 | W26: 1.8 | X26: 36.6 | Y26: 77.2 | Z26: 99.1 | AA26: 456 | AB26: All | AC26: 15.5 | AD26: 22 | AE26: 21.9 | AF26: 15.6 | AG26: 11.7 | AH26: 5.8 | AI26: 3 | AJ26: 2.2 | AK26: 37.5 | AL26: 75.1 | AM26: 97.8 | AN26: 978
A27: Geography | B27: Males | C27: 7.3 | D27: 15.5 | E27: 20 | F27: 22.9 | G27: 16.2 | H27: 9.6 | I27: 5.1 | J27: 2.5 | K27: 22.8 | L27: 65.7 | M27: 98.9 | N27: 113351 | O27: Females | P27: 12.3 | Q27: 20 | R27: 21.4 | S27: 20.1 | T27: 12.8 | U27: 7.3 | V27: 3.8 | W27: 1.7 | X27: 32.3 | Y27: 73.7 | Z27: 99.3 | AA27: 98046 | AB27: All | AC27: 9.6 | AD27: 17.6 | AE27: 20.6 | AF27: 21.6 | AG27: 14.6 | AH27: 8.5 | AI27: 4.5 | AJ27: 2.1 | AK27: 27.2 | AL27: 69.4 | AM27: 99.1 | AN27: 211397
A28: History | B28: Males | C28: 7.3 | D28: 16.6 | E28: 21.2 | F28: 19.7 | G28: 13.8 | H28: 9 | I28: 6 | J28: 3.7 | K28: 23.9 | L28: 64.9 | M28: 97.3 | N28: 110702 | O28: Females | P28: 12.1 | Q28: 21.3 | R28: 22 | S28: 17.6 | T28: 11.3 | U28: 7.3 | V28: 4.5 | W28: 2.5 | X28: 33.4 | Y28: 72.9 | Z28: 98.6 | AA28: 118367 | AB28: All | AC28: 9.8 | AD28: 19 | AE28: 21.6 | AF28: 18.6 | AG28: 12.5 | AH28: 8.1 | AI28: 5.2 | AJ28: 3.1 | AK28: 28.8 | AL28: 69 | AM28: 98 | AN28: 229069
A29: Humanities | B29: Males | C29: 1.1 | D29: 5.3 | E29: 13.4 | F29: 20.3 | G29: 19 | H29: 15.8 | I29: 10.8 | J29: 8.3 | K29: 6.4 | L29: 40.1 | M29: 93.9 | N29: 4362 | O29: Females | P29: 2.8 | Q29: 11.3 | R29: 18.5 | S29: 22.2 | T29: 17.5 | U29: 11.5 | V29: 7.8 | W29: 4.5 | X29: 14.1 | Y29: 54.8 | Z29: 96.2 | AA29: 4038 | AB29: All | AC29: 1.9 | AD29: 8.2 | AE29: 15.9 | AF29: 21.2 | AG29: 18.3 | AH29: 13.7 | AI29: 9.4 | AJ29: 6.5 | AK29: 10.1 | AL29: 47.2 | AM29: 95 | AN29: 8400
A30: Economics | B30: Males | C30: 6.3 | D30: 22.2 | E30: 28.9 | F30: 19.5 | G30: 11.4 | H30: 5.6 | I30: 2.9 | J30: 1.6 | K30: 28.5 | L30: 77 | M30: 98.6 | N30: 6378 | O30: Females | P30: 5.6 | Q30: 23.2 | R30: 28.5 | S30: 20 | T30: 11.2 | U30: 5.9 | V30: 2.9 | W30: 1.3 | X30: 28.8 | Y30: 77.3 | Z30: 98.6 | AA30: 3076 | AB30: All | AC30: 6.1 | AD30: 22.5 | AE30: 28.8 | AF30: 19.7 | AG30: 11.3 | AH30: 5.7 | AI30: 2.9 | AJ30: 1.5 | AK30: 28.6 | AL30: 77.1 | AM30: 98.6 | AN30: 9454
A31: Social Studies | B31: Males | C31: 1.6 | D31: 9.2 | E31: 20.1 | F31: 24.3 | G31: 18.1 | H31: 11.5 | I31: 7.2 | J31: 4.3 | K31: 10.8 | L31: 55.2 | M31: 96.3 | N31: 21916 | O31: Females | P31: 4.1 | Q31: 16.3 | R31: 25.8 | S31: 22.5 | T31: 14.2 | U31: 8.4 | V31: 4.4 | W31: 2.5 | X31: 20.4 | Y31: 68.7 | Z31: 98.2 | AA31: 38414 | AB31: All | AC31: 3.2 | AD31: 13.7 | AE31: 23.7 | AF31: 23.1 | AG31: 15.7 | AH31: 9.5 | AI31: 5.4 | AJ31: 3.2 | AK31: 16.9 | AL31: 63.8 | AM31: 97.5 | AN31: 60330
A32: Other Classical Studies | B32: Males | C32: 11.5 | D32: 20.9 | E32: 25 | F32: 14.9 | G32: 6.8 | H32: 6.8 | I32: 6.8 | J32: 3.4 | K32: 32.4 | L32: 72.3 | M32: 95.9 | N32: 148 | O32: Females | P32: 11.3 | Q32: 36.7 | R32: 24 | S32: 10.5 | T32: 7.5 | U32: 3.6 | V32: 2.2 | W32: 2.2 | X32: 48.1 | Y32: 82.6 | Z32: 98.1 | AA32: 362 | AB32: All | AC32: 11.4 | AD32: 32.2 | AE32: 24.3 | AF32: 11.8 | AG32: 7.3 | AH32: 4.5 | AI32: 3.5 | AJ32: 2.5 | AK32: 43.5 | AL32: 79.6 | AM32: 97.5 | AN32: 510
A33: Arabic | B33: Males | C33: 31.3 | D33: 20.6 | E33: 13.2 | F33: 11.5 | G33: 6.5 | H33: 4.9 | I33: 3.2 | J33: 3.5 | K33: 52 | L33: 76.6 | M33: 94.6 | N33: 1395 | O33: Females | P33: 35 | Q33: 19 | R33: 14.1 | S33: 11.1 | T33: 6.6 | U33: 4.6 | V33: 3.9 | W33: 3 | X33: 54.1 | Y33: 79.3 | Z33: 97.5 | AA33: 1806 | AB33: All | AC33: 33.4 | AD33: 19.7 | AE33: 13.7 | AF33: 11.3 | AG33: 6.6 | AH33: 4.7 | AI33: 3.6 | AJ33: 3.2 | AK33: 53.2 | AL33: 78.2 | AM33: 96.2 | AN33: 3201
A34: Chinese | B34: Males | C34: 58.7 | D34: 16.9 | E34: 10.7 | F34: 7.8 | G34: 3.9 | H34: 1.1 | I34: 0.5 | J34: x | K34: 75.6 | L34: 94.1 | M34: 99.7 | N34: 1761 | O34: Females | P34: 70 | Q34: 13 | R34: 8.3 | S34: 6.6 | T34: 1.4 | U34: 0.5 | V34: 0 | W34: x | X34: 83 | Y34: 97.9 | Z34: 99.9 | AA34: 1525 | AB34: All | AC34: 63.9 | AD34: 15.1 | AE34: 9.6 | AF34: 7.2 | AG34: 2.7 | AH34: 0.9 | AI34: 0.3 | AJ34: x | AK34: 79 | AL34: 95.9 | AM34: 99.8 | AN34: 3286
A35: French | B35: Males | C35: 7.4 | D35: 10.8 | E35: 17 | F35: 28.2 | G35: 22.2 | H35: 9.3 | I35: 3.6 | J35: 1.1 | K35: 18.2 | L35: 63.4 | M35: 99.5 | N35: 64214 | O35: Females | P35: 11.4 | Q35: 15.3 | R35: 20.6 | S35: 27.4 | T35: 17.3 | U35: 5.4 | V35: 1.8 | W35: 0.5 | X35: 26.8 | Y35: 74.8 | Z35: 99.8 | AA35: 86881 | AB35: All | AC35: 9.7 | AD35: 13.4 | AE35: 19.1 | AF35: 27.8 | AG35: 19.4 | AH35: 7.1 | AI35: 2.5 | AJ35: 0.8 | AK35: 23.1 | AL35: 69.9 | AM35: 99.7 | AN35: 151095
A36: German | B36: Males | C36: 6.8 | D36: 12.1 | E36: 20.9 | F36: 29.6 | G36: 20.4 | H36: 6.9 | I36: 2.3 | J36: 0.8 | K36: 18.9 | L36: 69.3 | M36: 99.7 | N36: 25466 | O36: Females | P36: 9.7 | Q36: 16.6 | R36: 24.8 | S36: 28.1 | T36: 15.1 | U36: 3.9 | V36: 1.2 | W36: 0.4 | X36: 26.4 | Y36: 79.3 | Z36: 99.8 | AA36: 27280 | AB36: All | AC36: 8.3 | AD36: 14.4 | AE36: 22.9 | AF36: 28.8 | AG36: 17.7 | AH36: 5.3 | AI36: 1.7 | AJ36: 0.6 | AK36: 22.7 | AL36: 74.5 | AM36: 99.8 | AN36: 52746
A37: Italian | B37: Males | C37: 40.8 | D37: 18.3 | E37: 13.5 | F37: 13.4 | G37: 8.6 | H37: 3.1 | I37: 1.1 | J37: 0.5 | K37: 59.1 | L37: 86 | M37: 99.3 | N37: 1752 | O37: Females | P37: 42.4 | Q37: 19.3 | R37: 14.8 | S37: 13.2 | T37: 7 | U37: 2.1 | V37: 0.6 | W37: 0.2 | X37: 61.7 | Y37: 89.7 | Z37: 99.7 | AA37: 2252 | AB37: All | AC37: 41.7 | AD37: 18.9 | AE37: 14.2 | AF37: 13.3 | AG37: 7.7 | AH37: 2.5 | AI37: 0.8 | AJ37: 0.3 | AK37: 60.6 | AL37: 88.1 | AM37: 99.5 | AN37: 4004
A38: Polish | B38: Males | C38: 24.1 | D38: 41.7 | E38: 18.3 | F38: 8.2 | G38: 3.9 | H38: 1.1 | I38: 0.5 | J38: 0.9 | K38: 65.8 | L38: 92.3 | M38: 98.7 | N38: 1923 | O38: Females | P38: 41.5 | Q38: 38.8 | R38: 11.6 | S38: 4.1 | T38: 1.4 | U38: 0.9 | V38: 0.2 | W38: 0.5 | X38: 80.3 | Y38: 96 | Z38: 99 | AA38: 2152 | AB38: All | AC38: 33.3 | AD38: 40.1 | AE38: 14.7 | AF38: 6 | AG38: 2.6 | AH38: 1 | AI38: 0.3 | AJ38: 0.7 | AK38: 73.5 | AL38: 94.3 | AM38: 98.8 | AN38: 4075
A39: Spanish | B39: Males | C39: 10.3 | D39: 12.9 | E39: 17.6 | F39: 25.6 | G39: 19.3 | H39: 8.2 | I39: 3.7 | J39: 1.5 | K39: 23.2 | L39: 66.4 | M39: 99.2 | N39: 36821 | O39: Females | P39: 15.5 | Q39: 16.7 | R39: 20.3 | S39: 24 | T39: 14.9 | U39: 5.4 | V39: 2 | W39: 0.7 | X39: 32.2 | Y39: 76.6 | Z39: 99.6 | AA39: 48521 | AB39: All | AC39: 13.3 | AD39: 15 | AE39: 19.2 | AF39: 24.7 | AG39: 16.8 | AH39: 6.6 | AI39: 2.7 | AJ39: 1.1 | AK39: 28.3 | AL39: 72.2 | AM39: 99.4 | AN39: 85342
A40: Urdu | B40: Males | C40: 8.4 | D40: 19.1 | E40: 22.4 | F40: 22.3 | G40: 13.2 | H40: 7.9 | I40: 4.6 | J40: 1.4 | K40: 27.5 | L40: 72.1 | M40: 99.2 | N40: 1626 | O40: Females | P40: 14.7 | Q40: 24.5 | R40: 24.1 | S40: 18.4 | T40: 10.5 | U40: 4.7 | V40: 2 | W40: 0.5 | X40: 39.2 | Y40: 81.7 | Z40: 99.4 | AA40: 2559 | AB40: All | AC40: 12.3 | AD40: 22.4 | AE40: 23.4 | AF40: 19.9 | AG40: 11.5 | AH40: 5.9 | AI40: 3 | AJ40: 0.8 | AK40: 34.7 | AL40: 78 | AM40: 99.3 | AN40: 4185
A41: Other Modern Languages | B41: Males | C41: 30.3 | D41: 26.7 | E41: 18.7 | F41: 11 | G41: 5.7 | H41: 3.9 | I41: 1.8 | J41: 0.7 | K41: 56.9 | L41: 86.6 | M41: 98.7 | N41: 4987 | O41: Females | P41: 37.1 | Q41: 29.3 | R41: 16.7 | S41: 8.7 | T41: 4.4 | U41: 1.9 | V41: 0.5 | W41: 0.4 | X41: 66.4 | Y41: 91.8 | Z41: 99.1 | AA41: 5542 | AB41: All | AC41: 33.9 | AD41: 28 | AE41: 17.6 | AF41: 9.8 | AG41: 5 | AH41: 2.9 | AI41: 1.1 | AJ41: 0.6 | AK41: 61.9 | AL41: 89.3 | AM41: 98.9 | AN41: 10529
A42: Classical Civilisation | B42: Males | C42: 10.1 | D42: 22.4 | E42: 25.3 | F42: 21.6 | G42: 11.4 | H42: 5.4 | I42: 2.2 | J42: 0.9 | K42: 32.5 | L42: 79.4 | M42: 99.4 | N42: 2068 | O42: Females | P42: 18.2 | Q42: 28.8 | R42: 22.1 | S42: 15.6 | T42: 8.7 | U42: 4.1 | V42: 1.3 | W42: 1 | X42: 47 | Y42: 84.7 | Z42: 99.7 | AA42: 1899 | AB42: All | AC42: 14 | AD42: 25.5 | AE42: 23.7 | AF42: 18.7 | AG42: 10.1 | AH42: 4.8 | AI42: 1.8 | AJ42: 1 | AK42: 39.5 | AL42: 81.9 | AM42: 99.5 | AN42: 3967
A43: Classical Greek | B43: Males | C43: 72 | D43: 17.7 | E43: 6.2 | F43: 2.4 | G43: 0.8 | H43: 0.6 | I43: x | J43: x | K43: 89.7 | L43: 98.3 | M43: 99.9 | N43: 711 | O43: Females | P43: 68.8 | Q43: 17.3 | R43: 6.9 | S43: 3.5 | T43: 2 | U43: 1 | V43: x | W43: x | X43: 86.1 | Y43: 96.5 | Z43: 100 | AA43: 490 | AB43: All | AC43: 70.7 | AD43: 17.6 | AE43: 6.5 | AF43: 2.8 | AG43: 1.3 | AH43: 0.7 | AI43: x | AJ43: x | AK43: 88.3 | AL43: 97.6 | AM43: 99.9 | AN43: 1201
A44: Latin | B44: Males | C44: 47.8 | D44: 23.6 | E44: 13.2 | F44: 8.2 | G44: 4 | H44: 1.8 | I44: 0.7 | J44: 0.3 | K44: 71.4 | L44: 92.8 | M44: 99.6 | N44: 4150 | O44: Females | P44: 52.7 | Q44: 24.4 | R44: 12 | S44: 5.9 | T44: 2.6 | U44: 1.5 | V44: 0.6 | W44: 0.3 | X44: 77.1 | Y44: 94.9 | Z44: 99.8 | AA44: 4211 | AB44: All | AC44: 50.3 | AD44: 24 | AE44: 12.6 | AF44: 7 | AG44: 3.3 | AH44: 1.6 | AI44: 0.6 | AJ44: 0.3 | AK44: 74.3 | AL44: 93.9 | AM44: 99.7 | AN44: 8361
A45: Applied Art and Design | B45: Males | C45: 2.3 | D45: 6 | E45: 14.8 | F45: 38.3 | G45: 15.5 | H45: 12 | I45: 7 | J45: 2.3 | K45: 8.3 | L45: 61.4 | M45: 98.2 | N45: 399 | O45: Females | P45: 7.8 | Q45: 13.7 | R45: 22.4 | S45: 32.5 | T45: 13.4 | U45: 7.1 | V45: 1.4 | W45: 0.9 | X45: 21.5 | Y45: 76.4 | Z45: 99.3 | AA45: 424 | AB45: All | AC45: 5.1 | AD45: 10 | AE45: 18.7 | AF45: 35.4 | AG45: 14.5 | AH45: 9.5 | AI45: 4.1 | AJ45: 1.6 | AK45: 15.1 | AL45: 69.1 | AM45: 98.8 | AN45: 823
A46: Art and Design | B46: Males | C46: 4.8 | D46: 8 | E46: 17.4 | F46: 33.6 | G46: 17.5 | H46: 9.4 | I46: 5.4 | J46: 2.4 | K46: 12.8 | L46: 63.8 | M46: 98.5 | N46: 59965 | O46: Females | P46: 11.1 | Q46: 16.8 | R46: 25.6 | S46: 28.9 | T46: 10.3 | U46: 4 | V46: 1.8 | W46: 0.7 | X46: 27.9 | Y46: 82.5 | Z46: 99.3 | AA46: 116222 | AB46: All | AC46: 9 | AD46: 13.8 | AE46: 22.8 | AF46: 30.5 | AG46: 12.7 | AH46: 5.8 | AI46: 3 | AJ46: 1.3 | AK46: 22.8 | AL46: 76.1 | AM46: 99 | AN46: 176187
A47: Communication Studies | B47: Males | C47: 2.1 | D47: 7.7 | E47: 16.9 | F47: 23.2 | G47: 20.2 | H47: 13.5 | I47: 8.2 | J47: 4.4 | K47: 9.8 | L47: 49.9 | M47: 96.2 | N47: 4584 | O47: Females | P47: 6.3 | Q47: 15.4 | R47: 23 | S47: 22.5 | T47: 15.3 | U47: 8.6 | V47: 4.4 | W47: 2.3 | X47: 21.7 | Y47: 67.2 | Z47: 97.7 | AA47: 4828 | AB47: All | AC47: 4.2 | AD47: 11.6 | AE47: 20 | AF47: 22.8 | AG47: 17.7 | AH47: 11 | AI47: 6.3 | AJ47: 3.3 | AK47: 15.9 | AL47: 58.8 | AM47: 97 | AN47: 9412
A48: Dance | B48: Males | C48: 2.7 | D48: 15.3 | E48: 18.2 | F48: 25.1 | G48: 18.8 | H48: 12.6 | I48: 4.5 | J48: 1.7 | K48: 18.1 | L48: 61.3 | M48: 98.8 | N48: 842 | O48: Females | P48: 5.4 | Q48: 16.8 | R48: 20.8 | S48: 23.9 | T48: 17.3 | U48: 9.4 | V48: 3.9 | W48: 1.5 | X48: 22.2 | Y48: 67 | Z48: 99 | AA48: 11164 | AB48: All | AC48: 5.2 | AD48: 16.7 | AE48: 20.6 | AF48: 24 | AG48: 17.4 | AH48: 9.6 | AI48: 3.9 | AJ48: 1.5 | AK48: 21.9 | AL48: 66.6 | AM48: 99 | AN48: 12006
A49: Drama | B49: Males | C49: 3.9 | D49: 13.1 | E49: 22.5 | F49: 25.9 | G49: 18.8 | H49: 9 | I49: 4.1 | J49: 1.7 | K49: 17.1 | L49: 65.5 | M49: 99 | N49: 27237 | O49: Females | P49: 6.7 | Q49: 20.2 | R49: 27.3 | S49: 23.8 | T49: 13.2 | U49: 5.4 | V49: 2.1 | W49: 0.8 | X49: 26.9 | Y49: 78.1 | Z49: 99.5 | AA49: 43614 | AB49: All | AC49: 5.6 | AD49: 17.5 | AE49: 25.5 | AF49: 24.6 | AG49: 15.3 | AH49: 6.8 | AI49: 2.9 | AJ49: 1.1 | AK49: 23.1 | AL49: 73.2 | AM49: 99.3 | AN49: 70851
A50: English Literature | B50: Males | C50: 3.2 | D50: 12.3 | E50: 26.1 | F50: 26.8 | G50: 17.4 | H50: 8.3 | I50: 3.4 | J50: 1.3 | K50: 15.6 | L50: 68.4 | M50: 98.8 | N50: 195575 | O50: Females | P50: 6.8 | Q50: 21.2 | R50: 31.5 | S50: 22.9 | T50: 11 | U50: 4 | V50: 1.4 | W50: 0.5 | X50: 28 | Y50: 82.4 | Z50: 99.3 | AA50: 211491 | AB50: All | AC50: 5.1 | AD50: 17 | AE50: 28.9 | AF50: 24.8 | AG50: 14 | AH50: 6.1 | AI50: 2.4 | AJ50: 0.9 | AK50: 22 | AL50: 75.7 | AM50: 99 | AN50: 407066
A51: English Studies | B51: Males | C51: 0 | D51: 1.4 | E51: 14.7 | F51: 29.2 | G51: 24.9 | H51: 20.1 | I51: 7.6 | J51: 1.7 | K51: 1.4 | L51: 45.3 | M51: 99.7 | N51: 353 | O51: Females | P51: 0.8 | Q51: 3.8 | R51: 24.5 | S51: 28.3 | T51: 27.7 | U51: 9.8 | V51: 4.1 | W51: 0.8 | X51: 4.6 | Y51: 57.3 | Z51: 99.7 | AA51: 368 | AB51: All | AC51: 0.4 | AD51: 2.6 | AE51: 19.7 | AF51: 28.7 | AG51: 26.4 | AH51: 14.8 | AI51: 5.8 | AJ51: 1.2 | AK51: 3.1 | AL51: 51.5 | AM51: 99.7 | AN51: 721
A52: General Studies | B52: Males | C52: 1.7 | D52: 6.6 | E52: 11.5 | F52: 16.3 | G52: 18.6 | H52: 16 | I52: 11.5 | J52: 8.6 | K52: 8.3 | L52: 36.2 | M52: 90.9 | N52: 4961 | O52: Females | P52: 2.3 | Q52: 7.7 | R52: 13.7 | S52: 19.3 | T52: 22.8 | U52: 14.8 | V52: 8.8 | W52: 5.1 | X52: 10 | Y52: 43 | Z52: 94.5 | AA52: 4562 | AB52: All | AC52: 2 | AD52: 7.1 | AE52: 12.6 | AF52: 17.7 | AG52: 20.6 | AH52: 15.4 | AI52: 10.2 | AJ52: 6.9 | AK52: 9.1 | AL52: 39.5 | AM52: 92.6 | AN52: 9523
A53: Health and Social Care | B53: Males | C53: x | D53: 2.5 | E53: 8.6 | F53: 17.1 | G53: 19.6 | H53: 17.8 | I53: 15 | J53: 10.4 | K53: 2.6 | L53: 28.3 | M53: 91.1 | N53: 1200 | O53: Females | P53: x | Q53: 9.5 | R53: 19.7 | S53: 25.5 | T53: 18.7 | U53: 11.3 | V53: 6.7 | W53: 4.1 | X53: 11.3 | Y53: 56.5 | Z53: 97.3 | AA53: 17170 | AB53: All | AC53: 1.7 | AD53: 9 | AE53: 19 | AF53: 24.9 | AG53: 18.7 | AH53: 11.8 | AI53: 7.2 | AJ53: 4.5 | AK53: 10.8 | AL53: 54.7 | AM53: 96.9 | AN53: 18370
A54: Hospitality and Catering | B54: Males | C54: x | D54: 2 | E54: 11.5 | F54: 25.6 | G54: 25.8 | H54: 18.9 | I54: 11.5 | J54: 2.5 | K54: 2.1 | L54: 39.1 | M54: 97.7 | N54: 1055 | O54: Females | P54: x | Q54: 11.3 | R54: 22.1 | S54: 26.8 | T54: 19.7 | U54: 10.8 | V54: 3.3 | W54: 1.1 | X54: 14.3 | Y54: 63.3 | Z54: 98.2 | AA54: 1394 | AB54: All | AC54: 1.8 | AD54: 7.3 | AE54: 17.5 | AF54: 26.3 | AG54: 22.3 | AH54: 14.3 | AI54: 6.8 | AJ54: 1.7 | AK54: 9.1 | AL54: 52.9 | AM54: 98 | AN54: 2449
A55: Leisure and Tourism | B55: Males | C55: 0.5 | D55: 3.3 | E55: 8.9 | F55: 16.1 | G55: 19.1 | H55: 17.3 | I55: 13.7 | J55: 11.6 | K55: 3.8 | L55: 28.9 | M55: 90.6 | N55: 2917 | O55: Females | P55: 2.6 | Q55: 8.4 | R55: 15.6 | S55: 20 | T55: 18.8 | U55: 14.3 | V55: 9.2 | W55: 6.6 | X55: 11.1 | Y55: 46.7 | Z55: 95.5 | AA55: 3107 | AB55: All | AC55: 1.6 | AD55: 5.9 | AE55: 12.4 | AF55: 18.1 | AG55: 19 | AH55: 15.7 | AI55: 11.4 | AJ55: 9 | AK55: 7.6 | AL55: 38.1 | AM55: 93.1 | AN55: 6024
A56: Manufacturing | B56: Males | C56: x | D56: 5.3 | E56: 16 | F56: 19.1 | G56: 19.1 | H56: 21.3 | I56: 13.8 | J56: 4.3 | K56: 6.4 | L56: 41.5 | M56: 100 | N56: 94 | O56: Females | P56: x | Q56: 12.5 | R56: 27.5 | S56: 30 | T56: 20 | U56: 7.5 | V56: 0 | W56: 0 | X56: 15 | Y56: 72.5 | Z56: 100 | AA56: 40 | AB56: All | AC56: x | AD56: 7.5 | AE56: 19.4 | AF56: 22.4 | AG56: 19.4 | AH56: 17.2 | AI56: 9.7 | AJ56: 3 | AK56: 9 | AL56: 50.7 | AM56: 100 | AN56: 134
A57: Media/Film/TV | B57: Males | C57: 1.5 | D57: 7.2 | E57: 18.7 | F57: 27.8 | G57: 21 | H57: 12 | I57: 6.4 | J57: 3 | K57: 8.7 | L57: 55.2 | M57: 97.6 | N57: 26234 | O57: Females | P57: 5.4 | Q57: 17.8 | R57: 27.8 | S57: 25.1 | T57: 13 | U57: 5.9 | V57: 2.5 | W57: 1.2 | X57: 23.2 | Y57: 76.2 | Z57: 98.8 | AA57: 25368 | AB57: All | AC57: 3.4 | AD57: 12.4 | AE57: 23.2 | AF57: 26.5 | AG57: 17.1 | AH57: 9 | AI57: 4.5 | AJ57: 2.1 | AK57: 15.8 | AL57: 65.5 | AM57: 98.2 | AN57: 51602
A58: Music | B58: Males | C58: 8.9 | D58: 19.7 | E58: 23.8 | F58: 19.7 | G58: 13 | H58: 7.8 | I58: 3.6 | J58: 1.9 | K58: 28.6 | L58: 72.1 | M58: 98.5 | N58: 20393 | O58: Females | P58: 9.2 | Q58: 23 | R58: 26.1 | S58: 19.6 | T58: 11.3 | U58: 6.1 | V58: 2.6 | W58: 1.3 | X58: 32.2 | Y58: 78 | Z58: 99.2 | AA58: 23305 | AB58: All | AC58: 9.1 | AD58: 21.5 | AE58: 25 | AF58: 19.7 | AG58: 12.1 | AH58: 6.9 | AI58: 3.1 | AJ58: 1.6 | AK58: 30.5 | AL58: 75.2 | AM58: 98.9 | AN58: 43698
A59: Performing Arts | B59: Males | C59: 3.5 | D59: 6.1 | E59: 15.9 | F59: 24 | G59: 23.4 | H59: 12.6 | I59: 8.4 | J59: 3.4 | K59: 9.6 | L59: 49.5 | M59: 97.3 | N59: 1665 | O59: Females | P59: 8.8 | Q59: 12.3 | R59: 20.5 | S59: 25.7 | T59: 16.9 | U59: 9.2 | V59: 3.9 | W59: 1.5 | X59: 21.2 | Y59: 67.4 | Z59: 98.8 | AA59: 4333 | AB59: All | AC59: 7.3 | AD59: 10.6 | AE59: 19.2 | AF59: 25.2 | AG59: 18.7 | AH59: 10.1 | AI59: 5.1 | AJ59: 2 | AK59: 18 | AL59: 62.4 | AM59: 98.4 | AN59: 5998
A60: Physical Education | B60: Males | C60: 2.8 | D60: 13.7 | E60: 23.5 | F60: 28.5 | G60: 18.6 | H60: 8.9 | I60: 2.8 | J60: 0.8 | K60: 16.5 | L60: 68.5 | M60: 99.6 | N60: 73377 | O60: Females | P60: 6.8 | Q60: 19.1 | R60: 22.8 | S60: 24 | T60: 15.9 | U60: 7.6 | V60: 2.5 | W60: 0.8 | X60: 25.9 | Y60: 72.8 | Z60: 99.5 | AA60: 37413 | AB60: All | AC60: 4.2 | AD60: 15.5 | AE60: 23.3 | AF60: 27 | AG60: 17.7 | AH60: 8.5 | AI60: 2.7 | AJ60: 0.8 | AK60: 19.7 | AL60: 70 | AM60: 99.6 | AN60: 110790
A61: Religious Studies | B61: Males | C61: 6.9 | D61: 15 | E61: 22.3 | F61: 20.8 | G61: 13.8 | H61: 9.1 | I61: 5.7 | J61: 3.5 | K61: 22 | L61: 65.1 | M61: 97.1 | N61: 125085 | O61: Females | P61: 14.7 | Q61: 22.4 | R61: 24.1 | S61: 17.1 | T61: 9.6 | U61: 5.7 | V61: 3.3 | W61: 1.8 | X61: 37.1 | Y61: 78.2 | Z61: 98.6 | AA61: 144426 | AB61: All | AC61: 11.1 | AD61: 19 | AE61: 23.3 | AF61: 18.8 | AG61: 11.6 | AH61: 7.2 | AI61: 4.4 | AJ61: 2.6 | AK61: 30.1 | AL61: 72.1 | AM61: 97.9 | AN61: 269511
A62: Statistics | B62: Males | C62: 4.1 | D62: 15.1 | E62: 20.6 | F62: 27.9 | G62: 17.1 | H62: 7.2 | I62: 3.7 | J62: 2 | K62: 19.2 | L62: 67.7 | M62: 97.8 | N62: 28134 | O62: Females | P62: 4.3 | Q62: 16.1 | R62: 22.8 | S62: 29.6 | T62: 14.8 | U62: 6.1 | V62: 2.7 | W62: 1.5 | X62: 20.5 | Y62: 72.9 | Z62: 98 | AA62: 23924 | AB62: All | AC62: 4.2 | AD62: 15.6 | AE62: 21.6 | AF62: 28.7 | AG62: 16 | AH62: 6.7 | AI62: 3.3 | AJ62: 1.8 | AK62: 19.8 | AL62: 70.1 | AM62: 97.9 | AN62: 52058
A63: Vocational Studies | B63: Males | C63: 1.1 | D63: 6.4 | E63: 16.5 | F63: 27.1 | G63: 23.2 | H63: 14.6 | I63: 6.8 | J63: 2.5 | K63: 7.5 | L63: 51.1 | M63: 98.2 | N63: 19950 | O63: Females | P63: 3.4 | Q63: 14.9 | R63: 25.5 | S63: 25.9 | T63: 16.7 | U63: 8.2 | V63: 3.4 | W63: 1.2 | X63: 18.3 | Y63: 69.7 | Z63: 99.2 | AA63: 22372 | AB63: All | AC63: 2.3 | AD63: 10.9 | AE63: 21.3 | AF63: 26.4 | AG63: 19.8 | AH63: 11.2 | AI63: 5 | AJ63: 1.8 | AK63: 13.2 | AL63: 60.9 | AM63: 98.7 | AN63: 42322
A64: All Subjects | B64: Males | C64: 5.6 | D64: 12.9 | E64: 21.4 | F64: 26.5 | G64: 16.7 | H64: 8.4 | I64: 4.4 | J64: 2.3 | K64: 18.4 | L64: 66.3 | M64: 98.1 | N64: 2268834 | O64: Females | P64: 8.5 | Q64: 17.4 | R64: 24.4 | S64: 24.9 | T64: 13.5 | U64: 5.9 | V64: 2.8 | W64: 1.4 | X64: 26 | Y64: 75.2 | Z64: 98.8 | AA64: 2343738 | AB64: All | AC64: 7.1 | AD64: 15.2 | AE64: 22.9 | AF64: 25.7 | AG64: 15.1 | AH64: 7.1 | AI64: 3.6 | AJ64: 1.8 | AK64: 22.3 | AL64: 70.8 | AM64: 98.5 | AN64: 4612572
A69: DISC3B
A70: Subject | B70: (No column name) | C70: * | D70: A | E70: B | F70: C | G70: D | H70: E | I70: F | J70: G | K70: AstarA | L70: AstarC | M70: AstarG | N70: Total | O70: (No column name) | P70: * | Q70: A | R70: B | S70: C | T70: D | U70: E | V70: F | W70: G | X70: AstarA | Y70: AstarC | Z70: AstarG | AA70: Total | AB70: (No column name) | AC70: * | AD70: A | AE70: B | AF70: C | AG70: D | AH70: E | AI70: F | AJ70: G | AK70: AstarA | AL70: AstarC | AM70: AstarG | AN70: Total
A71: English | B71: Males | C71: 4284 | D71: 17793 | E71: 41422 | F71: 55388 | G71: 33933 | H71: 14135 | I71: 5823 | J71: 2397 | K71: 22077 | L71: 118887 | M71: 175175 | N71: 176842 | O71: Females | P71: 10560 | Q71: 34393 | R71: 56502 | S71: 51458 | T71: 22561 | U71: 7002 | V71: 2350 | W71: 963 | X71: 44953 | Y71: 152913 | Z71: 185789 | AA71: 186560 | AB71: All | AC71: 14844 | AD71: 52186 | AE71: 97924 | AF71: 106846 | AG71: 56494 | AH71: 21137 | AI71: 8173 | AJ71: 3360 | AK71: 67030 | AL71: 271800 | AM71: 360964 | AN71: 363402
A72: Mathematics | B72: Males | C72: 23228 | D72: 35710 | E72: 56796 | F72: 86861 | G72: 39497 | H72: 15877 | I72: 10695 | J72: 9023 | K72: 58938 | L72: 202595 | M72: 277687 | N72: 290391 | O72: Females | P72: 19709 | Q72: 34659 | R72: 57976 | S72: 86952 | T72: 39786 | U72: 14449 | V72: 9575 | W72: 7920 | X72: 54368 | Y72: 199296 | Z72: 271026 | AA72: 281881 | AB72: All | AC72: 42937 | AD72: 70369 | AE72: 114772 | AF72: 173813 | AG72: 79283 | AH72: 30326 | AI72: 20270 | AJ72: 16943 | AK72: 113306 | AL72: 401891 | AM72: 548713 | AN72: 572272
A73: Core Science | B73: Males | C73: 1726 | D73: 11034 | E73: 32864 | F73: 57037 | G73: 41248 | H73: 20957 | I73: 11184 | J73: 4485 | K73: 12760 | L73: 102661 | M73: 180535 | N73: 183841 | O73: Females | P73: 2962 | Q73: 16296 | R73: 39365 | S73: 57239 | T73: 37662 | U73: 17907 | V73: 8408 | W73: 3154 | X73: 19258 | Y73: 115862 | Z73: 182993 | AA73: 185357 | AB73: All | AC73: 4688 | AD73: 27330 | AE73: 72229 | AF73: 114276 | AG73: 78910 | AH73: 38864 | AI73: 19592 | AJ73: 7639 | AK73: 32018 | AL73: 218523 | AM73: 363528 | AN73: 369198
A74: Additional Science | B74: Males | C74: 2423 | D74: 11957 | E74: 29736 | F74: 47761 | G74: 33003 | H74: 14199 | I74: 6253 | J74: 2321 | K74: 14380 | L74: 91877 | M74: 147653 | N74: 148776 | O74: Females | P74: 3711 | Q74: 16296 | R74: 35830 | S74: 49363 | T74: 31359 | U74: 12555 | V74: 4644 | W74: 1562 | X74: 20007 | Y74: 105200 | Z74: 155320 | AA74: 156188 | AB74: All | AC74: 6134 | AD74: 28253 | AE74: 65566 | AF74: 97124 | AG74: 64362 | AH74: 26754 | AI74: 10897 | AJ74: 3883 | AK74: 34387 | AL74: 197077 | AM74: 302973 | AN74: 304964
A75: Further Additional Science | B75: Males | C75: 1340 | D75: 2197 | E75: 2690 | F75: 2702 | G75: 1737 | H75: 561 | I75: 147 | J75: 29 | K75: 3537 | L75: 8929 | M75: 11403 | N75: 11420 | O75: Females | P75: 1751 | Q75: 2402 | R75: 2797 | S75: 2471 | T75: 1461 | U75: 458 | V75: 87 | W75: 26 | X75: 4153 | Y75: 9421 | Z75: 11453 | AA75: 11474 | AB75: All | AC75: 3091 | AD75: 4599 | AE75: 5487 | AF75: 5173 | AG75: 3198 | AH75: 1019 | AI75: 234 | AJ75: 55 | AK75: 7690 | AL75: 18350 | AM75: 22856 | AN75: 22894
A76: Additional Applied Science | B76: Males | C76: 9 | D76: 60 | E76: 346 | F76: 1379 | G76: 1915 | H76: 1572 | I76: 786 | J76: 319 | K76: 69 | L76: 1794 | M76: 6386 | N76: 6554 | O76: Females | P76: 3 | Q76: 93 | R76: 581 | S76: 1682 | T76: 1999 | U76: 1147 | V76: 566 | W76: 210 | X76: 96 | Y76: 2359 | Z76: 6281 | AA76: 6378 | AB76: All | AC76: 12 | AD76: 153 | AE76: 927 | AF76: 3061 | AG76: 3914 | AH76: 2719 | AI76: 1352 | AJ76: 529 | AK76: 165 | AL76: 4153 | AM76: 12667 | AN76: 12932
A77: Physics | B77: Males | C77: 9218 | D77: 17526 | E77: 18133 | F77: 12513 | G77: 3988 | H77: 631 | I77: 141 | J77: 40 | K77: 26744 | L77: 57390 | M77: 62190 | N77: 62238 | O77: Females | P77: 9423 | Q77: 17019 | R77: 17329 | S77: 12011 | T77: 3860 | U77: 560 | V77: 94 | W77: 39 | X77: 26442 | Y77: 55782 | Z77: 60335 | AA77: 60374 | AB77: All | AC77: 18641 | AD77: 34545 | AE77: 35462 | AF77: 24524 | AG77: 7848 | AH77: 1191 | AI77: 235 | AJ77: 79 | AK77: 53186 | AL77: 113172 | AM77: 122525 | AN77: 122612
A78: Chemistry | B78: Males | C78: 8706 | D78: 16436 | E78: 18375 | F78: 13324 | G78: 4766 | H78: 960 | I78: 180 | J78: 53 | K78: 25142 | L78: 56841 | M78: 62800 | N78: 62852 | O78: Females | P78: 11130 | Q78: 17252 | R78: 16851 | S78: 10889 | T78: 3589 | U78: 634 | V78: 106 | W78: 44 | X78: 28382 | Y78: 56122 | Z78: 60495 | AA78: 60538 | AB78: All | AC78: 19836 | AD78: 33688 | AE78: 35226 | AF78: 24213 | AG78: 8355 | AH78: 1594 | AI78: 286 | AJ78: 97 | AK78: 53524 | AL78: 112963 | AM78: 123295 | AN78: 123390
A79: Biological Sciences | B79: Males | C79: 6917 | D79: 17177 | E79: 19759 | F79: 13746 | G79: 4743 | H79: 960 | I79: 287 | J79: 123 | K79: 24094 | L79: 57599 | M79: 63712 | N79: 63877 | O79: Females | P79: 10283 | Q79: 19460 | R79: 17712 | S79: 10433 | T79: 3260 | U79: 695 | V79: 179 | W79: 106 | X79: 29743 | Y79: 57888 | Z79: 62128 | AA79: 62252 | AB79: All | AC79: 17200 | AD79: 36637 | AE79: 37471 | AF79: 24179 | AG79: 8003 | AH79: 1655 | AI79: 466 | AJ79: 229 | AK79: 53837 | AL79: 115487 | AM79: 125840 | AN79: 126129
A80: Computer Science | B80: Males | C80: 1713 | D80: 4169 | E80: 5963 | F80: 6189 | G80: 4193 | H80: 2471 | I80: 1539 | J80: 1023 | K80: 5882 | L80: 18034 | M80: 27260 | N80: 28101 | O80: Females | P80: 476 | Q80: 1040 | R80: 1280 | S80: 1147 | T80: 715 | U80: 392 | V80: 183 | W80: 94 | X80: 1516 | Y80: 3943 | Z80: 5327 | AA80: 5432 | AB80: All | AC80: 2189 | AD80: 5209 | AE80: 7243 | AF80: 7336 | AG80: 4908 | AH80: 2863 | AI80: 1722 | AJ80: 1117 | AK80: 7398 | AL80: 21977 | AM80: 32587 | AN80: 33533
A81: Other Sciences | B81: Males | C81: 439 | D81: 561 | E81: 608 | F81: 722 | G81: 565 | H81: 488 | I81: 309 | J81: 164 | K81: 1000 | L81: 2330 | M81: 3856 | N81: 3971 | O81: Females | P81: 99 | Q81: 285 | R81: 407 | S81: 543 | T81: 372 | U81: 259 | V81: 153 | W81: 83 | X81: 384 | Y81: 1334 | Z81: 2201 | AA81: 2252 | AB81: All | AC81: 538 | AD81: 846 | AE81: 1015 | AF81: 1265 | AG81: 937 | AH81: 747 | AI81: 462 | AJ81: 247 | AK81: 1384 | AL81: 3664 | AM81: 6057 | AN81: 6223
A82: D & T: Electronic Products | B82: Males | C82: 486 | D82: 1157 | E82: 1602 | F82: 1463 | G82: 1137 | H82: 729 | I82: 396 | J82: 206 | K82: 1643 | L82: 4708 | M82: 7176 | N82: 7327 | O82: Females | P82: 89 | Q82: 155 | R82: 138 | S82: 89 | T82: 51 | U82: 19 | V82: 13 | W82: 11 | X82: 244 | Y82: 471 | Z82: 565 | AA82: 568 | AB82: All | AC82: 575 | AD82: 1312 | AE82: 1740 | AF82: 1552 | AG82: 1188 | AH82: 748 | AI82: 409 | AJ82: 217 | AK82: 1887 | AL82: 5179 | AM82: 7741 | AN82: 7895
A83: D & T: Food Technology | B83: Males | C83: 214 | D83: 785 | E83: 2046 | F83: 3376 | G83: 3274 | H83: 2140 | I83: 1330 | J83: 582 | K83: 999 | L83: 6421 | M83: 13747 | N83: 14091 | O83: Females | P83: 1721 | Q83: 4073 | R83: 5702 | S83: 5666 | T83: 3700 | U83: 1981 | V83: 959 | W83: 345 | X83: 5794 | Y83: 17162 | Z83: 24147 | AA83: 24332 | AB83: All | AC83: 1935 | AD83: 4858 | AE83: 7748 | AF83: 9042 | AG83: 6974 | AH83: 4121 | AI83: 2289 | AJ83: 927 | AK83: 6793 | AL83: 23583 | AM83: 37894 | AN83: 38423
A84: D & T: Graphic Products | B84: Males | C84: 600 | D84: 1755 | E84: 3204 | F84: 4573 | G84: 3849 | H84: 2736 | I84: 1601 | J84: 953 | K84: 2355 | L84: 10132 | M84: 19271 | N84: 19958 | O84: Females | P84: 1139 | Q84: 2099 | R84: 2673 | S84: 2614 | T84: 1625 | U84: 934 | V84: 466 | W84: 203 | X84: 3238 | Y84: 8525 | Z84: 11753 | AA84: 11901 | AB84: All | AC84: 1739 | AD84: 3854 | AE84: 5877 | AF84: 7187 | AG84: 5474 | AH84: 3670 | AI84: 2067 | AJ84: 1156 | AK84: 5593 | AL84: 18657 | AM84: 31024 | AN84: 31859
A85: D & T: Resistant Materials | B85: Males | C85: 1384 | D85: 3757 | E85: 7548 | F85: 10762 | G85: 8714 | H85: 5545 | I85: 3252 | J85: 1545 | K85: 5141 | L85: 23451 | M85: 42507 | N85: 43489 | O85: Females | P85: 686 | Q85: 1390 | R85: 1685 | S85: 1681 | T85: 1073 | U85: 580 | V85: 289 | W85: 139 | X85: 2076 | Y85: 5442 | Z85: 7523 | AA85: 7608 | AB85: All | AC85: 2070 | AD85: 5147 | AE85: 9233 | AF85: 12443 | AG85: 9787 | AH85: 6125 | AI85: 3541 | AJ85: 1684 | AK85: 7217 | AL85: 28893 | AM85: 50030 | AN85: 51097
A86: D & T: Systems & Control | B86: Males | C86: 208 | D86: 353 | E86: 573 | F86: 670 | G86: 499 | H86: 281 | I86: 129 | J86: 68 | K86: 561 | L86: 1804 | M86: 2781 | N86: 2811 | O86: Females | P86: 11 | Q86: 40 | R86: 34 | S86: 40 | T86: 26 | U86: 10 | V86: 3 | W86: 3 | X86: 51 | Y86: 125 | Z86: 167 | AA86: 168 | AB86: All | AC86: 219 | AD86: 393 | AE86: 607 | AF86: 710 | AG86: 525 | AH86: 291 | AI86: 132 | AJ86: 71 | AK86: 612 | AL86: 1929 | AM86: 2948 | AN86: 2979
A87: D & T: Textiles Technology | B87: Males | C87: 10 | D87: 41 | E87: 94 | F87: 144 | G87: 149 | H87: 141 | I87: 99 | J87: 46 | K87: 51 | L87: 289 | M87: 724 | N87: 752 | O87: Females | P87: 2235 | Q87: 4140 | R87: 5711 | S87: 4948 | T87: 3259 | U87: 1747 | V87: 854 | W87: 357 | X87: 6375 | Y87: 17034 | Z87: 23251 | AA87: 23450 | AB87: All | AC87: 2245 | AD87: 4181 | AE87: 5805 | AF87: 5092 | AG87: 3408 | AH87: 1888 | AI87: 953 | AJ87: 403 | AK87: 6426 | AL87: 17323 | AM87: 23975 | AN87: 24202
A88: Other Design and Technology | B88: Males | C88: 704 | D88: 2166 | E88: 4831 | F88: 6762 | G88: 5419 | H88: 3551 | I88: 2311 | J88: 1110 | K88: 2870 | L88: 14463 | M88: 26854 | N88: 27501 | O88: Females | P88: 803 | Q88: 1947 | R88: 2705 | S88: 2271 | T88: 1439 | U88: 793 | V88: 410 | W88: 209 | X88: 2750 | Y88: 7726 | Z88: 10577 | AA88: 10722 | AB88: All | AC88: 1507 | AD88: 4113 | AE88: 7536 | AF88: 9033 | AG88: 6858 | AH88: 4344 | AI88: 2721 | AJ88: 1319 | AK88: 5620 | AL88: 22189 | AM88: 37431 | AN88: 38223
A89: Applied Engineering | B89: Males | C89: 45 | D89: 234 | E89: 664 | F89: 1252 | G89: 1254 | H89: 924 | I89: 699 | J89: 442 | K89: 279 | L89: 2195 | M89: 5514 | N89: 5817 | O89: Females | P89: 18 | Q89: 85 | R89: 87 | S89: 100 | T89: 78 | U89: 49 | V89: 29 | W89: 17 | X89: 103 | Y89: 290 | Z89: 463 | AA89: 473 | AB89: All | AC89: 63 | AD89: 319 | AE89: 751 | AF89: 1352 | AG89: 1332 | AH89: 973 | AI89: 728 | AJ89: 459 | AK89: 382 | AL89: 2485 | AM89: 5977 | AN89: 6290
A90: Information Technology | B90: Males | C90: 1830 | D90: 7562 | E90: 13446 | F90: 14010 | G90: 8551 | H90: 4773 | I90: 3264 | J90: 2128 | K90: 9392 | L90: 36848 | M90: 55564 | N90: 57010 | O90: Females | P90: 2422 | Q90: 7710 | R90: 10465 | S90: 9559 | T90: 5783 | U90: 3030 | V90: 1757 | W90: 1060 | X90: 10132 | Y90: 30156 | Z90: 41786 | AA90: 42551 | AB90: All | AC90: 4252 | AD90: 15272 | AE90: 23911 | AF90: 23569 | AG90: 14334 | AH90: 7803 | AI90: 5021 | AJ90: 3188 | AK90: 19524 | AL90: 67004 | AM90: 97350 | AN90: 99561
A91: Business Studies | B91: Males | C91: 1149 | D91: 5519 | E91: 10212 | F91: 10533 | G91: 6909 | H91: 4010 | I91: 2358 | J91: 1355 | K91: 6668 | L91: 27413 | M91: 42045 | N91: 42806 | O91: Females | P91: 1322 | Q91: 5115 | R91: 7880 | S91: 7246 | T91: 4633 | U91: 2551 | V91: 1410 | W91: 703 | X91: 6437 | Y91: 21563 | Z91: 30860 | AA91: 31215 | AB91: All | AC91: 2471 | AD91: 10634 | AE91: 18092 | AF91: 17779 | AG91: 11542 | AH91: 6561 | AI91: 3768 | AJ91: 2058 | AK91: 13105 | AL91: 48976 | AM91: 72905 | AN91: 74021
A92: Applied Business | B92: Males | C92: 113 | D92: 630 | E92: 1309 | F92: 1540 | G92: 1141 | H92: 860 | I92: 475 | J92: 327 | K92: 743 | L92: 3592 | M92: 6395 | N92: 6829 | O92: Females | P92: 134 | Q92: 723 | R92: 1089 | S92: 1028 | T92: 744 | U92: 528 | V92: 240 | W92: 163 | X92: 857 | Y92: 2974 | Z92: 4649 | AA92: 4815 | AB92: All | AC92: 247 | AD92: 1353 | AE92: 2398 | AF92: 2568 | AG92: 1885 | AH92: 1388 | AI92: 715 | AJ92: 490 | AK92: 1600 | AL92: 6566 | AM92: 11044 | AN92: 11644
A93: Home Economics | B93: Males | C93: 24 | D93: 138 | E93: 373 | F93: 755 | G93: 790 | H93: 606 | I93: 379 | J93: 155 | K93: 162 | L93: 1290 | M93: 3220 | N93: 3307 | O93: Females | P93: 731 | Q93: 2581 | R93: 4655 | S93: 5688 | T93: 4736 | U93: 2872 | V93: 1524 | W93: 707 | X93: 3312 | Y93: 13655 | Z93: 23494 | AA93: 23847 | AB93: All | AC93: 755 | AD93: 2719 | AE93: 5028 | AF93: 6443 | AG93: 5526 | AH93: 3478 | AI93: 1903 | AJ93: 862 | AK93: 3474 | AL93: 14945 | AM93: 26714 | AN93: 27154
A94: Ancient History | B94: Males | C94: 89 | D94: 111 | E94: 104 | F94: 78 | G94: 57 | H94: 34 | I94: 17 | J94: 14 | K94: 200 | L94: 382 | M94: 504 | N94: 522 | O94: Females | P94: 63 | Q94: 104 | R94: 110 | S94: 75 | T94: 57 | U94: 23 | V94: 12 | W94: 8 | X94: 167 | Y94: 352 | Z94: 452 | AA94: 456 | AB94: All | AC94: 152 | AD94: 215 | AE94: 214 | AF94: 153 | AG94: 114 | AH94: 57 | AI94: 29 | AJ94: 22 | AK94: 367 | AL94: 734 | AM94: 956 | AN94: 978
A95: Geography | B95: Males | C95: 8313 | D95: 17561 | E95: 22642 | F95: 25915 | G95: 18312 | H95: 10834 | I95: 5748 | J95: 2815 | K95: 25874 | L95: 74431 | M95: 112140 | N95: 113351 | O95: Females | P95: 12021 | Q95: 19601 | R95: 20946 | S95: 19687 | T95: 12552 | U95: 7183 | V95: 3678 | W95: 1690 | X95: 31622 | Y95: 72255 | Z95: 97358 | AA95: 98046 | AB95: All | AC95: 20334 | AD95: 37162 | AE95: 43588 | AF95: 45602 | AG95: 30864 | AH95: 18017 | AI95: 9426 | AJ95: 4505 | AK95: 57496 | AL95: 146686 | AM95: 209498 | AN95: 211397
A96: History | B96: Males | C96: 8080 | D96: 18428 | E96: 23515 | F96: 21823 | G96: 15234 | H96: 9952 | I96: 6602 | J96: 4116 | K96: 26508 | L96: 71846 | M96: 107750 | N96: 110702 | O96: Females | P96: 14361 | Q96: 25155 | R96: 26033 | S96: 20775 | T96: 13368 | U96: 8637 | V96: 5376 | W96: 2980 | X96: 39516 | Y96: 86324 | Z96: 116685 | AA96: 118367 | AB96: All | AC96: 22441 | AD96: 43583 | AE96: 49548 | AF96: 42598 | AG96: 28602 | AH96: 18589 | AI96: 11978 | AJ96: 7096 | AK96: 66024 | AL96: 158170 | AM96: 224435 | AN96: 229069
A97: Humanities | B97: Males | C97: 46 | D97: 231 | E97: 586 | F97: 884 | G97: 827 | H97: 688 | I97: 473 | J97: 362 | K97: 277 | L97: 1747 | M97: 4097 | N97: 4362 | O97: Females | P97: 113 | Q97: 456 | R97: 749 | S97: 896 | T97: 706 | U97: 464 | V97: 316 | W97: 183 | X97: 569 | Y97: 2214 | Z97: 3883 | AA97: 4038 | AB97: All | AC97: 159 | AD97: 687 | AE97: 1335 | AF97: 1780 | AG97: 1533 | AH97: 1152 | AI97: 789 | AJ97: 545 | AK97: 846 | AL97: 3961 | AM97: 7980 | AN97: 8400
A98: Economics | B98: Males | C98: 405 | D98: 1415 | E98: 1845 | F98: 1246 | G98: 727 | H98: 360 | I98: 186 | J98: 103 | K98: 1820 | L98: 4911 | M98: 6287 | N98: 6378 | O98: Females | P98: 173 | Q98: 713 | R98: 876 | S98: 615 | T98: 343 | U98: 183 | V98: 89 | W98: 40 | X98: 886 | Y98: 2377 | Z98: 3032 | AA98: 3076 | AB98: All | AC98: 578 | AD98: 2128 | AE98: 2721 | AF98: 1861 | AG98: 1070 | AH98: 543 | AI98: 275 | AJ98: 143 | AK98: 2706 | AL98: 7288 | AM98: 9319 | AN98: 9454
A99: Social Studies | B99: Males | C99: 356 | D99: 2021 | E99: 4396 | F99: 5334 | G99: 3976 | H99: 2521 | I99: 1569 | J99: 935 | K99: 2377 | L99: 12107 | M99: 21108 | N99: 21916 | O99: Females | P99: 1588 | Q99: 6256 | R99: 9911 | S99: 8628 | T99: 5467 | U99: 3215 | V99: 1698 | W99: 967 | X99: 7844 | Y99: 26383 | Z99: 37730 | AA99: 38414 | AB99: All | AC99: 1944 | AD99: 8277 | AE99: 14307 | AF99: 13962 | AG99: 9443 | AH99: 5736 | AI99: 3267 | AJ99: 1902 | AK99: 10221 | AL99: 38490 | AM99: 58838 | AN99: 60330
A100: Other Classical Studies | B100: Males | C100: 17 | D100: 31 | E100: 37 | F100: 22 | G100: 10 | H100: 10 | I100: 10 | J100: 5 | K100: 48 | L100: 107 | M100: 142 | N100: 148 | O100: Females | P100: 41 | Q100: 133 | R100: 87 | S100: 38 | T100: 27 | U100: 13 | V100: 8 | W100: 8 | X100: 174 | Y100: 299 | Z100: 355 | AA100: 362 | AB100: All | AC100: 58 | AD100: 164 | AE100: 124 | AF100: 60 | AG100: 37 | AH100: 23 | AI100: 18 | AJ100: 13 | AK100: 222 | AL100: 406 | AM100: 497 | AN100: 510
A101: Arabic | B101: Males | C101: 437 | D101: 288 | E101: 184 | F101: 160 | G101: 90 | H101: 68 | I101: 44 | J101: 49 | K101: 725 | L101: 1069 | M101: 1320 | N101: 1395 | O101: Females | P101: 633 | Q101: 344 | R101: 255 | S101: 201 | T101: 120 | U101: 83 | V101: 70 | W101: 54 | X101: 977 | Y101: 1433 | Z101: 1760 | AA101: 1806 | AB101: All | AC101: 1070 | AD101: 632 | AE101: 439 | AF101: 361 | AG101: 210 | AH101: 151 | AI101: 114 | AJ101: 103 | AK101: 1702 | AL101: 2502 | AM101: 3080 | AN101: 3201
A102: Chinese | B102: Males | C102: 1034 | D102: 297 | E102: 189 | F102: 137 | G102: 68 | H102: 20 | I102: 9 | J102: 1 | K102: 1331 | L102: 1657 | M102: 1755 | N102: 1761 | O102: Females | P102: 1067 | Q102: 199 | R102: 127 | S102: 100 | T102: 22 | U102: 8 | V102: 0 | W102: 1 | X102: 1266 | Y102: 1493 | Z102: 1524 | AA102: 1525 | AB102: All | AC102: 2101 | AD102: 496 | AE102: 316 | AF102: 237 | AG102: 90 | AH102: 28 | AI102: 9 | AJ102: 2 | AK102: 2597 | AL102: 3150 | AM102: 3279 | AN102: 3286
A103: French | B103: Males | C103: 4782 | D103: 6913 | E103: 10889 | F103: 18117 | G103: 14226 | H103: 5983 | I103: 2281 | J103: 727 | K103: 11695 | L103: 40701 | M103: 63918 | N103: 64214 | O103: Females | P103: 9918 | Q103: 13330 | R103: 17906 | S103: 23815 | T103: 15049 | U103: 4694 | V103: 1541 | W103: 424 | X103: 23248 | Y103: 64969 | Z103: 86677 | AA103: 86881 | AB103: All | AC103: 14700 | AD103: 20243 | AE103: 28795 | AF103: 41932 | AG103: 29275 | AH103: 10677 | AI103: 3822 | AJ103: 1151 | AK103: 34943 | AL103: 105670 | AM103: 150595 | AN103: 151095
A104: German | B104: Males | C104: 1727 | D104: 3075 | E104: 5313 | F104: 7535 | G104: 5196 | H104: 1756 | I104: 589 | J104: 209 | K104: 4802 | L104: 17650 | M104: 25400 | N104: 25466 | O104: Females | P104: 2650 | Q104: 4539 | R104: 6767 | S104: 7668 | T104: 4119 | U104: 1064 | V104: 333 | W104: 97 | X104: 7189 | Y104: 21624 | Z104: 27237 | AA104: 27280 | AB104: All | AC104: 4377 | AD104: 7614 | AE104: 12080 | AF104: 15203 | AG104: 9315 | AH104: 2820 | AI104: 922 | AJ104: 306 | AK104: 11991 | AL104: 39274 | AM104: 52637 | AN104: 52746
A105: Italian | B105: Males | C105: 715 | D105: 320 | E105: 236 | F105: 235 | G105: 151 | H105: 54 | I105: 19 | J105: 9 | K105: 1035 | L105: 1506 | M105: 1739 | N105: 1752 | O105: Females | P105: 955 | Q105: 435 | R105: 334 | S105: 297 | T105: 158 | U105: 48 | V105: 14 | W105: 4 | X105: 1390 | Y105: 2021 | Z105: 2245 | AA105: 2252 | AB105: All | AC105: 1670 | AD105: 755 | AE105: 570 | AF105: 532 | AG105: 309 | AH105: 102 | AI105: 33 | AJ105: 13 | AK105: 2425 | AL105: 3527 | AM105: 3984 | AN105: 4004
A106: Polish | B106: Males | C106: 464 | D106: 801 | E106: 352 | F106: 158 | G106: 75 | H106: 21 | I106: 10 | J106: 17 | K106: 1265 | L106: 1775 | M106: 1898 | N106: 1923 | O106: Females | P106: 894 | Q106: 835 | R106: 249 | S106: 88 | T106: 30 | U106: 20 | V106: 4 | W106: 10 | X106: 1729 | Y106: 2066 | Z106: 2130 | AA106: 2152 | AB106: All | AC106: 1358 | AD106: 1636 | AE106: 601 | AF106: 246 | AG106: 105 | AH106: 41 | AI106: 14 | AJ106: 27 | AK106: 2994 | AL106: 3841 | AM106: 4028 | AN106: 4075
A107: Spanish | B107: Males | C107: 3788 | D107: 4750 | E107: 6480 | F107: 9440 | G107: 7123 | H107: 3035 | I107: 1353 | J107: 569 | K107: 8538 | L107: 24458 | M107: 36538 | N107: 36821 | O107: Females | P107: 7544 | Q107: 8083 | R107: 9868 | S107: 11663 | T107: 7206 | U107: 2601 | V107: 979 | W107: 359 | X107: 15627 | Y107: 37158 | Z107: 48303 | AA107: 48521 | AB107: All | AC107: 11332 | AD107: 12833 | AE107: 16348 | AF107: 21103 | AG107: 14329 | AH107: 5636 | AI107: 2332 | AJ107: 928 | AK107: 24165 | AL107: 61616 | AM107: 84841 | AN107: 85342
A108: Urdu | B108: Males | C108: 136 | D108: 311 | E108: 364 | F108: 362 | G108: 214 | H108: 129 | I108: 75 | J108: 22 | K108: 447 | L108: 1173 | M108: 1613 | N108: 1626 | O108: Females | P108: 377 | Q108: 627 | R108: 616 | S108: 471 | T108: 269 | U108: 119 | V108: 51 | W108: 13 | X108: 1004 | Y108: 2091 | Z108: 2543 | AA108: 2559 | AB108: All | AC108: 513 | AD108: 938 | AE108: 980 | AF108: 833 | AG108: 483 | AH108: 248 | AI108: 126 | AJ108: 35 | AK108: 1451 | AL108: 3264 | AM108: 4156 | AN108: 4185
A109: Other Modern Languages | B109: Males | C109: 1510 | D109: 1330 | E109: 933 | F109: 548 | G109: 284 | H109: 193 | I109: 88 | J109: 37 | K109: 2840 | L109: 4321 | M109: 4923 | N109: 4987 | O109: Females | P109: 2057 | Q109: 1622 | R109: 925 | S109: 481 | T109: 244 | U109: 108 | V109: 30 | W109: 24 | X109: 3679 | Y109: 5085 | Z109: 5491 | AA109: 5542 | AB109: All | AC109: 3567 | AD109: 2952 | AE109: 1858 | AF109: 1029 | AG109: 528 | AH109: 301 | AI109: 118 | AJ109: 61 | AK109: 6519 | AL109: 9406 | AM109: 10414 | AN109: 10529
A110: Classical Civilisation | B110: Males | C110: 209 | D110: 464 | E110: 523 | F110: 446 | G110: 236 | H110: 112 | I110: 46 | J110: 19 | K110: 673 | L110: 1642 | M110: 2055 | N110: 2068 | O110: Females | P110: 346 | Q110: 546 | R110: 419 | S110: 297 | T110: 165 | U110: 77 | V110: 24 | W110: 19 | X110: 892 | Y110: 1608 | Z110: 1893 | AA110: 1899 | AB110: All | AC110: 555 | AD110: 1010 | AE110: 942 | AF110: 743 | AG110: 401 | AH110: 189 | AI110: 70 | AJ110: 38 | AK110: 1565 | AL110: 3250 | AM110: 3948 | AN110: 3967
A111: Classical Greek | B111: Males | C111: 512 | D111: 126 | E111: 44 | F111: 17 | G111: 6 | H111: 4 | I111: 1 | J111: 0 | K111: 638 | L111: 699 | M111: 710 | N111: 711 | O111: Females | P111: 337 | Q111: 85 | R111: 34 | S111: 17 | T111: 10 | U111: 5 | V111: 1 | W111: 1 | X111: 422 | Y111: 473 | Z111: 490 | AA111: 490 | AB111: All | AC111: 849 | AD111: 211 | AE111: 78 | AF111: 34 | AG111: 16 | AH111: 9 | AI111: 2 | AJ111: 1 | AK111: 1060 | AL111: 1172 | AM111: 1200 | AN111: 1201
A112: Latin | B112: Males | C112: 1985 | D112: 979 | E112: 548 | F112: 341 | G112: 164 | H112: 73 | I112: 30 | J112: 13 | K112: 2964 | L112: 3853 | M112: 4133 | N112: 4150 | O112: Females | P112: 2219 | Q112: 1026 | R112: 505 | S112: 247 | T112: 110 | U112: 62 | V112: 24 | W112: 11 | X112: 3245 | Y112: 3997 | Z112: 4204 | AA112: 4211 | AB112: All | AC112: 4204 | AD112: 2005 | AE112: 1053 | AF112: 588 | AG112: 274 | AH112: 135 | AI112: 54 | AJ112: 24 | AK112: 6209 | AL112: 7850 | AM112: 8337 | AN112: 8361
A113: Applied Art and Design | B113: Males | C113: 9 | D113: 24 | E113: 59 | F113: 153 | G113: 62 | H113: 48 | I113: 28 | J113: 9 | K113: 33 | L113: 245 | M113: 392 | N113: 399 | O113: Females | P113: 33 | Q113: 58 | R113: 95 | S113: 138 | T113: 57 | U113: 30 | V113: 6 | W113: 4 | X113: 91 | Y113: 324 | Z113: 421 | AA113: 424 | AB113: All | AC113: 42 | AD113: 82 | AE113: 154 | AF113: 291 | AG113: 119 | AH113: 78 | AI113: 34 | AJ113: 13 | AK113: 124 | AL113: 569 | AM113: 813 | AN113: 823
A114: Art and Design | B114: Males | C114: 2872 | D114: 4790 | E114: 10447 | F114: 20130 | G114: 10511 | H114: 5623 | I114: 3225 | J114: 1443 | K114: 7662 | L114: 38239 | M114: 59041 | N114: 59965 | O114: Females | P114: 12905 | Q114: 19534 | R114: 29772 | S114: 33642 | T114: 11952 | U114: 4666 | V114: 2133 | W114: 824 | X114: 32439 | Y114: 95853 | Z114: 115428 | AA114: 116222 | AB114: All | AC114: 15777 | AD114: 24324 | AE114: 40219 | AF114: 53772 | AG114: 22463 | AH114: 10289 | AI114: 5358 | AJ114: 2267 | AK114: 40101 | AL114: 134092 | AM114: 174469 | AN114: 176187
A115: Communication Studies | B115: Males | C115: 94 | D115: 354 | E115: 774 | F115: 1064 | G115: 928 | H115: 617 | I115: 378 | J115: 200 | K115: 448 | L115: 2286 | M115: 4409 | N115: 4584 | O115: Females | P115: 305 | Q115: 742 | R115: 1112 | S115: 1085 | T115: 739 | U115: 415 | V115: 211 | W115: 110 | X115: 1047 | Y115: 3244 | Z115: 4719 | AA115: 4828 | AB115: All | AC115: 399 | AD115: 1096 | AE115: 1886 | AF115: 2149 | AG115: 1667 | AH115: 1032 | AI115: 589 | AJ115: 310 | AK115: 1495 | AL115: 5530 | AM115: 9128 | AN115: 9412
A116: Dance | B116: Males | C116: 23 | D116: 129 | E116: 153 | F116: 211 | G116: 158 | H116: 106 | I116: 38 | J116: 14 | K116: 152 | L116: 516 | M116: 832 | N116: 842 | O116: Females | P116: 605 | Q116: 1877 | R116: 2324 | S116: 2669 | T116: 1929 | U116: 1045 | V116: 432 | W116: 167 | X116: 2482 | Y116: 7475 | Z116: 11048 | AA116: 11164 | AB116: All | AC116: 628 | AD116: 2006 | AE116: 2477 | AF116: 2880 | AG116: 2087 | AH116: 1151 | AI116: 470 | AJ116: 181 | AK116: 2634 | AL116: 7991 | AM116: 11880 | AN116: 12006
A117: Drama | B117: Males | C117: 1071 | D117: 3580 | E117: 6121 | F117: 7062 | G117: 5112 | H117: 2457 | I117: 1105 | J117: 452 | K117: 4651 | L117: 17834 | M117: 26960 | N117: 27237 | O117: Females | P117: 2912 | Q117: 8823 | R117: 11928 | S117: 10388 | T117: 5746 | U117: 2342 | V117: 923 | W117: 343 | X117: 11735 | Y117: 34051 | Z117: 43405 | AA117: 43614 | AB117: All | AC117: 3983 | AD117: 12403 | AE117: 18049 | AF117: 17450 | AG117: 10858 | AH117: 4799 | AI117: 2028 | AJ117: 795 | AK117: 16386 | AL117: 51885 | AM117: 70365 | AN117: 70851
A118: English Literature | B118: Males | C118: 6316 | D118: 24112 | E118: 50995 | F118: 52352 | G118: 33973 | H118: 16174 | I118: 6652 | J118: 2610 | K118: 30428 | L118: 133775 | M118: 193184 | N118: 195575 | O118: Females | P118: 14311 | Q118: 44903 | R118: 66549 | S118: 48413 | T118: 23176 | U118: 8519 | V118: 2990 | W118: 1152 | X118: 59214 | Y118: 174176 | Z118: 210013 | AA118: 211491 | AB118: All | AC118: 20627 | AD118: 69015 | AE118: 117544 | AF118: 100765 | AG118: 57149 | AH118: 24693 | AI118: 9642 | AJ118: 3762 | AK118: 89642 | AL118: 307951 | AM118: 403197 | AN118: 407066
A119: English Studies | B119: Males | C119: 0 | D119: 5 | E119: 52 | F119: 103 | G119: 88 | H119: 71 | I119: 27 | J119: 6 | K119: 5 | L119: 160 | M119: 352 | N119: 353 | O119: Females | P119: 3 | Q119: 14 | R119: 90 | S119: 104 | T119: 102 | U119: 36 | V119: 15 | W119: 3 | X119: 17 | Y119: 211 | Z119: 367 | AA119: 368 | AB119: All | AC119: 3 | AD119: 19 | AE119: 142 | AF119: 207 | AG119: 190 | AH119: 107 | AI119: 42 | AJ119: 9 | AK119: 22 | AL119: 371 | AM119: 719 | AN119: 721
A120: General Studies | B120: Males | C120: 85 | D120: 329 | E120: 572 | F120: 808 | G120: 925 | H120: 793 | I120: 569 | J120: 428 | K120: 414 | L120: 1794 | M120: 4509 | N120: 4961 | O120: Females | P120: 106 | Q120: 349 | R120: 626 | S120: 882 | T120: 1041 | U120: 673 | V120: 403 | W120: 232 | X120: 455 | Y120: 1963 | Z120: 4312 | AA120: 4562 | AB120: All | AC120: 191 | AD120: 678 | AE120: 1198 | AF120: 1690 | AG120: 1966 | AH120: 1466 | AI120: 972 | AJ120: 660 | AK120: 869 | AL120: 3757 | AM120: 8821 | AN120: 9523
A121: Health and Social Care | B121: Males | C121: 1 | D121: 30 | E121: 103 | F121: 205 | G121: 235 | H121: 214 | I121: 180 | J121: 125 | K121: 31 | L121: 339 | M121: 1093 | N121: 1200 | O121: Females | P121: 316 | Q121: 1629 | R121: 3386 | S121: 4372 | T121: 3205 | U121: 1948 | V121: 1151 | W121: 700 | X121: 1945 | Y121: 9703 | Z121: 16707 | AA121: 17170 | AB121: All | AC121: 317 | AD121: 1659 | AE121: 3489 | AF121: 4577 | AG121: 3440 | AH121: 2162 | AI121: 1331 | AJ121: 825 | AK121: 1976 | AL121: 10042 | AM121: 17800 | AN121: 18370
A122: Hospitality and Catering | B122: Males | C122: 1 | D122: 21 | E122: 121 | F122: 270 | G122: 272 | H122: 199 | I122: 121 | J122: 26 | K122: 22 | L122: 413 | M122: 1031 | N122: 1055 | O122: Females | P122: 42 | Q122: 158 | R122: 308 | S122: 374 | T122: 274 | U122: 151 | V122: 46 | W122: 16 | X122: 200 | Y122: 882 | Z122: 1369 | AA122: 1394 | AB122: All | AC122: 43 | AD122: 179 | AE122: 429 | AF122: 644 | AG122: 546 | AH122: 350 | AI122: 167 | AJ122: 42 | AK122: 222 | AL122: 1295 | AM122: 2400 | AN122: 2449
A123: Leisure and Tourism | B123: Males | C123: 16 | D123: 95 | E123: 261 | F123: 471 | G123: 558 | H123: 504 | I123: 400 | J123: 337 | K123: 111 | L123: 843 | M123: 2642 | N123: 2917 | O123: Females | P123: 82 | Q123: 262 | R123: 484 | S123: 622 | T123: 584 | U123: 443 | V123: 285 | W123: 204 | X123: 344 | Y123: 1450 | Z123: 2966 | AA123: 3107 | AB123: All | AC123: 98 | AD123: 357 | AE123: 745 | AF123: 1093 | AG123: 1142 | AH123: 947 | AI123: 685 | AJ123: 541 | AK123: 455 | AL123: 2293 | AM123: 5608 | AN123: 6024
A124: Manufacturing | B124: Males | C124: 1 | D124: 5 | E124: 15 | F124: 18 | G124: 18 | H124: 20 | I124: 13 | J124: 4 | K124: 6 | L124: 39 | M124: 94 | N124: 94 | O124: Females | P124: 1 | Q124: 5 | R124: 11 | S124: 12 | T124: 8 | U124: 3 | V124: 0 | W124: 0 | X124: 6 | Y124: 29 | Z124: 40 | AA124: 40 | AB124: All | AC124: 2 | AD124: 10 | AE124: 26 | AF124: 30 | AG124: 26 | AH124: 23 | AI124: 13 | AJ124: 4 | AK124: 12 | AL124: 68 | AM124: 134 | AN124: 134
A125: Media/Film/TV | B125: Males | C125: 400 | D125: 1888 | E125: 4894 | F125: 7288 | G125: 5511 | H125: 3144 | I125: 1684 | J125: 788 | K125: 2288 | L125: 14470 | M125: 25597 | N125: 26234 | O125: Females | P125: 1380 | Q125: 4510 | R125: 7063 | S125: 6370 | T125: 3294 | U125: 1509 | V125: 639 | W125: 301 | X125: 5890 | Y125: 19323 | Z125: 25066 | AA125: 25368 | AB125: All | AC125: 1780 | AD125: 6398 | AE125: 11957 | AF125: 13658 | AG125: 8805 | AH125: 4653 | AI125: 2323 | AJ125: 1089 | AK125: 8178 | AL125: 33793 | AM125: 50663 | AN125: 51602
A126: Music | B126: Males | C126: 1824 | D126: 4012 | E126: 4853 | F126: 4022 | G126: 2654 | H126: 1595 | I126: 739 | J126: 385 | K126: 5836 | L126: 14711 | M126: 20084 | N126: 20393 | O126: Females | P126: 2145 | Q126: 5365 | R126: 6091 | S126: 4566 | T126: 2626 | U126: 1424 | V126: 611 | W126: 295 | X126: 7510 | Y126: 18167 | Z126: 23123 | AA126: 23305 | AB126: All | AC126: 3969 | AD126: 9377 | AE126: 10944 | AF126: 8588 | AG126: 5280 | AH126: 3019 | AI126: 1350 | AJ126: 680 | AK126: 13346 | AL126: 32878 | AM126: 43207 | AN126: 43698
A127: Performing Arts | B127: Males | C127: 58 | D127: 102 | E127: 264 | F127: 400 | G127: 390 | H127: 209 | I127: 140 | J127: 57 | K127: 160 | L127: 824 | M127: 1620 | N127: 1665 | O127: Females | P127: 382 | Q127: 535 | R127: 890 | S127: 1113 | T127: 732 | U127: 399 | V127: 167 | W127: 65 | X127: 917 | Y127: 2920 | Z127: 4283 | AA127: 4333 | AB127: All | AC127: 440 | AD127: 637 | AE127: 1154 | AF127: 1513 | AG127: 1122 | AH127: 608 | AI127: 307 | AJ127: 122 | AK127: 1077 | AL127: 3744 | AM127: 5903 | AN127: 5998
A128: Physical Education | B128: Males | C128: 2070 | D128: 10068 | E128: 17250 | F128: 20894 | G128: 13614 | H128: 6550 | I128: 2087 | J128: 565 | K128: 12138 | L128: 50282 | M128: 73098 | N128: 73377 | O128: Females | P128: 2560 | Q128: 7141 | R128: 8534 | S128: 8994 | T128: 5961 | U128: 2849 | V128: 920 | W128: 281 | X128: 9701 | Y128: 27229 | Z128: 37240 | AA128: 37413 | AB128: All | AC128: 4630 | AD128: 17209 | AE128: 25784 | AF128: 29888 | AG128: 19575 | AH128: 9399 | AI128: 3007 | AJ128: 846 | AK128: 21839 | AL128: 77511 | AM128: 110338 | AN128: 110790
A129: Religious Studies | B129: Males | C129: 8658 | D129: 18820 | E129: 27930 | F129: 26030 | G129: 17210 | H129: 11328 | I129: 7122 | J129: 4318 | K129: 27478 | L129: 81438 | M129: 121416 | N129: 125085 | O129: Females | P129: 21208 | Q129: 32320 | R129: 34748 | S129: 24733 | T129: 13935 | U129: 8168 | V129: 4776 | W129: 2581 | X129: 53528 | Y129: 113009 | Z129: 142469 | AA129: 144426 | AB129: All | AC129: 29866 | AD129: 51140 | AE129: 62678 | AF129: 50763 | AG129: 31145 | AH129: 19496 | AI129: 11898 | AJ129: 6899 | AK129: 81006 | AL129: 194447 | AM129: 263885 | AN129: 269511
A130: Statistics | B130: Males | C130: 1151 | D130: 4245 | E130: 5800 | F130: 7858 | G130: 4817 | H130: 2029 | I130: 1053 | J130: 567 | K130: 5396 | L130: 19054 | M130: 27520 | N130: 28134 | O130: Females | P130: 1040 | Q130: 3861 | R130: 5462 | S130: 7087 | T130: 3530 | U130: 1449 | V130: 652 | W130: 360 | X130: 4901 | Y130: 17450 | Z130: 23441 | AA130: 23924 | AB130: All | AC130: 2191 | AD130: 8106 | AE130: 11262 | AF130: 14945 | AG130: 8347 | AH130: 3478 | AI130: 1705 | AJ130: 927 | AK130: 10297 | AL130: 36504 | AM130: 50961 | AN130: 52058
A131: Vocational Studies | B131: Males | C131: 222 | D131: 1274 | E131: 3293 | F131: 5403 | G131: 4634 | H131: 2920 | I131: 1356 | J131: 498 | K131: 1496 | L131: 10192 | M131: 19600 | N131: 19950 | O131: Females | P131: 758 | Q131: 3331 | R131: 5707 | S131: 5791 | T131: 3728 | U131: 1828 | V131: 761 | W131: 279 | X131: 4089 | Y131: 15587 | Z131: 22183 | AA131: 22372 | AB131: All | AC131: 980 | AD131: 4605 | AE131: 9000 | AF131: 11194 | AG131: 8362 | AH131: 4748 | AI131: 2117 | AJ131: 777 | AK131: 5585 | AL131: 25779 | AM131: 41783 | AN131: 42322
A132: All Subjects | B132: Males | C132: 126247 | D132: 292052 | E132: 485731 | F132: 601002 | G132: 379920 | H132: 189555 | I132: 99704 | J132: 51748 | K132: 418299 | L132: 1505032 | M132: 2225959 | N132: 2268834 | O132: Females | P132: 199869 | Q132: 408759 | R132: 571351 | S132: 582532 | T132: 316412 | U132: 137656 | V132: 65668 | W132: 32928 | X132: 608628 | Y132: 1762511 | Z132: 2315175 | AA132: 2343738 | AB132: All | AC132: 326116 | AD132: 700811 | AE132: 1057082 | AF132: 1183534 | AG132: 696332 | AH132: 327211 | AI132: 165372 | AJ132: 84676 | AK132: 1026927 | AL132: 3267543 | AM132: 4541134 | AN132: 4612572

Sheet 2016 (hidden)
A1: 1 | B1: 2 | C1: 3 | D1: 4 | E1: 5 | F1: 6 | G1: 7 | H1: 8 | I1: 9 | J1: 10 | K1: 11 | L1: 12 | M1: 13 | N1: 14 | O1: 15 | P1: 16 | Q1: 17 | R1: 18 | S1: 19 | T1: 20 | U1: 21 | V1: 22 | W1: 23 | X1: 24 | Y1: 25 | Z1: 26 | AA1: 27 | AB1: 28 | AC1: 29 | AD1: 30 | AE1: 31 | AF1: 32 | AG1: 33 | AH1: 34 | AI1: 35 | AJ1: 36 | AK1: 37 | AL1: 38 | AM1: 39 | AN1: 40
A2: Subjects | C2: * | D2: A | E2: B | F2: C | G2: D | H2: E | I2: F | J2: G | K2: AstarA | L2: AstarC | M2: AstarG | N2: Total | O2: (No column name) | P2: * | Q2: A | R2: B | S2: C | T2: D | U2: E | V2: F | W2: G | X2: AstarA | Y2: AstarC | Z2: AstarG | AA2: Total | AB2: (No column name) | AC2: * | AD2: A | AE2: B | AF2: C | AG2: D | AH2: E | AI2: F | AJ2: G | AK2: AstarA | AL2: AstarC | AM2: AstarG | AN2: Total
A3: English | B3: Males | C3: 2.8 | D3: 9.6 | E3: 21.9 | F3: 30.8 | G3: 20.2 | H3: 8.6 | I3: 3.7 | J3: 1.5 | K3: 12.4 | L3: 65 | M3: 99.1 | N3: 164981 | O3: Females | P3: 6.4 | Q3: 17.6 | R3: 28.7 | S3: 27.5 | T3: 13.2 | U3: 4.2 | V3: 1.4 | W3: 0.6 | X3: 24 | Y3: 80.2 | Z3: 99.6 | AA3: 173087 | AB3: All | AC3: 4.7 | AD3: 13.7 | AE3: 25.4 | AF3: 29.1 | AG3: 16.6 | AH3: 6.3 | AI3: 2.5 | AJ3: 1.1 | AK3: 18.4 | AL3: 72.8 | AM3: 99.3 | AN3: 338068
A4: Mathematics | B4: Males | C4: 8.1 | D4: 12.8 | E4: 20.1 | F4: 29.8 | G4: 13.8 | H4: 5.2 | I4: 3.4 | J4: 2.8 | K4: 20.9 | L4: 70.8 | M4: 96 | N4: 275819 | O4: Females | P4: 7.5 | Q4: 13.5 | R4: 21.4 | S4: 30.2 | T4: 13.7 | U4: 4.9 | V4: 3.1 | W4: 2.5 | X4: 21 | Y4: 72.6 | Z4: 96.8 | AA4: 268274 | AB4: All | AC4: 7.8 | AD4: 13.1 | AE4: 20.7 | AF4: 30 | AG4: 13.8 | AH4: 5.1 | AI4: 3.2 | AJ4: 2.6 | AK4: 21 | AL4: 71.7 | AM4: 96.4 | AN4: 544093
A5: Core Science | B5: Males | C5: 0.5 | D5: 4.8 | E5: 16.5 | F5: 29.7 | G5: 23.7 | H5: 13.2 | I5: 7.2 | J5: 2.9 | K5: 5.3 | L5: 51.5 | M5: 98.4 | N5: 198136 | O5: Females | P5: 1 | Q5: 7.5 | R5: 20.3 | S5: 29.9 | T5: 21.4 | U5: 11.3 | V5: 5.7 | W5: 2 | X5: 8.4 | Y5: 58.6 | Z5: 98.9 | AA5: 196165 | AB5: All | AC5: 0.7 | AD5: 6.1 | AE5: 18.4 | AF5: 29.8 | AG5: 22.5 | AH5: 12.2 | AI5: 6.5 | AJ5: 2.5 | AK5: 6.9 | AL5: 55 | AM5: 98.7 | AN5: 394301
A6: Additional Science | B6: Males | C6: 1.3 | D6: 6.7 | E6: 18.8 | F6: 30 | G6: 21.3 | H6: 11.6 | I6: 6.4 | J6: 2.6 | K6: 8 | L6: 56.7 | M6: 98.7 | N6: 172685 | O6: Females | P6: 1.9 | Q6: 8.9 | R6: 21.9 | S6: 30.2 | T6: 19.8 | U6: 10.1 | V6: 4.8 | W6: 1.6 | X6: 10.8 | Y6: 62.9 | Z6: 99.2 | AA6: 176353 | AB6: All | AC6: 1.6 | AD6: 7.8 | AE6: 20.3 | AF6: 30.1 | AG6: 20.6 | AH6: 10.9 | AI6: 5.6 | AJ6: 2.1 | AK6: 9.4 | AL6: 59.8 | AM6: 99 | AN6: 349038
A7: Further Additional Science | B7: Males | C7: 14.6 | D7: 19 | E7: 22.1 | F7: 20 | G7: 14.2 | H7: 7.3 | I7: 2.2 | J7: 0.5 | K7: 33.6 | L7: 75.6 | M7: 99.8 | N7: 8568 | O7: Females | P7: 16.8 | Q7: 21 | R7: 21.5 | S7: 20.1 | T7: 12.8 | U7: 5.6 | V7: 1.7 | W7: 0.4 | X7: 37.7 | Y7: 79.3 | Z7: 99.8 | AA7: 8408 | AB7: All | AC7: 15.7 | AD7: 20 | AE7: 21.8 | AF7: 20 | AG7: 13.5 | AH7: 6.5 | AI7: 2 | AJ7: 0.5 | AK7: 35.6 | AL7: 77.4 | AM7: 99.8 | AN7: 16976
A8: Additional Applied Science | B8: Males | C8: 0 | D8: 0.2 | E8: 4.2 | F8: 19.7 | G8: 30.8 | H8: 24.5 | I8: 12.3 | J8: 5.9 | K8: 0.2 | L8: 24.1 | M8: 97.6 | N8: 1765 | O8: Females | P8: 0.2 | Q8: 0.8 | R8: 7.7 | S8: 24.4 | T8: 31.8 | U8: 21 | V8: 10 | W8: 2.4 | X8: 1 | Y8: 33.2 | Z8: 98.4 | AA8: 1652 | AB8: All | AC8: 0.1 | AD8: 0.5 | AE8: 5.9 | AF8: 22 | AG8: 31.3 | AH8: 22.8 | AI8: 11.2 | AJ8: 4.2 | AK8: 0.6 | AL8: 28.5 | AM8: 98 | AN8: 3417
A9: Physics | B9: Males | C9: 15.1 | D9: 26.9 | E9: 28.4 | F9: 20.6 | G9: 7.1 | H9: 1.4 | I9: 0.3 | J9: 0.1 | K9: 42 | L9: 91 | M9: 99.9 | N9: 65070 | O9: Females | P9: 15.3 | Q9: 26.8 | R9: 28.5 | S9: 20.5 | T9: 7.2 | U9: 1.4 | V9: 0.2 | W9: 0.1 | X9: 42 | Y9: 91.1 | Z9: 99.9 | AA9: 64373 | AB9: All | AC9: 15.2 | AD9: 26.8 | AE9: 28.5 | AF9: 20.6 | AG9: 7.1 | AH9: 1.4 | AI9: 0.3 | AJ9: 0.1 | AK9: 42 | AL9: 91 | AM9: 99.9 | AN9: 129443
A10: Chemistry | B10: Males | C10: 12.6 | D10: 26.3 | E10: 28.6 | F10: 21.7 | G10: 8.3 | H10: 1.8 | I10: 0.5 | J10: 0.1 | K10: 38.9 | L10: 89.3 | M10: 99.9 | N10: 65409 | O10: Females | P10: 16.7 | Q10: 29.4 | R10: 27.8 | S10: 18 | T10: 6.4 | U10: 1.3 | V10: 0.3 | W10: 0.1 | X10: 46 | Y10: 91.9 | Z10: 99.9 | AA10: 64836 | AB10: All | AC10: 14.6 | AD10: 27.8 | AE10: 28.2 | AF10: 19.9 | AG10: 7.3 | AH10: 1.5 | AI10: 0.4 | AJ10: 0.1 | AK10: 42.5 | AL10: 90.6 | AM10: 99.9 | AN10: 130245
A11: Biological Sciences | B11: Males | C11: 11.2 | D11: 26.5 | E11: 30.8 | F11: 21.1 | G11: 7.8 | H11: 1.6 | I11: 0.5 | J11: 0.2 | K11: 37.7 | L11: 89.7 | M11: 99.8 | N11: 66082 | O11: Females | P11: 15.9 | Q11: 30.5 | R11: 28.9 | S11: 17.1 | T11: 5.7 | U11: 1.3 | V11: 0.4 | W11: 0.1 | X11: 46.4 | Y11: 92.3 | Z11: 99.8 | AA11: 65982 | AB11: All | AC11: 13.6 | AD11: 28.5 | AE11: 29.9 | AF11: 19.1 | AG11: 6.7 | AH11: 1.5 | AI11: 0.4 | AJ11: 0.2 | AK11: 42.1 | AL11: 91 | AM11: 99.8 | AN11: 132064
A12: Computer Science | B12: Males | C12: 5.3 | D12: 14.2 | E12: 19.8 | F12: 20.2 | G12: 15 | H12: 10 | I12: 6.8 | J12: 4.4 | K12: 19.5 | L12: 59.5 | M12: 95.7 | N12: 49462 | O12: Females | P12: 7.5 | Q12: 16.9 | R12: 19.2 | S12: 18.7 | T12: 13.9 | U12: 9.6 | V12: 6.3 | W12: 4.1 | X12: 24.3 | Y12: 62.3 | Z12: 96.3 | AA12: 12673 | AB12: All | AC12: 5.7 | AD12: 14.8 | AE12: 19.7 | AF12: 19.9 | AG12: 14.8 | AH12: 9.9 | AI12: 6.7 | AJ12: 4.4 | AK12: 20.5 | AL12: 60.1 | AM12: 95.9 | AN12: 62135
A13: Other Sciences | B13: Males | C13: 13.9 | D13: 15.9 | E13: 19 | F13: 16.9 | G13: 11.3 | H13: 10.2 | I13: 6.2 | J13: 3.7 | K13: 29.8 | L13: 65.8 | M13: 97.1 | N13: 3200 | O13: Females | P13: 7 | Q13: 13.8 | R13: 19.9 | S13: 20.4 | T13: 16.5 | U13: 11.6 | V13: 5.7 | W13: 2.6 | X13: 20.8 | Y13: 61.2 | Z13: 97.5 | AA13: 1589 | AB13: All | AC13: 11.6 | AD13: 15.2 | AE13: 19.3 | AF13: 18 | AG13: 13 | AH13: 10.6 | AI13: 6 | AJ13: 3.3 | AK13: 26.9 | AL13: 64.2 | AM13: 97.2 | AN13: 4789
A14: D & T: Electronic Products | B14: Males | C14: 6.9 | D14: 15.1 | E14: 20.2 | F14: 21.9 | G14: 14.6 | H14: 10 | I14: 5.8 | J14: 3.3 | K14: 22 | L14: 64.1 | M14: 97.8 | N14: 6125 | O14: Females | P14: 16 | Q14: 27.3 | R14: 23.8 | S14: 16.3 | T14: 7.7 | U14: 5 | V14: 2.5 | W14: 0.8 | X14: 43.3 | Y14: 83.3 | Z14: 99.4 | AA14: 480 | AB14: All | AC14: 7.6 | AD14: 16 | AE14: 20.4 | AF14: 21.5 | AG14: 14.1 | AH14: 9.6 | AI14: 5.6 | AJ14: 3.1 | AK14: 23.6 | AL14: 65.5 | AM14: 97.9 | AN14: 6605
A15: D & T: Food Technology | B15: Males | C15: 1.1 | D15: 5.5 | E15: 13.6 | F15: 24.2 | G15: 23.7 | H15: 16.6 | I15: 8.9 | J15: 4.2 | K15: 6.6 | L15: 44.4 | M15: 97.8 | N15: 12143 | O15: Females | P15: 7.1 | Q15: 17.2 | R15: 23.6 | S15: 22.8 | T15: 15.3 | U15: 8 | V15: 3.8 | W15: 1.4 | X15: 24.3 | Y15: 70.7 | Z15: 99.2 | AA15: 21305 | AB15: All | AC15: 4.9 | AD15: 12.9 | AE15: 20 | AF15: 23.3 | AG15: 18.4 | AH15: 11.1 | AI15: 5.6 | AJ15: 2.4 | AK15: 17.9 | AL15: 61.2 | AM15: 98.7 | AN15: 33448
A16: D & T: Graphic Products | B16: Males | C16: 2.4 | D16: 8.7 | E16: 16.4 | F16: 22 | G16: 19.8 | H16: 14 | I16: 8.7 | J16: 4.8 | K16: 11.1 | L16: 49.4 | M16: 96.7 | N16: 16159 | O16: Females | P16: 8.9 | Q16: 19.6 | R16: 23.6 | S16: 21.1 | T16: 13.8 | U16: 6.9 | V16: 3.4 | W16: 1.7 | X16: 28.4 | Y16: 73.1 | Z16: 98.9 | AA16: 9714 | AB16: All | AC16: 4.8 | AD16: 12.8 | AE16: 19.1 | AF16: 21.6 | AG16: 17.5 | AH16: 11.3 | AI16: 6.7 | AJ16: 3.6 | AK16: 17.6 | AL16: 58.3 | AM16: 97.5 | AN16: 25873
A17: D & T: Resistant Materials | B17: Males | C17: 2.9 | D17: 8.9 | E17: 17.6 | F17: 24.3 | G17: 20 | H17: 13.1 | I17: 7.6 | J17: 3.6 | K17: 11.9 | L17: 53.8 | M17: 98.1 | N17: 40346 | O17: Females | P17: 9.1 | Q17: 19.1 | R17: 24 | S17: 21.2 | T17: 13 | U17: 7.3 | V17: 3.8 | W17: 1.7 | X17: 28.2 | Y17: 73.4 | Z17: 99.1 | AA17: 7183 | AB17: All | AC17: 3.9 | AD17: 10.5 | AE17: 18.6 | AF17: 23.8 | AG17: 18.9 | AH17: 12.3 | AI17: 7 | AJ17: 3.3 | AK17: 14.3 | AL17: 56.8 | AM17: 98.2 | AN17: 47529
A18: D & T: Systems & Control | B18: Males | C18: 6.7 | D18: 16.9 | E18: 21.1 | F18: 22.4 | G18: 16.3 | H18: 10 | I18: 4 | J18: x | K18: 23.6 | L18: 67.1 | M18: 99.2 | N18: 2323 | O18: Females | P18: 8.3 | Q18: 22.4 | R18: 31.3 | S18: 19.3 | T18: 11.5 | U18: 3.1 | V18: 3.1 | W18: x | X18: 30.7 | Y18: 81.3 | Z18: 99.5 | AA18: 192 | AB18: All | AC18: 6.8 | AD18: 17.3 | AE18: 21.9 | AF18: 22.1 | AG18: 15.9 | AH18: 9.5 | AI18: 4 | AJ18: 1.7 | AK18: 24.1 | AL18: 68.2 | AM18: 99.2 | AN18: 2515
A19: D & T: Textiles Technology | B19: Males | C19: 2.9 | D19: 6.1 | E19: 12.3 | F19: 16.3 | G19: 20.9 | H19: 15.8 | I19: 13.6 | J19: 7.6 | K19: 9 | L19: 37.5 | M19: 95.3 | N19: 767 | O19: Females | P19: 9.5 | Q19: 18.3 | R19: 24.1 | S19: 21.9 | T19: 13.3 | U19: 6.8 | V19: 3.7 | W19: 1.6 | X19: 27.9 | Y19: 73.9 | Z19: 99.2 | AA19: 20831 | AB19: All | AC19: 9.3 | AD19: 17.9 | AE19: 23.7 | AF19: 21.7 | AG19: 13.6 | AH19: 7.1 | AI19: 4 | AJ19: 1.8 | AK19: 27.2 | AL19: 72.6 | AM19: 99.1 | AN19: 21598
A20: Other Design and Technology | B20: Males | C20: 2.4 | D20: 8.4 | E20: 17.4 | F20: 23.8 | G20: 20.7 | H20: 13 | I20: 7.8 | J20: 4.1 | K20: 10.7 | L20: 51.9 | M20: 97.5 | N20: 27343 | O20: Females | P20: 8.4 | Q20: 18.1 | R20: 24 | S20: 22.1 | T20: 13.6 | U20: 7.4 | V20: 3.8 | W20: 1.4 | X20: 26.5 | Y20: 72.6 | Z20: 98.9 | AA20: 10152 | AB20: All | AC20: 4 | AD20: 11 | AE20: 19.2 | AF20: 23.3 | AG20: 18.8 | AH20: 11.5 | AI20: 6.7 | AJ20: 3.4 | AK20: 15 | AL20: 57.5 | AM20: 97.9 | AN20: 37495
A21: Applied Engineering | B21: Males | C21: 0.7 | D21: 4.4 | E21: 11 | F21: 22.9 | G21: 23.1 | H21: 16.6 | I21: 10.1 | J21: 7.1 | K21: 5.2 | L21: 39 | M21: 95.9 | N21: 6242 | O21: Females | P21: 6.5 | Q21: 14.7 | R21: 20.2 | S21: 24.2 | T21: 16.6 | U21: 8.1 | V21: 5.6 | W21: 3 | X21: 21.2 | Y21: 65.6 | Z21: 98.8 | AA21: 604 | AB21: All | AC21: 1.2 | AD21: 5.3 | AE21: 11.8 | AF21: 23 | AG21: 22.5 | AH21: 15.8 | AI21: 9.7 | AJ21: 6.7 | AK21: 6.6 | AL21: 41.4 | AM21: 96.2 | AN21: 6846
A22: Information Technology | B22: Males | C22: 2.9 | D22: 13 | E22: 23.4 | F22: 23.8 | G22: 15.1 | H22: 8.8 | I22: 5.8 | J22: 4 | K22: 16 | L22: 63.2 | M22: 97 | N22: 43189 | O22: Females | P22: 6.1 | Q22: 18.9 | R22: 25.3 | S22: 21.9 | T22: 12.9 | U22: 6.8 | V22: 3.9 | W22: 2.4 | X22: 25 | Y22: 72.2 | Z22: 98.2 | AA22: 29673 | AB22: All | AC22: 4.2 | AD22: 15.4 | AE22: 24.2 | AF22: 23 | AG22: 14.2 | AH22: 8 | AI22: 5.1 | AJ22: 3.4 | AK22: 19.6 | AL22: 66.8 | AM22: 97.5 | AN22: 72862
A23: Business Studies | B23: Males | C23: 2.8 | D23: 12.6 | E23: 23.5 | F23: 23.9 | G23: 16.2 | H23: 9.7 | I23: 5.9 | J23: 3.4 | K23: 15.4 | L23: 62.7 | M23: 97.9 | N23: 42858 | O23: Females | P23: 4.3 | Q23: 15.6 | R23: 24.4 | S23: 22 | T23: 15.6 | U23: 9.3 | V23: 4.8 | W23: 2.6 | X23: 19.9 | Y23: 66.3 | Z23: 98.6 | AA23: 30206 | AB23: All | AC23: 3.4 | AD23: 13.8 | AE23: 23.9 | AF23: 23.1 | AG23: 15.9 | AH23: 9.5 | AI23: 5.4 | AJ23: 3.1 | AK23: 17.3 | AL23: 64.2 | AM23: 98.2 | AN23: 73064
A24: Applied Business | B24: Males | C24: 0.9 | D24: 9.3 | E24: 20.4 | F24: 22.8 | G24: 16.9 | H24: 12 | I24: 6.6 | J24: 4.8 | K24: 10.2 | L24: 53.5 | M24: 93.8 | N24: 6125 | O24: Females | P24: 2.2 | Q24: 15.8 | R24: 24.7 | S24: 20.7 | T24: 14.9 | U24: 10.7 | V24: 4.9 | W24: 3.2 | X24: 18 | Y24: 63.5 | Z24: 97 | AA24: 4366 | AB24: All | AC24: 1.5 | AD24: 12 | AE24: 22.2 | AF24: 22 | AG24: 16 | AH24: 11.5 | AI24: 5.9 | AJ24: 4.1 | AK24: 13.5 | AL24: 57.6 | AM24: 95.2 | AN24: 10491
A25: Home Economics | B25: Males | C25: 0.5 | D25: 4.3 | E25: 12.9 | F25: 22.1 | G25: 23.4 | H25: 18.9 | I25: 11.4 | J25: 4 | K25: 4.7 | L25: 39.7 | M25: 97.3 | N25: 2959 | O25: Females | P25: 2.7 | Q25: 11.2 | R25: 19.8 | S25: 23.9 | T25: 19.8 | U25: 12.2 | V25: 6.3 | W25: 2.6 | X25: 14 | Y25: 57.6 | Z25: 98.6 | AA25: 21328 | AB25: All | AC25: 2.4 | AD25: 10.4 | AE25: 18.9 | AF25: 23.7 | AG25: 20.2 | AH25: 13 | AI25: 6.9 | AJ25: 2.8 | AK25: 12.8 | AL25: 55.5 | AM25: 98.4 | AN25: 24287
A26: Ancient History | B26: Males | C26: 13.5 | D26: 20 | E26: 18.3 | F26: 19.6 | G26: 11 | H26: 8.8 | I26: 4.3 | J26: 1.9 | K26: 33.5 | L26: 71.4 | M26: 97.4 | N26: 535 | O26: Females | P26: 15 | Q26: 15.2 | R26: 22.7 | S26: 18 | T26: 13.8 | U26: 8.5 | V26: 3.2 | W26: 2.5 | X26: 30.1 | Y26: 70.8 | Z26: 98.9 | AA26: 528 | AB26: All | AC26: 14.2 | AD26: 17.6 | AE26: 20.5 | AF26: 18.8 | AG26: 12.4 | AH26: 8.7 | AI26: 3.8 | AJ26: 2.2 | AK26: 31.8 | AL26: 71.1 | AM26: 98.1 | AN26: 1063
A27: Geography | B27: Males | C27: 6.1 | D27: 13.9 | E27: 19.2 | F27: 22.7 | G27: 16.7 | H27: 10.4 | I27: 6.1 | J27: 3.2 | K27: 20.1 | L27: 62 | M27: 98.4 | N27: 120921 | O27: Females | P27: 11.1 | Q27: 18.6 | R27: 20.7 | S27: 20 | T27: 13.3 | U27: 8.1 | V27: 4.9 | W27: 2.4 | X27: 29.7 | Y27: 70.4 | Z27: 99.1 | AA27: 107697 | AB27: All | AC27: 8.5 | AD27: 16.1 | AE27: 19.9 | AF27: 21.5 | AG27: 15.1 | AH27: 9.3 | AI27: 5.5 | AJ27: 2.8 | AK27: 24.6 | AL27: 66 | AM27: 98.7 | AN27: 228618
A28: History | B28: Males | C28: 6.7 | D28: 15.3 | E28: 20.2 | F28: 19.4 | G28: 14.4 | H28: 9.6 | I28: 6.6 | J28: 4.4 | K28: 22 | L28: 61.6 | M28: 96.6 | N28: 116276 | O28: Females | P28: 10.9 | Q28: 19.7 | R28: 21.4 | S28: 17.6 | T28: 12.3 | U28: 8.2 | V28: 5.3 | W28: 2.9 | X28: 30.5 | Y28: 69.5 | Z28: 98.2 | AA28: 126802 | AB28: All | AC28: 8.9 | AD28: 17.6 | AE28: 20.8 | AF28: 18.4 | AG28: 13.3 | AH28: 8.9 | AI28: 5.9 | AJ28: 3.6 | AK28: 26.5 | AL28: 65.7 | AM28: 97.4 | AN28: 243078
A29: Humanities | B29: Males | C29: 0.7 | D29: 6.3 | E29: 14.4 | F29: 20 | G29: 19 | H29: 13.2 | I29: 10.9 | J29: 8.3 | K29: 7 | L29: 41.4 | M29: 92.9 | N29: 2829 | O29: Females | P29: 2.6 | Q29: 9.3 | R29: 19.8 | S29: 22.5 | T29: 17.6 | U29: 12.5 | V29: 7.5 | W29: 4.8 | X29: 11.9 | Y29: 54.3 | Z29: 96.7 | AA29: 2464 | AB29: All | AC29: 1.6 | AD29: 7.7 | AE29: 16.9 | AF29: 21.2 | AG29: 18.4 | AH29: 12.9 | AI29: 9.3 | AJ29: 6.7 | AK29: 9.3 | AL29: 47.4 | AM29: 94.6 | AN29: 5293
A30: Economics | B30: Males | C30: 6.7 | D30: 21 | E30: 28 | F30: 20.5 | G30: 11.5 | H30: 5.9 | I30: 2.9 | J30: 2 | K30: 27.7 | L30: 76.3 | M30: 98.5 | N30: 6459 | O30: Females | P30: 7 | Q30: 21.1 | R30: 30.3 | S30: 20 | T30: 10.5 | U30: 5.9 | V30: 3.1 | W30: 1.3 | X30: 28 | Y30: 78.4 | Z30: 99.2 | AA30: 3039 | AB30: All | AC30: 6.8 | AD30: 21 | AE30: 28.8 | AF30: 20.4 | AG30: 11.2 | AH30: 5.9 | AI30: 3 | AJ30: 1.8 | AK30: 27.8 | AL30: 77 | AM30: 98.8 | AN30: 9498
A31: Social Studies | B31: Males | C31: 1.5 | D31: 9.1 | E31: 20.5 | F31: 23.9 | G31: 18.1 | H31: 12.4 | I31: 7.1 | J31: 4.1 | K31: 10.6 | L31: 54.9 | M31: 96.7 | N31: 19975 | O31: Females | P31: 3.8 | Q31: 17.6 | R31: 25.3 | S31: 21.6 | T31: 14.7 | U31: 8.6 | V31: 4.7 | W31: 2.3 | X31: 21.4 | Y31: 68.3 | Z31: 98.5 | AA31: 36508 | AB31: All | AC31: 3 | AD31: 14.6 | AE31: 23.6 | AF31: 22.4 | AG31: 15.9 | AH31: 9.9 | AI31: 5.5 | AJ31: 2.9 | AK31: 17.6 | AL31: 63.6 | AM31: 97.9 | AN31: 56483
A32: Other Classical Studies | B32: Males | C32: 9.8 | D32: 30.3 | E32: 26.5 | F32: 18.2 | G32: 12.1 | H32: x | I32: 0 | J32: 0 | K32: 40.2 | L32: 84.8 | M32: 98.5 | N32: 132 | O32: Females | P32: 13.9 | Q32: 36.3 | R32: 24.6 | S32: 11.2 | T32: 4.6 | U32: x | V32: 2 | W32: 1.2 | X32: 50.2 | Y32: 86.1 | Z32: 96.8 | AA32: 410 | AB32: All | AC32: 12.9 | AD32: 34.9 | AE32: 25.1 | AF32: 12.9 | AG32: 6.5 | AH32: 2.6 | AI32: 1.5 | AJ32: 0.9 | AK32: 47.8 | AL32: 85.8 | AM32: 97.2 | AN32: 542
A33: Arabic | B33: Males | C33: 31.4 | D33: 21.8 | E33: 12.7 | F33: 10 | G33: 7.2 | H33: 4.3 | I33: 3.6 | J33: 4.2 | K33: 53.2 | L33: 75.9 | M33: 95.1 | N33: 1549 | O33: Females | P33: 36.9 | Q33: 20.8 | R33: 14.7 | S33: 8.4 | T33: 6.6 | U33: 5.5 | V33: 3.1 | W33: 2.2 | X33: 57.7 | Y33: 80.8 | Z33: 98.2 | AA33: 1932 | AB33: All | AC33: 34.4 | AD33: 21.3 | AE33: 13.8 | AF33: 9.1 | AG33: 6.9 | AH33: 5 | AI33: 3.3 | AJ33: 3.1 | AK33: 55.7 | AL33: 78.6 | AM33: 96.8 | AN33: 3481
A34: Chinese | B34: Males | C34: 57.5 | D34: 17.5 | E34: 11.3 | F34: 8.2 | G34: 3.5 | H34: 1.1 | I34: 0.7 | J34: x | K34: 74.9 | L34: 94.4 | M34: 99.8 | N34: 1844 | O34: Females | P34: 67.7 | Q34: 14.7 | R34: 9 | S34: 4.7 | T34: 2.1 | U34: 1.1 | V34: 0.4 | W34: x | X34: 82.4 | Y34: 96.1 | Z34: 99.8 | AA34: 1731 | AB34: All | AC34: 62.4 | AD34: 16.1 | AE34: 10.2 | AF34: 6.5 | AG34: 2.8 | AH34: 1.1 | AI34: 0.5 | AJ34: 0.2 | AK34: 78.5 | AL34: 95.2 | AM34: 99.8 | AN34: 3575
A35: French | B35: Males | C35: 7.6 | D35: 10.4 | E35: 16.5 | F35: 28.1 | G35: 23.1 | H35: 9.1 | I35: 3.4 | J35: 1.2 | K35: 18 | L35: 62.6 | M35: 99.5 | N35: 56939 | O35: Females | P35: 11.5 | Q35: 14.5 | R35: 19.9 | S35: 27.9 | T35: 17.8 | U35: 5.6 | V35: 1.9 | W35: 0.6 | X35: 26.1 | Y35: 73.9 | Z35: 99.7 | AA35: 79922 | AB35: All | AC35: 9.9 | AD35: 12.8 | AE35: 18.5 | AF35: 28 | AG35: 20 | AH35: 7 | AI35: 2.5 | AJ35: 0.8 | AK35: 22.7 | AL35: 69.2 | AM35: 99.6 | AN35: 136861
A36: German | B36: Males | C36: 6.3 | D36: 12.1 | E36: 20.8 | F36: 29.2 | G36: 20.6 | H36: 7.5 | I36: 2.4 | J36: 0.8 | K36: 18.5 | L36: 68.5 | M36: 99.7 | N36: 22884 | O36: Females | P36: 9.5 | Q36: 16.8 | R36: 24.9 | S36: 27.5 | T36: 15.1 | U36: 4.5 | V36: 1.2 | W36: 0.3 | X36: 26.3 | Y36: 78.7 | Z36: 99.8 | AA36: 25255 | AB36: All | AC36: 8 | AD36: 14.6 | AE36: 23 | AF36: 28.3 | AG36: 17.7 | AH36: 5.9 | AI36: 1.8 | AJ36: 0.5 | AK36: 22.6 | AL36: 73.8 | AM36: 99.8 | AN36: 48139
A37: Italian | B37: Males | C37: 45.3 | D37: 16.3 | E37: 14.6 | F37: 12.3 | G37: 7.2 | H37: 2.7 | I37: 0.9 | J37: 0.4 | K37: 61.6 | L37: 88.5 | M37: 99.7 | N37: 1835 | O37: Females | P37: 47.1 | Q37: 17.6 | R37: 13.9 | S37: 13.2 | T37: 5.1 | U37: 2.3 | V37: 0.4 | W37: 0.2 | X37: 64.7 | Y37: 91.8 | Z37: 99.8 | AA37: 2246 | AB37: All | AC37: 46.3 | AD37: 17.1 | AE37: 14.2 | AF37: 12.8 | AG37: 6.1 | AH37: 2.5 | AI37: 0.6 | AJ37: 0.3 | AK37: 63.3 | AL37: 90.3 | AM37: 99.7 | AN37: 4081
A38: Polish | B38: Males | C38: 25.4 | D38: 41.9 | E38: 17.7 | F38: 7.7 | G38: 3.3 | H38: 2 | I38: 0.6 | J38: 0.7 | K38: 67.3 | L38: 92.7 | M38: 99.3 | N38: 2296 | O38: Females | P38: 43.5 | Q38: 38 | R38: 10.7 | S38: 3.9 | T38: 1 | U38: 1.1 | V38: 0.4 | W38: 0.6 | X38: 81.5 | Y38: 96.1 | Z38: 99.2 | AA38: 2430 | AB38: All | AC38: 34.7 | AD38: 39.9 | AE38: 14.1 | AF38: 5.7 | AG38: 2.1 | AH38: 1.6 | AI38: 0.5 | AJ38: 0.7 | AK38: 74.6 | AL38: 94.4 | AM38: 99.2 | AN38: 4726
A39: Spanish | B39: Males | C39: 9.7 | D39: 11.7 | E39: 17.1 | F39: 25.4 | G39: 19.9 | H39: 9.2 | I39: 4.2 | J39: 1.9 | K39: 21.5 | L39: 63.9 | M39: 99.1 | N39: 37601 | O39: Females | P39: 14.7 | Q39: 15.9 | R39: 20.4 | S39: 23.8 | T39: 15.7 | U39: 5.9 | V39: 2.3 | W39: 0.9 | X39: 30.5 | Y39: 74.7 | Z39: 99.6 | AA39: 49918 | AB39: All | AC39: 12.6 | AD39: 14.1 | AE39: 19 | AF39: 24.5 | AG39: 17.5 | AH39: 7.3 | AI39: 3.1 | AJ39: 1.3 | AK39: 26.6 | AL39: 70.1 | AM39: 99.4 | AN39: 87519
A40: Urdu | B40: Males | C40: 9.2 | D40: 17.6 | E40: 19 | F40: 22.4 | G40: 15.4 | H40: 8.7 | I40: 5.3 | J40: 1.2 | K40: 26.8 | L40: 68.2 | M40: 98.8 | N40: 1451 | O40: Females | P40: 15.9 | Q40: 24.6 | R40: 24.4 | S40: 16.7 | T40: 9.9 | U40: 5.5 | V40: 1.9 | W40: 0.5 | X40: 40.6 | Y40: 81.6 | Z40: 99.5 | AA40: 2554 | AB40: All | AC40: 13.5 | AD40: 22.1 | AE40: 22.4 | AF40: 18.8 | AG40: 11.9 | AH40: 6.6 | AI40: 3.1 | AJ40: 0.8 | AK40: 35.6 | AL40: 76.8 | AM40: 99.2 | AN40: 4005
A41: Other Modern Languages | B41: Males | C41: 29.3 | D41: 28.6 | E41: 18.6 | F41: 10 | G41: 5.6 | H41: 3.4 | I41: 1.9 | J41: 1.2 | K41: 58 | L41: 86.6 | M41: 98.8 | N41: 4993 | O41: Females | P41: 38.6 | Q41: 30 | R41: 16 | S41: 8.1 | T41: 3.6 | U41: 1.6 | V41: 1.1 | W41: 0.4 | X41: 68.6 | Y41: 92.7 | Z41: 99.4 | AA41: 5714 | AB41: All | AC41: 34.3 | AD41: 29.3 | AE41: 17.2 | AF41: 9 | AG41: 4.5 | AH41: 2.5 | AI41: 1.5 | AJ41: 0.8 | AK41: 63.6 | AL41: 89.9 | AM41: 99.1 | AN41: 10707
A42: Classical Civilisation | B42: Males | C42: 11.5 | D42: 21.5 | E42: 25.6 | F42: 21.8 | G42: 11.5 | H42: 4.8 | I42: 2.5 | J42: 0.7 | K42: 33 | L42: 80.4 | M42: 99.8 | N42: 1930 | O42: Females | P42: 16.8 | Q42: 28.2 | R42: 23.7 | S42: 15.7 | T42: 9.1 | U42: 3.9 | V42: 1.7 | W42: 0.5 | X42: 45 | Y42: 84.4 | Z42: 99.7 | AA42: 2104 | AB42: All | AC42: 14.3 | AD42: 25 | AE42: 24.6 | AF42: 18.6 | AG42: 10.2 | AH42: 4.4 | AI42: 2.1 | AJ42: 0.6 | AK42: 39.3 | AL42: 82.5 | AM42: 99.8 | AN42: 4034
A43: Classical Greek | B43: Males | C43: 74.8 | D43: 15.8 | E43: 5.1 | F43: 2.4 | G43: 0.8 | H43: 0.8 | I43: x | J43: 0 | K43: 90.5 | L43: 98.1 | M43: 99.7 | N43: 622 | O43: Females | P43: 75.6 | Q43: 13.1 | R43: 5.1 | S43: 2.4 | T43: 1.9 | U43: 1.5 | V43: x | W43: 0 | X43: 88.7 | Y43: 96.1 | Z43: 99.8 | AA43: 467 | AB43: All | AC43: 75.1 | AD43: 14.6 | AE43: 5.1 | AF43: 2.4 | AG43: 1.3 | AH43: 1.1 | AI43: x | AJ43: 0 | AK43: 89.7 | AL43: 97.2 | AM43: 99.7 | AN43: 1089
A44: Latin | B44: Males | C44: 52.1 | D44: 22.7 | E44: 11.7 | F44: 7.7 | G44: 3.3 | H44: 1.9 | I44: 0.3 | J44: 0.2 | K44: 74.8 | L44: 94.2 | M44: 99.9 | N44: 3915 | O44: Females | P44: 57.1 | Q44: 23 | R44: 9.8 | S44: 5.7 | T44: 2.7 | U44: 0.8 | V44: 0.5 | W44: 0.2 | X44: 80.1 | Y44: 95.7 | Z44: 99.9 | AA44: 4060 | AB44: All | AC44: 54.6 | AD44: 22.9 | AE44: 10.7 | AF44: 6.7 | AG44: 3 | AH44: 1.4 | AI44: 0.4 | AJ44: 0.2 | AK44: 77.5 | AL44: 94.9 | AM44: 99.9 | AN44: 7975
A45: Applied Art and Design | B45: Males | C45: 1.6 | D45: 3.4 | E45: 16.7 | F45: 34.7 | G45: 20.6 | H45: 13.3 | I45: 5.5 | J45: x | K45: 5 | L45: 56.4 | M45: 97.4 | N45: 383 | O45: Females | P45: 4.8 | Q45: 10.4 | R45: 31.4 | S45: 32.8 | T45: 10.4 | U45: 6 | V45: 2.5 | W45: x | X45: 15.2 | Y45: 79.4 | Z45: 98.8 | AA45: 433 | AB45: All | AC45: 3.3 | AD45: 7.1 | AE45: 24.5 | AF45: 33.7 | AG45: 15.2 | AH45: 9.4 | AI45: 3.9 | AJ45: 1 | AK45: 10.4 | AL45: 68.6 | AM45: 98.2 | AN45: 816
A46: Art and Design | B46: Males | C46: 4.6 | D46: 8 | E46: 18.4 | F46: 32.2 | G46: 18 | H46: 10.1 | I46: 5.2 | J46: 2.1 | K46: 12.6 | L46: 63.2 | M46: 98.6 | N46: 55719 | O46: Females | P46: 11.1 | Q46: 16.9 | R46: 26.9 | S46: 27.1 | T46: 10.7 | U46: 4.3 | V46: 1.8 | W46: 0.6 | X46: 28 | Y46: 82 | Z46: 99.4 | AA46: 110945 | AB46: All | AC46: 8.9 | AD46: 13.9 | AE46: 24 | AF46: 28.8 | AG46: 13.1 | AH46: 6.3 | AI46: 2.9 | AJ46: 1.1 | AK46: 22.8 | AL46: 75.7 | AM46: 99.1 | AN46: 166664
A47: Communication Studies | B47: Males | C47: 1.7 | D47: 8.5 | E47: 16.1 | F47: 24.4 | G47: 22.2 | H47: 13.5 | I47: 6.8 | J47: 3.8 | K47: 10.2 | L47: 50.7 | M47: 96.9 | N47: 3213 | O47: Females | P47: 7.5 | Q47: 18.4 | R47: 24.8 | S47: 20.7 | T47: 14.3 | U47: 6.8 | V47: 4.3 | W47: 1.7 | X47: 25.9 | Y47: 71.4 | Z47: 98.4 | AA47: 3199 | AB47: All | AC47: 4.6 | AD47: 13.4 | AE47: 20.4 | AF47: 22.6 | AG47: 18.2 | AH47: 10.1 | AI47: 5.6 | AJ47: 2.7 | AK47: 18.1 | AL47: 61 | AM47: 97.7 | AN47: 6412
A48: Dance | B48: Males | C48: 3.7 | D48: 13.7 | E48: 18.9 | F48: 25.2 | G48: 19.3 | H48: 10.2 | I48: 6.5 | J48: 1.5 | K48: 17.4 | L48: 61.4 | M48: 98.8 | N48: 679 | O48: Females | P48: 5.8 | Q48: 16.9 | R48: 22.6 | S48: 24.3 | T48: 16.5 | U48: 8.1 | V48: 3.4 | W48: 1.4 | X48: 22.7 | Y48: 69.6 | Z48: 99 | AA48: 9860 | AB48: All | AC48: 5.7 | AD48: 16.7 | AE48: 22.4 | AF48: 24.3 | AG48: 16.7 | AH48: 8.2 | AI48: 3.6 | AJ48: 1.4 | AK48: 22.3 | AL48: 69 | AM48: 99 | AN48: 10539
A49: Drama | B49: Males | C49: 3.2 | D49: 12.5 | E49: 21.7 | F49: 26.7 | G49: 19.5 | H49: 9.9 | I49: 4.1 | J49: 1.5 | K49: 15.7 | L49: 64.1 | M49: 99 | N49: 26211 | O49: Females | P49: 6 | Q49: 20.6 | R49: 27.7 | S49: 24 | T49: 13 | U49: 5.3 | V49: 2.1 | W49: 0.8 | X49: 26.6 | Y49: 78.3 | Z49: 99.5 | AA49: 41679 | AB49: All | AC49: 4.9 | AD49: 17.5 | AE49: 25.4 | AF49: 25 | AG49: 15.5 | AH49: 7.1 | AI49: 2.9 | AJ49: 1.1 | AK49: 22.4 | AL49: 72.8 | AM49: 99.3 | AN49: 67890
A50: English Literature | B50: Males | C50: 3 | D50: 11.2 | E50: 24.3 | F50: 27.7 | G50: 18.7 | H50: 9 | I50: 3.6 | J50: 1.4 | K50: 14.2 | L50: 66.1 | M50: 98.8 | N50: 198793 | O50: Females | P50: 6.9 | Q50: 19.9 | R50: 30.3 | S50: 24.3 | T50: 11.8 | U50: 4.2 | V50: 1.4 | W50: 0.5 | X50: 26.8 | Y50: 81.4 | Z50: 99.4 | AA50: 210048 | AB50: All | AC50: 5 | AD50: 15.7 | AE50: 27.4 | AF50: 25.9 | AG50: 15.1 | AH50: 6.5 | AI50: 2.5 | AJ50: 1 | AK50: 20.7 | AL50: 74 | AM50: 99.1 | AN50: 408841
A51: English Studies | B51: Males | C51: 0 | D51: x | E51: 17.9 | F51: 23.2 | G51: 35.7 | H51: 12.5 | I51: 8 | J51: 0 | K51: x | L51: 42 | M51: 98.2 | N51: 112 | O51: Females | P51: 0 | Q51: x | R51: 23.2 | S51: 38.7 | T51: 25.4 | U51: 9.9 | V51: 0 | W51: 0 | X51: x | Y51: 64.8 | Z51: 100 | AA51: 142 | AB51: All | AC51: 0 | AD51: 2 | AE51: 20.9 | AF51: 31.9 | AG51: 29.9 | AH51: 11 | AI51: 3.5 | AJ51: 0 | AK51: 2 | AL51: 54.7 | AM51: 99.2 | AN51: 254
A52: General Studies | B52: Males | C52: 1.4 | D52: 6.1 | E52: 10.3 | F52: 16.2 | G52: 19.2 | H52: 15.2 | I52: 12.5 | J52: 9 | K52: 7.4 | L52: 34 | M52: 89.9 | N52: 4079 | O52: Females | P52: 1.9 | Q52: 9 | R52: 16.2 | S52: 17.2 | T52: 21.1 | U52: 14.7 | V52: 8.6 | W52: 5.5 | X52: 10.9 | Y52: 44.3 | Z52: 94.3 | AA52: 3764 | AB52: All | AC52: 1.6 | AD52: 7.5 | AE52: 13.1 | AF52: 16.7 | AG52: 20.1 | AH52: 14.9 | AI52: 10.6 | AJ52: 7.4 | AK52: 9.1 | AL52: 39 | AM52: 92 | AN52: 7843
A53: Health and Social Care | B53: Males | C53: 0.7 | D53: 2.2 | E53: 7.9 | F53: 16.4 | G53: 23.3 | H53: 16.4 | I53: 13 | J53: 11.4 | K53: 2.9 | L53: 27.2 | M53: 91.4 | N53: 1274 | O53: Females | P53: 2.8 | Q53: 8.7 | R53: 19 | S53: 24.8 | T53: 19.3 | U53: 11.8 | V53: 7 | W53: 4 | X53: 11.5 | Y53: 55.3 | Z53: 97.5 | AA53: 18452 | AB53: All | AC53: 2.6 | AD53: 8.3 | AE53: 18.3 | AF53: 24.3 | AG53: 19.5 | AH53: 12.1 | AI53: 7.4 | AJ53: 4.5 | AK53: 10.9 | AL53: 53.5 | AM53: 97.1 | AN53: 19726
A54: Hospitality and Catering | B54: Males | C54: x | D54: 3.1 | E54: 12 | F54: 25.3 | G54: 25.2 | H54: 21.1 | I54: 9.7 | J54: 2.6 | K54: 3.3 | L54: 40.6 | M54: 99.2 | N54: 1098 | O54: Females | P54: x | Q54: 13.6 | R54: 22.1 | S54: 23.8 | T54: 16.7 | U54: 13.1 | V54: 5.1 | W54: 1.2 | X54: 17.3 | Y54: 63.2 | Z54: 99.4 | AA54: 1445 | AB54: All | AC54: 2.2 | AD54: 9 | AE54: 17.7 | AF54: 24.5 | AG54: 20.4 | AH54: 16.6 | AI54: 7.1 | AJ54: 1.8 | AK54: 11.2 | AL54: 53.4 | AM54: 99.3 | AN54: 2543
A55: Leisure and Tourism | B55: Males | C55: 0.6 | D55: 3 | E55: 7.9 | F55: 14.9 | G55: 16.9 | H55: 18 | I55: 16.1 | J55: 12.1 | K55: 3.6 | L55: 26.4 | M55: 89.5 | N55: 2124 | O55: Females | P55: 2.2 | Q55: 9.4 | R55: 16.5 | S55: 20.6 | T55: 16.4 | U55: 13.4 | V55: 10.5 | W55: 6.8 | X55: 11.6 | Y55: 48.7 | Z55: 95.7 | AA55: 2400 | AB55: All | AC55: 1.4 | AD55: 6.4 | AE55: 12.4 | AF55: 17.9 | AG55: 16.6 | AH55: 15.6 | AI55: 13.1 | AJ55: 9.2 | AK55: 7.8 | AL55: 38.2 | AM55: 92.7 | AN55: 4524
A56: Manufacturing | B56: Males | C56: x | D56: x | E56: 11.3 | F56: 9.7 | G56: 14.5 | H56: 32.3 | I56: 19.4 | J56: x | K56: x | L56: 24.2 | M56: 98.4 | N56: 62 | O56: Females | P56: x | Q56: x | R56: 19.1 | S56: 25 | T56: 13.2 | U56: 8.8 | V56: 7.4 | W56: x | X56: x | Y56: 67.6 | Z56: 98.5 | AA56: 68 | AB56: All | AC56: x | AD56: 12.3 | AE56: 15.4 | AF56: 17.7 | AG56: 13.8 | AH56: 20 | AI56: 13.1 | AJ56: 4.6 | AK56: 13.8 | AL56: 46.9 | AM56: 98.5 | AN56: 130
A57: Media/Film/TV | B57: Males | C57: 1.5 | D57: 7.5 | E57: 20.2 | F57: 27.8 | G57: 20.6 | H57: 11.7 | I57: 6 | J57: 2.8 | K57: 8.9 | L57: 56.9 | M57: 98 | N57: 24241 | O57: Females | P57: 5.4 | Q57: 19.3 | R57: 28.7 | S57: 24 | T57: 12.4 | U57: 5.8 | V57: 2.6 | W57: 1 | X57: 24.7 | Y57: 77.4 | Z57: 99.3 | AA57: 22589 | AB57: All | AC57: 3.4 | AD57: 13.2 | AE57: 24.3 | AF57: 26 | AG57: 16.6 | AH57: 8.9 | AI57: 4.4 | AJ57: 2 | AK57: 16.6 | AL57: 66.8 | AM57: 98.6 | AN57: 46830
A58: Music | B58: Males | C58: 8.4 | D58: 19.7 | E58: 23.2 | F58: 19.3 | G58: 14 | H58: 8.1 | I58: 3.8 | J58: 2.1 | K58: 28.1 | L58: 70.6 | M58: 98.6 | N58: 18902 | O58: Females | P58: 9.4 | Q58: 22.6 | R58: 25.4 | S58: 19.6 | T58: 11.4 | U58: 6.6 | V58: 2.8 | W58: 1.3 | X58: 32.1 | Y58: 77 | Z58: 99.2 | AA58: 22748 | AB58: All | AC58: 9 | AD58: 21.3 | AE58: 24.4 | AF58: 19.4 | AG58: 12.6 | AH58: 7.3 | AI58: 3.3 | AJ58: 1.6 | AK58: 30.3 | AL58: 74.1 | AM58: 98.9 | AN58: 41650
A59: Performing Arts | B59: Males | C59: 5.3 | D59: 6.1 | E59: 16.5 | F59: 26.9 | G59: 22.6 | H59: 12.6 | I59: 5.4 | J59: 3 | K59: 11.3 | L59: 54.7 | M59: 98.3 | N59: 1454 | O59: Females | P59: 11 | Q59: 11.6 | R59: 22.9 | S59: 25.8 | T59: 15.9 | U59: 7.4 | V59: 3.1 | W59: 0.7 | X59: 22.6 | Y59: 71.3 | Z59: 98.4 | AA59: 3854 | AB59: All | AC59: 9.4 | AD59: 10.1 | AE59: 21.1 | AF59: 26.1 | AG59: 17.8 | AH59: 8.8 | AI59: 3.7 | AJ59: 1.3 | AK59: 19.5 | AL59: 66.8 | AM59: 98.4 | AN59: 5308
